{"text_format":"1","workbook":"xlsx","n_sheets":33,"sheets":["ورقة1","الخلاصة","مقارنة بين وليد والموقع","تقرير قيمة الجاز شهرى","اجمالى كمية وقيمة على المقاولين","اجمالى التوريد والصرف والفرق","تقرير قيمة الجاز يومى","تقرير المقاولين جاز","توزيع يومى على المقاولين","الشيخ رجب","رجب","السيد","جمال","أشرف","علوان","حلمى","أنور","جابر","رمضان عربية ش","محمد عيسى","عمر","حلمى25","ضيف","خالد 54","محسن مياه","خالد 31","عربية الجيش","السيد156","عنتر","رجب طرق","جابر 59","الشركة","الشركة 23"],"not_rendered":{"charts":0,"images":0,"macros":1,"external_links":0,"defined_names":13,"comments":0,"pivot_tables":0},"unopened":[],"bounds":{"document_bytes":16777216,"sheet_cells":100000,"rows_first":2000,"rows_last":500,"rows_between":2000,"halvings":0,"cell_chars":16384,"cell_head_chars":4096},"cells_cut":0,"cells_raw":0,"read":"whole","date_system":"1900"}

{"sheet":"ورقة1","index":0,"n_rows":53,"n_cols":7,"rows_kept":53,"cut":false,"hidden":false,"merged":[]}
[null,"المقاول","عدد اللترات","السعر","القيمة","عدد اللترات","القيمة"]
[null,"الشيخ رجب",{"$f":"SUMIF('توزيع يومى على المقاولين'!$H$7:$I$22000,B2,'توزيع يومى على المقاولين'!$I$7:$I$22000)","v":800},{"$f":"IFERROR(IF(E2<>\"\",E2/C2,\"\"),\"\")","v":7.05},{"$f":"SUMIF('توزيع يومى على المقاولين'!$H$7:$K$22000,$B2,'توزيع يومى على المقاولين'!$K$7:$K$22000)","v":5640},{"$f":"SUM(C2:C53)","v":342359},{"$f":"SUM(E2:E53)","v":2419925.9500000002}]
[null,"رجب",{"$f":"SUMIF('توزيع يومى على المقاولين'!$H$7:$I$22000,B3,'توزيع يومى على المقاولين'!$I$7:$I$22000)","v":12281},{"$f":"IFERROR(IF(E3<>\"\",E3/C3,\"\"),\"\")","v":7.5625804087615016},{"$f":"SUMIF('توزيع يومى على المقاولين'!$H$7:$K$22000,$B3,'توزيع يومى على المقاولين'!$K$7:$K$22000)","v":92876.05}]
[null,"السيد",{"$f":"SUMIF('توزيع يومى على المقاولين'!$H$7:$I$22000,B4,'توزيع يومى على المقاولين'!$I$7:$I$22000)","v":11826},7.05,{"$f":"SUMIF('توزيع يومى على المقاولين'!$H$7:$K$22000,$B4,'توزيع يومى على المقاولين'!$K$7:$K$22000)","v":83373.3}]
[null,"جمال",{"$f":"SUMIF('توزيع يومى على المقاولين'!$H$7:$I$22000,B5,'توزيع يومى على المقاولين'!$I$7:$I$22000)","v":5095},7.05,{"$f":"SUMIF('توزيع يومى على المقاولين'!$H$7:$K$22000,$B5,'توزيع يومى على المقاولين'!$K$7:$K$22000)","v":35919.75}]
[null,"أشرف",{"$f":"SUMIF('توزيع يومى على المقاولين'!$H$7:$I$22000,B6,'توزيع يومى على المقاولين'!$I$7:$I$22000)","v":15183},7.05,{"$f":"SUMIF('توزيع يومى على المقاولين'!$H$7:$K$22000,$B6,'توزيع يومى على المقاولين'!$K$7:$K$22000)","v":107040.15}]
[null,"علوان",{"$f":"SUMIF('توزيع يومى على المقاولين'!$H$7:$I$22000,B7,'توزيع يومى على المقاولين'!$I$7:$I$22000)","v":24989},7.0500000000000007,{"$f":"SUMIF('توزيع يومى على المقاولين'!$H$7:$K$22000,$B7,'توزيع يومى على المقاولين'!$K$7:$K$22000)","v":176172.45}]
[null,"حلمى",{"$f":"SUMIF('توزيع يومى على المقاولين'!$H$7:$I$22000,B8,'توزيع يومى على المقاولين'!$I$7:$I$22000)","v":14291},7.0499999999999989,{"$f":"SUMIF('توزيع يومى على المقاولين'!$H$7:$K$22000,$B8,'توزيع يومى على المقاولين'!$K$7:$K$22000)","v":100751.54999999999}]
[null,"أنور",{"$f":"SUMIF('توزيع يومى على المقاولين'!$H$7:$I$22000,B9,'توزيع يومى على المقاولين'!$I$7:$I$22000)","v":16433},7.05,{"$f":"SUMIF('توزيع يومى على المقاولين'!$H$7:$K$22000,$B9,'توزيع يومى على المقاولين'!$K$7:$K$22000)","v":115852.65}]
[null,"جابر",{"$f":"SUMIF('توزيع يومى على المقاولين'!$H$7:$I$22000,B10,'توزيع يومى على المقاولين'!$I$7:$I$22000)","v":56455},7.0500000000000007,{"$f":"SUMIF('توزيع يومى على المقاولين'!$H$7:$K$22000,$B10,'توزيع يومى على المقاولين'!$K$7:$K$22000)","v":398007.75000000006}]
[null,"رمضان عربية ش",{"$f":"SUMIF('توزيع يومى على المقاولين'!$H$7:$I$22000,B11,'توزيع يومى على المقاولين'!$I$7:$I$22000)","v":2277},7.0499999999999989,{"$f":"SUMIF('توزيع يومى على المقاولين'!$H$7:$K$22000,$B11,'توزيع يومى على المقاولين'!$K$7:$K$22000)","v":16052.849999999999}]
[null,"محمد عيسى",{"$f":"SUMIF('توزيع يومى على المقاولين'!$H$7:$I$22000,B12,'توزيع يومى على المقاولين'!$I$7:$I$22000)","v":5895},7.05,{"$f":"SUMIF('توزيع يومى على المقاولين'!$H$7:$K$22000,$B12,'توزيع يومى على المقاولين'!$K$7:$K$22000)","v":41559.75}]
[null,"عمر",{"$f":"SUMIF('توزيع يومى على المقاولين'!$H$7:$I$22000,B13,'توزيع يومى على المقاولين'!$I$7:$I$22000)","v":6557},7.05,{"$f":"SUMIF('توزيع يومى على المقاولين'!$H$7:$K$22000,$B13,'توزيع يومى على المقاولين'!$K$7:$K$22000)","v":46226.85}]
[null,"حلمى25",{"$f":"SUMIF('توزيع يومى على المقاولين'!$H$7:$I$22000,B14,'توزيع يومى على المقاولين'!$I$7:$I$22000)","v":8528},7.0499999999999989,{"$f":"SUMIF('توزيع يومى على المقاولين'!$H$7:$K$22000,$B14,'توزيع يومى على المقاولين'!$K$7:$K$22000)","v":60122.399999999994}]
[null,"ضيف",{"$f":"SUMIF('توزيع يومى على المقاولين'!$H$7:$I$22000,B15,'توزيع يومى على المقاولين'!$I$7:$I$22000)","v":19751},7.05,{"$f":"SUMIF('توزيع يومى على المقاولين'!$H$7:$K$22000,$B15,'توزيع يومى على المقاولين'!$K$7:$K$22000)","v":139244.54999999999}]
[null,"خالد 54",{"$f":"SUMIF('توزيع يومى على المقاولين'!$H$7:$I$22000,B16,'توزيع يومى على المقاولين'!$I$7:$I$22000)","v":12554},7.05,{"$f":"SUMIF('توزيع يومى على المقاولين'!$H$7:$K$22000,$B16,'توزيع يومى على المقاولين'!$K$7:$K$22000)","v":88505.7}]
[null,"محسن مياه",{"$f":"SUMIF('توزيع يومى على المقاولين'!$H$7:$I$22000,B17,'توزيع يومى على المقاولين'!$I$7:$I$22000)","v":5100},7.05,{"$f":"SUMIF('توزيع يومى على المقاولين'!$H$7:$K$22000,$B17,'توزيع يومى على المقاولين'!$K$7:$K$22000)","v":35955}]
[null,"خالد 31",{"$f":"SUMIF('توزيع يومى على المقاولين'!$H$7:$I$22000,B18,'توزيع يومى على المقاولين'!$I$7:$I$22000)","v":24836},7.05,{"$f":"SUMIF('توزيع يومى على المقاولين'!$H$7:$K$22000,$B18,'توزيع يومى على المقاولين'!$K$7:$K$22000)","v":175093.8}]
[null,"عربية الجيش",{"$f":"SUMIF('توزيع يومى على المقاولين'!$H$7:$I$22000,B19,'توزيع يومى على المقاولين'!$I$7:$I$22000)","v":136},7.05,{"$f":"SUMIF('توزيع يومى على المقاولين'!$H$7:$K$22000,$B19,'توزيع يومى على المقاولين'!$K$7:$K$22000)","v":958.8}]
[null,"عنتر",{"$f":"SUMIF('توزيع يومى على المقاولين'!$H$7:$I$22000,B20,'توزيع يومى على المقاولين'!$I$7:$I$22000)","v":28608},7.0499999999999989,{"$f":"SUMIF('توزيع يومى على المقاولين'!$H$7:$K$22000,$B20,'توزيع يومى على المقاولين'!$K$7:$K$22000)","v":201686.39999999997}]
[null,"السيد156",{"$f":"SUMIF('توزيع يومى على المقاولين'!$H$7:$I$22000,B21,'توزيع يومى على المقاولين'!$I$7:$I$22000)","v":20731},7.05,{"$f":"SUMIF('توزيع يومى على المقاولين'!$H$7:$K$22000,$B21,'توزيع يومى على المقاولين'!$K$7:$K$22000)","v":146153.54999999999}]
[null,"رجب طرق",{"$f":"SUMIF('توزيع يومى على المقاولين'!$H$7:$I$22000,B22,'توزيع يومى على المقاولين'!$I$7:$I$22000)","v":23637},7.05,{"$f":"SUMIF('توزيع يومى على المقاولين'!$H$7:$K$22000,$B22,'توزيع يومى على المقاولين'!$K$7:$K$22000)","v":166640.85}]
[null,"جابر 59",{"$f":"SUMIF('توزيع يومى على المقاولين'!$H$7:$I$22000,B23,'توزيع يومى على المقاولين'!$I$7:$I$22000)","v":25602},7.05,{"$f":"SUMIF('توزيع يومى على المقاولين'!$H$7:$K$22000,$B23,'توزيع يومى على المقاولين'!$K$7:$K$22000)","v":180494.1}]
[null,"الشركة",{"$f":"SUMIF('توزيع يومى على المقاولين'!$H$7:$I$22000,B24,'توزيع يومى على المقاولين'!$I$7:$I$22000)","v":398},7.0499999999999989,{"$f":"SUMIF('توزيع يومى على المقاولين'!$H$7:$K$22000,$B24,'توزيع يومى على المقاولين'!$K$7:$K$22000)","v":2805.8999999999996}]
[null,"الشركة 23",{"$f":"SUMIF('توزيع يومى على المقاولين'!$H$7:$I$22000,B25,'توزيع يومى على المقاولين'!$I$7:$I$22000)","v":396},7.0500000000000007,{"$f":"SUMIF('توزيع يومى على المقاولين'!$H$7:$K$22000,$B25,'توزيع يومى على المقاولين'!$K$7:$K$22000)","v":2791.8}]
[null,null,{"$f":"SUMIF('توزيع يومى على المقاولين'!$H$7:$I$22000,B26,'توزيع يومى على المقاولين'!$I$7:$I$22000)","v":0},"",{"$f":"SUMIF('توزيع يومى على المقاولين'!$H$7:$K$22000,$B26,'توزيع يومى على المقاولين'!$K$7:$K$22000)","v":0}]
[null,null,{"$f":"SUMIF('توزيع يومى على المقاولين'!$H$7:$I$22000,B27,'توزيع يومى على المقاولين'!$I$7:$I$22000)","v":0},"",{"$f":"SUMIF('توزيع يومى على المقاولين'!$H$7:$K$22000,$B27,'توزيع يومى على المقاولين'!$K$7:$K$22000)","v":0}]
[null,null,{"$f":"SUMIF('توزيع يومى على المقاولين'!$H$7:$I$22000,B28,'توزيع يومى على المقاولين'!$I$7:$I$22000)","v":0},"",{"$f":"SUMIF('توزيع يومى على المقاولين'!$H$7:$K$22000,$B28,'توزيع يومى على المقاولين'!$K$7:$K$22000)","v":0}]
[null,null,{"$f":"SUMIF('توزيع يومى على المقاولين'!$H$7:$I$22000,B29,'توزيع يومى على المقاولين'!$I$7:$I$22000)","v":0},"",{"$f":"SUMIF('توزيع يومى على المقاولين'!$H$7:$K$22000,$B29,'توزيع يومى على المقاولين'!$K$7:$K$22000)","v":0}]
[null,null,{"$f":"SUMIF('توزيع يومى على المقاولين'!$H$7:$I$22000,B30,'توزيع يومى على المقاولين'!$I$7:$I$22000)","v":0},"",{"$f":"SUMIF('توزيع يومى على المقاولين'!$H$7:$K$22000,$B30,'توزيع يومى على المقاولين'!$K$7:$K$22000)","v":0}]
[null,null,{"$f":"SUMIF('توزيع يومى على المقاولين'!$H$7:$I$22000,B31,'توزيع يومى على المقاولين'!$I$7:$I$22000)","v":0},"",{"$f":"SUMIF('توزيع يومى على المقاولين'!$H$7:$K$22000,$B31,'توزيع يومى على المقاولين'!$K$7:$K$22000)","v":0}]
[null,null,{"$f":"SUMIF('توزيع يومى على المقاولين'!$H$7:$I$22000,B32,'توزيع يومى على المقاولين'!$I$7:$I$22000)","v":0},"",{"$f":"SUMIF('توزيع يومى على المقاولين'!$H$7:$K$22000,$B32,'توزيع يومى على المقاولين'!$K$7:$K$22000)","v":0}]
[null,null,{"$f":"SUMIF('توزيع يومى على المقاولين'!$H$7:$I$22000,B33,'توزيع يومى على المقاولين'!$I$7:$I$22000)","v":0},"",{"$f":"SUMIF('توزيع يومى على المقاولين'!$H$7:$K$22000,$B33,'توزيع يومى على المقاولين'!$K$7:$K$22000)","v":0}]
[null,null,{"$f":"SUMIF('توزيع يومى على المقاولين'!$H$7:$I$22000,B34,'توزيع يومى على المقاولين'!$I$7:$I$22000)","v":0},"",{"$f":"SUMIF('توزيع يومى على المقاولين'!$H$7:$K$22000,$B34,'توزيع يومى على المقاولين'!$K$7:$K$22000)","v":0}]
[null,null,{"$f":"SUMIF('توزيع يومى على المقاولين'!$H$7:$I$22000,B35,'توزيع يومى على المقاولين'!$I$7:$I$22000)","v":0},"",{"$f":"SUMIF('توزيع يومى على المقاولين'!$H$7:$K$22000,$B35,'توزيع يومى على المقاولين'!$K$7:$K$22000)","v":0}]
[null,null,{"$f":"SUMIF('توزيع يومى على المقاولين'!$H$7:$I$22000,B36,'توزيع يومى على المقاولين'!$I$7:$I$22000)","v":0},"",{"$f":"SUMIF('توزيع يومى على المقاولين'!$H$7:$K$22000,$B36,'توزيع يومى على المقاولين'!$K$7:$K$22000)","v":0}]
[null,null,{"$f":"SUMIF('توزيع يومى على المقاولين'!$H$7:$I$22000,B37,'توزيع يومى على المقاولين'!$I$7:$I$22000)","v":0},"",{"$f":"SUMIF('توزيع يومى على المقاولين'!$H$7:$K$22000,$B37,'توزيع يومى على المقاولين'!$K$7:$K$22000)","v":0}]
[null,null,{"$f":"SUMIF('توزيع يومى على المقاولين'!$H$7:$I$22000,B38,'توزيع يومى على المقاولين'!$I$7:$I$22000)","v":0},"",{"$f":"SUMIF('توزيع يومى على المقاولين'!$H$7:$K$22000,$B38,'توزيع يومى على المقاولين'!$K$7:$K$22000)","v":0}]
[null,null,{"$f":"SUMIF('توزيع يومى على المقاولين'!$H$7:$I$22000,B39,'توزيع يومى على المقاولين'!$I$7:$I$22000)","v":0},"",{"$f":"SUMIF('توزيع يومى على المقاولين'!$H$7:$K$22000,$B39,'توزيع يومى على المقاولين'!$K$7:$K$22000)","v":0}]
[null,null,{"$f":"SUMIF('توزيع يومى على المقاولين'!$H$7:$I$22000,B40,'توزيع يومى على المقاولين'!$I$7:$I$22000)","v":0},"",{"$f":"SUMIF('توزيع يومى على المقاولين'!$H$7:$K$22000,$B40,'توزيع يومى على المقاولين'!$K$7:$K$22000)","v":0}]
[null,null,{"$f":"SUMIF('توزيع يومى على المقاولين'!$H$7:$I$22000,B41,'توزيع يومى على المقاولين'!$I$7:$I$22000)","v":0},"",{"$f":"SUMIF('توزيع يومى على المقاولين'!$H$7:$K$22000,$B41,'توزيع يومى على المقاولين'!$K$7:$K$22000)","v":0}]
[null,null,{"$f":"SUMIF('توزيع يومى على المقاولين'!$H$7:$I$22000,B42,'توزيع يومى على المقاولين'!$I$7:$I$22000)","v":0},"",{"$f":"SUMIF('توزيع يومى على المقاولين'!$H$7:$K$22000,$B42,'توزيع يومى على المقاولين'!$K$7:$K$22000)","v":0}]
[null,null,{"$f":"SUMIF('توزيع يومى على المقاولين'!$H$7:$I$22000,B43,'توزيع يومى على المقاولين'!$I$7:$I$22000)","v":0},"",{"$f":"SUMIF('توزيع يومى على المقاولين'!$H$7:$K$22000,$B43,'توزيع يومى على المقاولين'!$K$7:$K$22000)","v":0}]
[null,null,{"$f":"SUMIF('توزيع يومى على المقاولين'!$H$7:$I$22000,B44,'توزيع يومى على المقاولين'!$I$7:$I$22000)","v":0},"",{"$f":"SUMIF('توزيع يومى على المقاولين'!$H$7:$K$22000,$B44,'توزيع يومى على المقاولين'!$K$7:$K$22000)","v":0}]
[null,null,{"$f":"SUMIF('توزيع يومى على المقاولين'!$H$7:$I$22000,B45,'توزيع يومى على المقاولين'!$I$7:$I$22000)","v":0},"",{"$f":"SUMIF('توزيع يومى على المقاولين'!$H$7:$K$22000,$B45,'توزيع يومى على المقاولين'!$K$7:$K$22000)","v":0}]
[null,null,{"$f":"SUMIF('توزيع يومى على المقاولين'!$H$7:$I$22000,B46,'توزيع يومى على المقاولين'!$I$7:$I$22000)","v":0},"",{"$f":"SUMIF('توزيع يومى على المقاولين'!$H$7:$K$22000,$B46,'توزيع يومى على المقاولين'!$K$7:$K$22000)","v":0}]
[null,null,{"$f":"SUMIF('توزيع يومى على المقاولين'!$H$7:$I$22000,B47,'توزيع يومى على المقاولين'!$I$7:$I$22000)","v":0},"",{"$f":"SUMIF('توزيع يومى على المقاولين'!$H$7:$K$22000,$B47,'توزيع يومى على المقاولين'!$K$7:$K$22000)","v":0}]
[null,null,{"$f":"SUMIF('توزيع يومى على المقاولين'!$H$7:$I$22000,B48,'توزيع يومى على المقاولين'!$I$7:$I$22000)","v":0},"",{"$f":"SUMIF('توزيع يومى على المقاولين'!$H$7:$K$22000,$B48,'توزيع يومى على المقاولين'!$K$7:$K$22000)","v":0}]
[null,null,{"$f":"SUMIF('توزيع يومى على المقاولين'!$H$7:$I$22000,B49,'توزيع يومى على المقاولين'!$I$7:$I$22000)","v":0},"",{"$f":"SUMIF('توزيع يومى على المقاولين'!$H$7:$K$22000,$B49,'توزيع يومى على المقاولين'!$K$7:$K$22000)","v":0}]
[null,null,{"$f":"SUMIF('توزيع يومى على المقاولين'!$H$7:$I$22000,B50,'توزيع يومى على المقاولين'!$I$7:$I$22000)","v":0},"",{"$f":"SUMIF('توزيع يومى على المقاولين'!$H$7:$K$22000,$B50,'توزيع يومى على المقاولين'!$K$7:$K$22000)","v":0}]
[null,null,{"$f":"SUMIF('توزيع يومى على المقاولين'!$H$7:$I$22000,B51,'توزيع يومى على المقاولين'!$I$7:$I$22000)","v":0},"",{"$f":"SUMIF('توزيع يومى على المقاولين'!$H$7:$K$22000,$B51,'توزيع يومى على المقاولين'!$K$7:$K$22000)","v":0}]
[null,null,{"$f":"SUMIF('توزيع يومى على المقاولين'!$H$7:$I$22000,B52,'توزيع يومى على المقاولين'!$I$7:$I$22000)","v":0},"",{"$f":"SUMIF('توزيع يومى على المقاولين'!$H$7:$K$22000,$B52,'توزيع يومى على المقاولين'!$K$7:$K$22000)","v":0}]
[null,null,{"$f":"SUMIF('توزيع يومى على المقاولين'!$H$7:$I$22000,B53,'توزيع يومى على المقاولين'!$I$7:$I$22000)","v":0},"",{"$f":"SUMIF('توزيع يومى على المقاولين'!$H$7:$K$22000,$B53,'توزيع يومى على المقاولين'!$K$7:$K$22000)","v":0}]

{"sheet":"الخلاصة","index":1,"n_rows":13,"n_cols":10,"rows_kept":13,"cut":false,"hidden":true,"merged":[[3,3,3,6],[4,5,4,6]]}
[]
[null,null,null,"شركة ال حماد للمقاولات",null,null,null,null,"مشروع تسويات اللاهون"]
[]
[null,null,null,"خلاصة باجمالى توريد وتوزيع  السولار  حتى تاريخه"]
[null,null,null,null,"بداية من ","2020-10-05"]
[null,null,null,"البيان","الكمية","السعر","القيمة",null,"المدفوعات","الخلاصة"]
[null,null,null,"وليد سولار  السعر 7.35",{"$f":"+'اجمالى التوريد والصرف والفرق'!C62","v":168104},7.35,{"$f":"+E7*F7","v":1235564.3999999999},{"$f":"+G7-'اجمالى التوريد والصرف والفرق'!E62","v":0},{"$f":"200000+400000+24000+400000","v":1024000},{"$f":"+G7-I7","v":211564.39999999991}]
[null,null,null,"تصريح 200ج دخول بوابة واكراميات100ج سائق جاز",{"$f":"+E7","v":168104},{"$f":"+G8/E8","v":3.7476800076143339E-2},{"$f":"+'اجمالى التوريد والصرف والفرق'!M7+'اجمالى التوريد والصرف والفرق'!N7","v":6300}]
[null,null,null,"اجمالى تكلفة توريد الجاز",{"$f":"+E7","v":168104},{"$f":"+G9/E9","v":7.3874768000761426},{"$f":"+G7+G8","v":1241864.3999999999}]
[]
[null,null,null,"كمية السولار على المقاولين",{"$f":"+'اجمالى التوريد والصرف والفرق'!G62","v":168104},7.05,{"$f":"+E11*F11","v":1185133.2},{"$f":"+G11-'توزيع يومى على المقاولين'!K4","v":-1234792.7500000002}]
[]
[null,null,null,"الفرق في تكلفه الفعلية وتكلفة المقاول(خسارة على الشركة)",{"$f":"+E7-E11","v":0},0,{"$f":"+G9-G11","v":56731.199999999953}]

{"sheet":"مقارنة بين وليد والموقع","index":2,"n_rows":27,"n_cols":12,"rows_kept":27,"cut":false,"hidden":true,"merged":[[3,1,3,8],[5,1,5,4],[5,6,5,8],[5,10,5,11],[26,10,26,11]]}
[]
[null,"شركة ال حماد للمقاولات",null,null,null,null,null,null,null,null,"مشروع التسويات بالفيوم"]
[]
[null,"بيان بتوريد السولار وتوزيعه على المقاولين وفرق الكميات والقيمة  "]
[null,null,null,null,null,null,null,null,null,null,null,7.35]
[null,"كمية المورد من السولار السعر 7.35",null,null,null,null,"وليد سولار  الواصل للموقع السعر 7.35",null,null,null,"الفرق"]
[null,"التاريخ","الكمية","السعر","القيمة",null,"الكمية","السعر","القيمة",null,"الكمية","المبلغ"]
[null,"2020-10-10",6500,7.35,{"$f":"+C8*D8","v":47775},null,6497,7.05,{"$f":"+G8*H8","v":45803.85},null,{"$f":"+C8-G8","v":3},{"$f":"+K8*$L$5","v":22.049999999999997}]
[null,"2020-10-11",6500,7.35,{"$f":"+C9*D9","v":47775},null,6500,7.05,{"$f":"+G9*H9","v":45825},null,0,{"$f":"+K9*$L$5","v":0}]
[null,"2020-10-12",6500,7.35,{"$f":"+C10*D10","v":47775},null,6500,7.05,45825,null,0,0]
[null,"2020-10-13",6500,7.35,47775,null,6451,7.05,45479.549999999996,null,49,360.15]
[null,"2020-10-14",6500,7.35,47775,null,6452,7.05,45486.6,null,48,352.79999999999995]
[null,"2020-10-17",6500,7.35,47775,null,6500,7.05,45825,null,0,0]
[null,"2020-10-18",6500,7.35,47775,null,6495,7.05,45789.75,null,5,36.75]
[null,"2020-10-19",6500,7.35,47775,null,6279,7.05,44266.95,null,221,1624.35]
[null,"2020-10-20",6500,7.35,47775,null,6611,7.05,46607.549999999996,null,-111,-815.84999999999991]
[null,"2020-10-21",6500,7.35,47775,null,6500,7.05,45825,null,0,0]
[null,"2020-10-24",6500,7.35,47775,null,6466,7.05,45585.299999999996,null,34,249.89999999999998]
[null,"2020-10-25",6500,7.35,47775,null,6500,7.05,45825,null,0,0]
[null,"2020-10-26",6500,7.35,47775,null,6500,7.05,45825,null,0,0]
[null,"2020-10-28",6500,7.35,47775,null,6500,7.05,45825,null,0,0]
[null,null,null,7.35,0,null,null,7.05,0,null,0,0]
[null,null,null,7.35,0,null,null,7.05,0,null,0,0]
[null,null,null,7.35,0,null,null,7.05,0,null,0,0]
[null,null,null,7.35,0,null,null,7.05,0,null,0,0]
[null,"الاجمالى الكميات والقيمة",{"$f":"SUM(C8:C25)","v":91000},7.35,668850,null,{"$f":"SUM(G8:G25)","v":90751},7.05,639794.54999999993,null,249,{"$f":"SUM(L8:L25)","v":1830.15}]
[null,null,null,null,null,null,null,null,null,null," هذا الفرق على وليد لصالح الشركة"]

{"sheet":"تقرير قيمة الجاز شهرى","index":3,"n_rows":8,"n_cols":9,"rows_kept":8,"cut":false,"hidden":true,"merged":[]}
[null,"شركة ال حماد للمقاولات",null,"مشروع تسويات اللاهون"]
[null,null,"تقرير شهر للجاز على المقاولين "]
[null,"الشهر","كمية الجاز مقاولين","قيمة جاز المقاولين"]
[null,"أكتوبر",{"$f":"SUMIF('توزيع يومى على المقاولين'!C7:$D$1959,'تقرير قيمة الجاز شهرى'!B4,'توزيع يومى على المقاولين'!$D$7:$D$1959)","v":0},{"$f":"+C4*7.05","v":0}]
[null,"نوفمبر",{"$f":"SUMIF('توزيع يومى على المقاولين'!$C$7:$D$1959,'تقرير قيمة الجاز شهرى'!B5,'توزيع يومى على المقاولين'!$D$7:$D$1959)","v":0},0]
[null,"ديسمبر",{"$f":"SUMIF('توزيع يومى على المقاولين'!C9:$D$1959,'تقرير قيمة الجاز شهرى'!B6,'توزيع يومى على المقاولين'!$D$7:$D$1959)","v":0},0]
[null,null,null,null,null,null,null,null,{"$f":"200000+400000+24000+400000","v":1024000}]
[null,"الاجمالى الكلى",{"$f":"SUM(C4:C6)","v":0},{"$f":"+D4+D5","v":0}]

{"sheet":"اجمالى كمية وقيمة على المقاولين","index":4,"n_rows":29,"n_cols":7,"rows_kept":29,"cut":false,"hidden":true,"merged":[[1,1,1,4]]}
[null,null,{"$f":"+C4-'توزيع يومى على المقاولين'!I4","v":0}]
[null,"بيان باجمالى الكميات  والقيمة لكل مقاول حتى تاريخه",null,null,null,{"$f":"+C4-'تقرير المقاولين جاز'!F6","v":329478},{"$f":"+E4-'تقرير المقاولين جاز'!H6","v":2322819.9}]
[]
[null,"الاجمالى الكلى ",{"$f":"SUM(C6:C3099)","v":342359},"اجمالى القيمة",{"$f":"+C4*7.05","v":2413630.9499999997}]
[null,"المقاول","كمية السولار","السعر اللتر","قيمة السولار"]
[null,"الشيخ رجب",{"$f":"SUMIF('توزيع يومى على المقاولين'!$H$7:$I$30002,B6,'توزيع يومى على المقاولين'!$I$7:$I$28002)","v":800},7.05,{"$f":"+C6*D6","v":5640}]
[null,"رجب",{"$f":"SUMIF('توزيع يومى على المقاولين'!$H$7:$I$30002,B7,'توزيع يومى على المقاولين'!$I$7:$I$28002)","v":12281},7.05,86581.05]
[null,"السيد",{"$f":"SUMIF('توزيع يومى على المقاولين'!$H$7:$I$30002,B8,'توزيع يومى على المقاولين'!$I$7:$I$28002)","v":11826},7.05,83373.3]
[null,"جمال",{"$f":"SUMIF('توزيع يومى على المقاولين'!$H$7:$I$30002,B9,'توزيع يومى على المقاولين'!$I$7:$I$28002)","v":5095},7.05,35919.75]
[null,"أشرف",{"$f":"SUMIF('توزيع يومى على المقاولين'!$H$7:$I$30002,B10,'توزيع يومى على المقاولين'!$I$7:$I$28002)","v":15183},7.05,107040.15]
[null,"علوان",{"$f":"SUMIF('توزيع يومى على المقاولين'!$H$7:$I$30002,B11,'توزيع يومى على المقاولين'!$I$7:$I$28002)","v":24989},7.05,176172.44999999998]
[null,"حلمى",{"$f":"SUMIF('توزيع يومى على المقاولين'!$H$7:$I$30002,B12,'توزيع يومى على المقاولين'!$I$7:$I$28002)","v":14291},7.05,100751.55]
[null,"أنور",{"$f":"SUMIF('توزيع يومى على المقاولين'!$H$7:$I$30002,B13,'توزيع يومى على المقاولين'!$I$7:$I$28002)","v":16433},7.05,115852.65]
[null,"جابر",{"$f":"SUMIF('توزيع يومى على المقاولين'!$H$7:$I$30002,B14,'توزيع يومى على المقاولين'!$I$7:$I$28002)","v":56455},7.05,398007.75]
[null,"رمضان عربية ش",{"$f":"SUMIF('توزيع يومى على المقاولين'!$H$7:$I$30002,B15,'توزيع يومى على المقاولين'!$I$7:$I$28002)","v":2277},7.05,16052.85]
[null,"محمد عيسى",{"$f":"SUMIF('توزيع يومى على المقاولين'!$H$7:$I$30002,B16,'توزيع يومى على المقاولين'!$I$7:$I$28002)","v":5895},7.05,41559.75]
[null,"عمر",{"$f":"SUMIF('توزيع يومى على المقاولين'!$H$7:$I$30002,B17,'توزيع يومى على المقاولين'!$I$7:$I$28002)","v":6557},7.05,{"$f":"+C17*D17","v":46226.85}]
[null,"حلمى25",{"$f":"SUMIF('توزيع يومى على المقاولين'!$H$7:$I$30002,B18,'توزيع يومى على المقاولين'!$I$7:$I$28002)","v":8528},7.05,60122.400000000001]
[null,"ضيف",{"$f":"SUMIF('توزيع يومى على المقاولين'!$H$7:$I$30002,B19,'توزيع يومى على المقاولين'!$I$7:$I$28002)","v":19751},7.05,139244.54999999999]
[null,"محسن مياه",{"$f":"SUMIF('توزيع يومى على المقاولين'!$H$7:$I$30002,B20,'توزيع يومى على المقاولين'!$I$7:$I$28002)","v":5100},7.05,{"$f":"+C20*D20","v":35955}]
[null,"خالد 54",{"$f":"SUMIF('توزيع يومى على المقاولين'!$H$7:$I$30002,B21,'توزيع يومى على المقاولين'!$I$7:$I$28002)","v":12554},7.05,88505.7]
[null,"خالد 31",{"$f":"SUMIF('توزيع يومى على المقاولين'!$H$7:$I$30002,B22,'توزيع يومى على المقاولين'!$I$7:$I$28002)","v":24836},7.05,{"$f":"+C22*D22","v":175093.8}]
[null,"عربية الجيش",{"$f":"SUMIF('توزيع يومى على المقاولين'!$H$7:$I$30002,B23,'توزيع يومى على المقاولين'!$I$7:$I$28002)","v":136},7.05,958.8]
[null,"عنتر",{"$f":"SUMIF('توزيع يومى على المقاولين'!$H$7:$I$30002,B24,'توزيع يومى على المقاولين'!$I$7:$I$28002)","v":28608},7.05,{"$f":"+C24*D24","v":201686.39999999999}]
[null,"السيد156",{"$f":"SUMIF('توزيع يومى على المقاولين'!$H$7:$I$30002,B25,'توزيع يومى على المقاولين'!$I$7:$I$28002)","v":20731},7.05,146153.54999999999]
[null,"رجب طرق",{"$f":"SUMIF('توزيع يومى على المقاولين'!$H$7:$I$30002,B26,'توزيع يومى على المقاولين'!$I$7:$I$28002)","v":23637},7.05,166640.85]
[null,"جابر 59",{"$f":"SUMIF('توزيع يومى على المقاولين'!$H$7:$I$30002,B27,'توزيع يومى على المقاولين'!$I$7:$I$28002)","v":25602},7.05,180494.1]
[null,"الشركة",{"$f":"SUMIF('توزيع يومى على المقاولين'!$H$7:$I$30002,B28,'توزيع يومى على المقاولين'!$I$7:$I$28002)","v":398},7.05,{"$f":"+C28*D28","v":2805.9}]
[null,"الشركة 23",{"$f":"SUMIF('توزيع يومى على المقاولين'!$H$7:$I$30002,B29,'توزيع يومى على المقاولين'!$I$7:$I$28002)","v":396},7.05,2791.7999999999997]

{"sheet":"اجمالى التوريد والصرف والفرق","index":5,"n_rows":62,"n_cols":14,"rows_kept":62,"cut":false,"hidden":true,"merged":[[5,10,5,11],[5,6,5,8],[5,1,5,4],[1,10,1,13],[3,1,3,11],[4,12,4,13]]}
[]
[null,"شركة ال حماد للمقاولات",null,null,null,null,null,null,null,null,"مشروع التسويات بالفيوم"]
[]
[null,"بيان بتوريد السولار وتوزيعه على المقاولين وفرق الكميات والقيمة  "]
[null,null,null,null,null,null,null,null,null,null,null,null,{"$f":"+N7+M7","v":6300}]
[null,"وليد سولار  السعر 7.35",null,null,null,null,"كمية السولار على المقاولين",null,null,null,"الفرق",null,"الاكراميات","تصريح"]
[null,"التاريخ","الكمية","السعر","القيمة",null,"الكمية","السعر","القيمة",null,"الكمية","المبلغ",{"$f":"SUM(M8:M61)","v":3100},{"$f":"SUM(N8:N61)","v":3200}]
[null,"2020-10-10",6497,7.35,{"$f":"+C8*D8","v":47752.95},null,6497,7.05,{"$f":"+G8*H8","v":45803.85},null,{"$f":"+C8-G8","v":0},{"$f":"+E8-I8","v":1949.0999999999985},100]
[null,"2020-10-11",6500,7.35,{"$f":"+C9*D9","v":47775},null,6500,7.05,{"$f":"+G9*H9","v":45825},null,0,1950,50]
[null,"2020-10-12",6500,7.35,{"$f":"+C10*D10","v":47775},null,6500,7.05,45825,null,0,1950,100]
[null,"2020-10-13",6451,7.35,47414.85,null,6451,7.05,45479.549999999996,null,0,1935.3000000000029,50]
[null,"2020-10-14",6452,7.35,47422.2,null,6452,7.05,45486.6,null,0,1935.5999999999985,0]
[null,"2020-10-17",6500,7.35,47775,null,6500,7.05,45825,null,0,1950,200]
[null,"2020-10-18",6495,7.35,47738.25,null,6495,7.05,45789.75,null,0,1948.5,0]
[null,"2020-10-19",6279,7.35,{"$f":"+C15*D15","v":46150.649999999994},null,6279,7.05,{"$f":"+G15*H15","v":44266.95},null,0,1883.6999999999971,100,0]
[null,"2020-10-20",6611,7.35,48590.85,null,6611,7.05,46607.549999999996,null,0,1983.3000000000029,100,400]
[null,"2020-10-21",6500,7.35,47775,null,6500,7.05,45825,null,0,1950,100,200]
[null,"2020-10-24",6466,7.35,47525.1,null,6466,7.05,45585.299999999996,null,0,1939.8000000000029,100,200]
[null,"2020-10-25",6500,7.35,47775,null,6500,7.05,45825,null,0,1950,100,200]
[null,"2020-10-26",6500,7.35,47775,null,6500,7.05,45825,null,0,1950,100,200]
[null,"2020-10-28",6500,7.35,47775,null,6500,7.05,45825,null,0,1950,0,0]
[null,"2020-10-31",6500,7.35,47775,null,6500,7.05,45825,null,0,1950,200,400]
[null,"2020-11-01",6475,7.35,47591.25,null,6475,7.05,45648.75,null,{"$f":"+C23-G23","v":0},{"$f":"+E23-I23","v":1942.5},100,200]
[null,"2020-11-03",6452,7.35,47422.2,null,{"$f":"+C24","v":6452},7.05,45486.6,null,{"$f":"+C24-G24","v":0},{"$f":"+E24-I24","v":1935.5999999999985},100,200]
[null,"2020-11-04",6450,7.35,{"$f":"+C25*D25","v":47407.5},null,{"$f":"+C25","v":6450},7.05,{"$f":"+G25*H25","v":45472.5},null,0,1935,0,200]
[null,"2020-11-07",6395,7.35,47003.25,null,6395,7.05,45084.75,null,0,1918.5,200,400]
[null,"2020-11-08",6418,7.35,47172.299999999996,null,6418,7.05,45246.9,null,0,1925.3999999999942,200,400]
[null,"2020-11-08",6569,7.35,48282.149999999994,null,6569,7.05,46311.45,null,0,1970.6999999999971,0,0]
[null,"2020-11-10",6500,7.35,47775,null,6500,7.05,45825,null,0,1950,100,200]
[null,"2020-11-11",6404,7.35,47069.399999999994,null,6404,7.05,45148.2,null,0,1921.1999999999971]
[null,"2020-11-14",6190,7.35,45496.5,null,6190,7.05,43639.5,null,0,1857]
[null,"2020-11-15",6500,7.35,47775,null,6500,7.05,45825,null,0,1950,100]
[null,"2020-11-16",6500,7.35,47775,null,6500,7.05,45825,null,0,1950,100]
[null,"2020-11-18",null,7.35,0,null,0,7.05,0,null,0,0,100]
[null,"2020-11-21",null,7.35,0,null,0,7.05,0,null,0,0,100]
[null,"2020-11-22",null,7.35,0,null,0,7.05,0,null,0,0,100]
[null,"2020-11-23",null,7.35,0,null,0,7.05,0,null,0,0,100]
[null,"2020-11-24",null,7.35,0,null,0,7.05,0,null,0,0,100]
[null,"2020-11-25",null,7.35,0,null,0,7.05,0,null,0,0,100]
[null,"2020-11-28",null,7.35,0,null,0,7.05,0,null,0,0,100]
[null,"2020-11-29",null,7.35,0,null,0,7.05,0,null,0,0,100]
[null,"2020-11-30",null,7.35,0,null,0,7.05,0,null,0,0,100]
[null,null,null,7.35,0,null,0,7.05,0,null,0,0]
[null,null,null,7.35,0,null,0,7.05,0,null,0,0]
[null,null,null,7.35,0,null,0,7.05,0,null,0,0]
[null,null,null,7.35,0,null,0,7.05,0,null,0,0]
[null,null,null,7.35,0,null,0,7.05,0,null,0,0]
[null,null,null,7.35,0,null,0,7.05,0,null,0,0]
[null,null,null,7.35,0,null,0,7.05,0,null,0,0]
[null,null,null,7.35,0,null,0,7.05,0,null,0,0]
[null,null,null,7.35,0,null,0,7.05,0,null,0,0]
[null,null,null,7.35,0,null,0,7.05,0,null,0,0]
[null,null,null,7.35,0,null,0,7.05,0,null,0,0]
[null,null,null,7.35,0,null,0,7.05,0,null,0,0]
[null,null,null,7.35,{"$f":"+C55*D55","v":0},null,0,7.05,{"$f":"+G55*H55","v":0},null,0,0]
[null,null,null,7.35,0,null,0,7.05,0,null,0,0]
[null,null,null,7.35,0,null,0,7.05,0,null,0,0]
[null,null,null,7.35,0,null,0,7.05,0,null,0,0]
[null,null,null,7.35,0,null,0,7.05,0,null,0,0]
[null,null,null,7.35,0,null,0,7.05,0,null,0,0]
[null,null,null,7.35,0,null,0,7.05,0,null,0,0]
[null,"الاجمالى الكميات والقيمة",{"$f":"SUM(C8:C61)","v":168104},7.35,1235564.3999999999,null,{"$f":"SUM(G8:G61)","v":168104},7.05,1185133.2,null,0,50431.199999999953]

{"sheet":"تقرير قيمة الجاز يومى","index":6,"n_rows":38,"n_cols":7,"rows_kept":38,"cut":false,"hidden":true,"merged":[[5,3,5,4],[3,2,3,3],[4,2,4,3]]}
[]
[]
[]
[null,null,"شركة آل حماد للمقاولات",null,null,"مشروع اللهون تسويات"]
[null,null,{"$f":"NOW()","v":"2021-01-04T22:03:30.160"}]
[null,null,null,"     بيان باجمالى الكمية اليومية",null,{"$f":"SUM(E9:E2199)","v":15939},{"$f":"SUM(F9:F3699)","v":112369.95}]
[]
[null,null,"اليوم","التاريخ","كمية الجاز مقاولين","قيمة جاز المقاولين"]
[null,null,{"$f":"TEXT(D9,\"dddd\")","v":"السبت"},{"$f":"+'اجمالى التوريد والصرف والفرق'!B8","v":"2020-10-10"},{"$f":"SUMIF('توزيع يومى على المقاولين'!F7:I9300,D9,'توزيع يومى على المقاولين'!I7:I1100)","v":70},{"$f":"+E9*7.05","v":493.5}]
[null,null,{"$f":"TEXT(D10,\"dddd\")","v":"الأحد"},{"$f":"+'اجمالى التوريد والصرف والفرق'!B9","v":"2020-10-11"},{"$f":"SUMIF('توزيع يومى على المقاولين'!F8:I9301,D10,'توزيع يومى على المقاولين'!I8:I1101)","v":1560},{"$f":"+E10*7.05","v":10998}]
[null,null,"الإثنين",{"$f":"+'اجمالى التوريد والصرف والفرق'!B10","v":"2020-10-12"},{"$f":"SUMIF('توزيع يومى على المقاولين'!F9:I9302,D11,'توزيع يومى على المقاولين'!I9:I1102)","v":400},2820]
[null,null,"الثلاثاء",{"$f":"+'اجمالى التوريد والصرف والفرق'!B11","v":"2020-10-13"},{"$f":"SUMIF('توزيع يومى على المقاولين'!F10:I9303,D12,'توزيع يومى على المقاولين'!I10:I1103)","v":150},1057.5]
[null,null,"الأربعاء",{"$f":"+'اجمالى التوريد والصرف والفرق'!B12","v":"2020-10-14"},{"$f":"SUMIF('توزيع يومى على المقاولين'!F11:I9304,D13,'توزيع يومى على المقاولين'!I11:I1104)","v":650},4582.5]
[null,null,"السبت",{"$f":"+'اجمالى التوريد والصرف والفرق'!B13","v":"2020-10-17"},{"$f":"SUMIF('توزيع يومى على المقاولين'!F12:I9305,D14,'توزيع يومى على المقاولين'!I12:I1105)","v":400},2820]
[null,null,"الأحد",{"$f":"+'اجمالى التوريد والصرف والفرق'!B14","v":"2020-10-18"},{"$f":"SUMIF('توزيع يومى على المقاولين'!F13:I9306,D15,'توزيع يومى على المقاولين'!I13:I1106)","v":400},2820]
[null,null,"الإثنين",{"$f":"+'اجمالى التوريد والصرف والفرق'!B15","v":"2020-10-19"},{"$f":"SUMIF('توزيع يومى على المقاولين'!F14:I9307,D16,'توزيع يومى على المقاولين'!I14:I1107)","v":400},2820]
[null,null,"الثلاثاء",{"$f":"+'اجمالى التوريد والصرف والفرق'!B16","v":"2020-10-20"},{"$f":"SUMIF('توزيع يومى على المقاولين'!F15:I9308,D17,'توزيع يومى على المقاولين'!I15:I1108)","v":300},2115]
[null,null,"الأربعاء",{"$f":"+'اجمالى التوريد والصرف والفرق'!B17","v":"2020-10-21"},{"$f":"SUMIF('توزيع يومى على المقاولين'!F16:I9309,D18,'توزيع يومى على المقاولين'!I16:I1109)","v":50},352.5]
[null,null,"السبت",{"$f":"+'اجمالى التوريد والصرف والفرق'!B18","v":"2020-10-24"},{"$f":"SUMIF('توزيع يومى على المقاولين'!F17:I9310,D19,'توزيع يومى على المقاولين'!I17:I1110)","v":500},3525]
[null,null,"الأحد",{"$f":"+'اجمالى التوريد والصرف والفرق'!B19","v":"2020-10-25"},{"$f":"SUMIF('توزيع يومى على المقاولين'!F18:I9311,D20,'توزيع يومى على المقاولين'!I18:I1111)","v":1100},7755]
[null,null,"الإثنين",{"$f":"+'اجمالى التوريد والصرف والفرق'!B20","v":"2020-10-26"},{"$f":"SUMIF('توزيع يومى على المقاولين'!F19:I9312,D21,'توزيع يومى على المقاولين'!I19:I1112)","v":300},2115]
[null,null,"الأربعاء","2020-10-28",{"$f":"SUMIF('توزيع يومى على المقاولين'!F20:I9313,D22,'توزيع يومى على المقاولين'!I20:I1113)","v":1420},10011]
[null,null,"السبت",{"$f":"+'اجمالى التوريد والصرف والفرق'!B22","v":"2020-10-31"},{"$f":"SUMIF('توزيع يومى على المقاولين'!F21:I9314,D23,'توزيع يومى على المقاولين'!I21:I1114)","v":500},3525]
[null,null,"الأحد",{"$f":"+'اجمالى التوريد والصرف والفرق'!B23","v":"2020-11-01"},{"$f":"SUMIF('توزيع يومى على المقاولين'!F22:I9315,D24,'توزيع يومى على المقاولين'!I22:I1115)","v":990},6979.5]
[null,null,"الثلاثاء",{"$f":"+'اجمالى التوريد والصرف والفرق'!B24","v":"2020-11-03"},{"$f":"SUMIF('توزيع يومى على المقاولين'!F23:I9316,D25,'توزيع يومى على المقاولين'!I23:I1116)","v":650},4582.5]
[null,null,"الأربعاء",{"$f":"+'اجمالى التوريد والصرف والفرق'!B25","v":"2020-11-04"},{"$f":"SUMIF('توزيع يومى على المقاولين'!F24:I9317,D26,'توزيع يومى على المقاولين'!I24:I1117)","v":300},2115]
[null,null,"السبت",{"$f":"+'اجمالى التوريد والصرف والفرق'!B26","v":"2020-11-07"},{"$f":"SUMIF('توزيع يومى على المقاولين'!F25:I9318,D27,'توزيع يومى على المقاولين'!I25:I1118)","v":300},{"$f":"+E27*7.05","v":2115}]
[null,null,"الأحد",{"$f":"+'اجمالى التوريد والصرف والفرق'!B27","v":"2020-11-08"},{"$f":"SUMIF('توزيع يومى على المقاولين'!F26:I9319,D28,'توزيع يومى على المقاولين'!I26:I1119)","v":125},881.25]
[null,null,{"$f":"TEXT(D29,\"dddd\")","v":"الثلاثاء"},{"$f":"+'اجمالى التوريد والصرف والفرق'!B29","v":"2020-11-10"},{"$f":"SUMIF('توزيع يومى على المقاولين'!F28:I9321,D29,'توزيع يومى على المقاولين'!I28:I1121)","v":230},{"$f":"+E29*7.05","v":1621.5}]
[null,null,"الأربعاء",{"$f":"+'اجمالى التوريد والصرف والفرق'!B30","v":"2020-11-11"},{"$f":"SUMIF('توزيع يومى على المقاولين'!F29:I9322,D30,'توزيع يومى على المقاولين'!I29:I1122)","v":1174},8276.6999999999989]
[null,null,"السبت",{"$f":"+'اجمالى التوريد والصرف والفرق'!B31","v":"2020-11-14"},{"$f":"SUMIF('توزيع يومى على المقاولين'!F30:I9323,D31,'توزيع يومى على المقاولين'!I30:I1123)","v":300},2115]
[null,null,"الأحد",{"$f":"+'اجمالى التوريد والصرف والفرق'!B32","v":"2020-11-15"},{"$f":"SUMIF('توزيع يومى على المقاولين'!F31:I9324,D32,'توزيع يومى على المقاولين'!I31:I1124)","v":345},2432.25]
[null,null,"الإثنين",{"$f":"+'اجمالى التوريد والصرف والفرق'!B33","v":"2020-11-16"},{"$f":"SUMIF('توزيع يومى على المقاولين'!F32:I9325,D33,'توزيع يومى على المقاولين'!I32:I1125)","v":700},4935]
[null,null,"الأربعاء",{"$f":"+'اجمالى التوريد والصرف والفرق'!B34","v":"2020-11-18"},{"$f":"SUMIF('توزيع يومى على المقاولين'!F33:I9326,D34,'توزيع يومى على المقاولين'!I33:I1126)","v":450},3172.5]
[null,null,"السبت",{"$f":"+'اجمالى التوريد والصرف والفرق'!B35","v":"2020-11-21"},{"$f":"SUMIF('توزيع يومى على المقاولين'!F34:I9327,D35,'توزيع يومى على المقاولين'!I34:I1127)","v":300},2115]
[null,null,"الأحد",{"$f":"+'اجمالى التوريد والصرف والفرق'!B36","v":"2020-11-22"},{"$f":"SUMIF('توزيع يومى على المقاولين'!F35:I9328,D36,'توزيع يومى على المقاولين'!I35:I1128)","v":1225},8636.25]
[null,null,"الإثنين",{"$f":"+'اجمالى التوريد والصرف والفرق'!B37","v":"2020-11-23"},{"$f":"SUMIF('توزيع يومى على المقاولين'!F36:I9329,D37,'توزيع يومى على المقاولين'!I36:I1129)","v":300},2115]
[null,null,"الثلاثاء",{"$f":"+'اجمالى التوريد والصرف والفرق'!B38","v":"2020-11-24"},{"$f":"SUMIF('توزيع يومى على المقاولين'!F37:I9330,D38,'توزيع يومى على المقاولين'!I37:I1130)","v":350},2467.5]

{"sheet":"تقرير المقاولين جاز","index":7,"n_rows":38,"n_cols":8,"rows_kept":38,"cut":false,"hidden":true,"merged":[[6,1,7,6]]}
[]
[null,"رقم الاذن","اسم المقاول","التاريخ","التاريخ"]
[null,null,"علوان",{"$f":"\">=\"&B6","v":">=44114"},{"$f":"\"<=\"&C6","v":"<=44199"}]
[]
[null,"من تاريخ","الى تاريخ",null,null,"اجمالى الكمية","السعر","القيمة"]
[null,"2020-10-10","2021-01-03",null,null,{"$f":"SUBTOTAL(9,F10:F52002)","v":12881},7.05,{"$f":"+F6*G6","v":90811.05}]
[null,"تقرير تفصيلى لتوزيع اليومى للسولار الخاص بمحطة وليد"]
[]
[null,"اليوم","التاريخ","رقم الاذن","اسم المقاول","الكمية","السعر","القيمة"]
[null,"السبت","2020-10-10",578,"رجب",700,7.05,4935]
[null,"الأحد","2020-10-11",599,"رجب",600,7.05,4230]
[null,"الاثنين","2020-10-12",615,"رجب",800,7.05,5640]
[null,"الثلاثاء","2020-10-13",628,"رجب",400,7.05,2820]
[null,"الاربعاء","2020-10-14",641,"رجب",600,7.05,4230]
[null,"السبت","2020-10-17",658,"رجب",750,7.05,5287.5]
[null,"الأحد","2020-10-18",679,"رجب",650,7.05,4582.5]
[null,"الإثنين","2020-10-19",703,"رجب",650,7.05,4582.5]
[null,"الثلاثاء","2020-10-20",716,"رجب",841,7.05,5929.05]
[null,"الأربعاء","2020-10-21",738,"رجب",500,7.05,3525]
[null,"السبت","2020-10-24",752,"رجب",800,7.05,5640]
[null,"الأحد","2020-10-25",774,"رجب",525,7.05,3701.25]
[null,"الإثنين","2020-10-26",792,"رجب",1400,7.05,9870]
[null,"الاربعاء","2020-10-28",811,"رجب",460,7.05,3243]
[null,"السبت","2020-10-31",831,"رجب",400,7.05,2820]
[null,"الأحد","2020-11-01",846,"رجب",500,7.05,3525]
[null,"الثلاثاء","2020-11-03",879,"رجب",452,7.05,3186.6]
[null,"الأربعاء","2020-11-04",894,"رجب",250,7.05,1762.5]
[null,"السبت","2020-11-07",918,"رجب",150,7.05,1057.5]
[null,"السبت","2020-11-07",929,"رجب",150,7.05,1057.5]
[null,"الأحد","2020-11-08",949,"رجب",50,7.05,352.5]
[null,"الأحد","2020-11-08",960,"رجب",200,7.05,1410]
[null,"الأحد","2020-11-08",975,"رجب",143,7.05,1008.15]
[null,"الأربعاء","2020-11-11",1013,"رجب",260,7.05,1833]
[null,"السبت","2020-11-14",1026,"رجب",100,7.05,705]
[null,"السبت","2020-11-14",1032,"رجب",100,7.05,705]
[null,"الأحد","2020-11-15",1048,"رجب",50,7.05,352.5]
[null,"السبت","2020-11-21",1112,"رجب",200,7.05,1410]
[null,"الأربعاء","2020-11-25",1175,"رجب",200,7.05,1410]

{"sheet":"توزيع يومى على المقاولين","index":8,"n_rows":5086,"n_cols":11,"rows_kept":5086,"cut":false,"hidden":false,"merged":[]}
[null,null,null,null,"شركة ال حماد للمقاولات",null,null,null,null,"مشروع التسويات باللاهون"]
[]
[null,null,null,null,"بيان يومى تفصيلى بتوزيع السولار على المقاولين"]
[null,null,null,null,null,null,null,"الاجمالى الكلى",{"$f":"SUM(I7:I17001)","v":342359},{"$f":"+K4/I4","v":7.0683871316366744},{"$f":"SUM(K7:K17001)","v":2419925.9500000002}]
[]
[null,null,null,null,"اليوم","التاريخ","رقم الاذن","اسم المقاول","الكمية","السعر","القيمة"]
[null,null,null,null,{"$f":"F7","v":"2020-08-06"},"2020-08-06",577,"الشيخ رجب",400,7.05,{"$f":"IF(OR(I7=\"\",J7=\"\"),\"\",PRODUCT(I7,J7))","v":2820}]
[null,null,null,null,{"$f":"F8","v":"2020-08-07"},"2020-08-07",578,"رجب",100,70,{"$f":"IF(OR(I8=\"\",J8=\"\"),\"\",PRODUCT(I8,J8))","v":7000}]
[null,null,null,null,"2020-08-08","2020-08-08",579,"السيد",650,7.05,4582.5]
[null,null,null,null,"2020-08-09","2020-08-09",580,"جمال",400,7.05,2820]
[null,null,null,null,"2020-08-10","2020-08-10",581,"أشرف",250,7.05,1762.5]
[null,null,null,null,"2020-08-11","2020-08-11",582,"علوان",600,7.05,4230]
[null,null,null,null,"2020-08-12","2020-08-12",583,"حلمى",800,7.05,5640]
[null,null,null,null,"2020-08-13","2020-08-13",584,"أنور",400,7.05,2820]
[null,null,null,null,"2020-08-14","2020-08-14",585,"جابر",1975,7.05,13923.75]
[null,null,null,null,"2020-08-15","2020-08-15",586,"رمضان عربية ش",67,7.05,472.34999999999997]
[null,null,null,null,"2020-08-16","2020-08-16",587,"محمد عيسى",255,7.05,1797.75]
[null,null,null,null,"2020-08-17","2020-08-17",596,"علوان",900,7.05,6345]
[null,null,null,null,"2020-08-18","2020-08-18",597,"أنور",400,7.05,2820]
[null,null,null,null,"2020-08-19","2020-08-19",598,"عمر",40,7.05,282]
[null,null,null,null,"2020-08-20","2020-08-20",599,"رجب",600,7.05,4230]
[null,null,null,null,"2020-08-21","2020-08-21",600,"حلمى",700,7.05,4935]
[null,null,null,null,"2020-08-22","2020-08-22",601,"حلمى25",200,7.05,1410]
[null,null,null,null,"2020-08-23","2020-08-23",602,"الشيخ رجب",400,7.05,2820]
[null,null,null,null,"2020-08-24","2020-08-24",603,"جمال",350,7.05,2467.5]
[null,null,null,null,"2020-08-25","2020-08-25",604,"أشرف",300,7.05,2115]
[null,null,null,null,"2020-08-26","2020-08-26",605,"محمد عيسى",400,7.05,2820]
[null,null,null,null,"2020-08-27","2020-08-27",606,"جابر",1300,7.05,9165]
[null,null,null,null,"2020-08-28","2020-08-28",607,"السيد",910,7.05,6415.5]
[null,null,null,null,"2020-08-29","2020-08-29",614,"أنور",400,7.05,2820]
[null,null,null,null,"2020-08-30","2020-08-30",615,"رجب",800,7.05,5640]
[null,null,null,null,"2020-08-31","2020-08-31",616,"علوان",700,7.05,4935]
[null,null,null,null,"2020-09-01","2020-09-01",617,"جابر",1300,7.05,9165]
[null,null,null,null,"2020-09-02","2020-09-02",618,"أشرف",300,7.05,2115]
[null,null,null,null,"2020-09-03","2020-09-03",619,"جمال",400,7.05,2820]
[null,null,null,null,"2020-09-04","2020-09-04",620,"السيد",650,7.05,4582.5]
[null,null,null,null,"2020-09-05","2020-09-05",621,"محمد عيسى",400,7.05,2820]
[null,null,null,null,"2020-09-06","2020-09-06",622,"ضيف",400,7.05,2820]
[null,null,null,null,"2020-09-07","2020-09-07",623,"حلمى",1150,7.05,8107.5]
[null,null,null,null,"2020-09-08","2020-09-08",625,"أنور",350,7.05,2467.5]
[null,null,null,null,"2020-09-09","2020-09-09",627,"علوان",700,7.05,4935]
[null,null,null,null,"2020-09-10","2020-09-10",628,"رجب",400,7.05,2820]
[null,null,null,null,"2020-09-11","2020-09-11",629,"جابر",1600,7.05,11280]
[null,null,null,null,"2020-09-12","2020-09-12",630,"السيد",900,7.05,6345]
[null,null,null,null,"2020-09-13","2020-09-13",631,"السيد",12,7.05,84.6]
[null,null,null,null,"2020-09-14","2020-09-14",632,"ضيف",315,7.05,2220.75]
[null,null,null,null,"2020-09-15","2020-09-15",633,"حلمى",1230,7.05,8671.5]
[null,null,null,null,"2020-09-16","2020-09-16",634,"جمال",560,7.05,3948]
[null,null,null,null,"2020-09-17","2020-09-17",635,"جابر",384,7.05,2707.2]
[null,null,null,null,"2020-09-18","2020-09-18",639,"أنور",350,7.05,2467.5]
[null,null,null,null,"2020-09-19","2020-09-19",640,"علوان",800,7.05,5640]
[null,null,null,null,"2020-09-20","2020-09-20",641,"رجب",600,7.05,4230]
[null,null,null,null,"2020-09-21","2020-09-21",642,"محمد عيسى",400,7.05,2820]
[null,null,null,null,"2020-09-22","2020-09-22",643,"السيد",750,7.05,5287.5]
[null,null,null,null,"2020-09-23","2020-09-23",644,"خالد 54",400,7.05,2820]
[null,null,null,null,"2020-09-24","2020-09-24",645,"جابر",1300,7.05,9165]
[null,null,null,null,"2020-09-25","2020-09-25",646,"حلمى",902,7.05,6359.0999999999995]
[null,null,null,null,"2020-09-26","2020-09-26",647,"جمال",260,7.05,1833]
[null,null,null,null,"2020-09-27","2020-09-27",648,"أشرف",240,7.05,1692]
[null,null,null,null,"2020-09-28","2020-09-28",649,"رمضان عربية ش",50,7.05,352.5]
[null,null,null,null,"2020-09-29","2020-09-29",650,"ضيف",400,7.05,2820]
[null,null,null,null,"2020-09-30","2020-09-30",657,"أنور",400,7.05,2820]
[null,null,null,null,"2020-10-01","2020-10-01",658,"رجب",750,7.05,5287.5]
[null,null,null,null,"2020-10-02","2020-10-02",659,"محسن مياه",100,7.05,705]
[null,null,null,null,"2020-10-03","2020-10-03",660,"عمر",120,7.05,846]
[null,null,null,null,"2020-10-04","2020-10-04",661,"علوان",400,7.05,2820]
[null,null,null,null,"2020-10-05","2020-10-05",662,"أشرف",300,7.05,2115]
[null,null,null,null,"2020-10-06","2020-10-06",663,"ضيف",300,7.05,2115]
[null,null,null,null,"2020-10-07","2020-10-07",664,"السيد",1200,7.05,8460]
[null,null,null,null,"2020-10-08","2020-10-08",665,"خالد 54",400,7.05,2820]
[null,null,null,null,"2020-10-09","2020-10-09",666,"جمال",350,7.05,2467.5]
[null,null,null,null,{"$f":"F72","v":"2020-10-10"},"2020-10-10",667,"رمضان عربية ش",70,7.05,{"$f":"IF(OR(I72=\"\",J72=\"\"),\"\",PRODUCT(I72,J72))","v":493.5}]
[null,null,null,null,"2020-10-11","2020-10-11",668,"جابر",1560,7.05,10998]
[null,null,null,null,"2020-10-12","2020-10-12",669,"محمد عيسى",400,7.05,2820]
[null,null,null,null,"2020-10-13","2020-10-13",669,"علوان",150,7.05,1057.5]
[null,null,null,null,"2020-10-14","2020-10-14",679,"رجب",650,7.05,4582.5]
[null,null,null,null,"2020-10-15","2020-10-15",680,"محسن مياه",50,7.05,352.5]
[null,null,null,null,"2020-10-16","2020-10-16",681,"عمر",175,7.05,1233.75]
[null,null,null,null,"2020-10-17","2020-10-17",682,"محمد عيسى",400,7.05,2820]
[null,null,null,null,"2020-10-18","2020-10-18",683,"أنور",400,7.05,2820]
[null,null,null,null,"2020-10-19","2020-10-19",684,"علوان",400,7.05,2820]
[null,null,null,null,"2020-10-20","2020-10-20",685,"ضيف",300,7.05,2115]
[null,null,null,null,"2020-10-21","2020-10-21",686,"حلمى",50,7.05,352.5]
[null,null,null,null,"2020-10-22","2020-10-22",687,"حلمى25",350,7.05,2467.5]
[null,null,null,null,"2020-10-23","2020-10-23",688,"محسن مياه",50,7.05,352.5]
[null,null,null,null,"2020-10-24","2020-10-24",689,"خالد 54",500,7.05,3525]
[null,null,null,null,"2020-10-25","2020-10-25",690,"السيد",1100,7.05,7755]
[null,null,null,null,"2020-10-26","2020-10-26",691,"جمال",300,7.05,2115]
[null,null,null,null,"2020-10-27","2020-10-27",692,"أشرف",350,7.05,2467.5]
[null,null,null,null,"2020-10-28","2020-10-28",693,"جابر",1420,7.05,10011]
[null,null,null,null,"2020-10-29","2020-10-29",698,"السيد",900,{"$f":"IFERROR(IF(H91<>\"\",7.05,\"\"),\"\")","v":7.05},6345]
[null,null,null,null,"2020-10-30","2020-10-30",699,"خالد 54",750,{"$f":"IFERROR(IF(H92<>\"\",7.05,\"\"),\"\")","v":7.05},5287.5]
[null,null,null,null,"2020-10-31","2020-10-31",700,"علوان",500,7.05,3525]
[null,null,null,null,"2020-11-01","2020-11-01",701,"حلمى25",990,7.05,6979.5]
[null,null,null,null,"2020-11-02","2020-11-02",702,"ضيف",300,7.05,2115]
[null,null,null,null,"2020-11-03","2020-11-03",703,"رجب",650,7.05,4582.5]
[null,null,null,null,"2020-11-04","2020-11-04",704,"أنور",300,7.05,2115]
[null,null,null,null,"2020-11-05","2020-11-05",705,"محسن مياه",20,7.05,141]
[null,null,null,null,"2020-11-06","2020-11-06",706,"محسن مياه",20,7.05,141]
[null,null,null,null,"2020-11-07","2020-11-07",707,"جمال",300,7.05,2115]
[null,null,null,null,"2020-11-08","2020-11-08",708,"عمر",125,7.05,881.25]
[null,null,null,null,"2020-11-09","2020-11-09",709,"حلمى",20,7.05,141]
[null,null,null,null,"2020-11-10","2020-11-10",711,"أشرف",230,7.05,1621.5]
[null,null,null,null,"2020-11-11","2020-11-11",712,"جابر",1174,7.05,8276.6999999999989]
[null,null,null,null,"2020-11-12","2020-11-12",715,"علوان",600,7.05,4230]
[null,null,null,null,"2020-11-13","2020-11-13",716,"رجب",841,7.05,5929.05]
[null,null,null,null,"2020-11-14","2020-11-14",717,"أنور",300,7.05,2115]
[null,null,null,null,"2020-11-15","2020-11-15",718,"عمر",345,7.05,2432.25]
[null,null,null,null,"2020-11-16","2020-11-16",719,"السيد",700,7.05,4935]
[null,null,null,null,"2020-11-17","2020-11-17",720,"خالد 54",700,7.05,4935]
[null,null,null,null,"2020-11-18","2020-11-18",721,"حلمى",450,7.05,3172.5]
[null,null,null,null,"2020-11-19","2020-11-19",722,"حلمى25",200,7.05,1410]
[null,null,null,null,"2020-11-20","2020-11-20",723,"محمد عيسى",300,7.05,2115]
[null,null,null,null,"2020-11-21","2020-11-21",724,"أشرف",300,7.05,2115]
[null,null,null,null,"2020-11-22","2020-11-22",725,"جابر",1225,7.05,8636.25]
[null,null,null,null,"2020-11-23","2020-11-23",726,"ضيف",300,7.05,2115]
[null,null,null,null,"2020-11-24","2020-11-24",727,"جمال",350,7.05,2467.5]
[null,null,null,null,"2020-11-25","2020-11-25",729,"محسن مياه",50,7.05,352.5]
[null,null,null,null,"2020-11-26","2020-11-26",730,"السيد",800,7.05,5640]
[null,null,null,null,"2020-11-27","2020-11-27",731,"خالد 54",1000,7.05,7050]
[null,null,null,null,"2020-11-28","2020-11-28",732,"أنور",300,7.05,2115]
[null,null,null,null,"2020-11-29","2020-11-29",733,"ضيف",200,7.05,1410]
[null,null,null,null,"2020-11-30","2020-11-30",734,"محمد عيسى",300,7.05,2115]
[null,null,null,null,"2020-12-01","2020-12-01",735,"محسن مياه",50,7.05,352.5]
[null,null,null,null,"2020-12-02","2020-12-02",736,"حلمى25",300,7.05,2115]
[null,null,null,null,"2020-12-03","2020-12-03",737,"حلمى",300,7.05,2115]
[null,null,null,null,"2020-12-04","2020-12-04",738,"رجب",500,7.05,3525]
[null,null,null,null,"2020-12-05","2020-12-05",739,"رمضان عربية ش",78,7.05,549.9]
[null,null,null,null,"2020-12-06","2020-12-06",740,"عمر",200,7.05,1410]
[null,null,null,null,"2020-12-07","2020-12-07",741,"علوان",400,7.05,2820]
[null,null,null,null,"2020-12-08","2020-12-08",742,"جمال",230,7.05,1621.5]
[null,null,null,null,"2020-12-09","2020-12-09",743,"محسن مياه",40,7.05,282]
[null,null,null,null,"2020-12-10","2020-12-10",744,"أشرف",462,7.05,3257.1]
[null,null,null,null,"2020-12-11","2020-12-11",745,"جابر",1290,7.05,9094.5]
[null,null,null,null,"2020-12-12","2020-12-12",751,"أشرف",480,7.05,3384]
[null,null,null,null,{"$f":"F136","v":"2020-12-13"},"2020-12-13",752,"رجب",800,7.05,{"$f":"IF(OR(I136=\"\",J136=\"\"),\"\",PRODUCT(I136,J136))","v":5640}]
[null,null,null,null,"2020-12-14","2020-12-14",753,"جابر",1500,7.05,10575]
[null,null,null,null,"2020-12-15","2020-12-15",754,"السيد",1000,7.05,7050]
[null,null,null,null,"2020-12-16","2020-12-16",755,"خالد 54",1000,7.05,7050]
[null,null,null,null,"2020-12-17","2020-12-17",756,"جمال",350,7.05,2467.5]
[null,null,null,null,"2020-12-18","2020-12-18",757,"أنور",350,7.05,2467.5]
[null,null,null,null,"2020-12-19","2020-12-19",758,"محمد عيسى",400,7.05,2820]
[null,null,null,null,"2020-12-20","2020-12-20",759,"ضيف",400,7.05,2820]
[null,null,null,null,"2020-12-21","2020-12-21",760,"رمضان عربية ش",75,7.05,528.75]
[null,null,null,null,"2020-12-22","2020-12-22",766,"محسن مياه",111,7.05,782.55]
[null,null,null,null,"2020-12-23","2020-12-23",772,"أنور",300,7.05,2115]
[null,null,null,null,"2020-12-24","2020-12-24",773,"جابر",1906,7.05,13437.3]
[null,null,null,null,"2020-12-25","2020-12-25",774,"رجب",525,7.05,3701.25]
[null,null,null,null,"2020-12-26","2020-12-26",775,"السيد",700,7.05,4935]
[null,null,null,null,"2020-12-27","2020-12-27",776,"خالد 54",600,7.05,4230]
[null,null,null,null,"2020-12-28","2020-12-28",777,"جمال",350,7.05,2467.5]
[null,null,null,null,"2020-12-29","2020-12-29",778,"محمد عيسى",400,7.05,2820]
[null,null,null,null,"2020-12-30","2020-12-30",779,"أشرف",530,7.05,3736.5]
[null,null,null,null,"2020-12-31","2020-12-31",780,"حلمى25",900,7.05,6345]
[null,null,null,null,"2021-01-01","2021-01-01",781,"ضيف",125,7.05,881.25]
[null,null,null,null,"2021-01-02","2021-01-02",782,"محسن مياه",164,7.05,1156.2]
[null,null,null,null,"2021-01-03","2021-01-03",787,"ضيف",393,{"$f":"IFERROR(IF(H157<>\"\",7.05,\"\"),\"\")","v":7.05},2770.65]
[null,null,null,null,"2021-01-04","2021-01-04",788,"أنور",350,7.05,2467.5]
[null,null,null,null,"2021-01-05","2021-01-05",789,"علوان",400,7.05,2820]
[null,null,null,null,"2021-01-06","2021-01-06",790,"جابر",1857,7.05,13091.85]
[null,null,null,null,"2021-01-07","2021-01-07",791,"علوان",106,7.05,747.3]
[null,null,null,null,"2021-01-08","2021-01-08",792,"رجب",1400,7.05,9870]
[null,null,null,null,"2021-01-09","2021-01-09",793,"عمر",102,7.05,719.1]
[null,null,null,null,"2021-01-10","2021-01-10",794,"أشرف",470,7.05,3313.5]
[null,null,null,null,"2021-01-11","2021-01-11",795,"جمال",266,7.05,1875.3]
[null,null,null,null,"2021-01-12","2021-01-12",796,"السيد",460,7.05,3243]
[null,null,null,null,"2021-01-13","2021-01-13",797,"محمد عيسى",466,7.05,3285.2999999999997]
[null,null,null,null,"2021-01-14","2021-01-14",798,"محسن مياه",102,7.05,719.1]
[null,null,null,null,"2021-01-15","2021-01-15",799,"محسن مياه",128,7.05,902.4]
[null,null,null,null,"2021-01-16","2021-01-16",808,"محسن مياه",40,7.05,282]
[null,null,null,null,"2021-01-17","2021-01-17",809,"جابر",1400,7.05,9870]
[null,null,null,null,"2021-01-18","2021-01-18",810,"حلمى",1110,7.05,7825.5]
[null,null,null,null,"2021-01-19","2021-01-19",811,"رجب",460,7.05,3243]
[null,null,null,null,"2021-01-20","2021-01-20",812,"أنور",350,7.05,2467.5]
[null,null,null,null,"2021-01-21","2021-01-21",813,"أشرف",403,7.05,2841.15]
[null,null,null,null,"2021-01-22","2021-01-22",814,"السيد",550,7.05,3877.5]
[null,null,null,null,"2021-01-23","2021-01-23",815,"خالد 54",600,7.05,4230]
[null,null,null,null,"2021-01-24","2021-01-24",816,"خالد 31",400,7.05,2820]
[null,null,null,null,"2021-01-25","2021-01-25",817,"محمد عيسى",250,7.05,1762.5]
[null,null,null,null,"2021-01-26","2021-01-26",818,"ضيف",450,7.05,3172.5]
[null,null,null,null,"2021-01-27","2021-01-27",819,"علوان",254,7.05,1790.7]
[null,null,null,null,"2021-01-28","2021-01-28",820,"ضيف",50,7.05,352.5]
[null,null,null,null,"2021-01-29","2021-01-29",821,"محسن مياه",100,7.05,705]
[null,null,null,null,"2021-01-30","2021-01-30",822,"رمضان عربية ش",83,7.05,585.15]
[null,null,null,null,"2021-01-31","2021-01-31",824,"أنور",350,7.05,2467.5]
[null,null,null,null,"2021-02-01","2021-02-01",825,"أشرف",250,7.05,1762.5]
[null,null,null,null,"2021-02-02","2021-02-02",826,"عمر",130,7.05,916.5]
[null,null,null,null,"2021-02-03","2021-02-03",827,"حلمى",650,7.05,4582.5]
[null,null,null,null,"2021-02-04","2021-02-04",828,"خالد 31",500,7.05,3525]
[null,null,null,null,"2021-02-05","2021-02-05",829,"خالد 54",900,7.05,6345]
[null,null,null,null,"2021-02-06","2021-02-06",830,"ضيف",490,7.05,3454.5]
[null,null,null,null,"2021-02-07","2021-02-07",831,"رجب",400,7.05,2820]
[null,null,null,null,"2021-02-08","2021-02-08",832,"علوان",500,7.05,3525]
[null,null,null,null,"2021-02-09","2021-02-09",833,"جابر",2000,7.05,14100]
[null,null,null,null,"2021-02-10","2021-02-10",835,"خالد 54",200,7.05,1410]
[null,null,null,null,"2021-02-11","2021-02-11",837,"محسن مياه",130,7.05,916.5]
[null,null,null,null,"2021-02-12","2021-02-12",841,"محمد عيسى",400,7.05,2820]
[null,null,null,null,"2021-02-13","2021-02-13",842,"أشرف",230,7.05,1621.5]
[null,null,null,null,"2021-02-14","2021-02-14",843,"أنور",350,7.05,2467.5]
[null,null,null,null,{"$f":"F200","v":"2021-02-15"},"2021-02-15",844,"جمال",329,7.05,{"$f":"IF(OR(I200=\"\",J200=\"\"),\"\",PRODUCT(I200,J200))","v":2319.4499999999998}]
[null,null,null,null,"2021-02-16","2021-02-16",845,"رمضان عربية ش",70,7.05,493.5]
[null,null,null,null,"2021-02-17","2021-02-17",846,"رجب",500,7.05,3525]
[null,null,null,null,"2021-02-18","2021-02-18",847,"ضيف",600,7.05,4230]
[null,null,null,null,"2021-02-19","2021-02-19",848,"خالد 31",675,7.05,4758.75]
[null,null,null,null,"2021-02-20","2021-02-20",849,"خالد 54",380,7.05,2679]
[null,null,null,null,"2021-02-21","2021-02-21",850,"السيد",120,7.05,846]
[null,null,null,null,"2021-02-22","2021-02-22",851,"أشرف",293,7.05,2065.65]
[null,null,null,null,"2021-02-23","2021-02-23",852,"أنور",300,7.05,2115]
[null,null,null,null,"2021-02-24","2021-02-24",853,"حلمى",400,7.05,2820]
[null,null,null,null,"2021-02-25","2021-02-25",854,"جابر",1792,7.05,12633.6]
[null,null,null,null,"2021-02-26","2021-02-26",856,"عربية الجيش",36,7.05,253.79999999999998]
[null,null,null,null,"2021-02-27","2021-02-27",867,"جمال",100,7.05,705]
[null,null,null,null,"2021-02-28","2021-02-28",868,"أشرف",500,7.05,3525]
[null,null,null,null,"2021-03-01","2021-03-01",869,"علوان",500,7.05,3525]
[null,null,null,null,"2021-03-02","2021-03-02",870,"أنور",300,7.05,2115]
[null,null,null,null,"2021-03-03","2021-03-03",871,"جابر",1300,7.05,9165]
[null,null,null,null,"2021-03-04","2021-03-04",872,"محمد عيسى",300,7.05,2115]
[null,null,null,null,"2021-03-05","2021-03-05",873,"خالد 54",700,7.05,4935]
[null,null,null,null,"2021-03-06","2021-03-06",874,"حلمى",600,7.05,4230]
[null,null,null,null,"2021-03-07","2021-03-07",875,"السيد156",700,7.05,4935]
[null,null,null,null,"2021-03-08","2021-03-08",876,"ضيف",400,{"$f":"IFERROR(IF(H221<>\"\",7.05,\"\"),\"\")","v":7.05},2820]
[null,null,null,null,"2021-03-09","2021-03-09",878,"محسن مياه",25,7.05,176.25]
[null,null,null,null,"2021-03-10","2021-03-10",879,"رجب",452,7.05,3186.6]
[null,null,null,null,"2021-03-11","2021-03-11",880,"عمر",100,7.05,705]
[null,null,null,null,"2021-03-12","2021-03-12",881,"أشرف",100,7.05,705]
[null,null,null,null,"2021-03-13","2021-03-13",883,"محسن مياه",25,7.05,176.25]
[null,null,null,null,"2021-03-14","2021-03-14",884,"خالد 31",350,7.05,2467.5]
[null,null,null,null,"2021-03-15","2021-03-15",889,"السيد156",700,7.05,4935]
[null,null,null,null,"2021-03-16","2021-03-16",890,"خالد 54",700,7.05,4935]
[null,null,null,null,"2021-03-17","2021-03-17",891,"جابر",1400,7.05,9870]
[null,null,null,null,"2021-03-18","2021-03-18",892,"محمد عيسى",300,7.05,2115]
[null,null,null,null,"2021-03-19","2021-03-19",893,"أشرف",490,7.05,3454.5]
[null,null,null,null,"2021-03-20","2021-03-20",894,"رجب",250,7.05,1762.5]
[null,null,null,null,"2021-03-21","2021-03-21",895,"خالد 31",350,7.05,2467.5]
[null,null,null,null,"2021-03-22","2021-03-22",896,"علوان",400,7.05,2820]
[null,null,null,null,"2021-03-23","2021-03-23",897,"محسن مياه",140,7.05,987]
[null,null,null,null,"2021-03-24","2021-03-24",898,"محسن مياه",50,7.05,352.5]
[null,null,null,null,"2021-03-25","2021-03-25",899,"عمر",600,7.05,4230]
[null,null,null,null,"2021-03-26","2021-03-26",900,"ضيف",400,7.05,2820]
[null,null,null,null,"2021-03-27","2021-03-27",901,"جمال",100,7.05,705]
[null,null,null,null,"2021-03-28","2021-03-28",902,"حلمى",504,7.05,3553.2]
[null,null,null,null,"2021-03-29","2021-03-29",903,"رمضان عربية ش",66,7.05,465.3]
[null,null,null,null,"2021-03-30","2021-03-30",917,"عمر",400,7.05,2820]
[null,null,null,null,"2021-03-31","2021-03-31",918,"رجب",150,7.05,1057.5]
[null,null,null,null,"2021-04-01","2021-04-01",919,"أنور",350,7.05,2467.5]
[null,null,null,null,"2021-04-02","2021-04-02",920,"حلمى",650,7.05,4582.5]
[null,null,null,null,"2021-04-03","2021-04-03",921,"علوان",400,7.05,2820]
[null,null,null,null,"2021-04-04","2021-04-04",922,"ضيف",400,7.05,2820]
[null,null,null,null,"2021-04-05","2021-04-05",923,"السيد156",800,7.05,5640]
[null,null,null,null,"2021-04-06","2021-04-06",924,"محسن مياه",50,7.05,352.5]
[null,null,null,null,"2021-04-07","2021-04-07",925,"جابر",1270,7.05,8953.5]
[null,null,null,null,"2021-04-08","2021-04-08",926,"عنتر",100,7.05,705]
[null,null,null,null,"2021-04-09","2021-04-09",927,"أشرف",450,7.05,3172.5]
[null,null,null,null,"2021-04-10","2021-04-10",928,"جمال",100,7.05,705]
[null,null,null,null,"2021-04-11","2021-04-11",929,"رجب",150,7.05,1057.5]
[null,null,null,null,"2021-04-12","2021-04-12",930,"محمد عيسى",250,7.05,1762.5]
[null,null,null,null,"2021-04-13","2021-04-13",931,"خالد 54",500,7.05,3525]
[null,null,null,null,"2021-04-14","2021-04-14",932,"خالد 31",200,7.05,1410]
[null,null,null,null,"2021-04-15","2021-04-15",933,"السيد",174,7.05,1226.7]
[null,null,null,null,"2021-04-16","2021-04-16",940,"حلمى",650,7.05,4582.5]
[null,null,null,null,"2021-04-17","2021-04-17",941,"أنور",350,7.05,2467.5]
[null,null,null,null,"2021-04-18","2021-04-18",942,"عنتر",353,7.05,2488.65]
[null,null,null,null,"2021-04-19","2021-04-19",943,"ضيف",300,7.05,2115]
[null,null,null,null,{"$f":"F264","v":"2021-04-20"},"2021-04-20",944,"علوان",450,7.05,{"$f":"IF(OR(I264=\"\",J264=\"\"),\"\",PRODUCT(I264,J264))","v":3172.5}]
[null,null,null,null,"2021-04-21","2021-04-21",945,"خالد 31",200,7.05,1410]
[null,null,null,null,"2021-04-22","2021-04-22",946,"السيد156",800,7.05,5640]
[null,null,null,null,"2021-04-23","2021-04-23",947,"جابر",1630,7.05,11491.5]
[null,null,null,null,"2021-04-24","2021-04-24",948,"عمر",350,7.05,2467.5]
[null,null,null,null,"2021-04-25","2021-04-25",949,"رجب",50,7.05,352.5]
[null,null,null,null,"2021-04-26","2021-04-26",950,"أشرف",600,7.05,4230]
[null,null,null,null,"2021-04-27","2021-04-27",951,"خالد 54",380,7.05,2679]
[null,null,null,null,"2021-04-28","2021-04-28",952,"محمد عيسى",205,7.05,1445.25]
[null,null,null,null,"2021-04-29","2021-04-29",953,"عمر",100,7.05,705]
[null,null,null,null,"2021-04-30","2021-04-30",955,"محسن مياه",150,7.05,1057.5]
[null,null,null,null,"2021-05-01","2021-05-01",956,"محسن مياه",50,7.05,352.5]
[null,null,null,null,"2021-05-02","2021-05-02",957,"علوان",450,7.05,3172.5]
[null,null,null,null,"2021-05-03","2021-05-03",958,"عنتر",200,7.05,1410]
[null,null,null,null,"2021-05-04","2021-05-04",959,"عنتر",350,7.05,2467.5]
[null,null,null,null,"2021-05-05","2021-05-05",960,"رجب",200,7.05,1410]
[null,null,null,null,"2021-05-06","2021-05-06",961,"حلمى",350,7.05,2467.5]
[null,null,null,null,"2021-05-07","2021-05-07",962,"حلمى25",350,7.05,2467.5]
[null,null,null,null,"2021-05-08","2021-05-08",963,"عربية الجيش",80,7.05,564]
[null,null,null,null,"2021-05-09","2021-05-09",964,"ضيف",300,7.05,2115]
[null,null,null,null,"2021-05-10","2021-05-10",965,"جابر",1100,7.05,7755]
[null,null,null,null,"2021-05-11","2021-05-11",967,"السيد",250,{"$f":"IFERROR(IF(H285<>\"\",7.05,\"\"),\"\")","v":7.05},1762.5]
[null,null,null,null,"2021-05-12","2021-05-12",968,"خالد 54",350,7.05,2467.5]
[null,null,null,null,"2021-05-13","2021-05-13",969,"السيد156",900,7.05,6345]
[null,null,null,null,"2021-05-14","2021-05-14",970,"عمر",300,7.05,2115]
[null,null,null,null,"2021-05-15","2021-05-15",972,"أشرف",600,7.05,4230]
[null,null,null,null,"2021-05-16","2021-05-16",974,"جابر",100,7.05,705]
[null,null,null,null,"2021-05-17","2021-05-17",975,"رجب",143,7.05,1008.15]
[null,null,null,null,"2021-05-18","2021-05-18",978,"أنور",323,7.05,2277.15]
[null,null,null,null,"2021-05-19","2021-05-19",979,"حلمى",23,7.05,162.15]
[null,null,null,null,"2021-05-20","2021-05-20",986,"ضيف",400,7.05,2820]
[null,null,null,null,"2021-05-21","2021-05-21",987,"علوان",200,7.05,1410]
[null,null,null,null,"2021-05-22","2021-05-22",988,"عنتر",600,7.05,4230]
[null,null,null,null,"2021-05-23","2021-05-23",989,"حلمى",350,7.05,2467.5]
[null,null,null,null,"2021-05-24","2021-05-24",990,"السيد156",700,7.05,4935]
[null,null,null,null,"2021-05-25","2021-05-25",991,"السيد156",50,7.05,352.5]
[null,null,null,null,"2021-05-26","2021-05-26",992,"عمر",300,7.05,2115]
[null,null,null,null,"2021-05-27","2021-05-27",993,"أشرف",600,7.05,4230]
[null,null,null,null,"2021-05-28","2021-05-28",994,"جابر",2050,7.05,14452.5]
[null,null,null,null,"2021-05-29","2021-05-29",995,"محسن مياه",220,7.05,1551]
[null,null,null,null,"2021-05-30","2021-05-30",996,"محسن مياه",50,7.05,352.5]
[null,null,null,null,"2021-05-31","2021-05-31",997,"خالد 54",900,7.05,6345]
[null,null,null,null,"2021-06-01","2021-06-01",998,"محسن مياه",80,7.05,564]
[null,null,null,null,"2021-06-02","2021-06-02",1003,"عنتر",600,7.05,4230]
[null,null,null,null,"2021-06-03","2021-06-03",1004,"عمر",200,7.05,1410]
[null,null,null,null,"2021-06-04","2021-06-04",1005,"السيد156",900,7.05,6345]
[null,null,null,null,"2021-06-05","2021-06-05",1006,"علوان",450,7.05,3172.5]
[null,null,null,null,"2021-06-06","2021-06-06",1007,"أنور",350,7.05,2467.5]
[null,null,null,null,"2021-06-07","2021-06-07",1008,"جابر",1650,7.05,11632.5]
[null,null,null,null,"2021-06-08","2021-06-08",1009,"أشرف",550,7.05,3877.5]
[null,null,null,null,"2021-06-09","2021-06-09",1010,"خالد 54",584,7.05,4117.2]
[null,null,null,null,"2021-06-10","2021-06-10",1011,"ضيف",510,7.05,3595.5]
[null,null,null,null,"2021-06-11","2021-06-11",1012,"محسن مياه",200,7.05,1410]
[null,null,null,null,"2021-06-12","2021-06-12",1013,"رجب",260,7.05,1833]
[null,null,null,null,"2021-06-13","2021-06-13",1014,"حلمى",150,7.05,1057.5]
[null,null,null,null,"2021-06-14","2021-06-14",1020,"علوان",200,7.05,1410]
[null,null,null,null,"2021-06-15","2021-06-15",1021,"عنتر",400,7.05,2820]
[null,null,null,null,"2021-06-16","2021-06-16",1022,"خالد 31",750,7.05,5287.5]
[null,null,null,null,"2021-06-17","2021-06-17",1023,"خالد 54",400,7.05,2820]
[null,null,null,null,"2021-06-18","2021-06-18",1024,"ضيف",200,7.05,1410]
[null,null,null,null,"2021-06-19","2021-06-19",1025,"جابر",1716,7.05,12097.8]
[null,null,null,null,"2021-06-20","2021-06-20",1026,"رجب",100,7.05,705]
[null,null,null,null,"2021-06-21","2021-06-21",1027,"أنور",350,7.05,2467.5]
[null,null,null,null,"2021-06-22","2021-06-22",1028,"عنتر",300,7.05,2115]
[null,null,null,null,{"$f":"F328","v":"2021-06-23"},"2021-06-23",1029,"السيد156",850,7.05,{"$f":"IF(OR(I328=\"\",J328=\"\"),\"\",PRODUCT(I328,J328))","v":5992.5}]
[null,null,null,null,"2021-06-24","2021-06-24",1030,"أشرف",350,7.05,2467.5]
[null,null,null,null,"2021-06-25","2021-06-25",1031,"حلمى",200,7.05,1410]
[null,null,null,null,"2021-06-26","2021-06-26",1032,"رجب",100,7.05,705]
[null,null,null,null,"2021-06-27","2021-06-27",1033,"عمر",200,7.05,1410]
[null,null,null,null,"2021-06-28","2021-06-28",1034,"رمضان عربية ش",74,7.05,521.69999999999993]
[null,null,null,null,"2021-06-29","2021-06-29",1038,"ضيف",400,7.05,2820]
[null,null,null,null,"2021-06-30","2021-06-30",1039,"عنتر",900,7.05,6345]
[null,null,null,null,"2021-07-01","2021-07-01",1040,"علوان",250,7.05,1762.5]
[null,null,null,null,"2021-07-02","2021-07-02",1041,"أنور",350,7.05,2467.5]
[null,null,null,null,"2021-07-03","2021-07-03",1042,"أنور",50,7.05,352.5]
[null,null,null,null,"2021-07-04","2021-07-04",1043,"السيد156",700,7.05,4935]
[null,null,null,null,"2021-07-05","2021-07-05",1044,"خالد 31",1300,7.05,9165]
[null,null,null,null,"2021-07-06","2021-07-06",1045,"أشرف",250,7.05,1762.5]
[null,null,null,null,"2021-07-07","2021-07-07",1046,"حلمى",150,7.05,1057.5]
[null,null,null,null,"2021-07-08","2021-07-08",1047,"جابر",1375,7.05,9693.75]
[null,null,null,null,"2021-07-09","2021-07-09",1048,"رجب",50,7.05,352.5]
[null,null,null,null,"2021-07-10","2021-07-10",1049,"ضيف",40,7.05,282]
[null,null,null,null,"2021-07-11","2021-07-11",1050,"عمر",320,7.05,2256]
[null,null,null,null,"2021-07-12","2021-07-12",1051,"محسن مياه",300,7.05,2115]
[null,null,null,null,"2021-07-13","2021-07-13",1052,"خالد 54",65,7.05,458.25]
[null,null,null,null,"2021-07-14","2021-07-14",1059,"السيد156",550,{"$f":"IFERROR(IF(H349<>\"\",7.05,\"\"),\"\")","v":7.05},3877.5]
[null,null,null,null,"2021-07-15","2021-07-15",1060,"خالد 31",1100,7.05,7755]
[null,null,null,null,"2021-07-16","2021-07-16",1061,"عنتر",1200,7.05,8460]
[null,null,null,null,"2021-07-17","2021-07-17",1062,"علوان",450,7.05,3172.5]
[null,null,null,null,"2021-07-18","2021-07-18",1063,"أنور",400,7.05,2820]
[null,null,null,null,"2021-07-19","2021-07-19",1064,"جابر",1300,7.05,9165]
[null,null,null,null,"2021-07-20","2021-07-20",1065,"عمر",500,7.05,3525]
[null,null,null,null,"2021-07-21","2021-07-21",1066,"ضيف",500,7.05,3525]
[null,null,null,null,"2021-07-22","2021-07-22",1067,"أشرف",250,7.05,1762.5]
[null,null,null,null,"2021-07-23","2021-07-23",1068,"خالد 54",100,7.05,705]
[null,null,null,null,"2021-07-24","2021-07-24",1069,"حلمى",150,7.05,1057.5]
[null,null,null,null,"2021-07-25","2021-07-25",1072,"عنتر",1300,7.05,9165]
[null,null,null,null,"2021-07-26","2021-07-26",1073,"ضيف",340,7.05,2397]
[null,null,null,null,"2021-07-27","2021-07-27",1074,"جابر",1300,7.05,9165]
[null,null,null,null,"2021-07-28","2021-07-28",1075,"رمضان عربية ش",84,7.05,592.19999999999993]
[null,null,null,null,"2021-07-29","2021-07-29",1076,"خالد 31",1359,7.05,9580.9499999999989]
[null,null,null,null,"2021-07-30","2021-07-30",1077,"خالد 54",145,7.05,1022.25]
[null,null,null,null,"2021-07-31","2021-07-31",1078,"علوان",400,7.05,2820]
[null,null,null,null,"2021-08-01","2021-08-01",1079,"أنور",250,7.05,1762.5]
[null,null,null,null,"2021-08-02","2021-08-02",1080,"السيد156",550,7.05,3877.5]
[null,null,null,null,"2021-08-03","2021-08-03",1081,"محسن مياه",50,7.05,352.5]
[null,null,null,null,"2021-08-04","2021-08-04",1082,"عمر",350,7.05,2467.5]
[null,null,null,null,"2021-08-05","2021-08-05",1083,"محسن مياه",100,7.05,705]
[null,null,null,null,"2021-08-06","2021-08-06",1084,"عنتر",180,7.05,1269]
[null,null,null,null,"2021-08-07","2021-08-07",1085,"محسن مياه",50,7.05,352.5]
[null,null,null,null,"2021-08-08","2021-08-08",1086,"عربية الجيش",20,7.05,141]
[null,null,null,null,"2021-08-09","2021-08-09",1103,"حلمى",300,7.05,2115]
[null,null,null,null,"2021-08-10","2021-08-10",1104,"علوان",450,7.05,3172.5]
[null,null,null,null,"2021-08-11","2021-08-11",1105,"أنور",400,7.05,2820]
[null,null,null,null,"2021-08-12","2021-08-12",1106,"السيد156",750,7.05,5287.5]
[null,null,null,null,"2021-08-13","2021-08-13",1107,"خالد 54",150,7.05,1057.5]
[null,null,null,null,"2021-08-14","2021-08-14",1108,"خالد 31",1429,7.05,10074.449999999999]
[null,null,null,null,"2021-08-15","2021-08-15",1109,"عنتر",750,7.05,5287.5]
[null,null,null,null,"2021-08-16","2021-08-16",1110,"جابر",1150,7.05,8107.5]
[null,null,null,null,"2021-08-17","2021-08-17",1111,"عنتر",750,7.05,5287.5]
[null,null,null,null,"2021-08-18","2021-08-18",1112,"رجب",200,7.05,1410]
[null,null,null,null,"2021-08-19","2021-08-19",1113,"عمر",50,7.05,352.5]
[null,null,null,null,"2021-08-20","2021-08-20",1114,"رمضان عربية ش",50,7.05,352.5]
[null,null,null,null,"2021-08-21","2021-08-21",1117,"حلمى",100,7.05,705]
[null,null,null,null,"2021-08-22","2021-08-22",1118,"خالد 54",150,7.05,1057.5]
[null,null,null,null,"2021-08-23","2021-08-23",1119,"خالد 31",1300,7.05,9165]
[null,null,null,null,"2021-08-24","2021-08-24",1120,"ضيف",440,7.05,3102]
[null,null,null,null,"2021-08-25","2021-08-25",1121,"عنتر",1320,7.05,9306]
[null,null,null,null,{"$f":"F392","v":"2021-08-26"},"2021-08-26",1122,"علوان",200,7.05,{"$f":"IF(OR(I392=\"\",J392=\"\"),\"\",PRODUCT(I392,J392))","v":1410}]
[null,null,null,null,"2021-08-27","2021-08-27",1123,"عمر",500,7.05,3525]
[null,null,null,null,"2021-08-28","2021-08-28",1124,"أشرف",250,7.05,1762.5]
[null,null,null,null,"2021-08-29","2021-08-29",1125,"السيد156",700,7.05,4935]
[null,null,null,null,"2021-08-30","2021-08-30",1126,"أنور",400,7.05,2820]
[null,null,null,null,"2021-08-31","2021-08-31",1127,"جابر",1000,7.05,7050]
[null,null,null,null,"2021-09-01","2021-09-01",1134,"أنور",350,7.05,2467.5]
[null,null,null,null,"2021-09-02","2021-09-02",1135,"خالد 31",1200,7.05,8460]
[null,null,null,null,"2021-09-03","2021-09-03",1136,"حلمى",152,7.05,1071.5999999999999]
[null,null,null,null,"2021-09-04","2021-09-04",1137,"عنتر",900,7.05,6345]
[null,null,null,null,"2021-09-05","2021-09-05",1138,"رجب طرق",400,7.05,2820]
[null,null,null,null,"2021-09-06","2021-09-06",1139,"السيد156",700,7.05,4935]
[null,null,null,null,"2021-09-07","2021-09-07",1140,"رمضان عربية ش",38,7.05,267.89999999999998]
[null,null,null,null,"2021-09-08","2021-09-08",1141,"أشرف",450,7.05,3172.5]
[null,null,null,null,"2021-09-09","2021-09-09",1142,"علوان",600,7.05,4230]
[null,null,null,null,"2021-09-10","2021-09-10",1143,"عمر",200,7.05,1410]
[null,null,null,null,"2021-09-11","2021-09-11",1144,"محسن مياه",60,7.05,423]
[null,null,null,null,"2021-09-12","2021-09-12",1145,"محسن مياه",100,7.05,705]
[null,null,null,null,"2021-09-13","2021-09-13",1146,"ضيف",300,7.05,2115]
[null,null,null,null,"2021-09-14","2021-09-14",1147,"جابر",976,7.05,6880.8]
[null,null,null,null,"2021-09-15","2021-09-15",1156,"عنتر",700,7.05,4935]
[null,null,null,null,"2021-09-16","2021-09-16",1157,"رجب طرق",331,{"$f":"IFERROR(IF(H413<>\"\",7.05,\"\"),\"\")","v":7.05},2333.5499999999997]
[null,null,null,null,"2021-09-17","2021-09-17",1158,"خالد 31",900,7.05,6345]
[null,null,null,null,"2021-09-18","2021-09-18",1159,"حلمى",500,7.05,3525]
[null,null,null,null,"2021-09-19","2021-09-19",1160,"أنور",350,7.05,2467.5]
[null,null,null,null,"2021-09-20","2021-09-20",1161,"السيد156",700,7.05,4935]
[null,null,null,null,"2021-09-21","2021-09-21",1162,"جابر",1500,7.05,10575]
[null,null,null,null,"2021-09-22","2021-09-22",1163,"علوان",600,7.05,4230]
[null,null,null,null,"2021-09-23","2021-09-23",1164,"ضيف",515,7.05,3630.75]
[null,null,null,null,"2021-09-24","2021-09-24",1165,"أشرف",350,7.05,2467.5]
[null,null,null,null,"2021-09-25","2021-09-25",1171,"أنور",450,7.05,3172.5]
[null,null,null,null,"2021-09-26","2021-09-26",1172,"علوان",300,7.05,2115]
[null,null,null,null,"2021-09-27","2021-09-27",1173,"جابر",1250,7.05,8812.5]
[null,null,null,null,"2021-09-28","2021-09-28",1174,"محسن مياه",70,7.05,493.5]
[null,null,null,null,"2021-09-29","2021-09-29",1175,"رجب",200,7.05,1410]
[null,null,null,null,"2021-09-30","2021-09-30",1176,"رجب طرق",200,7.05,1410]
[null,null,null,null,"2021-10-01","2021-10-01",1177,"خالد 31",1250,7.05,8812.5]
[null,null,null,null,"2021-10-02","2021-10-02",1178,"عنتر",840,7.05,5922]
[null,null,null,null,"2021-10-03","2021-10-03",1179,"حلمى",40,7.05,282]
[null,null,null,null,"2021-10-04","2021-10-04",1180,"السيد156",700,7.05,4935]
[null,null,null,null,"2021-10-05","2021-10-05",1181,"أشرف",400,7.05,2820]
[null,null,null,null,"2021-10-06","2021-10-06",1182,"رمضان عربية ش",50,7.05,352.5]
[null,null,null,null,"2021-10-07","2021-10-07",1183,"محسن مياه",50,7.05,352.5]
[null,null,null,null,"2021-10-08","2021-10-08",1184,"محسن مياه",50,7.05,352.5]
[null,null,null,null,"2021-10-09","2021-10-09",1185,"ضيف",350,7.05,2467.5]
[null,null,null,null,"2021-10-10","2021-10-10",1186,"علوان",200,7.05,1410]
[null,null,null,null,"2021-10-11","2021-10-11",1201,"علوان",400,7.05,2820]
[null,null,null,null,"2021-10-12","2021-10-12",1202,"أنور",350,7.05,2467.5]
[null,null,null,null,"2021-10-13","2021-10-13",1203,"رجب طرق",400,7.05,2820]
[null,null,null,null,"2021-10-14","2021-10-14",1204,"عنتر",818,7.05,5766.9]
[null,null,null,null,"2021-10-15","2021-10-15",1205,"رمضان عربية ش",75,7.05,528.75]
[null,null,null,null,"2021-10-16","2021-10-16",1206,"جابر",1505,7.05,10610.25]
[null,null,null,null,"2021-10-17","2021-10-17",1207,"جابر 59",402,7.05,2834.1]
[null,null,null,null,"2021-10-18","2021-10-18",1208,"السيد156",750,7.05,5287.5]
[null,null,null,null,"2021-10-19","2021-10-19",1209,"خالد 31",1000,7.05,7050]
[null,null,null,null,"2021-10-20","2021-10-20",1210,"محسن مياه",100,7.05,705]
[null,null,null,null,"2021-10-21","2021-10-21",1211,"أشرف",300,7.05,2115]
[null,null,null,null,"2021-10-22","2021-10-22",1212,"ضيف",400,7.05,2820]
[null,null,null,null,"2021-10-23","2021-10-23",1214,"السيد156",850,7.05,5992.5]
[null,null,null,null,"2021-10-24","2021-10-24",1215,"خالد 31",700,7.05,4935]
[null,null,null,null,"2021-10-25","2021-10-25",1216,"أشرف",350,7.05,2467.5]
[null,null,null,null,"2021-10-26","2021-10-26",1217,"عنتر",1096,7.05,7726.8]
[null,null,null,null,"2021-10-27","2021-10-27",1218,"حلمى",350,7.05,2467.5]
[null,null,null,null,"2021-10-28","2021-10-28",1219,"أنور",350,7.05,2467.5]
[null,null,null,null,{"$f":"F456","v":"2021-10-29"},"2021-10-29",1220,"عمر",200,7.05,{"$f":"IF(OR(I456=\"\",J456=\"\"),\"\",PRODUCT(I456,J456))","v":1410}]
[null,null,null,null,"2021-10-30","2021-10-30",1221,"محسن مياه",60,7.05,423]
[null,null,null,null,"2021-10-31","2021-10-31",1222,"رجب طرق",200,7.05,1410]
[null,null,null,null,"2021-11-01","2021-11-01",1223,"علوان",450,7.05,3172.5]
[null,null,null,null,"2021-11-02","2021-11-02",1224,"جابر 59",400,7.05,2820]
[null,null,null,null,"2021-11-03","2021-11-03",1225,"جابر",1063,7.05,7494.15]
[null,null,null,null,"2021-11-04","2021-11-04",1226,"السيد156",431,7.05,3038.5499999999997]
[null,null,null,null,"2021-11-05","2021-11-05",1234,"علوان",400,7.05,2820]
[null,null,null,null,"2021-11-06","2021-11-06",1235,"أنور",400,7.05,2820]
[null,null,null,null,"2021-11-07","2021-11-07",1236,"رجب طرق",400,7.05,2820]
[null,null,null,null,"2021-11-08","2021-11-08",1237,"خالد 31",1300,7.05,9165]
[null,null,null,null,"2021-11-09","2021-11-09",1238,"حلمى",300,7.05,2115]
[null,null,null,null,"2021-11-10","2021-11-10",1239,"السيد156",700,7.05,4935]
[null,null,null,null,"2021-11-11","2021-11-11",1240,"عنتر",800,7.05,5640]
[null,null,null,null,"2021-11-12","2021-11-12",1241,"ضيف",500,7.05,3525]
[null,null,null,null,"2021-11-13","2021-11-13",1242,"عمر",150,7.05,1057.5]
[null,null,null,null,"2021-11-14","2021-11-14",1243,"أشرف",200,7.05,1410]
[null,null,null,null,"2021-11-15","2021-11-15",1244,"جابر",950,7.05,6697.5]
[null,null,null,null,"2021-11-16","2021-11-16",1245,"جابر 59",387,7.05,2728.35]
[null,null,null,null,"2021-11-17","2021-11-17",1,"علوان",400,7.05,2820]
[null,null,null,null,"2021-11-18","2021-11-18",2,"أنور",350,7.05,2467.5]
[null,null,null,null,"2021-11-19","2021-11-19",3,"عمر",100,{"$f":"IFERROR(IF(H477<>\"\",7.05,\"\"),\"\")","v":7.05},705]
[null,null,null,null,"2021-11-20","2021-11-20",4,"رجب طرق",200,7.05,1410]
[null,null,null,null,"2021-11-21","2021-11-21",5,"خالد 31",1150,7.05,8107.5]
[null,null,null,null,"2021-11-22","2021-11-22",6,"عنتر",900,7.05,6345]
[null,null,null,null,"2021-11-23","2021-11-23",7,"جابر 59",600,7.05,4230]
[null,null,null,null,"2021-11-24","2021-11-24",8,"جابر",680,7.05,4794]
[null,null,null,null,"2021-11-25","2021-11-25",9,"محسن مياه",80,7.05,564]
[null,null,null,null,"2021-11-26","2021-11-26",10,"ضيف",400,7.05,2820]
[null,null,null,null,"2021-11-27","2021-11-27",11,"السيد156",650,7.05,4582.5]
[null,null,null,null,"2021-11-28","2021-11-28",12,"محسن مياه",50,7.05,352.5]
[null,null,null,null,"2021-11-29","2021-11-29",13,"أشرف",250,7.05,1762.5]
[null,null,null,null,"2021-11-30","2021-11-30",14,"حلمى",400,7.05,2820]
[null,null,null,null,"2021-12-01","2021-12-01",15,"رجب طرق",200,7.05,1410]
[null,null,null,null,"2021-12-02","2021-12-02",16,"محسن مياه",40,7.05,282]
[null,null,null,null,"2021-12-03","2021-12-03",17,"رمضان عربية ش",50,7.05,352.5]
[null,null,null,null,"2021-12-04","2021-12-04",18,"علوان",400,7.05,2820]
[null,null,null,null,"2021-12-05","2021-12-05",19,"رجب طرق",450,7.05,3172.5]
[null,null,null,null,"2021-12-06","2021-12-06",20,"رجب طرق",200,7.05,1410]
[null,null,null,null,"2021-12-07","2021-12-07",21,"أنور",500,7.05,3525]
[null,null,null,null,"2021-12-08","2021-12-08",22,"جابر",800,7.05,5640]
[null,null,null,null,"2021-12-09","2021-12-09",23,"جابر 59",700,7.05,4935]
[null,null,null,null,"2021-12-10","2021-12-10",24,"ضيف",400,7.05,2820]
[null,null,null,null,"2021-12-11","2021-12-11",25,"خالد 31",1200,7.05,8460]
[null,null,null,null,"2021-12-12","2021-12-12",26,"السيد156",800,7.05,5640]
[null,null,null,null,"2021-12-13","2021-12-13",27,"ضيف",42,7.05,296.09999999999997]
[null,null,null,null,"2021-12-14","2021-12-14",28,"عنتر",450,7.05,3172.5]
[null,null,null,null,"2021-12-15","2021-12-15",29,"أشرف",200,7.05,1410]
[null,null,null,null,"2021-12-16","2021-12-16",30,"رمضان عربية ش",35,7.05,246.75]
[null,null,null,null,"2021-12-17","2021-12-17",31,"جابر 59",323,7.05,2277.15]
[null,null,null,null,"2021-12-18","2021-12-18",32,"علوان",450,7.05,3172.5]
[null,null,null,null,"2021-12-19","2021-12-19",33,"رجب طرق",750,7.05,5287.5]
[null,null,null,null,"2021-12-20","2021-12-20",34,"أنور",350,7.05,2467.5]
[null,null,null,null,"2021-12-21","2021-12-21",35,"جابر 59",700,7.05,4935]
[null,null,null,null,"2021-12-22","2021-12-22",36,"جابر",700,7.05,4935]
[null,null,null,null,"2021-12-23","2021-12-23",37,"السيد156",800,7.05,5640]
[null,null,null,null,"2021-12-24","2021-12-24",38,"عنتر",450,7.05,3172.5]
[null,null,null,null,"2021-12-25","2021-12-25",39,"خالد 31",485,7.05,3419.25]
[null,null,null,null,"2021-12-26","2021-12-26",40,"أشرف",170,7.05,1198.5]
[null,null,null,null,"2021-12-27","2021-12-27",41,"محسن مياه",100,7.05,705]
[null,null,null,null,"2021-12-28","2021-12-28",42,"حلمى",170,7.05,1198.5]
[null,null,null,null,"2021-12-29","2021-12-29",43,"محسن مياه",100,7.05,705]
[null,null,null,null,"2021-12-30","2021-12-30",44,"ضيف",400,7.05,2820]
[null,null,null,null,"2021-12-31","2021-12-31",45,"الشركة",161,7.05,1135.05]
[null,null,null,null,{"$f":"F520","v":"2022-01-01"},"2022-01-01",46,"رمضان عربية ش",65,7.05,{"$f":"IF(OR(I520=\"\",J520=\"\"),\"\",PRODUCT(I520,J520))","v":458.25}]
[null,null,null,null,"2022-01-02","2022-01-02",47,"جابر",649,7.05,4575.45]
[null,null,null,null,"2022-01-03","2022-01-03",1389,"جابر 59",1200,7.05,8460]
[null,null,null,null,"2022-01-04","2022-01-04",1390,"علوان",400,7.05,2820]
[null,null,null,null,"2022-01-05","2022-01-05",1391,"رجب طرق",600,7.05,4230]
[null,null,null,null,"2022-01-06","2022-01-06",1392,"عمر",200,7.05,1410]
[null,null,null,null,"2022-01-07","2022-01-07",1393,"السيد156",800,7.05,5640]
[null,null,null,null,"2022-01-08","2022-01-08",1394,"خالد 31",1150,7.05,8107.5]
[null,null,null,null,"2022-01-09","2022-01-09",1395,"حلمى",200,7.05,1410]
[null,null,null,null,"2022-01-10","2022-01-10",1396,"عنتر",750,7.05,5287.5]
[null,null,null,null,"2022-01-11","2022-01-11",1397,"أنور",400,7.05,2820]
[null,null,null,null,"2022-01-12","2022-01-12",1398,"محسن مياه",100,7.05,705]
[null,null,null,null,"2022-01-13","2022-01-13",1399,"ضيف",400,7.05,2820]
[null,null,null,null,"2022-01-14","2022-01-14",1400,"أشرف",200,7.05,1410]
[null,null,null,null,"2022-01-15","2022-01-15",1401,"رجب طرق",100,7.05,705]
[null,null,null,null,"2022-01-16","2022-01-16",1301,"علوان",400,7.05,2820]
[null,null,null,null,"2022-01-17","2022-01-17",1302,"محسن مياه",100,7.05,705]
[null,null,null,null,"2022-01-18","2022-01-18",1303,"أنور",500,7.05,3525]
[null,null,null,null,"2022-01-19","2022-01-19",1304,"رجب طرق",600,7.05,4230]
[null,null,null,null,"2022-01-20","2022-01-20",1305,"السيد156",800,7.05,5640]
[null,null,null,null,"2022-01-21","2022-01-21",1306,"محسن مياه",50,7.05,352.5]
[null,null,null,null,"2022-01-22","2022-01-22",1307,"جابر 59",700,{"$f":"IFERROR(IF(H541<>\"\",7.05,\"\"),\"\")","v":7.05},4935]
[null,null,null,null,"2022-01-23","2022-01-23",1308,"جابر",500,7.05,3525]
[null,null,null,null,"2022-01-24","2022-01-24",1309,"الشركة",147,7.05,1036.3499999999999]
[null,null,null,null,"2022-01-25","2022-01-25",1310,"عمر",100,7.05,705]
[null,null,null,null,"2022-01-26","2022-01-26",1311,"خالد 31",1200,7.05,8460]
[null,null,null,null,"2022-01-27","2022-01-27",1312,"عنتر",440,7.05,3102]
[null,null,null,null,"2022-01-28","2022-01-28",1313,"ضيف",340,7.05,2397]
[null,null,null,null,"2022-01-29","2022-01-29",1314,"أشرف",200,7.05,1410]
[null,null,null,null,"2022-01-30","2022-01-30",1315,"رجب طرق",200,7.05,1410]
[null,null,null,null,"2022-01-31","2022-01-31",1316,"عمر",100,7.05,705]
[null,null,null,null,"2022-02-01","2022-02-01",1317,"أنور",100,7.05,705]
[null,null,null,null,"2022-02-02","2022-02-02",1321,"رمضان عربية ش",23,7.05,162.15]
[null,null,null,null,"2022-02-03","2022-02-03",1333,"أنور",500,7.05,3525]
[null,null,null,null,"2022-02-04","2022-02-04",1334,"علوان",600,7.05,4230]
[null,null,null,null,"2022-02-05","2022-02-05",1335,"رجب طرق",700,7.05,4935]
[null,null,null,null,"2022-02-06","2022-02-06",1336,"محسن مياه",50,7.05,352.5]
[null,null,null,null,"2022-02-07","2022-02-07",1337,"عنتر",850,7.05,5992.5]
[null,null,null,null,"2022-02-08","2022-02-08",1338,"خالد 31",750,7.05,5287.5]
[null,null,null,null,"2022-02-09","2022-02-09",1339,"السيد156",600,7.05,4230]
[null,null,null,null,"2022-02-10","2022-02-10",1340,"أشرف",400,7.05,2820]
[null,null,null,null,"2022-02-11","2022-02-11",1341,"محسن مياه",50,7.05,352.5]
[null,null,null,null,"2022-02-12","2022-02-12",1342,"جابر 59",750,7.05,5287.5]
[null,null,null,null,"2022-02-13","2022-02-13",1343,"جابر",750,7.05,5287.5]
[null,null,null,null,"2022-02-14","2022-02-14",1344,"ضيف",430,7.05,3031.5]
[null,null,null,null,"2022-02-15","2022-02-15",1345,"محسن مياه",70,7.05,493.5]
[null,null,null,null,"2022-02-16","2022-02-16",1358,"علوان",600,7.05,4230]
[null,null,null,null,"2022-02-17","2022-02-17",1359,"رجب طرق",700,7.05,4935]
[null,null,null,null,"2022-02-18","2022-02-18",1360,"أنور",500,7.05,3525]
[null,null,null,null,"2022-02-19","2022-02-19",1361,"جابر",230,7.05,1621.5]
[null,null,null,null,"2022-02-20","2022-02-20",1362,"جابر 59",1270,7.05,8953.5]
[null,null,null,null,"2022-02-21","2022-02-21",1364,"رمضان عربية ش",60,7.05,423]
[null,null,null,null,"2022-02-22","2022-02-22",1365,"عنتر",850,7.05,5992.5]
[null,null,null,null,"2022-02-23","2022-02-23",1366,"خالد 31",850,7.05,5992.5]
[null,null,null,null,"2022-02-24","2022-02-24",1367,"ضيف",251,7.05,1769.55]
[null,null,null,null,"2022-02-25","2022-02-25",1368,"السيد156",600,7.05,4230]
[null,null,null,null,"2022-02-26","2022-02-26",1369,"أشرف",555,7.05,3912.75]
[null,null,null,null,"2022-02-27","2022-02-27",1373,"جابر 59",34,7.05,239.7]
[null,null,null,null,"2022-02-28","2022-02-28",1374,"أنور",500,7.05,3525]
[null,null,null,null,"2022-03-01","2022-03-01",1375,"أنور",200,7.05,1410]
[null,null,null,null,"2022-03-02","2022-03-02",1377,"محسن مياه",152,7.05,1071.5999999999999]
[null,null,null,null,"2022-03-03","2022-03-03",1378,"محسن مياه",48,7.05,338.4]
[null,null,null,null,"2022-03-04","2022-03-04",1379,"السيد156",600,7.05,4230]
[null,null,null,null,"2022-03-05","2022-03-05",1380,"عنتر",900,7.05,6345]
[null,null,null,null,{"$f":"F584","v":"2022-03-06"},"2022-03-06",1381,"خالد 31",850,7.05,{"$f":"IF(OR(I584=\"\",J584=\"\"),\"\",PRODUCT(I584,J584))","v":5992.5}]
[null,null,null,null,"2022-03-07","2022-03-07",1382,"علوان",500,7.05,3525]
[null,null,null,null,"2022-03-08","2022-03-08",1383,"رجب طرق",820,7.05,5781]
[null,null,null,null,"2022-03-09","2022-03-09",1384,"جابر 59",1500,7.05,10575]
[null,null,null,null,"2022-03-10","2022-03-10",1385,"أشرف",230,7.05,1621.5]
[null,null,null,null,"2022-03-11","2022-03-11",1386,"ضيف",200,7.05,1410]
[null,null,null,null,"2022-03-12","2022-03-12",1415,"السيد156",50,7.05,352.5]
[null,null,null,null,"2022-03-13","2022-03-13",1416,"رجب طرق",1000,7.05,7050]
[null,null,null,null,"2022-03-14","2022-03-14",1417,"علوان",150,7.05,1057.5]
[null,null,null,null,"2022-03-15","2022-03-15",1418,"عنتر",950,7.05,6697.5]
[null,null,null,null,"2022-03-16","2022-03-16",1419,"خالد 31",470,7.05,3313.5]
[null,null,null,null,"2022-03-17","2022-03-17",1420,"محسن مياه",75,7.05,528.75]
[null,null,null,null,"2022-03-18","2022-03-18",1421,"محسن مياه",50,7.05,352.5]
[null,null,null,null,"2022-03-19","2022-03-19",1422,"أشرف",300,7.05,2115]
[null,null,null,null,"2022-03-20","2022-03-20",1423,"رجب طرق",200,7.05,1410]
[null,null,null,null,"2022-03-21","2022-03-21",1424,"أنور",200,7.05,1410]
[null,null,null,null,"2022-03-22","2022-03-22",1425,"جابر 59",2261,7.05,15940.05]
[null,null,null,null,"2022-03-23","2022-03-23",1426,"محسن مياه",30,7.05,211.5]
[null,null,null,null,"2022-03-24","2022-03-24",1427,"ضيف",630,7.05,4441.5]
[null,null,null,null,"2022-03-25","2022-03-25",1428,"رمضان عربية ش",45,7.05,317.25]
[null,null,null,null,"2022-03-26","2022-03-26",1429,"الشركة",50,7.05,352.5]
[null,null,null,null,"2022-03-27","2022-03-27",1433,"رجب طرق",1200,{"$f":"IFERROR(IF(H605<>\"\",7.05,\"\"),\"\")","v":7.05},8460]
[null,null,null,null,"2022-03-28","2022-03-28",1434,"السيد156",300,7.05,2115]
[null,null,null,null,"2022-03-29","2022-03-29",1435,"عنتر",1170,7.05,8248.5]
[null,null,null,null,"2022-03-30","2022-03-30",1436,"جابر",200,7.05,1410]
[null,null,null,null,"2022-03-31","2022-03-31",1437,"جابر 59",2200,7.05,15510]
[null,null,null,null,"2022-04-01","2022-04-01",1438,"علوان",450,7.05,3172.5]
[null,null,null,null,"2022-04-02","2022-04-02",1439,"خالد 31",150,7.05,1057.5]
[null,null,null,null,"2022-04-03","2022-04-03",1440,"ضيف",500,7.05,3525]
[null,null,null,null,"2022-04-04","2022-04-04",1441,"أشرف",250,7.05,1762.5]
[null,null,null,null,"2022-04-05","2022-04-05",1442,"محسن مياه",50,7.05,352.5]
[null,null,null,null,"2022-04-06","2022-04-06",1443,"محسن مياه",30,7.05,211.5]
[null,null,null,null,"2022-04-07","2022-04-07",1451,"علوان",600,7.05,4230]
[null,null,null,null,"2022-04-08","2022-04-08",1452,"أنور",260,7.05,1833]
[null,null,null,null,"2022-04-09","2022-04-09",1453,"ضيف",800,7.05,5640]
[null,null,null,null,"2022-04-10","2022-04-10",1454,"رجب طرق",1550,7.05,10927.5]
[null,null,null,null,"2022-04-11","2022-04-11",1455,"محسن مياه",100,7.05,705]
[null,null,null,null,"2022-04-12","2022-04-12",1456,"خالد 31",318,7.05,2241.9]
[null,null,null,null,"2022-04-13","2022-04-13",1457,"جابر",408,7.05,2876.4]
[null,null,null,null,"2022-04-14","2022-04-14",1458,"جابر 59",1000,7.05,7050]
[null,null,null,null,"2022-04-15","2022-04-15",1459,"محسن مياه",100,7.05,705]
[null,null,null,null,"2022-04-16","2022-04-16",1460,"علوان",300,7.05,2115]
[null,null,null,null,"2022-04-17","2022-04-17",1461,"عنتر",443,7.05,3123.15]
[null,null,null,null,"2022-04-18","2022-04-18",1462,"السيد156",250,7.05,1762.5]
[null,null,null,null,"2022-04-19","2022-04-19",1463,"الشركة",40,7.05,282]
[null,null,null,null,"2022-04-20","2022-04-20",1464,"رجب طرق",200,7.05,1410]
[null,null,null,null,"2022-04-21","2022-04-21",1483,"حلمى",40,7.05,282]
[null,null,null,null,"2022-04-22","2022-04-22",1484,"علوان",400,7.05,2820]
[null,null,null,null,"2022-04-23","2022-04-23",1485,"حلمى25",800,7.05,5640]
[null,null,null,null,"2022-04-24","2022-04-24",1486,"حلمى",150,7.05,1057.5]
[null,null,null,null,"2022-04-25","2022-04-25",1487,"رجب طرق",1300,7.05,9165]
[null,null,null,null,"2022-04-26","2022-04-26",1488,"جابر",200,7.05,1410]
[null,null,null,null,"2022-04-27","2022-04-27",1489,"جابر 59",1720,7.05,12126]
[null,null,null,null,"2022-04-28","2022-04-28",1490,"محسن مياه",50,7.05,352.5]
[null,null,null,null,"2022-04-29","2022-04-29",1491,"محسن مياه",25,7.05,176.25]
[null,null,null,null,"2022-04-30","2022-04-30",1492,"محسن مياه",50,7.05,352.5]
[null,null,null,null,"2022-05-01","2022-05-01",1493,"محسن مياه",75,7.05,528.75]
[null,null,null,null,"2022-05-02","2022-05-02",1494,"ضيف",430,7.05,3031.5]
[null,null,null,null,"2022-05-03","2022-05-03",1495,"رمضان عربية ش",68,7.05,479.4]
[null,null,null,null,"2022-05-04","2022-05-04",1496,"عنتر",567,7.05,3997.35]
[null,null,null,null,"2022-05-05","2022-05-05",1497,"حلمى25",375,7.05,2643.75]
[null,null,null,null,"2022-05-06","2022-05-06",1499,"الشركة 23",171,7.05,1205.55]
[null,null,null,null,"2022-05-07","2022-05-07",1500,"علوان",79,7.05,556.94999999999993]
[null,null,null,null,"2022-05-08","2022-05-08",1507,"محسن مياه",75,7.05,528.75]
[null,null,null,null,{"$f":"F648","v":"2022-05-09"},"2022-05-09",1508,"حلمى",50,7.05,{"$f":"IF(OR(I648=\"\",J648=\"\"),\"\",PRODUCT(I648,J648))","v":352.5}]
[null,null,null,null,"2022-05-10","2022-05-10",1509,"ضيف",480,7.05,3384]
[null,null,null,null,"2022-05-11","2022-05-11",1510,"علوان",400,7.05,2820]
[null,null,null,null,"2022-05-12","2022-05-12",1511,"حلمى25",800,7.05,5640]
[null,null,null,null,"2022-05-13","2022-05-13",1512,"رجب طرق",1394,7.05,9827.6999999999989]
[null,null,null,null,"2022-05-14","2022-05-14",1513,"محسن مياه",50,7.05,352.5]
[null,null,null,null,"2022-05-15","2022-05-15",1514,"عنتر",931,7.05,6563.55]
[null,null,null,null,"2022-05-16","2022-05-16",1515,"جابر",620,7.05,4371]
[null,null,null,null,"2022-05-17","2022-05-17",1516,"جابر 59",1600,7.05,11280]
[null,null,null,null,"2022-05-18","2022-05-18",1517,"الشركة 23",100,7.05,705]
[null,null,null,null,"2022-05-19","2022-05-19",1527,"علوان",800,7.05,5640]
[null,null,null,null,"2022-05-20","2022-05-20",1528,"محسن مياه",30,7.05,211.5]
[null,null,null,null,"2022-05-21","2022-05-21",1529,"رمضان عربية ش",45,7.05,317.25]
[null,null,null,null,"2022-05-22","2022-05-22",1530,"رجب طرق",1750,7.05,12337.5]
[null,null,null,null,"2022-05-23","2022-05-23",1531,"حلمى25",980,7.05,6909]
[null,null,null,null,"2022-05-24","2022-05-24",1532,"محسن مياه",30,7.05,211.5]
[null,null,null,null,"2022-05-25","2022-05-25",1533,"عنتر",400,7.05,2820]
[null,null,null,null,"2022-05-26","2022-05-26",1534,"الشركة 23",35,7.05,246.75]
[null,null,null,null,"2022-05-27","2022-05-27",1535,"محسن مياه",30,7.05,211.5]
[null,null,null,null,"2022-05-28","2022-05-28",1536,"جابر",150,7.05,1057.5]
[null,null,null,null,"2022-05-29","2022-05-29",1537,"جابر 59",2250,7.05,15862.5]
[null,null,null,null,"2022-05-30","2022-05-30",1543,"علوان",600,{"$f":"IFERROR(IF(H669<>\"\",7.05,\"\"),\"\")","v":7.05},4230]
[null,null,null,null,"2022-05-31","2022-05-31",1544,"محسن مياه",75,7.05,528.75]
[null,null,null,null,"2022-06-01","2022-06-01",1545,"الشركة 23",65,7.05,458.25]
[null,null,null,null,"2022-06-02","2022-06-02",1546,"رمضان عربية ش",71,7.05,500.55]
[null,null,null,null,"2022-06-03","2022-06-03",1547,"رجب طرق",1650,7.05,11632.5]
[null,null,null,null,"2022-06-04","2022-06-04",1548,"حلمى25",829,7.05,5844.45]
[null,null,null,null,"2022-06-05","2022-06-05",1549,"عنتر",600,7.05,4230]
[null,null,null,null,"2022-06-06","2022-06-06",1550,"ضيف",500,7.05,3525]
[null,null,null,null,"2022-06-07","2022-06-07",1551,"جابر 59",2110,7.05,14875.5]
[null,null,null,null,"2022-06-08","2022-06-08",1562,"علوان",700,7.05,4935]
[null,null,null,null,"2022-06-09","2022-06-09",1563,"رجب طرق",1850,7.05,13042.5]
[null,null,null,null,"2022-06-10","2022-06-10",1564,"ضيف",430,7.05,3031.5]
[null,null,null,null,"2022-06-11","2022-06-11",1565,"عنتر",300,7.05,2115]
[null,null,null,null,"2022-06-12","2022-06-12",1566,"حلمى25",700,7.05,4935]
[null,null,null,null,"2022-06-13","2022-06-13",1567,"الشركة 23",25,7.05,176.25]
[null,null,null,null,"2022-06-14","2022-06-14",1568,"جابر 59",2495,7.05,17589.75]
[null,null,null,null,"2022-06-15","2022-06-15",1574,"ضيف",600,7.05,4230]
[null,null,null,null,"2022-06-16","2022-06-16",1575,"حلمى25",700,7.05,4935]
[null,null,null,null,"2022-06-17","2022-06-17",1576,"رمضان عربية ش",54,7.05,380.7]
[null,null,null,null,"2022-06-18","2022-06-18",1577,"رجب طرق",1792,7.05,12633.6]
[null,null,null,null,"2022-06-19","2022-06-19",1578,"علوان",800,7.05,5640]
[null,null,null,null,"2022-06-20","2022-06-20",1579,"عنتر",500,7.05,3525]
[null,null,null,null,"2022-06-21","2022-06-21",1580,"عنتر",2000,7.05,14100]
[null,null,null,null,"2022-06-22","2022-06-22",1581,"حلمى25",54,7.05,380.7]
[null,null,null,null,"2022-06-23","2022-06-23",1590,"ضيف",800,7.05,5640]
[null,null,null,null,"2022-06-24","2022-06-24",1591,"رجب طرق",2300,7.05,16215]
[null,null,null,null,"2022-06-25","2022-06-25",1592,"محمد عيسى",69,7.05,486.45]
[null,null,null,null,"2022-06-26","2022-06-26",1593,"علوان",800,7.05,5640]
[null,null,null,null,"2022-06-27","2022-06-27",1594,"عنتر",700,7.05,4935]
[null,null,null,null,"2022-06-28","2022-06-28",1595,"جابر 59",1000,7.05,7050]
[null,null,null,null,"2022-06-29","2022-06-29",1596,"رمضان عربية ش",831,7.05,5858.55]
[null,null,null,null,null,null,null,null,null,"",""]
[null,null,null,null,null,null,null,null,null,"",""]
[null,null,null,null,null,null,null,null,null,"",""]
[null,null,null,null,null,null,null,null,null,"",""]
[null,null,null,null,null,null,null,null,null,"",""]
[null,null,null,null,null,null,null,null,null,"",""]
[null,null,null,null,null,null,null,null,null,"",""]
[null,null,null,null,null,null,null,null,null,"",""]
[null,null,null,null,null,null,null,null,null,"",""]
[null,null,null,null,null,null,null,null,null,"",""]
[null,null,null,null,null,null,null,null,null,"",""]
[null,null,null,null,null,null,null,null,null,"",""]
[null,null,null,null,null,null,null,null,null,"",{"$f":"IF(OR(I712=\"\",J712=\"\"),\"\",PRODUCT(I712,J712))","v":""}]
[null,null,null,null,null,null,null,null,null,"",""]
[null,null,null,null,null,null,null,null,null,"",""]
[null,null,null,null,null,null,null,null,null,"",""]
[null,null,null,null,null,null,null,null,null,"",""]
[null,null,null,null,null,null,null,null,null,"",""]
[null,null,null,null,null,null,null,null,null,"",""]
[null,null,null,null,null,null,null,null,null,"",""]
[null,null,null,null,null,null,null,null,null,"",""]
[null,null,null,null,null,null,null,null,null,"",""]
[null,null,null,null,null,null,null,null,null,"",""]
[null,null,null,null,null,null,null,null,null,"",""]
[null,null,null,null,null,null,null,null,null,"",""]
[null,null,null,null,null,null,null,null,null,"",""]
[null,null,null,null,null,null,null,null,null,"",""]
[null,null,null,null,null,null,null,null,null,"",""]
[null,null,null,null,null,null,null,null,null,"",""]
[null,null,null,null,null,null,null,null,null,"",""]
[null,null,null,null,null,null,null,null,null,"",""]
[null,null,null,null,null,null,null,null,null,"",""]
[null,null,null,null,null,null,null,null,null,"",""]
[null,null,null,null,null,null,null,null,null,{"$f":"IFERROR(IF(H733<>\"\",7.05,\"\"),\"\")","v":""},""]
[null,null,null,null,null,null,null,null,null,"",""]
[null,null,null,null,null,null,null,null,null,"",""]
[null,null,null,null,null,null,null,null,null,"",""]
[null,null,null,null,null,null,null,null,null,"",""]
[null,null,null,null,null,null,null,null,null,"",""]
[null,null,null,null,null,null,null,null,null,"",""]
[null,null,null,null,null,null,null,null,null,"",""]
[null,null,null,null,null,null,null,null,null,"",""]
[null,null,null,null,null,null,null,null,null,"",""]
[null,null,null,null,null,null,null,null,null,"",""]
[null,null,null,null,null,null,null,null,null,"",""]
[null,null,null,null,null,null,null,null,null,"",""]
[null,null,null,null,null,null,null,null,null,"",""]
[null,null,null,null,null,null,null,null,null,"",""]
[null,null,null,null,null,null,null,null,null,"",""]
[null,null,null,null,null,null,null,null,null,"",""]
[null,null,null,null,null,null,null,null,null,"",""]
[null,null,null,null,null,null,null,null,null,"",""]
[null,null,null,null,null,null,null,null,null,"",""]
[null,null,null,null,null,null,null,null,null,"",""]
[null,null,null,null,null,null,null,null,null,"",""]
[null,null,null,null,null,null,null,null,null,"",""]
[null,null,null,null,null,null,null,null,null,"",""]
[null,null,null,null,null,null,null,null,null,"",""]
[null,null,null,null,null,null,null,null,null,"",""]
[null,null,null,null,null,null,null,null,null,"",""]
[null,null,null,null,null,null,null,null,null,"",""]
[null,null,null,null,null,null,null,null,null,"",""]
[null,null,null,null,null,null,null,null,null,"",""]
[null,null,null,null,null,null,null,null,null,"",""]
[null,null,null,null,null,null,null,null,null,"",""]
[null,null,null,null,null,null,null,null,null,"",""]
[null,null,null,null,null,null,null,null,null,"",""]
[null,null,null,null,null,null,null,null,null,"",""]
[null,null,null,null,null,null,null,null,null,"",""]
[null,null,null,null,null,null,null,null,null,"",""]
[null,null,null,null,null,null,null,null,null,"",""]
[null,null,null,null,null,null,null,null,null,"",""]
[null,null,null,null,null,null,null,null,null,"",""]
[null,null,null,null,null,null,null,null,null,"",""]
[null,null,null,null,null,null,null,null,null,"",""]
[null,null,null,null,null,null,null,null,null,"",""]
[null,null,null,null,null,null,null,null,null,"",{"$f":"IF(OR(I776=\"\",J776=\"\"),\"\",PRODUCT(I776,J776))","v":""}]
[null,null,null,null,null,null,null,null,null,"",""]
[null,null,null,null,null,null,null,null,null,"",""]
[null,null,null,null,null,null,null,null,null,"",""]
[null,null,null,null,null,null,null,null,null,"",""]
[null,null,null,null,null,null,null,null,null,"",""]
[null,null,null,null,null,null,null,null,null,"",""]
[null,null,null,null,null,null,null,null,null,"",""]
[null,null,null,null,null,null,null,null,null,"",""]
[null,null,null,null,null,null,null,null,null,"",""]
[null,null,null,null,null,null,null,null,null,"",""]
[null,null,null,null,null,null,null,null,null,"",""]
[null,null,null,null,null,null,null,null,null,"",""]
[null,null,null,null,null,null,null,null,null,"",""]
[null,null,null,null,null,null,null,null,null,"",""]
[null,null,null,null,null,null,null,null,null,"",""]
[null,null,null,null,null,null,null,null,null,"",""]
[null,null,null,null,null,null,null,null,null,"",""]
[null,null,null,null,null,null,null,null,null,"",""]
[null,null,null,null,null,null,null,null,null,"",""]
[null,null,null,null,null,null,null,null,null,"",""]
[null,null,null,null,null,null,null,null,null,{"$f":"IFERROR(IF(H797<>\"\",7.05,\"\"),\"\")","v":""},""]
[null,null,null,null,null,null,null,null,null,"",""]
[null,null,null,null,null,null,null,null,null,"",""]
[null,null,null,null,null,null,null,null,null,"",""]
[null,null,null,null,null,null,null,null,null,"",""]
[null,null,null,null,null,null,null,null,null,"",""]
[null,null,null,null,null,null,null,null,null,"",""]
[null,null,null,null,null,null,null,null,null,"",""]
[null,null,null,null,null,null,null,null,null,"",""]
[null,null,null,null,null,null,null,null,null,"",""]
[null,null,null,null,null,null,null,null,null,"",""]
[null,null,null,null,null,null,null,null,null,"",""]
[null,null,null,null,null,null,null,null,null,"",""]
[null,null,null,null,null,null,null,null,null,"",""]
[null,null,null,null,null,null,null,null,null,"",""]
[null,null,null,null,null,null,null,null,null,"",""]
[null,null,null,null,null,null,null,null,null,"",""]
[null,null,null,null,null,null,null,null,null,"",""]
[null,null,null,null,null,null,null,null,null,"",""]
[null,null,null,null,null,null,null,null,null,"",""]
[null,null,null,null,null,null,null,null,null,"",""]
[null,null,null,null,null,null,null,null,null,"",""]
[null,null,null,null,null,null,null,null,null,"",""]
[null,null,null,null,null,null,null,null,null,"",""]
[null,null,null,null,null,null,null,null,null,"",""]
[null,null,null,null,null,null,null,null,null,"",""]
[null,null,null,null,null,null,null,null,null,"",""]
[null,null,null,null,null,null,null,null,null,"",""]
[null,null,null,null,null,null,null,null,null,"",""]
[null,null,null,null,null,null,null,null,null,"",""]
[null,null,null,null,null,null,null,null,null,"",""]
[null,null,null,null,null,null,null,null,null,"",""]
[null,null,null,null,null,null,null,null,null,"",""]
[null,null,null,null,null,null,null,null,null,"",""]
[null,null,null,null,null,null,null,null,null,"",""]
[null,null,null,null,null,null,null,null,null,"",""]
[null,null,null,null,null,null,null,null,null,"",""]
[null,null,null,null,null,null,null,null,null,"",""]
[null,null,null,null,null,null,null,null,null,"",""]
[null,null,null,null,null,null,null,null,null,"",""]
[null,null,null,null,null,null,null,null,null,"",""]
[null,null,null,null,null,null,null,null,null,"",""]
[null,null,null,null,null,null,null,null,null,"",""]
[null,null,null,null,null,null,null,null,null,"",{"$f":"IF(OR(I840=\"\",J840=\"\"),\"\",PRODUCT(I840,J840))","v":""}]
[null,null,null,null,null,null,null,null,null,"",""]
[null,null,null,null,null,null,null,null,null,"",""]
[null,null,null,null,null,null,null,null,null,"",""]
[null,null,null,null,null,null,null,null,null,"",""]
[null,null,null,null,null,null,null,null,null,"",""]
[null,null,null,null,null,null,null,null,null,"",""]
[null,null,null,null,null,null,null,null,null,"",""]
[null,null,null,null,null,null,null,null,null,"",""]
[null,null,null,null,null,null,null,null,null,"",""]
[null,null,null,null,null,null,null,null,null,"",""]
[null,null,null,null,null,null,null,null,null,"",""]
[null,null,null,null,null,null,null,null,null,"",""]
[null,null,null,null,null,null,null,null,null,"",""]
[null,null,null,null,null,null,null,null,null,"",""]
[null,null,null,null,null,null,null,null,null,"",""]
[null,null,null,null,null,null,null,null,null,"",""]
[null,null,null,null,null,null,null,null,null,"",""]
[null,null,null,null,null,null,null,null,null,"",""]
[null,null,null,null,null,null,null,null,null,"",""]
[null,null,null,null,null,null,null,null,null,"",""]
[null,null,null,null,null,null,null,null,null,{"$f":"IFERROR(IF(H861<>\"\",7.05,\"\"),\"\")","v":""},""]
[null,null,null,null,null,null,null,null,null,"",""]
[null,null,null,null,null,null,null,null,null,"",""]
[null,null,null,null,null,null,null,null,null,"",""]
[null,null,null,null,null,null,null,null,null,"",""]
[null,null,null,null,null,null,null,null,null,"",""]
[null,null,null,null,null,null,null,null,null,"",""]
[null,null,null,null,null,null,null,null,null,"",""]
[null,null,null,null,null,null,null,null,null,"",""]
[null,null,null,null,null,null,null,null,null,"",""]
[null,null,null,null,null,null,null,null,null,"",""]
[null,null,null,null,null,null,null,null,null,"",""]
[null,null,null,null,null,null,null,null,null,"",""]
[null,null,null,null,null,null,null,null,null,"",""]
[null,null,null,null,null,null,null,null,null,"",""]
[null,null,null,null,null,null,null,null,null,"",""]
[null,null,null,null,null,null,null,null,null,"",""]
[null,null,null,null,null,null,null,null,null,"",""]
[null,null,null,null,null,null,null,null,null,"",""]
[null,null,null,null,null,null,null,null,null,"",""]
[null,null,null,null,null,null,null,null,null,"",""]
[null,null,null,null,null,null,null,null,null,"",""]
[null,null,null,null,null,null,null,null,null,"",""]
[null,null,null,null,null,null,null,null,null,"",""]
[null,null,null,null,null,null,null,null,null,"",""]
[null,null,null,null,null,null,null,null,null,"",""]
[null,null,null,null,null,null,null,null,null,"",""]
[null,null,null,null,null,null,null,null,null,"",""]
[null,null,null,null,null,null,null,null,null,"",""]
[null,null,null,null,null,null,null,null,null,"",""]
[null,null,null,null,null,null,null,null,null,"",""]
[null,null,null,null,null,null,null,null,null,"",""]
[null,null,null,null,null,null,null,null,null,"",""]
[null,null,null,null,null,null,null,null,null,"",""]
[null,null,null,null,null,null,null,null,null,"",""]
[null,null,null,null,null,null,null,null,null,"",""]
[null,null,null,null,null,null,null,null,null,"",""]
[null,null,null,null,null,null,null,null,null,"",""]
[null,null,null,null,null,null,null,null,null,"",""]
[null,null,null,null,null,null,null,null,null,"",""]
[null,null,null,null,null,null,null,null,null,"",""]
[null,null,null,null,null,null,null,null,null,"",""]
[null,null,null,null,null,null,null,null,null,"",""]
[null,null,null,null,null,null,null,null,null,"",{"$f":"IF(OR(I904=\"\",J904=\"\"),\"\",PRODUCT(I904,J904))","v":""}]
[null,null,null,null,null,null,null,null,null,"",""]
[null,null,null,null,null,null,null,null,null,"",""]
[null,null,null,null,null,null,null,null,null,"",""]
[null,null,null,null,null,null,null,null,null,"",""]
[null,null,null,null,null,null,null,null,null,"",""]
[null,null,null,null,null,null,null,null,null,"",""]
[null,null,null,null,null,null,null,null,null,"",""]
[null,null,null,null,null,null,null,null,null,"",""]
[null,null,null,null,null,null,null,null,null,"",""]
[null,null,null,null,null,null,null,null,null,"",""]
[null,null,null,null,null,null,null,null,null,"",""]
[null,null,null,null,null,null,null,null,null,"",""]
[null,null,null,null,null,null,null,null,null,"",""]
[null,null,null,null,null,null,null,null,null,"",""]
[null,null,null,null,null,null,null,null,null,"",""]
[null,null,null,null,null,null,null,null,null,"",""]
[null,null,null,null,null,null,null,null,null,"",""]
[null,null,null,null,null,null,null,null,null,"",""]
[null,null,null,null,null,null,null,null,null,"",""]
[null,null,null,null,null,null,null,null,null,"",""]
[null,null,null,null,null,null,null,null,null,{"$f":"IFERROR(IF(H925<>\"\",7.05,\"\"),\"\")","v":""},""]
[null,null,null,null,null,null,null,null,null,"",""]
[null,null,null,null,null,null,null,null,null,"",""]
[null,null,null,null,null,null,null,null,null,"",""]
[null,null,null,null,null,null,null,null,null,"",""]
[null,null,null,null,null,null,null,null,null,"",""]
[null,null,null,null,null,null,null,null,null,"",""]
[null,null,null,null,null,null,null,null,null,"",""]
[null,null,null,null,null,null,null,null,null,"",""]
[null,null,null,null,null,null,null,null,null,"",""]
[null,null,null,null,null,null,null,null,null,"",""]
[null,null,null,null,null,null,null,null,null,"",""]
[null,null,null,null,null,null,null,null,null,"",""]
[null,null,null,null,null,null,null,null,null,"",""]
[null,null,null,null,null,null,null,null,null,"",""]
[null,null,null,null,null,null,null,null,null,"",""]
[null,null,null,null,null,null,null,null,null,"",""]
[null,null,null,null,null,null,null,null,null,"",""]
[null,null,null,null,null,null,null,null,null,"",""]
[null,null,null,null,null,null,null,null,null,"",""]
[null,null,null,null,null,null,null,null,null,"",""]
[null,null,null,null,null,null,null,null,null,"",""]
[null,null,null,null,null,null,null,null,null,"",""]
[null,null,null,null,null,null,null,null,null,"",""]
[null,null,null,null,null,null,null,null,null,"",""]
[null,null,null,null,null,null,null,null,null,"",""]
[null,null,null,null,null,null,null,null,null,"",""]
[null,null,null,null,null,null,null,null,null,"",""]
[null,null,null,null,null,null,null,null,null,"",""]
[null,null,null,null,null,null,null,null,null,"",""]
[null,null,null,null,null,null,null,null,null,"",""]
[null,null,null,null,null,null,null,null,null,"",""]
[null,null,null,null,null,null,null,null,null,"",""]
[null,null,null,null,null,null,null,null,null,"",""]
[null,null,null,null,null,null,null,null,null,"",""]
[null,null,null,null,null,null,null,null,null,"",""]
[null,null,null,null,null,null,null,null,null,"",""]
[null,null,null,null,null,null,null,null,null,"",""]
[null,null,null,null,null,null,null,null,null,"",""]
[null,null,null,null,null,null,null,null,null,"",""]
[null,null,null,null,null,null,null,null,null,"",""]
[null,null,null,null,null,null,null,null,null,"",""]
[null,null,null,null,null,null,null,null,null,"",""]
[null,null,null,null,null,null,null,null,null,"",{"$f":"IF(OR(I968=\"\",J968=\"\"),\"\",PRODUCT(I968,J968))","v":""}]
[null,null,null,null,null,null,null,null,null,"",""]
[null,null,null,null,null,null,null,null,null,"",""]
[null,null,null,null,null,null,null,null,null,"",""]
[null,null,null,null,null,null,null,null,null,"",""]
[null,null,null,null,null,null,null,null,null,"",""]
[null,null,null,null,null,null,null,null,null,"",""]
[null,null,null,null,null,null,null,null,null,"",""]
[null,null,null,null,null,null,null,null,null,"",""]
[null,null,null,null,null,null,null,null,null,"",""]
[null,null,null,null,null,null,null,null,null,"",""]
[null,null,null,null,null,null,null,null,null,"",""]
[null,null,null,null,null,null,null,null,null,"",""]
[null,null,null,null,null,null,null,null,null,"",""]
[null,null,null,null,null,null,null,null,null,"",""]
[null,null,null,null,null,null,null,null,null,"",""]
[null,null,null,null,null,null,null,null,null,"",""]
[null,null,null,null,null,null,null,null,null,"",""]
[null,null,null,null,null,null,null,null,null,"",""]
[null,null,null,null,null,null,null,null,null,"",""]
[null,null,null,null,null,null,null,null,null,"",""]
[null,null,null,null,null,null,null,null,null,{"$f":"IFERROR(IF(H989<>\"\",7.05,\"\"),\"\")","v":""},""]
[null,null,null,null,null,null,null,null,null,"",""]
[null,null,null,null,null,null,null,null,null,"",""]
[null,null,null,null,null,null,null,null,null,"",""]
[null,null,null,null,null,null,null,null,null,"",""]
[null,null,null,null,null,null,null,null,null,"",""]
[null,null,null,null,null,null,null,null,null,"",""]
[null,null,null,null,null,null,null,null,null,"",""]
[null,null,null,null,null,null,null,null,null,"",""]
[null,null,null,null,null,null,null,null,null,"",""]
[null,null,null,null,null,null,null,null,null,"",""]
[null,null,null,null,null,null,null,null,null,"",""]
[null,null,null,null,null,null,null,null,null,"",""]
[null,null,null,null,null,null,null,null,null,"",""]
[null,null,null,null,null,null,null,null,null,"",""]
[null,null,null,null,null,null,null,null,null,"",""]
[null,null,null,null,null,null,null,null,null,"",""]
[null,null,null,null,null,null,null,null,null,"",""]
[null,null,null,null,null,null,null,null,null,"",""]
[null,null,null,null,null,null,null,null,null,"",""]
[null,null,null,null,null,null,null,null,null,"",""]
[null,null,null,null,null,null,null,null,null,"",""]
[null,null,null,null,null,null,null,null,null,"",""]
[null,null,null,null,null,null,null,null,null,"",""]
[null,null,null,null,null,null,null,null,null,"",""]
[null,null,null,null,null,null,null,null,null,"",""]
[null,null,null,null,null,null,null,null,null,"",""]
[null,null,null,null,null,null,null,null,null,"",""]
[null,null,null,null,null,null,null,null,null,"",""]
[null,null,null,null,null,null,null,null,null,"",""]
[null,null,null,null,null,null,null,null,null,"",""]
[null,null,null,null,null,null,null,null,null,"",""]
[null,null,null,null,null,null,null,null,null,"",""]
[null,null,null,null,null,null,null,null,null,"",""]
[null,null,null,null,null,null,null,null,null,"",""]
[null,null,null,null,null,null,null,null,null,"",""]
[null,null,null,null,null,null,null,null,null,"",""]
[null,null,null,null,null,null,null,null,null,"",""]
[null,null,null,null,null,null,null,null,null,"",""]
[null,null,null,null,null,null,null,null,null,"",""]
[null,null,null,null,null,null,null,null,null,"",""]
[null,null,null,null,null,null,null,null,null,"",""]
[null,null,null,null,null,null,null,null,null,"",""]
[null,null,null,null,null,null,null,null,null,"",{"$f":"IF(OR(I1032=\"\",J1032=\"\"),\"\",PRODUCT(I1032,J1032))","v":""}]
[null,null,null,null,null,null,null,null,null,"",""]
[null,null,null,null,null,null,null,null,null,"",""]
[null,null,null,null,null,null,null,null,null,"",""]
[null,null,null,null,null,null,null,null,null,"",""]
[null,null,null,null,null,null,null,null,null,"",""]
[null,null,null,null,null,null,null,null,null,"",""]
[null,null,null,null,null,null,null,null,null,"",""]
[null,null,null,null,null,null,null,null,null,"",""]
[null,null,null,null,null,null,null,null,null,"",""]
[null,null,null,null,null,null,null,null,null,"",""]
[null,null,null,null,null,null,null,null,null,"",""]
[null,null,null,null,null,null,null,null,null,"",""]
[null,null,null,null,null,null,null,null,null,"",""]
[null,null,null,null,null,null,null,null,null,"",""]
[null,null,null,null,null,null,null,null,null,"",""]
[null,null,null,null,null,null,null,null,null,"",""]
[null,null,null,null,null,null,null,null,null,"",""]
[null,null,null,null,null,null,null,null,null,"",""]
[null,null,null,null,null,null,null,null,null,"",""]
[null,null,null,null,null,null,null,null,null,"",""]
[null,null,null,null,null,null,null,null,null,{"$f":"IFERROR(IF(H1053<>\"\",7.05,\"\"),\"\")","v":""},""]
[null,null,null,null,null,null,null,null,null,"",""]
[null,null,null,null,null,null,null,null,null,"",""]
[null,null,null,null,null,null,null,null,null,"",""]
[null,null,null,null,null,null,null,null,null,"",""]
[null,null,null,null,null,null,null,null,null,"",""]
[null,null,null,null,null,null,null,null,null,"",""]
[null,null,null,null,null,null,null,null,null,"",""]
[null,null,null,null,null,null,null,null,null,"",""]
[null,null,null,null,null,null,null,null,null,"",""]
[null,null,null,null,null,null,null,null,null,"",""]
[null,null,null,null,null,null,null,null,null,"",""]
[null,null,null,null,null,null,null,null,null,"",""]
[null,null,null,null,null,null,null,null,null,"",""]
[null,null,null,null,null,null,null,null,null,"",""]
[null,null,null,null,null,null,null,null,null,"",""]
[null,null,null,null,null,null,null,null,null,"",""]
[null,null,null,null,null,null,null,null,null,"",""]
[null,null,null,null,null,null,null,null,null,"",""]
[null,null,null,null,null,null,null,null,null,"",""]
[null,null,null,null,null,null,null,null,null,"",""]
[null,null,null,null,null,null,null,null,null,"",""]
[null,null,null,null,null,null,null,null,null,"",""]
[null,null,null,null,null,null,null,null,null,"",""]
[null,null,null,null,null,null,null,null,null,"",""]
[null,null,null,null,null,null,null,null,null,"",""]
[null,null,null,null,null,null,null,null,null,"",""]
[null,null,null,null,null,null,null,null,null,"",""]
[null,null,null,null,null,null,null,null,null,"",""]
[null,null,null,null,null,null,null,null,null,"",""]
[null,null,null,null,null,null,null,null,null,"",""]
[null,null,null,null,null,null,null,null,null,"",""]
[null,null,null,null,null,null,null,null,null,"",""]
[null,null,null,null,null,null,null,null,null,"",""]
[null,null,null,null,null,null,null,null,null,"",""]
[null,null,null,null,null,null,null,null,null,"",""]
[null,null,null,null,null,null,null,null,null,"",""]
[null,null,null,null,null,null,null,null,null,"",""]
[null,null,null,null,null,null,null,null,null,"",""]
[null,null,null,null,null,null,null,null,null,"",""]
[null,null,null,null,null,null,null,null,null,"",""]
[null,null,null,null,null,null,null,null,null,"",""]
[null,null,null,null,null,null,null,null,null,"",""]
[null,null,null,null,null,null,null,null,null,"",{"$f":"IF(OR(I1096=\"\",J1096=\"\"),\"\",PRODUCT(I1096,J1096))","v":""}]
[null,null,null,null,null,null,null,null,null,"",""]
[null,null,null,null,null,null,null,null,null,"",""]
[null,null,null,null,null,null,null,null,null,"",""]
[null,null,null,null,null,null,null,null,null,"",""]
[null,null,null,null,null,null,null,null,null,"",""]
[null,null,null,null,null,null,null,null,null,"",""]
[null,null,null,null,null,null,null,null,null,"",""]
[null,null,null,null,null,null,null,null,null,"",""]
[null,null,null,null,null,null,null,null,null,"",""]
[null,null,null,null,null,null,null,null,null,"",""]
[null,null,null,null,null,null,null,null,null,"",""]
[null,null,null,null,null,null,null,null,null,"",""]
[null,null,null,null,null,null,null,null,null,"",""]
[null,null,null,null,null,null,null,null,null,"",""]
[null,null,null,null,null,null,null,null,null,"",""]
[null,null,null,null,null,null,null,null,null,"",""]
[null,null,null,null,null,null,null,null,null,"",""]
[null,null,null,null,null,null,null,null,null,"",""]
[null,null,null,null,null,null,null,null,null,"",""]
[null,null,null,null,null,null,null,null,null,"",""]
[null,null,null,null,null,null,null,null,null,{"$f":"IFERROR(IF(H1117<>\"\",7.05,\"\"),\"\")","v":""},""]
[null,null,null,null,null,null,null,null,null,"",""]
[null,null,null,null,null,null,null,null,null,"",""]
[null,null,null,null,null,null,null,null,null,"",""]
[null,null,null,null,null,null,null,null,null,"",""]
[null,null,null,null,null,null,null,null,null,"",""]
[null,null,null,null,null,null,null,null,null,"",""]
[null,null,null,null,null,null,null,null,null,"",""]
[null,null,null,null,null,null,null,null,null,"",""]
[null,null,null,null,null,null,null,null,null,"",""]
[null,null,null,null,null,null,null,null,null,"",""]
[null,null,null,null,null,null,null,null,null,"",""]
[null,null,null,null,null,null,null,null,null,"",""]
[null,null,null,null,null,null,null,null,null,"",""]
[null,null,null,null,null,null,null,null,null,"",""]
[null,null,null,null,null,null,null,null,null,"",""]
[null,null,null,null,null,null,null,null,null,"",""]
[null,null,null,null,null,null,null,null,null,"",""]
[null,null,null,null,null,null,null,null,null,"",""]
[null,null,null,null,null,null,null,null,null,"",""]
[null,null,null,null,null,null,null,null,null,"",""]
[null,null,null,null,null,null,null,null,null,"",""]
[null,null,null,null,null,null,null,null,null,"",""]
[null,null,null,null,null,null,null,null,null,"",""]
[null,null,null,null,null,null,null,null,null,"",""]
[null,null,null,null,null,null,null,null,null,"",""]
[null,null,null,null,null,null,null,null,null,"",""]
[null,null,null,null,null,null,null,null,null,"",""]
[null,null,null,null,null,null,null,null,null,"",""]
[null,null,null,null,null,null,null,null,null,"",""]
[null,null,null,null,null,null,null,null,null,"",""]
[null,null,null,null,null,null,null,null,null,"",""]
[null,null,null,null,null,null,null,null,null,"",""]
[null,null,null,null,null,null,null,null,null,"",""]
[null,null,null,null,null,null,null,null,null,"",""]
[null,null,null,null,null,null,null,null,null,"",""]
[null,null,null,null,null,null,null,null,null,"",""]
[null,null,null,null,null,null,null,null,null,"",""]
[null,null,null,null,null,null,null,null,null,"",""]
[null,null,null,null,null,null,null,null,null,"",""]
[null,null,null,null,null,null,null,null,null,"",""]
[null,null,null,null,null,null,null,null,null,"",""]
[null,null,null,null,null,null,null,null,null,"",""]
[null,null,null,null,null,null,null,null,null,"",{"$f":"IF(OR(I1160=\"\",J1160=\"\"),\"\",PRODUCT(I1160,J1160))","v":""}]
[null,null,null,null,null,null,null,null,null,"",""]
[null,null,null,null,null,null,null,null,null,"",""]
[null,null,null,null,null,null,null,null,null,"",""]
[null,null,null,null,null,null,null,null,null,"",""]
[null,null,null,null,null,null,null,null,null,"",""]
[null,null,null,null,null,null,null,null,null,"",""]
[null,null,null,null,null,null,null,null,null,"",""]
[null,null,null,null,null,null,null,null,null,"",""]
[null,null,null,null,null,null,null,null,null,"",""]
[null,null,null,null,null,null,null,null,null,"",""]
[null,null,null,null,null,null,null,null,null,"",""]
[null,null,null,null,null,null,null,null,null,"",""]
[null,null,null,null,null,null,null,null,null,"",""]
[null,null,null,null,null,null,null,null,null,"",""]
[null,null,null,null,null,null,null,null,null,"",""]
[null,null,null,null,null,null,null,null,null,"",""]
[null,null,null,null,null,null,null,null,null,"",""]
[null,null,null,null,null,null,null,null,null,"",""]
[null,null,null,null,null,null,null,null,null,"",""]
[null,null,null,null,null,null,null,null,null,"",""]
[null,null,null,null,null,null,null,null,null,{"$f":"IFERROR(IF(H1181<>\"\",7.05,\"\"),\"\")","v":""},""]
[null,null,null,null,null,null,null,null,null,"",""]
[null,null,null,null,null,null,null,null,null,"",""]
[null,null,null,null,null,null,null,null,null,"",""]
[null,null,null,null,null,null,null,null,null,"",""]
[null,null,null,null,null,null,null,null,null,"",""]
[null,null,null,null,null,null,null,null,null,"",""]
[null,null,null,null,null,null,null,null,null,"",""]
[null,null,null,null,null,null,null,null,null,"",""]
[null,null,null,null,null,null,null,null,null,"",""]
[null,null,null,null,null,null,null,null,null,"",""]
[null,null,null,null,null,null,null,null,null,"",""]
[null,null,null,null,null,null,null,null,null,"",""]
[null,null,null,null,null,null,null,null,null,"",""]
[null,null,null,null,null,null,null,null,null,"",""]
[null,null,null,null,null,null,null,null,null,"",""]
[null,null,null,null,null,null,null,null,null,"",""]
[null,null,null,null,null,null,null,null,null,"",""]
[null,null,null,null,null,null,null,null,null,"",""]
[null,null,null,null,null,null,null,null,null,"",""]
[null,null,null,null,null,null,null,null,null,"",""]
[null,null,null,null,null,null,null,null,null,"",""]
[null,null,null,null,null,null,null,null,null,"",""]
[null,null,null,null,null,null,null,null,null,"",""]
[null,null,null,null,null,null,null,null,null,"",""]
[null,null,null,null,null,null,null,null,null,"",""]
[null,null,null,null,null,null,null,null,null,"",""]
[null,null,null,null,null,null,null,null,null,"",""]
[null,null,null,null,null,null,null,null,null,"",""]
[null,null,null,null,null,null,null,null,null,"",""]
[null,null,null,null,null,null,null,null,null,"",""]
[null,null,null,null,null,null,null,null,null,"",""]
[null,null,null,null,null,null,null,null,null,"",""]
[null,null,null,null,null,null,null,null,null,"",""]
[null,null,null,null,null,null,null,null,null,"",""]
[null,null,null,null,null,null,null,null,null,"",""]
[null,null,null,null,null,null,null,null,null,"",""]
[null,null,null,null,null,null,null,null,null,"",""]
[null,null,null,null,null,null,null,null,null,"",""]
[null,null,null,null,null,null,null,null,null,"",""]
[null,null,null,null,null,null,null,null,null,"",""]
[null,null,null,null,null,null,null,null,null,"",""]
[null,null,null,null,null,null,null,null,null,"",""]
[null,null,null,null,null,null,null,null,null,"",{"$f":"IF(OR(I1224=\"\",J1224=\"\"),\"\",PRODUCT(I1224,J1224))","v":""}]
[null,null,null,null,null,null,null,null,null,"",""]
[null,null,null,null,null,null,null,null,null,"",""]
[null,null,null,null,null,null,null,null,null,"",""]
[null,null,null,null,null,null,null,null,null,"",""]
[null,null,null,null,null,null,null,null,null,"",""]
[null,null,null,null,null,null,null,null,null,"",""]
[null,null,null,null,null,null,null,null,null,"",""]
[null,null,null,null,null,null,null,null,null,"",""]
[null,null,null,null,null,null,null,null,null,"",""]
[null,null,null,null,null,null,null,null,null,"",""]
[null,null,null,null,null,null,null,null,null,"",""]
[null,null,null,null,null,null,null,null,null,"",""]
[null,null,null,null,null,null,null,null,null,"",""]
[null,null,null,null,null,null,null,null,null,"",""]
[null,null,null,null,null,null,null,null,null,"",""]
[null,null,null,null,null,null,null,null,null,"",""]
[null,null,null,null,null,null,null,null,null,"",""]
[null,null,null,null,null,null,null,null,null,"",""]
[null,null,null,null,null,null,null,null,null,"",""]
[null,null,null,null,null,null,null,null,null,"",""]
[null,null,null,null,null,null,null,null,null,{"$f":"IFERROR(IF(H1245<>\"\",7.05,\"\"),\"\")","v":""},""]
[null,null,null,null,null,null,null,null,null,"",""]
[null,null,null,null,null,null,null,null,null,"",""]
[null,null,null,null,null,null,null,null,null,"",""]
[null,null,null,null,null,null,null,null,null,"",""]
[null,null,null,null,null,null,null,null,null,"",""]
[null,null,null,null,null,null,null,null,null,"",""]
[null,null,null,null,null,null,null,null,null,"",""]
[null,null,null,null,null,null,null,null,null,"",""]
[null,null,null,null,null,null,null,null,null,"",""]
[null,null,null,null,null,null,null,null,null,"",""]
[null,null,null,null,null,null,null,null,null,"",""]
[null,null,null,null,null,null,null,null,null,"",""]
[null,null,null,null,null,null,null,null,null,"",""]
[null,null,null,null,null,null,null,null,null,"",""]
[null,null,null,null,null,null,null,null,null,"",""]
[null,null,null,null,null,null,null,null,null,"",""]
[null,null,null,null,null,null,null,null,null,"",""]
[null,null,null,null,null,null,null,null,null,"",""]
[null,null,null,null,null,null,null,null,null,"",""]
[null,null,null,null,null,null,null,null,null,"",""]
[null,null,null,null,null,null,null,null,null,"",""]
[null,null,null,null,null,null,null,null,null,"",""]
[null,null,null,null,null,null,null,null,null,"",""]
[null,null,null,null,null,null,null,null,null,"",""]
[null,null,null,null,null,null,null,null,null,"",""]
[null,null,null,null,null,null,null,null,null,"",""]
[null,null,null,null,null,null,null,null,null,"",""]
[null,null,null,null,null,null,null,null,null,"",""]
[null,null,null,null,null,null,null,null,null,"",""]
[null,null,null,null,null,null,null,null,null,"",""]
[null,null,null,null,null,null,null,null,null,"",""]
[null,null,null,null,null,null,null,null,null,"",""]
[null,null,null,null,null,null,null,null,null,"",""]
[null,null,null,null,null,null,null,null,null,"",""]
[null,null,null,null,null,null,null,null,null,"",""]
[null,null,null,null,null,null,null,null,null,"",""]
[null,null,null,null,null,null,null,null,null,"",""]
[null,null,null,null,null,null,null,null,null,"",""]
[null,null,null,null,null,null,null,null,null,"",""]
[null,null,null,null,null,null,null,null,null,"",""]
[null,null,null,null,null,null,null,null,null,"",""]
[null,null,null,null,null,null,null,null,null,"",""]
[null,null,null,null,null,null,null,null,null,"",{"$f":"IF(OR(I1288=\"\",J1288=\"\"),\"\",PRODUCT(I1288,J1288))","v":""}]
[null,null,null,null,null,null,null,null,null,"",""]
[null,null,null,null,null,null,null,null,null,"",""]
[null,null,null,null,null,null,null,null,null,"",""]
[null,null,null,null,null,null,null,null,null,"",""]
[null,null,null,null,null,null,null,null,null,"",""]
[null,null,null,null,null,null,null,null,null,"",""]
[null,null,null,null,null,null,null,null,null,"",""]
[null,null,null,null,null,null,null,null,null,"",""]
[null,null,null,null,null,null,null,null,null,"",""]
[null,null,null,null,null,null,null,null,null,"",""]
[null,null,null,null,null,null,null,null,null,"",""]
[null,null,null,null,null,null,null,null,null,"",""]
[null,null,null,null,null,null,null,null,null,"",""]
[null,null,null,null,null,null,null,null,null,"",""]
[null,null,null,null,null,null,null,null,null,"",""]
[null,null,null,null,null,null,null,null,null,"",""]
[null,null,null,null,null,null,null,null,null,"",""]
[null,null,null,null,null,null,null,null,null,"",""]
[null,null,null,null,null,null,null,null,null,"",""]
[null,null,null,null,null,null,null,null,null,"",""]
[null,null,null,null,null,null,null,null,null,{"$f":"IFERROR(IF(H1309<>\"\",7.05,\"\"),\"\")","v":""},""]
[null,null,null,null,null,null,null,null,null,"",""]
[null,null,null,null,null,null,null,null,null,"",""]
[null,null,null,null,null,null,null,null,null,"",""]
[null,null,null,null,null,null,null,null,null,"",""]
[null,null,null,null,null,null,null,null,null,"",""]
[null,null,null,null,null,null,null,null,null,"",""]
[null,null,null,null,null,null,null,null,null,"",""]
[null,null,null,null,null,null,null,null,null,"",""]
[null,null,null,null,null,null,null,null,null,"",""]
[null,null,null,null,null,null,null,null,null,"",""]
[null,null,null,null,null,null,null,null,null,"",""]
[null,null,null,null,null,null,null,null,null,"",""]
[null,null,null,null,null,null,null,null,null,"",""]
[null,null,null,null,null,null,null,null,null,"",""]
[null,null,null,null,null,null,null,null,null,"",""]
[null,null,null,null,null,null,null,null,null,"",""]
[null,null,null,null,null,null,null,null,null,"",""]
[null,null,null,null,null,null,null,null,null,"",""]
[null,null,null,null,null,null,null,null,null,"",""]
[null,null,null,null,null,null,null,null,null,"",""]
[null,null,null,null,null,null,null,null,null,"",""]
[null,null,null,null,null,null,null,null,null,"",""]
[null,null,null,null,null,null,null,null,null,"",""]
[null,null,null,null,null,null,null,null,null,"",""]
[null,null,null,null,null,null,null,null,null,"",""]
[null,null,null,null,null,null,null,null,null,"",""]
[null,null,null,null,null,null,null,null,null,"",""]
[null,null,null,null,null,null,null,null,null,"",""]
[null,null,null,null,null,null,null,null,null,"",""]
[null,null,null,null,null,null,null,null,null,"",""]
[null,null,null,null,null,null,null,null,null,"",""]
[null,null,null,null,null,null,null,null,null,"",""]
[null,null,null,null,null,null,null,null,null,"",""]
[null,null,null,null,null,null,null,null,null,"",""]
[null,null,null,null,null,null,null,null,null,"",""]
[null,null,null,null,null,null,null,null,null,"",""]
[null,null,null,null,null,null,null,null,null,"",""]
[null,null,null,null,null,null,null,null,null,"",""]
[null,null,null,null,null,null,null,null,null,"",""]
[null,null,null,null,null,null,null,null,null,"",""]
[null,null,null,null,null,null,null,null,null,"",""]
[null,null,null,null,null,null,null,null,null,"",""]
[null,null,null,null,null,null,null,null,null,"",{"$f":"IF(OR(I1352=\"\",J1352=\"\"),\"\",PRODUCT(I1352,J1352))","v":""}]
[null,null,null,null,null,null,null,null,null,"",""]
[null,null,null,null,null,null,null,null,null,"",""]
[null,null,null,null,null,null,null,null,null,"",""]
[null,null,null,null,null,null,null,null,null,"",""]
[null,null,null,null,null,null,null,null,null,"",""]
[null,null,null,null,null,null,null,null,null,"",""]
[null,null,null,null,null,null,null,null,null,"",""]
[null,null,null,null,null,null,null,null,null,"",""]
[null,null,null,null,null,null,null,null,null,"",""]
[null,null,null,null,null,null,null,null,null,"",""]
[null,null,null,null,null,null,null,null,null,"",""]
[null,null,null,null,null,null,null,null,null,"",""]
[null,null,null,null,null,null,null,null,null,"",""]
[null,null,null,null,null,null,null,null,null,"",""]
[null,null,null,null,null,null,null,null,null,"",""]
[null,null,null,null,null,null,null,null,null,"",""]
[null,null,null,null,null,null,null,null,null,"",""]
[null,null,null,null,null,null,null,null,null,"",""]
[null,null,null,null,null,null,null,null,null,"",""]
[null,null,null,null,null,null,null,null,null,"",""]
[null,null,null,null,null,null,null,null,null,{"$f":"IFERROR(IF(H1373<>\"\",7.05,\"\"),\"\")","v":""},""]
[null,null,null,null,null,null,null,null,null,"",""]
[null,null,null,null,null,null,null,null,null,"",""]
[null,null,null,null,null,null,null,null,null,"",""]
[null,null,null,null,null,null,null,null,null,"",""]
[null,null,null,null,null,null,null,null,null,"",""]
[null,null,null,null,null,null,null,null,null,"",""]
[null,null,null,null,null,null,null,null,null,"",""]
[null,null,null,null,null,null,null,null,null,"",""]
[null,null,null,null,null,null,null,null,null,"",""]
[null,null,null,null,null,null,null,null,null,"",""]
[null,null,null,null,null,null,null,null,null,"",""]
[null,null,null,null,null,null,null,null,null,"",""]
[null,null,null,null,null,null,null,null,null,"",""]
[null,null,null,null,null,null,null,null,null,"",""]
[null,null,null,null,null,null,null,null,null,"",""]
[null,null,null,null,null,null,null,null,null,"",""]
[null,null,null,null,null,null,null,null,null,"",""]
[null,null,null,null,null,null,null,null,null,"",""]
[null,null,null,null,null,null,null,null,null,"",""]
[null,null,null,null,null,null,null,null,null,"",""]
[null,null,null,null,null,null,null,null,null,"",""]
[null,null,null,null,null,null,null,null,null,"",""]
[null,null,null,null,null,null,null,null,null,"",""]
[null,null,null,null,null,null,null,null,null,"",""]
[null,null,null,null,null,null,null,null,null,"",""]
[null,null,null,null,null,null,null,null,null,"",""]
[null,null,null,null,null,null,null,null,null,"",""]
[null,null,null,null,null,null,null,null,null,"",""]
[null,null,null,null,null,null,null,null,null,"",""]
[null,null,null,null,null,null,null,null,null,"",""]
[null,null,null,null,null,null,null,null,null,"",""]
[null,null,null,null,null,null,null,null,null,"",""]
[null,null,null,null,null,null,null,null,null,"",""]
[null,null,null,null,null,null,null,null,null,"",""]
[null,null,null,null,null,null,null,null,null,"",""]
[null,null,null,null,null,null,null,null,null,"",""]
[null,null,null,null,null,null,null,null,null,"",""]
[null,null,null,null,null,null,null,null,null,"",""]
[null,null,null,null,null,null,null,null,null,"",""]
[null,null,null,null,null,null,null,null,null,"",""]
[null,null,null,null,null,null,null,null,null,"",""]
[null,null,null,null,null,null,null,null,null,"",""]
[null,null,null,null,null,null,null,null,null,"",{"$f":"IF(OR(I1416=\"\",J1416=\"\"),\"\",PRODUCT(I1416,J1416))","v":""}]
[null,null,null,null,null,null,null,null,null,"",""]
[null,null,null,null,null,null,null,null,null,"",""]
[null,null,null,null,null,null,null,null,null,"",""]
[null,null,null,null,null,null,null,null,null,"",""]
[null,null,null,null,null,null,null,null,null,"",""]
[null,null,null,null,null,null,null,null,null,"",""]
[null,null,null,null,null,null,null,null,null,"",""]
[null,null,null,null,null,null,null,null,null,"",""]
[null,null,null,null,null,null,null,null,null,"",""]
[null,null,null,null,null,null,null,null,null,"",""]
[null,null,null,null,null,null,null,null,null,"",""]
[null,null,null,null,null,null,null,null,null,"",""]
[null,null,null,null,null,null,null,null,null,"",""]
[null,null,null,null,null,null,null,null,null,"",""]
[null,null,null,null,null,null,null,null,null,"",""]
[null,null,null,null,null,null,null,null,null,"",""]
[null,null,null,null,null,null,null,null,null,"",""]
[null,null,null,null,null,null,null,null,null,"",""]
[null,null,null,null,null,null,null,null,null,"",""]
[null,null,null,null,null,null,null,null,null,"",""]
[null,null,null,null,null,null,null,null,null,{"$f":"IFERROR(IF(H1437<>\"\",7.05,\"\"),\"\")","v":""},""]
[null,null,null,null,null,null,null,null,null,"",""]
[null,null,null,null,null,null,null,null,null,"",""]
[null,null,null,null,null,null,null,null,null,"",""]
[null,null,null,null,null,null,null,null,null,"",""]
[null,null,null,null,null,null,null,null,null,"",""]
[null,null,null,null,null,null,null,null,null,"",""]
[null,null,null,null,null,null,null,null,null,"",""]
[null,null,null,null,null,null,null,null,null,"",""]
[null,null,null,null,null,null,null,null,null,"",""]
[null,null,null,null,null,null,null,null,null,"",""]
[null,null,null,null,null,null,null,null,null,"",""]
[null,null,null,null,null,null,null,null,null,"",""]
[null,null,null,null,null,null,null,null,null,"",""]
[null,null,null,null,null,null,null,null,null,"",""]
[null,null,null,null,null,null,null,null,null,"",""]
[null,null,null,null,null,null,null,null,null,"",""]
[null,null,null,null,null,null,null,null,null,"",""]
[null,null,null,null,null,null,null,null,null,"",""]
[null,null,null,null,null,null,null,null,null,"",""]
[null,null,null,null,null,null,null,null,null,"",""]
[null,null,null,null,null,null,null,null,null,"",""]
[null,null,null,null,null,null,null,null,null,"",""]
[null,null,null,null,null,null,null,null,null,"",""]
[null,null,null,null,null,null,null,null,null,"",""]
[null,null,null,null,null,null,null,null,null,"",""]
[null,null,null,null,null,null,null,null,null,"",""]
[null,null,null,null,null,null,null,null,null,"",""]
[null,null,null,null,null,null,null,null,null,"",""]
[null,null,null,null,null,null,null,null,null,"",""]
[null,null,null,null,null,null,null,null,null,"",""]
[null,null,null,null,null,null,null,null,null,"",""]
[null,null,null,null,null,null,null,null,null,"",""]
[null,null,null,null,null,null,null,null,null,"",""]
[null,null,null,null,null,null,null,null,null,"",""]
[null,null,null,null,null,null,null,null,null,"",""]
[null,null,null,null,null,null,null,null,null,"",""]
[null,null,null,null,null,null,null,null,null,"",""]
[null,null,null,null,null,null,null,null,null,"",""]
[null,null,null,null,null,null,null,null,null,"",""]
[null,null,null,null,null,null,null,null,null,"",""]
[null,null,null,null,null,null,null,null,null,"",""]
[null,null,null,null,null,null,null,null,null,"",""]
[null,null,null,null,null,null,null,null,null,"",{"$f":"IF(OR(I1480=\"\",J1480=\"\"),\"\",PRODUCT(I1480,J1480))","v":""}]
[null,null,null,null,null,null,null,null,null,"",""]
[null,null,null,null,null,null,null,null,null,"",""]
[null,null,null,null,null,null,null,null,null,"",""]
[null,null,null,null,null,null,null,null,null,"",""]
[null,null,null,null,null,null,null,null,null,"",""]
[null,null,null,null,null,null,null,null,null,"",""]
[null,null,null,null,null,null,null,null,null,"",""]
[null,null,null,null,null,null,null,null,null,"",""]
[null,null,null,null,null,null,null,null,null,"",""]
[null,null,null,null,null,null,null,null,null,"",""]
[null,null,null,null,null,null,null,null,null,"",""]
[null,null,null,null,null,null,null,null,null,"",""]
[null,null,null,null,null,null,null,null,null,"",""]
[null,null,null,null,null,null,null,null,null,"",""]
[null,null,null,null,null,null,null,null,null,"",""]
[null,null,null,null,null,null,null,null,null,"",""]
[null,null,null,null,null,null,null,null,null,"",""]
[null,null,null,null,null,null,null,null,null,"",""]
[null,null,null,null,null,null,null,null,null,"",""]
[null,null,null,null,null,null,null,null,null,"",""]
[null,null,null,null,null,null,null,null,null,{"$f":"IFERROR(IF(H1501<>\"\",7.05,\"\"),\"\")","v":""},""]
[null,null,null,null,null,null,null,null,null,"",""]
[null,null,null,null,null,null,null,null,null,"",""]
[null,null,null,null,null,null,null,null,null,"",""]
[null,null,null,null,null,null,null,null,null,"",""]
[null,null,null,null,null,null,null,null,null,"",""]
[null,null,null,null,null,null,null,null,null,"",""]
[null,null,null,null,null,null,null,null,null,"",""]
[null,null,null,null,null,null,null,null,null,"",""]
[null,null,null,null,null,null,null,null,null,"",""]
[null,null,null,null,null,null,null,null,null,"",""]
[null,null,null,null,null,null,null,null,null,"",""]
[null,null,null,null,null,null,null,null,null,"",""]
[null,null,null,null,null,null,null,null,null,"",""]
[null,null,null,null,null,null,null,null,null,"",""]
[null,null,null,null,null,null,null,null,null,"",""]
[null,null,null,null,null,null,null,null,null,"",""]
[null,null,null,null,null,null,null,null,null,"",""]
[null,null,null,null,null,null,null,null,null,"",""]
[null,null,null,null,null,null,null,null,null,"",""]
[null,null,null,null,null,null,null,null,null,"",""]
[null,null,null,null,null,null,null,null,null,"",""]
[null,null,null,null,null,null,null,null,null,"",""]
[null,null,null,null,null,null,null,null,null,"",""]
[null,null,null,null,null,null,null,null,null,"",""]
[null,null,null,null,null,null,null,null,null,"",""]
[null,null,null,null,null,null,null,null,null,"",""]
[null,null,null,null,null,null,null,null,null,"",""]
[null,null,null,null,null,null,null,null,null,"",""]
[null,null,null,null,null,null,null,null,null,"",""]
[null,null,null,null,null,null,null,null,null,"",""]
[null,null,null,null,null,null,null,null,null,"",""]
[null,null,null,null,null,null,null,null,null,"",""]
[null,null,null,null,null,null,null,null,null,"",""]
[null,null,null,null,null,null,null,null,null,"",""]
[null,null,null,null,null,null,null,null,null,"",""]
[null,null,null,null,null,null,null,null,null,"",""]
[null,null,null,null,null,null,null,null,null,"",""]
[null,null,null,null,null,null,null,null,null,"",""]
[null,null,null,null,null,null,null,null,null,"",""]
[null,null,null,null,null,null,null,null,null,"",""]
[null,null,null,null,null,null,null,null,null,"",""]
[null,null,null,null,null,null,null,null,null,"",""]
[null,null,null,null,null,null,null,null,null,"",{"$f":"IF(OR(I1544=\"\",J1544=\"\"),\"\",PRODUCT(I1544,J1544))","v":""}]
[null,null,null,null,null,null,null,null,null,"",""]
[null,null,null,null,null,null,null,null,null,"",""]
[null,null,null,null,null,null,null,null,null,"",""]
[null,null,null,null,null,null,null,null,null,"",""]
[null,null,null,null,null,null,null,null,null,"",""]
[null,null,null,null,null,null,null,null,null,"",""]
[null,null,null,null,null,null,null,null,null,"",""]
[null,null,null,null,null,null,null,null,null,"",""]
[null,null,null,null,null,null,null,null,null,"",""]
[null,null,null,null,null,null,null,null,null,"",""]
[null,null,null,null,null,null,null,null,null,"",""]
[null,null,null,null,null,null,null,null,null,"",""]
[null,null,null,null,null,null,null,null,null,"",""]
[null,null,null,null,null,null,null,null,null,"",""]
[null,null,null,null,null,null,null,null,null,"",""]
[null,null,null,null,null,null,null,null,null,"",""]
[null,null,null,null,null,null,null,null,null,"",""]
[null,null,null,null,null,null,null,null,null,"",""]
[null,null,null,null,null,null,null,null,null,"",""]
[null,null,null,null,null,null,null,null,null,"",""]
[null,null,null,null,null,null,null,null,null,{"$f":"IFERROR(IF(H1565<>\"\",7.05,\"\"),\"\")","v":""},""]
[null,null,null,null,null,null,null,null,null,"",""]
[null,null,null,null,null,null,null,null,null,"",""]
[null,null,null,null,null,null,null,null,null,"",""]
[null,null,null,null,null,null,null,null,null,"",""]
[null,null,null,null,null,null,null,null,null,"",""]
[null,null,null,null,null,null,null,null,null,"",""]
[null,null,null,null,null,null,null,null,null,"",""]
[null,null,null,null,null,null,null,null,null,"",""]
[null,null,null,null,null,null,null,null,null,"",""]
[null,null,null,null,null,null,null,null,null,"",""]
[null,null,null,null,null,null,null,null,null,"",""]
[null,null,null,null,null,null,null,null,null,"",""]
[null,null,null,null,null,null,null,null,null,"",""]
[null,null,null,null,null,null,null,null,null,"",""]
[null,null,null,null,null,null,null,null,null,"",""]
[null,null,null,null,null,null,null,null,null,"",""]
[null,null,null,null,null,null,null,null,null,"",""]
[null,null,null,null,null,null,null,null,null,"",""]
[null,null,null,null,null,null,null,null,null,"",""]
[null,null,null,null,null,null,null,null,null,"",""]
[null,null,null,null,null,null,null,null,null,"",""]
[null,null,null,null,null,null,null,null,null,"",""]
[null,null,null,null,null,null,null,null,null,"",""]
[null,null,null,null,null,null,null,null,null,"",""]
[null,null,null,null,null,null,null,null,null,"",""]
[null,null,null,null,null,null,null,null,null,"",""]
[null,null,null,null,null,null,null,null,null,"",""]
[null,null,null,null,null,null,null,null,null,"",""]
[null,null,null,null,null,null,null,null,null,"",""]
[null,null,null,null,null,null,null,null,null,"",""]
[null,null,null,null,null,null,null,null,null,"",""]
[null,null,null,null,null,null,null,null,null,"",""]
[null,null,null,null,null,null,null,null,null,"",""]
[null,null,null,null,null,null,null,null,null,"",""]
[null,null,null,null,null,null,null,null,null,"",""]
[null,null,null,null,null,null,null,null,null,"",""]
[null,null,null,null,null,null,null,null,null,"",""]
[null,null,null,null,null,null,null,null,null,"",""]
[null,null,null,null,null,null,null,null,null,"",""]
[null,null,null,null,null,null,null,null,null,"",""]
[null,null,null,null,null,null,null,null,null,"",""]
[null,null,null,null,null,null,null,null,null,"",""]
[null,null,null,null,null,null,null,null,null,"",{"$f":"IF(OR(I1608=\"\",J1608=\"\"),\"\",PRODUCT(I1608,J1608))","v":""}]
[null,null,null,null,null,null,null,null,null,"",""]
[null,null,null,null,null,null,null,null,null,"",""]
[null,null,null,null,null,null,null,null,null,"",""]
[null,null,null,null,null,null,null,null,null,"",""]
[null,null,null,null,null,null,null,null,null,"",""]
[null,null,null,null,null,null,null,null,null,"",""]
[null,null,null,null,null,null,null,null,null,"",""]
[null,null,null,null,null,null,null,null,null,"",""]
[null,null,null,null,null,null,null,null,null,"",""]
[null,null,null,null,null,null,null,null,null,"",""]
[null,null,null,null,null,null,null,null,null,"",""]
[null,null,null,null,null,null,null,null,null,"",""]
[null,null,null,null,null,null,null,null,null,"",""]
[null,null,null,null,null,null,null,null,null,"",""]
[null,null,null,null,null,null,null,null,null,"",""]
[null,null,null,null,null,null,null,null,null,"",""]
[null,null,null,null,null,null,null,null,null,"",""]
[null,null,null,null,null,null,null,null,null,"",""]
[null,null,null,null,null,null,null,null,null,"",""]
[null,null,null,null,null,null,null,null,null,"",""]
[null,null,null,null,null,null,null,null,null,{"$f":"IFERROR(IF(H1629<>\"\",7.05,\"\"),\"\")","v":""},""]
[null,null,null,null,null,null,null,null,null,"",""]
[null,null,null,null,null,null,null,null,null,"",""]
[null,null,null,null,null,null,null,null,null,"",""]
[null,null,null,null,null,null,null,null,null,"",""]
[null,null,null,null,null,null,null,null,null,"",""]
[null,null,null,null,null,null,null,null,null,"",""]
[null,null,null,null,null,null,null,null,null,"",""]
[null,null,null,null,null,null,null,null,null,"",""]
[null,null,null,null,null,null,null,null,null,"",""]
[null,null,null,null,null,null,null,null,null,"",""]
[null,null,null,null,null,null,null,null,null,"",""]
[null,null,null,null,null,null,null,null,null,"",""]
[null,null,null,null,null,null,null,null,null,"",""]
[null,null,null,null,null,null,null,null,null,"",""]
[null,null,null,null,null,null,null,null,null,"",""]
[null,null,null,null,null,null,null,null,null,"",""]
[null,null,null,null,null,null,null,null,null,"",""]
[null,null,null,null,null,null,null,null,null,"",""]
[null,null,null,null,null,null,null,null,null,"",""]
[null,null,null,null,null,null,null,null,null,"",""]
[null,null,null,null,null,null,null,null,null,"",""]
[null,null,null,null,null,null,null,null,null,"",""]
[null,null,null,null,null,null,null,null,null,"",""]
[null,null,null,null,null,null,null,null,null,"",""]
[null,null,null,null,null,null,null,null,null,"",""]
[null,null,null,null,null,null,null,null,null,"",""]
[null,null,null,null,null,null,null,null,null,"",""]
[null,null,null,null,null,null,null,null,null,"",""]
[null,null,null,null,null,null,null,null,null,"",""]
[null,null,null,null,null,null,null,null,null,"",""]
[null,null,null,null,null,null,null,null,null,"",""]
[null,null,null,null,null,null,null,null,null,"",""]
[null,null,null,null,null,null,null,null,null,"",""]
[null,null,null,null,null,null,null,null,null,"",""]
[null,null,null,null,null,null,null,null,null,"",""]
[null,null,null,null,null,null,null,null,null,"",""]
[null,null,null,null,null,null,null,null,null,"",""]
[null,null,null,null,null,null,null,null,null,"",""]
[null,null,null,null,null,null,null,null,null,"",""]
[null,null,null,null,null,null,null,null,null,"",""]
[null,null,null,null,null,null,null,null,null,"",""]
[null,null,null,null,null,null,null,null,null,"",""]
[null,null,null,null,null,null,null,null,null,"",{"$f":"IF(OR(I1672=\"\",J1672=\"\"),\"\",PRODUCT(I1672,J1672))","v":""}]
[null,null,null,null,null,null,null,null,null,"",""]
[null,null,null,null,null,null,null,null,null,"",""]
[null,null,null,null,null,null,null,null,null,"",""]
[null,null,null,null,null,null,null,null,null,"",""]
[null,null,null,null,null,null,null,null,null,"",""]
[null,null,null,null,null,null,null,null,null,"",""]
[null,null,null,null,null,null,null,null,null,"",""]
[null,null,null,null,null,null,null,null,null,"",""]
[null,null,null,null,null,null,null,null,null,"",""]
[null,null,null,null,null,null,null,null,null,"",""]
[null,null,null,null,null,null,null,null,null,"",""]
[null,null,null,null,null,null,null,null,null,"",""]
[null,null,null,null,null,null,null,null,null,"",""]
[null,null,null,null,null,null,null,null,null,"",""]
[null,null,null,null,null,null,null,null,null,"",""]
[null,null,null,null,null,null,null,null,null,"",""]
[null,null,null,null,null,null,null,null,null,"",""]
[null,null,null,null,null,null,null,null,null,"",""]
[null,null,null,null,null,null,null,null,null,"",""]
[null,null,null,null,null,null,null,null,null,"",""]
[null,null,null,null,null,null,null,null,null,{"$f":"IFERROR(IF(H1693<>\"\",7.05,\"\"),\"\")","v":""},""]
[null,null,null,null,null,null,null,null,null,"",""]
[null,null,null,null,null,null,null,null,null,"",""]
[null,null,null,null,null,null,null,null,null,"",""]
[null,null,null,null,null,null,null,null,null,"",""]
[null,null,null,null,null,null,null,null,null,"",""]
[null,null,null,null,null,null,null,null,null,"",""]
[null,null,null,null,null,null,null,null,null,"",""]
[null,null,null,null,null,null,null,null,null,"",""]
[null,null,null,null,null,null,null,null,null,"",""]
[null,null,null,null,null,null,null,null,null,"",""]
[null,null,null,null,null,null,null,null,null,"",""]
[null,null,null,null,null,null,null,null,null,"",""]
[null,null,null,null,null,null,null,null,null,"",""]
[null,null,null,null,null,null,null,null,null,"",""]
[null,null,null,null,null,null,null,null,null,"",""]
[null,null,null,null,null,null,null,null,null,"",""]
[null,null,null,null,null,null,null,null,null,"",""]
[null,null,null,null,null,null,null,null,null,"",""]
[null,null,null,null,null,null,null,null,null,"",""]
[null,null,null,null,null,null,null,null,null,"",""]
[null,null,null,null,null,null,null,null,null,"",""]
[null,null,null,null,null,null,null,null,null,"",""]
[null,null,null,null,null,null,null,null,null,"",""]
[null,null,null,null,null,null,null,null,null,"",""]
[null,null,null,null,null,null,null,null,null,"",""]
[null,null,null,null,null,null,null,null,null,"",""]
[null,null,null,null,null,null,null,null,null,"",""]
[null,null,null,null,null,null,null,null,null,"",""]
[null,null,null,null,null,null,null,null,null,"",""]
[null,null,null,null,null,null,null,null,null,"",""]
[null,null,null,null,null,null,null,null,null,"",""]
[null,null,null,null,null,null,null,null,null,"",""]
[null,null,null,null,null,null,null,null,null,"",""]
[null,null,null,null,null,null,null,null,null,"",""]
[null,null,null,null,null,null,null,null,null,"",""]
[null,null,null,null,null,null,null,null,null,"",""]
[null,null,null,null,null,null,null,null,null,"",""]
[null,null,null,null,null,null,null,null,null,"",""]
[null,null,null,null,null,null,null,null,null,"",""]
[null,null,null,null,null,null,null,null,null,"",""]
[null,null,null,null,null,null,null,null,null,"",""]
[null,null,null,null,null,null,null,null,null,"",""]
[null,null,null,null,null,null,null,null,null,"",{"$f":"IF(OR(I1736=\"\",J1736=\"\"),\"\",PRODUCT(I1736,J1736))","v":""}]
[null,null,null,null,null,null,null,null,null,"",""]
[null,null,null,null,null,null,null,null,null,"",""]
[null,null,null,null,null,null,null,null,null,"",""]
[null,null,null,null,null,null,null,null,null,"",""]
[null,null,null,null,null,null,null,null,null,"",""]
[null,null,null,null,null,null,null,null,null,"",""]
[null,null,null,null,null,null,null,null,null,"",""]
[null,null,null,null,null,null,null,null,null,"",""]
[null,null,null,null,null,null,null,null,null,"",""]
[null,null,null,null,null,null,null,null,null,"",""]
[null,null,null,null,null,null,null,null,null,"",""]
[null,null,null,null,null,null,null,null,null,"",""]
[null,null,null,null,null,null,null,null,null,"",""]
[null,null,null,null,null,null,null,null,null,"",""]
[null,null,null,null,null,null,null,null,null,"",""]
[null,null,null,null,null,null,null,null,null,"",""]
[null,null,null,null,null,null,null,null,null,"",""]
[null,null,null,null,null,null,null,null,null,"",""]
[null,null,null,null,null,null,null,null,null,"",""]
[null,null,null,null,null,null,null,null,null,"",""]
[null,null,null,null,null,null,null,null,null,{"$f":"IFERROR(IF(H1757<>\"\",7.05,\"\"),\"\")","v":""},""]
[null,null,null,null,null,null,null,null,null,"",""]
[null,null,null,null,null,null,null,null,null,"",""]
[null,null,null,null,null,null,null,null,null,"",""]
[null,null,null,null,null,null,null,null,null,"",""]
[null,null,null,null,null,null,null,null,null,"",""]
[null,null,null,null,null,null,null,null,null,"",""]
[null,null,null,null,null,null,null,null,null,"",""]
[null,null,null,null,null,null,null,null,null,"",""]
[null,null,null,null,null,null,null,null,null,"",""]
[null,null,null,null,null,null,null,null,null,"",""]
[null,null,null,null,null,null,null,null,null,"",""]
[null,null,null,null,null,null,null,null,null,"",""]
[null,null,null,null,null,null,null,null,null,"",""]
[null,null,null,null,null,null,null,null,null,"",""]
[null,null,null,null,null,null,null,null,null,"",""]
[null,null,null,null,null,null,null,null,null,"",""]
[null,null,null,null,null,null,null,null,null,"",""]
[null,null,null,null,null,null,null,null,null,"",""]
[null,null,null,null,null,null,null,null,null,"",""]
[null,null,null,null,null,null,null,null,null,"",""]
[null,null,null,null,null,null,null,null,null,"",""]
[null,null,null,null,null,null,null,null,null,"",""]
[null,null,null,null,null,null,null,null,null,"",""]
[null,null,null,null,null,null,null,null,null,"",""]
[null,null,null,null,null,null,null,null,null,"",""]
[null,null,null,null,null,null,null,null,null,"",""]
[null,null,null,null,null,null,null,null,null,"",""]
[null,null,null,null,null,null,null,null,null,"",""]
[null,null,null,null,null,null,null,null,null,"",""]
[null,null,null,null,null,null,null,null,null,"",""]
[null,null,null,null,null,null,null,null,null,"",""]
[null,null,null,null,null,null,null,null,null,"",""]
[null,null,null,null,null,null,null,null,null,"",""]
[null,null,null,null,null,null,null,null,null,"",""]
[null,null,null,null,null,null,null,null,null,"",""]
[null,null,null,null,null,null,null,null,null,"",""]
[null,null,null,null,null,null,null,null,null,"",""]
[null,null,null,null,null,null,null,null,null,"",""]
[null,null,null,null,null,null,null,null,null,"",""]
[null,null,null,null,null,null,null,null,null,"",""]
[null,null,null,null,null,null,null,null,null,"",""]
[null,null,null,null,null,null,null,null,null,"",""]
[null,null,null,null,null,null,null,null,null,"",{"$f":"IF(OR(I1800=\"\",J1800=\"\"),\"\",PRODUCT(I1800,J1800))","v":""}]
[null,null,null,null,null,null,null,null,null,"",""]
[null,null,null,null,null,null,null,null,null,"",""]
[null,null,null,null,null,null,null,null,null,"",""]
[null,null,null,null,null,null,null,null,null,"",""]
[null,null,null,null,null,null,null,null,null,"",""]
[null,null,null,null,null,null,null,null,null,"",""]
[null,null,null,null,null,null,null,null,null,"",""]
[null,null,null,null,null,null,null,null,null,"",""]
[null,null,null,null,null,null,null,null,null,"",""]
[null,null,null,null,null,null,null,null,null,"",""]
[null,null,null,null,null,null,null,null,null,"",""]
[null,null,null,null,null,null,null,null,null,"",""]
[null,null,null,null,null,null,null,null,null,"",""]
[null,null,null,null,null,null,null,null,null,"",""]
[null,null,null,null,null,null,null,null,null,"",""]
[null,null,null,null,null,null,null,null,null,"",""]
[null,null,null,null,null,null,null,null,null,"",""]
[null,null,null,null,null,null,null,null,null,"",""]
[null,null,null,null,null,null,null,null,null,"",""]
[null,null,null,null,null,null,null,null,null,"",""]
[null,null,null,null,null,null,null,null,null,{"$f":"IFERROR(IF(H1821<>\"\",7.05,\"\"),\"\")","v":""},""]
[null,null,null,null,null,null,null,null,null,"",""]
[null,null,null,null,null,null,null,null,null,"",""]
[null,null,null,null,null,null,null,null,null,"",""]
[null,null,null,null,null,null,null,null,null,"",""]
[null,null,null,null,null,null,null,null,null,"",""]
[null,null,null,null,null,null,null,null,null,"",""]
[null,null,null,null,null,null,null,null,null,"",""]
[null,null,null,null,null,null,null,null,null,"",""]
[null,null,null,null,null,null,null,null,null,"",""]
[null,null,null,null,null,null,null,null,null,"",""]
[null,null,null,null,null,null,null,null,null,"",""]
[null,null,null,null,null,null,null,null,null,"",""]
[null,null,null,null,null,null,null,null,null,"",""]
[null,null,null,null,null,null,null,null,null,"",""]
[null,null,null,null,null,null,null,null,null,"",""]
[null,null,null,null,null,null,null,null,null,"",""]
[null,null,null,null,null,null,null,null,null,"",""]
[null,null,null,null,null,null,null,null,null,"",""]
[null,null,null,null,null,null,null,null,null,"",""]
[null,null,null,null,null,null,null,null,null,"",""]
[null,null,null,null,null,null,null,null,null,"",""]
[null,null,null,null,null,null,null,null,null,"",""]
[null,null,null,null,null,null,null,null,null,"",""]
[null,null,null,null,null,null,null,null,null,"",""]
[null,null,null,null,null,null,null,null,null,"",""]
[null,null,null,null,null,null,null,null,null,"",""]
[null,null,null,null,null,null,null,null,null,"",""]
[null,null,null,null,null,null,null,null,null,"",""]
[null,null,null,null,null,null,null,null,null,"",""]
[null,null,null,null,null,null,null,null,null,"",""]
[null,null,null,null,null,null,null,null,null,"",""]
[null,null,null,null,null,null,null,null,null,"",""]
[null,null,null,null,null,null,null,null,null,"",""]
[null,null,null,null,null,null,null,null,null,"",""]
[null,null,null,null,null,null,null,null,null,"",""]
[null,null,null,null,null,null,null,null,null,"",""]
[null,null,null,null,null,null,null,null,null,"",""]
[null,null,null,null,null,null,null,null,null,"",""]
[null,null,null,null,null,null,null,null,null,"",""]
[null,null,null,null,null,null,null,null,null,"",""]
[null,null,null,null,null,null,null,null,null,"",""]
[null,null,null,null,null,null,null,null,null,"",""]
[null,null,null,null,null,null,null,null,null,"",{"$f":"IF(OR(I1864=\"\",J1864=\"\"),\"\",PRODUCT(I1864,J1864))","v":""}]
[null,null,null,null,null,null,null,null,null,"",""]
[null,null,null,null,null,null,null,null,null,"",""]
[null,null,null,null,null,null,null,null,null,"",""]
[null,null,null,null,null,null,null,null,null,"",""]
[null,null,null,null,null,null,null,null,null,"",""]
[null,null,null,null,null,null,null,null,null,"",""]
[null,null,null,null,null,null,null,null,null,"",""]
[null,null,null,null,null,null,null,null,null,"",""]
[null,null,null,null,null,null,null,null,null,"",""]
[null,null,null,null,null,null,null,null,null,"",""]
[null,null,null,null,null,null,null,null,null,"",""]
[null,null,null,null,null,null,null,null,null,"",""]
[null,null,null,null,null,null,null,null,null,"",""]
[null,null,null,null,null,null,null,null,null,"",""]
[null,null,null,null,null,null,null,null,null,"",""]
[null,null,null,null,null,null,null,null,null,"",""]
[null,null,null,null,null,null,null,null,null,"",""]
[null,null,null,null,null,null,null,null,null,"",""]
[null,null,null,null,null,null,null,null,null,"",""]
[null,null,null,null,null,null,null,null,null,"",""]
[null,null,null,null,null,null,null,null,null,{"$f":"IFERROR(IF(H1885<>\"\",7.05,\"\"),\"\")","v":""},""]
[null,null,null,null,null,null,null,null,null,"",""]
[null,null,null,null,null,null,null,null,null,"",""]
[null,null,null,null,null,null,null,null,null,"",""]
[null,null,null,null,null,null,null,null,null,"",""]
[null,null,null,null,null,null,null,null,null,"",""]
[null,null,null,null,null,null,null,null,null,"",""]
[null,null,null,null,null,null,null,null,null,"",""]
[null,null,null,null,null,null,null,null,null,"",""]
[null,null,null,null,null,null,null,null,null,"",""]
[null,null,null,null,null,null,null,null,null,"",""]
[null,null,null,null,null,null,null,null,null,"",""]
[null,null,null,null,null,null,null,null,null,"",""]
[null,null,null,null,null,null,null,null,null,"",""]
[null,null,null,null,null,null,null,null,null,"",""]
[null,null,null,null,null,null,null,null,null,"",""]
[null,null,null,null,null,null,null,null,null,"",""]
[null,null,null,null,null,null,null,null,null,"",""]
[null,null,null,null,null,null,null,null,null,"",""]
[null,null,null,null,null,null,null,null,null,"",""]
[null,null,null,null,null,null,null,null,null,"",""]
[null,null,null,null,null,null,null,null,null,"",""]
[null,null,null,null,null,null,null,null,null,"",""]
[null,null,null,null,null,null,null,null,null,"",""]
[null,null,null,null,null,null,null,null,null,"",""]
[null,null,null,null,null,null,null,null,null,"",""]
[null,null,null,null,null,null,null,null,null,"",""]
[null,null,null,null,null,null,null,null,null,"",""]
[null,null,null,null,null,null,null,null,null,"",""]
[null,null,null,null,null,null,null,null,null,"",""]
[null,null,null,null,null,null,null,null,null,"",""]
[null,null,null,null,null,null,null,null,null,"",""]
[null,null,null,null,null,null,null,null,null,"",""]
[null,null,null,null,null,null,null,null,null,"",""]
[null,null,null,null,null,null,null,null,null,"",""]
[null,null,null,null,null,null,null,null,null,"",""]
[null,null,null,null,null,null,null,null,null,"",""]
[null,null,null,null,null,null,null,null,null,"",""]
[null,null,null,null,null,null,null,null,null,"",""]
[null,null,null,null,null,null,null,null,null,"",""]
[null,null,null,null,null,null,null,null,null,"",""]
[null,null,null,null,null,null,null,null,null,"",""]
[null,null,null,null,null,null,null,null,null,"",""]
[null,null,null,null,null,null,null,null,null,"",{"$f":"IF(OR(I1928=\"\",J1928=\"\"),\"\",PRODUCT(I1928,J1928))","v":""}]
[null,null,null,null,null,null,null,null,null,"",""]
[null,null,null,null,null,null,null,null,null,"",""]
[null,null,null,null,null,null,null,null,null,"",""]
[null,null,null,null,null,null,null,null,null,"",""]
[null,null,null,null,null,null,null,null,null,"",""]
[null,null,null,null,null,null,null,null,null,"",""]
[null,null,null,null,null,null,null,null,null,"",""]
[null,null,null,null,null,null,null,null,null,"",""]
[null,null,null,null,null,null,null,null,null,"",""]
[null,null,null,null,null,null,null,null,null,"",""]
[null,null,null,null,null,null,null,null,null,"",""]
[null,null,null,null,null,null,null,null,null,"",""]
[null,null,null,null,null,null,null,null,null,"",""]
[null,null,null,null,null,null,null,null,null,"",""]
[null,null,null,null,null,null,null,null,null,"",""]
[null,null,null,null,null,null,null,null,null,"",""]
[null,null,null,null,null,null,null,null,null,"",""]
[null,null,null,null,null,null,null,null,null,"",""]
[null,null,null,null,null,null,null,null,null,"",""]
[null,null,null,null,null,null,null,null,null,"",""]
[null,null,null,null,null,null,null,null,null,{"$f":"IFERROR(IF(H1949<>\"\",7.05,\"\"),\"\")","v":""},""]
[null,null,null,null,null,null,null,null,null,"",""]
[null,null,null,null,null,null,null,null,null,"",""]
[null,null,null,null,null,null,null,null,null,"",""]
[null,null,null,null,null,null,null,null,null,"",""]
[null,null,null,null,null,null,null,null,null,"",""]
[null,null,null,null,null,null,null,null,null,"",""]
[null,null,null,null,null,null,null,null,null,"",""]
[null,null,null,null,null,null,null,null,null,"",""]
[null,null,null,null,null,null,null,null,null,"",""]
[null,null,null,null,null,null,null,null,null,"",""]
[null,null,null,null,null,null,null,null,null,"",""]
[null,null,null,null,null,null,null,null,null,"",""]
[null,null,null,null,null,null,null,null,null,"",""]
[null,null,null,null,null,null,null,null,null,"",""]
[null,null,null,null,null,null,null,null,null,"",""]
[null,null,null,null,null,null,null,null,null,"",""]
[null,null,null,null,null,null,null,null,null,"",""]
[null,null,null,null,null,null,null,null,null,"",""]
[null,null,null,null,null,null,null,null,null,"",""]
[null,null,null,null,null,null,null,null,null,"",""]
[null,null,null,null,null,null,null,null,null,"",""]
[null,null,null,null,null,null,null,null,null,"",""]
[null,null,null,null,null,null,null,null,null,"",""]
[null,null,null,null,null,null,null,null,null,"",""]
[null,null,null,null,null,null,null,null,null,"",""]
[null,null,null,null,null,null,null,null,null,"",""]
[null,null,null,null,null,null,null,null,null,"",""]
[null,null,null,null,null,null,null,null,null,"",""]
[null,null,null,null,null,null,null,null,null,"",""]
[null,null,null,null,null,null,null,null,null,"",""]
[null,null,null,null,null,null,null,null,null,"",""]
[null,null,null,null,null,null,null,null,null,"",""]
[null,null,null,null,null,null,null,null,null,"",""]
[null,null,null,null,null,null,null,null,null,"",""]
[null,null,null,null,null,null,null,null,null,"",""]
[null,null,null,null,null,null,null,null,null,"",""]
[null,null,null,null,null,null,null,null,null,"",""]
[null,null,null,null,null,null,null,null,null,"",""]
[null,null,null,null,null,null,null,null,null,"",""]
[null,null,null,null,null,null,null,null,null,"",""]
[null,null,null,null,null,null,null,null,null,"",""]
[null,null,null,null,null,null,null,null,null,"",""]
[null,null,null,null,null,null,null,null,null,"",{"$f":"IF(OR(I1992=\"\",J1992=\"\"),\"\",PRODUCT(I1992,J1992))","v":""}]
[null,null,null,null,null,null,null,null,null,"",""]
[null,null,null,null,null,null,null,null,null,"",""]
[null,null,null,null,null,null,null,null,null,"",""]
[null,null,null,null,null,null,null,null,null,"",""]
[null,null,null,null,null,null,null,null,null,"",""]
[null,null,null,null,null,null,null,null,null,"",""]
[null,null,null,null,null,null,null,null,null,"",""]
[null,null,null,null,null,null,null,null,null,"",""]
[null,null,null,null,null,null,null,null,null,"",""]
[null,null,null,null,null,null,null,null,null,"",""]
[null,null,null,null,null,null,null,null,null,"",""]
[null,null,null,null,null,null,null,null,null,"",""]
[null,null,null,null,null,null,null,null,null,"",""]
[null,null,null,null,null,null,null,null,null,"",""]
[null,null,null,null,null,null,null,null,null,"",""]
[null,null,null,null,null,null,null,null,null,"",""]
[null,null,null,null,null,null,null,null,null,"",""]
[null,null,null,null,null,null,null,null,null,"",""]
[null,null,null,null,null,null,null,null,null,"",""]
[null,null,null,null,null,null,null,null,null,"",""]
[null,null,null,null,null,null,null,null,null,{"$f":"IFERROR(IF(H2013<>\"\",7.05,\"\"),\"\")","v":""},""]
[null,null,null,null,null,null,null,null,null,"",""]
[null,null,null,null,null,null,null,null,null,"",""]
[null,null,null,null,null,null,null,null,null,"",""]
[null,null,null,null,null,null,null,null,null,"",""]
[null,null,null,null,null,null,null,null,null,"",""]
[null,null,null,null,null,null,null,null,null,"",""]
[null,null,null,null,null,null,null,null,null,"",""]
[null,null,null,null,null,null,null,null,null,"",""]
[null,null,null,null,null,null,null,null,null,"",""]
[null,null,null,null,null,null,null,null,null,"",""]
[null,null,null,null,null,null,null,null,null,"",""]
[null,null,null,null,null,null,null,null,null,"",""]
[null,null,null,null,null,null,null,null,null,"",""]
[null,null,null,null,null,null,null,null,null,"",""]
[null,null,null,null,null,null,null,null,null,"",""]
[null,null,null,null,null,null,null,null,null,"",""]
[null,null,null,null,null,null,null,null,null,"",""]
[null,null,null,null,null,null,null,null,null,"",""]
[null,null,null,null,null,null,null,null,null,"",""]
[null,null,null,null,null,null,null,null,null,"",""]
[null,null,null,null,null,null,null,null,null,"",""]
[null,null,null,null,null,null,null,null,null,"",""]
[null,null,null,null,null,null,null,null,null,"",""]
[null,null,null,null,null,null,null,null,null,"",""]
[null,null,null,null,null,null,null,null,null,"",""]
[null,null,null,null,null,null,null,null,null,"",""]
[null,null,null,null,null,null,null,null,null,"",""]
[null,null,null,null,null,null,null,null,null,"",""]
[null,null,null,null,null,null,null,null,null,"",""]
[null,null,null,null,null,null,null,null,null,"",""]
[null,null,null,null,null,null,null,null,null,"",""]
[null,null,null,null,null,null,null,null,null,"",""]
[null,null,null,null,null,null,null,null,null,"",""]
[null,null,null,null,null,null,null,null,null,"",""]
[null,null,null,null,null,null,null,null,null,"",""]
[null,null,null,null,null,null,null,null,null,"",""]
[null,null,null,null,null,null,null,null,null,"",""]
[null,null,null,null,null,null,null,null,null,"",""]
[null,null,null,null,null,null,null,null,null,"",""]
[null,null,null,null,null,null,null,null,null,"",""]
[null,null,null,null,null,null,null,null,null,"",""]
[null,null,null,null,null,null,null,null,null,"",""]
[null,null,null,null,null,null,null,null,null,"",{"$f":"IF(OR(I2056=\"\",J2056=\"\"),\"\",PRODUCT(I2056,J2056))","v":""}]
[null,null,null,null,null,null,null,null,null,"",""]
[null,null,null,null,null,null,null,null,null,"",""]
[null,null,null,null,null,null,null,null,null,"",""]
[null,null,null,null,null,null,null,null,null,"",""]
[null,null,null,null,null,null,null,null,null,"",""]
[null,null,null,null,null,null,null,null,null,"",""]
[null,null,null,null,null,null,null,null,null,"",""]
[null,null,null,null,null,null,null,null,null,"",""]
[null,null,null,null,null,null,null,null,null,"",""]
[null,null,null,null,null,null,null,null,null,"",""]
[null,null,null,null,null,null,null,null,null,"",""]
[null,null,null,null,null,null,null,null,null,"",""]
[null,null,null,null,null,null,null,null,null,"",""]
[null,null,null,null,null,null,null,null,null,"",""]
[null,null,null,null,null,null,null,null,null,"",""]
[null,null,null,null,null,null,null,null,null,"",""]
[null,null,null,null,null,null,null,null,null,"",""]
[null,null,null,null,null,null,null,null,null,"",""]
[null,null,null,null,null,null,null,null,null,"",""]
[null,null,null,null,null,null,null,null,null,"",""]
[null,null,null,null,null,null,null,null,null,{"$f":"IFERROR(IF(H2077<>\"\",7.05,\"\"),\"\")","v":""},""]
[null,null,null,null,null,null,null,null,null,"",""]
[null,null,null,null,null,null,null,null,null,"",""]
[null,null,null,null,null,null,null,null,null,"",""]
[null,null,null,null,null,null,null,null,null,"",""]
[null,null,null,null,null,null,null,null,null,"",""]
[null,null,null,null,null,null,null,null,null,"",""]
[null,null,null,null,null,null,null,null,null,"",""]
[null,null,null,null,null,null,null,null,null,"",""]
[null,null,null,null,null,null,null,null,null,"",""]
[null,null,null,null,null,null,null,null,null,"",""]
[null,null,null,null,null,null,null,null,null,"",""]
[null,null,null,null,null,null,null,null,null,"",""]
[null,null,null,null,null,null,null,null,null,"",""]
[null,null,null,null,null,null,null,null,null,"",""]
[null,null,null,null,null,null,null,null,null,"",""]
[null,null,null,null,null,null,null,null,null,"",""]
[null,null,null,null,null,null,null,null,null,"",""]
[null,null,null,null,null,null,null,null,null,"",""]
[null,null,null,null,null,null,null,null,null,"",""]
[null,null,null,null,null,null,null,null,null,"",""]
[null,null,null,null,null,null,null,null,null,"",""]
[null,null,null,null,null,null,null,null,null,"",""]
[null,null,null,null,null,null,null,null,null,"",""]
[null,null,null,null,null,null,null,null,null,"",""]
[null,null,null,null,null,null,null,null,null,"",""]
[null,null,null,null,null,null,null,null,null,"",""]
[null,null,null,null,null,null,null,null,null,"",""]
[null,null,null,null,null,null,null,null,null,"",""]
[null,null,null,null,null,null,null,null,null,"",""]
[null,null,null,null,null,null,null,null,null,"",""]
[null,null,null,null,null,null,null,null,null,"",""]
[null,null,null,null,null,null,null,null,null,"",""]
[null,null,null,null,null,null,null,null,null,"",""]
[null,null,null,null,null,null,null,null,null,"",""]
[null,null,null,null,null,null,null,null,null,"",""]
[null,null,null,null,null,null,null,null,null,"",""]
[null,null,null,null,null,null,null,null,null,"",""]
[null,null,null,null,null,null,null,null,null,"",""]
[null,null,null,null,null,null,null,null,null,"",""]
[null,null,null,null,null,null,null,null,null,"",""]
[null,null,null,null,null,null,null,null,null,"",""]
[null,null,null,null,null,null,null,null,null,"",""]
[null,null,null,null,null,null,null,null,null,"",{"$f":"IF(OR(I2120=\"\",J2120=\"\"),\"\",PRODUCT(I2120,J2120))","v":""}]
[null,null,null,null,null,null,null,null,null,"",""]
[null,null,null,null,null,null,null,null,null,"",""]
[null,null,null,null,null,null,null,null,null,"",""]
[null,null,null,null,null,null,null,null,null,"",""]
[null,null,null,null,null,null,null,null,null,"",""]
[null,null,null,null,null,null,null,null,null,"",""]
[null,null,null,null,null,null,null,null,null,"",""]
[null,null,null,null,null,null,null,null,null,"",""]
[null,null,null,null,null,null,null,null,null,"",""]
[null,null,null,null,null,null,null,null,null,"",""]
[null,null,null,null,null,null,null,null,null,"",""]
[null,null,null,null,null,null,null,null,null,"",""]
[null,null,null,null,null,null,null,null,null,"",""]
[null,null,null,null,null,null,null,null,null,"",""]
[null,null,null,null,null,null,null,null,null,"",""]
[null,null,null,null,null,null,null,null,null,"",""]
[null,null,null,null,null,null,null,null,null,"",""]
[null,null,null,null,null,null,null,null,null,"",""]
[null,null,null,null,null,null,null,null,null,"",""]
[null,null,null,null,null,null,null,null,null,"",""]
[null,null,null,null,null,null,null,null,null,{"$f":"IFERROR(IF(H2141<>\"\",7.05,\"\"),\"\")","v":""},""]
[null,null,null,null,null,null,null,null,null,"",""]
[null,null,null,null,null,null,null,null,null,"",""]
[null,null,null,null,null,null,null,null,null,"",""]
[null,null,null,null,null,null,null,null,null,"",""]
[null,null,null,null,null,null,null,null,null,"",""]
[null,null,null,null,null,null,null,null,null,"",""]
[null,null,null,null,null,null,null,null,null,"",""]
[null,null,null,null,null,null,null,null,null,"",""]
[null,null,null,null,null,null,null,null,null,"",""]
[null,null,null,null,null,null,null,null,null,"",""]
[null,null,null,null,null,null,null,null,null,"",""]
[null,null,null,null,null,null,null,null,null,"",""]
[null,null,null,null,null,null,null,null,null,"",""]
[null,null,null,null,null,null,null,null,null,"",""]
[null,null,null,null,null,null,null,null,null,"",""]
[null,null,null,null,null,null,null,null,null,"",""]
[null,null,null,null,null,null,null,null,null,"",""]
[null,null,null,null,null,null,null,null,null,"",""]
[null,null,null,null,null,null,null,null,null,"",""]
[null,null,null,null,null,null,null,null,null,"",""]
[null,null,null,null,null,null,null,null,null,"",""]
[null,null,null,null,null,null,null,null,null,"",""]
[null,null,null,null,null,null,null,null,null,"",""]
[null,null,null,null,null,null,null,null,null,"",""]
[null,null,null,null,null,null,null,null,null,"",""]
[null,null,null,null,null,null,null,null,null,"",""]
[null,null,null,null,null,null,null,null,null,"",""]
[null,null,null,null,null,null,null,null,null,"",""]
[null,null,null,null,null,null,null,null,null,"",""]
[null,null,null,null,null,null,null,null,null,"",""]
[null,null,null,null,null,null,null,null,null,"",""]
[null,null,null,null,null,null,null,null,null,"",""]
[null,null,null,null,null,null,null,null,null,"",""]
[null,null,null,null,null,null,null,null,null,"",""]
[null,null,null,null,null,null,null,null,null,"",""]
[null,null,null,null,null,null,null,null,null,"",""]
[null,null,null,null,null,null,null,null,null,"",""]
[null,null,null,null,null,null,null,null,null,"",""]
[null,null,null,null,null,null,null,null,null,"",""]
[null,null,null,null,null,null,null,null,null,"",""]
[null,null,null,null,null,null,null,null,null,"",""]
[null,null,null,null,null,null,null,null,null,"",""]
[null,null,null,null,null,null,null,null,null,"",{"$f":"IF(OR(I2184=\"\",J2184=\"\"),\"\",PRODUCT(I2184,J2184))","v":""}]
[null,null,null,null,null,null,null,null,null,"",""]
[null,null,null,null,null,null,null,null,null,"",""]
[null,null,null,null,null,null,null,null,null,"",""]
[null,null,null,null,null,null,null,null,null,"",""]
[null,null,null,null,null,null,null,null,null,"",""]
[null,null,null,null,null,null,null,null,null,"",""]
[null,null,null,null,null,null,null,null,null,"",""]
[null,null,null,null,null,null,null,null,null,"",""]
[null,null,null,null,null,null,null,null,null,"",""]
[null,null,null,null,null,null,null,null,null,"",""]
[null,null,null,null,null,null,null,null,null,"",""]
[null,null,null,null,null,null,null,null,null,"",""]
[null,null,null,null,null,null,null,null,null,"",""]
[null,null,null,null,null,null,null,null,null,"",""]
[null,null,null,null,null,null,null,null,null,"",""]
[null,null,null,null,null,null,null,null,null,"",""]
[null,null,null,null,null,null,null,null,null,"",""]
[null,null,null,null,null,null,null,null,null,"",""]
[null,null,null,null,null,null,null,null,null,"",""]
[null,null,null,null,null,null,null,null,null,"",""]
[null,null,null,null,null,null,null,null,null,{"$f":"IFERROR(IF(H2205<>\"\",7.05,\"\"),\"\")","v":""},""]
[null,null,null,null,null,null,null,null,null,"",""]
[null,null,null,null,null,null,null,null,null,"",""]
[null,null,null,null,null,null,null,null,null,"",""]
[null,null,null,null,null,null,null,null,null,"",""]
[null,null,null,null,null,null,null,null,null,"",""]
[null,null,null,null,null,null,null,null,null,"",""]
[null,null,null,null,null,null,null,null,null,"",""]
[null,null,null,null,null,null,null,null,null,"",""]
[null,null,null,null,null,null,null,null,null,"",""]
[null,null,null,null,null,null,null,null,null,"",""]
[null,null,null,null,null,null,null,null,null,"",""]
[null,null,null,null,null,null,null,null,null,"",""]
[null,null,null,null,null,null,null,null,null,"",""]
[null,null,null,null,null,null,null,null,null,"",""]
[null,null,null,null,null,null,null,null,null,"",""]
[null,null,null,null,null,null,null,null,null,"",""]
[null,null,null,null,null,null,null,null,null,"",""]
[null,null,null,null,null,null,null,null,null,"",""]
[null,null,null,null,null,null,null,null,null,"",""]
[null,null,null,null,null,null,null,null,null,"",""]
[null,null,null,null,null,null,null,null,null,"",""]
[null,null,null,null,null,null,null,null,null,"",""]
[null,null,null,null,null,null,null,null,null,"",""]
[null,null,null,null,null,null,null,null,null,"",""]
[null,null,null,null,null,null,null,null,null,"",""]
[null,null,null,null,null,null,null,null,null,"",""]
[null,null,null,null,null,null,null,null,null,"",""]
[null,null,null,null,null,null,null,null,null,"",""]
[null,null,null,null,null,null,null,null,null,"",""]
[null,null,null,null,null,null,null,null,null,"",""]
[null,null,null,null,null,null,null,null,null,"",""]
[null,null,null,null,null,null,null,null,null,"",""]
[null,null,null,null,null,null,null,null,null,"",""]
[null,null,null,null,null,null,null,null,null,"",""]
[null,null,null,null,null,null,null,null,null,"",""]
[null,null,null,null,null,null,null,null,null,"",""]
[null,null,null,null,null,null,null,null,null,"",""]
[null,null,null,null,null,null,null,null,null,"",""]
[null,null,null,null,null,null,null,null,null,"",""]
[null,null,null,null,null,null,null,null,null,"",""]
[null,null,null,null,null,null,null,null,null,"",""]
[null,null,null,null,null,null,null,null,null,"",""]
[null,null,null,null,null,null,null,null,null,"",{"$f":"IF(OR(I2248=\"\",J2248=\"\"),\"\",PRODUCT(I2248,J2248))","v":""}]
[null,null,null,null,null,null,null,null,null,"",""]
[null,null,null,null,null,null,null,null,null,"",""]
[null,null,null,null,null,null,null,null,null,"",""]
[null,null,null,null,null,null,null,null,null,"",""]
[null,null,null,null,null,null,null,null,null,"",""]
[null,null,null,null,null,null,null,null,null,"",""]
[null,null,null,null,null,null,null,null,null,"",""]
[null,null,null,null,null,null,null,null,null,"",""]
[null,null,null,null,null,null,null,null,null,"",""]
[null,null,null,null,null,null,null,null,null,"",""]
[null,null,null,null,null,null,null,null,null,"",""]
[null,null,null,null,null,null,null,null,null,"",""]
[null,null,null,null,null,null,null,null,null,"",""]
[null,null,null,null,null,null,null,null,null,"",""]
[null,null,null,null,null,null,null,null,null,"",""]
[null,null,null,null,null,null,null,null,null,"",""]
[null,null,null,null,null,null,null,null,null,"",""]
[null,null,null,null,null,null,null,null,null,"",""]
[null,null,null,null,null,null,null,null,null,"",""]
[null,null,null,null,null,null,null,null,null,"",""]
[null,null,null,null,null,null,null,null,null,{"$f":"IFERROR(IF(H2269<>\"\",7.05,\"\"),\"\")","v":""},""]
[null,null,null,null,null,null,null,null,null,"",""]
[null,null,null,null,null,null,null,null,null,"",""]
[null,null,null,null,null,null,null,null,null,"",""]
[null,null,null,null,null,null,null,null,null,"",""]
[null,null,null,null,null,null,null,null,null,"",""]
[null,null,null,null,null,null,null,null,null,"",""]
[null,null,null,null,null,null,null,null,null,"",""]
[null,null,null,null,null,null,null,null,null,"",""]
[null,null,null,null,null,null,null,null,null,"",""]
[null,null,null,null,null,null,null,null,null,"",""]
[null,null,null,null,null,null,null,null,null,"",""]
[null,null,null,null,null,null,null,null,null,"",""]
[null,null,null,null,null,null,null,null,null,"",""]
[null,null,null,null,null,null,null,null,null,"",""]
[null,null,null,null,null,null,null,null,null,"",""]
[null,null,null,null,null,null,null,null,null,"",""]
[null,null,null,null,null,null,null,null,null,"",""]
[null,null,null,null,null,null,null,null,null,"",""]
[null,null,null,null,null,null,null,null,null,"",""]
[null,null,null,null,null,null,null,null,null,"",""]
[null,null,null,null,null,null,null,null,null,"",""]
[null,null,null,null,null,null,null,null,null,"",""]
[null,null,null,null,null,null,null,null,null,"",""]
[null,null,null,null,null,null,null,null,null,"",""]
[null,null,null,null,null,null,null,null,null,"",""]
[null,null,null,null,null,null,null,null,null,"",""]
[null,null,null,null,null,null,null,null,null,"",""]
[null,null,null,null,null,null,null,null,null,"",""]
[null,null,null,null,null,null,null,null,null,"",""]
[null,null,null,null,null,null,null,null,null,"",""]
[null,null,null,null,null,null,null,null,null,"",""]
[null,null,null,null,null,null,null,null,null,"",""]
[null,null,null,null,null,null,null,null,null,"",""]
[null,null,null,null,null,null,null,null,null,"",""]
[null,null,null,null,null,null,null,null,null,"",""]
[null,null,null,null,null,null,null,null,null,"",""]
[null,null,null,null,null,null,null,null,null,"",""]
[null,null,null,null,null,null,null,null,null,"",""]
[null,null,null,null,null,null,null,null,null,"",""]
[null,null,null,null,null,null,null,null,null,"",""]
[null,null,null,null,null,null,null,null,null,"",""]
[null,null,null,null,null,null,null,null,null,"",""]
[null,null,null,null,null,null,null,null,null,"",{"$f":"IF(OR(I2312=\"\",J2312=\"\"),\"\",PRODUCT(I2312,J2312))","v":""}]
[null,null,null,null,null,null,null,null,null,"",""]
[null,null,null,null,null,null,null,null,null,"",""]
[null,null,null,null,null,null,null,null,null,"",""]
[null,null,null,null,null,null,null,null,null,"",""]
[null,null,null,null,null,null,null,null,null,"",""]
[null,null,null,null,null,null,null,null,null,"",""]
[null,null,null,null,null,null,null,null,null,"",""]
[null,null,null,null,null,null,null,null,null,"",""]
[null,null,null,null,null,null,null,null,null,"",""]
[null,null,null,null,null,null,null,null,null,"",""]
[null,null,null,null,null,null,null,null,null,"",""]
[null,null,null,null,null,null,null,null,null,"",""]
[null,null,null,null,null,null,null,null,null,"",""]
[null,null,null,null,null,null,null,null,null,"",""]
[null,null,null,null,null,null,null,null,null,"",""]
[null,null,null,null,null,null,null,null,null,"",""]
[null,null,null,null,null,null,null,null,null,"",""]
[null,null,null,null,null,null,null,null,null,"",""]
[null,null,null,null,null,null,null,null,null,"",""]
[null,null,null,null,null,null,null,null,null,"",""]
[null,null,null,null,null,null,null,null,null,{"$f":"IFERROR(IF(H2333<>\"\",7.05,\"\"),\"\")","v":""},""]
[null,null,null,null,null,null,null,null,null,"",""]
[null,null,null,null,null,null,null,null,null,"",""]
[null,null,null,null,null,null,null,null,null,"",""]
[null,null,null,null,null,null,null,null,null,"",""]
[null,null,null,null,null,null,null,null,null,"",""]
[null,null,null,null,null,null,null,null,null,"",""]
[null,null,null,null,null,null,null,null,null,"",""]
[null,null,null,null,null,null,null,null,null,"",""]
[null,null,null,null,null,null,null,null,null,"",""]
[null,null,null,null,null,null,null,null,null,"",""]
[null,null,null,null,null,null,null,null,null,"",""]
[null,null,null,null,null,null,null,null,null,"",""]
[null,null,null,null,null,null,null,null,null,"",""]
[null,null,null,null,null,null,null,null,null,"",""]
[null,null,null,null,null,null,null,null,null,"",""]
[null,null,null,null,null,null,null,null,null,"",""]
[null,null,null,null,null,null,null,null,null,"",""]
[null,null,null,null,null,null,null,null,null,"",""]
[null,null,null,null,null,null,null,null,null,"",""]
[null,null,null,null,null,null,null,null,null,"",""]
[null,null,null,null,null,null,null,null,null,"",""]
[null,null,null,null,null,null,null,null,null,"",""]
[null,null,null,null,null,null,null,null,null,"",""]
[null,null,null,null,null,null,null,null,null,"",""]
[null,null,null,null,null,null,null,null,null,"",""]
[null,null,null,null,null,null,null,null,null,"",""]
[null,null,null,null,null,null,null,null,null,"",""]
[null,null,null,null,null,null,null,null,null,"",""]
[null,null,null,null,null,null,null,null,null,"",""]
[null,null,null,null,null,null,null,null,null,"",""]
[null,null,null,null,null,null,null,null,null,"",""]
[null,null,null,null,null,null,null,null,null,"",""]
[null,null,null,null,null,null,null,null,null,"",""]
[null,null,null,null,null,null,null,null,null,"",""]
[null,null,null,null,null,null,null,null,null,"",""]
[null,null,null,null,null,null,null,null,null,"",""]
[null,null,null,null,null,null,null,null,null,"",""]
[null,null,null,null,null,null,null,null,null,"",""]
[null,null,null,null,null,null,null,null,null,"",""]
[null,null,null,null,null,null,null,null,null,"",""]
[null,null,null,null,null,null,null,null,null,"",""]
[null,null,null,null,null,null,null,null,null,"",""]
[null,null,null,null,null,null,null,null,null,"",{"$f":"IF(OR(I2376=\"\",J2376=\"\"),\"\",PRODUCT(I2376,J2376))","v":""}]
[null,null,null,null,null,null,null,null,null,"",""]
[null,null,null,null,null,null,null,null,null,"",""]
[null,null,null,null,null,null,null,null,null,"",""]
[null,null,null,null,null,null,null,null,null,"",""]
[null,null,null,null,null,null,null,null,null,"",""]
[null,null,null,null,null,null,null,null,null,"",""]
[null,null,null,null,null,null,null,null,null,"",""]
[null,null,null,null,null,null,null,null,null,"",""]
[null,null,null,null,null,null,null,null,null,"",""]
[null,null,null,null,null,null,null,null,null,"",""]
[null,null,null,null,null,null,null,null,null,"",""]
[null,null,null,null,null,null,null,null,null,"",""]
[null,null,null,null,null,null,null,null,null,"",""]
[null,null,null,null,null,null,null,null,null,"",""]
[null,null,null,null,null,null,null,null,null,"",""]
[null,null,null,null,null,null,null,null,null,"",""]
[null,null,null,null,null,null,null,null,null,"",""]
[null,null,null,null,null,null,null,null,null,"",""]
[null,null,null,null,null,null,null,null,null,"",""]
[null,null,null,null,null,null,null,null,null,"",""]
[null,null,null,null,null,null,null,null,null,{"$f":"IFERROR(IF(H2397<>\"\",7.05,\"\"),\"\")","v":""},""]
[null,null,null,null,null,null,null,null,null,"",""]
[null,null,null,null,null,null,null,null,null,"",""]
[null,null,null,null,null,null,null,null,null,"",""]
[null,null,null,null,null,null,null,null,null,"",""]
[null,null,null,null,null,null,null,null,null,"",""]
[null,null,null,null,null,null,null,null,null,"",""]
[null,null,null,null,null,null,null,null,null,"",""]
[null,null,null,null,null,null,null,null,null,"",""]
[null,null,null,null,null,null,null,null,null,"",""]
[null,null,null,null,null,null,null,null,null,"",""]
[null,null,null,null,null,null,null,null,null,"",""]
[null,null,null,null,null,null,null,null,null,"",""]
[null,null,null,null,null,null,null,null,null,"",""]
[null,null,null,null,null,null,null,null,null,"",""]
[null,null,null,null,null,null,null,null,null,"",""]
[null,null,null,null,null,null,null,null,null,"",""]
[null,null,null,null,null,null,null,null,null,"",""]
[null,null,null,null,null,null,null,null,null,"",""]
[null,null,null,null,null,null,null,null,null,"",""]
[null,null,null,null,null,null,null,null,null,"",""]
[null,null,null,null,null,null,null,null,null,"",""]
[null,null,null,null,null,null,null,null,null,"",""]
[null,null,null,null,null,null,null,null,null,"",""]
[null,null,null,null,null,null,null,null,null,"",""]
[null,null,null,null,null,null,null,null,null,"",""]
[null,null,null,null,null,null,null,null,null,"",""]
[null,null,null,null,null,null,null,null,null,"",""]
[null,null,null,null,null,null,null,null,null,"",""]
[null,null,null,null,null,null,null,null,null,"",""]
[null,null,null,null,null,null,null,null,null,"",""]
[null,null,null,null,null,null,null,null,null,"",""]
[null,null,null,null,null,null,null,null,null,"",""]
[null,null,null,null,null,null,null,null,null,"",""]
[null,null,null,null,null,null,null,null,null,"",""]
[null,null,null,null,null,null,null,null,null,"",""]
[null,null,null,null,null,null,null,null,null,"",""]
[null,null,null,null,null,null,null,null,null,"",""]
[null,null,null,null,null,null,null,null,null,"",""]
[null,null,null,null,null,null,null,null,null,"",""]
[null,null,null,null,null,null,null,null,null,"",""]
[null,null,null,null,null,null,null,null,null,"",""]
[null,null,null,null,null,null,null,null,null,"",""]
[null,null,null,null,null,null,null,null,null,"",{"$f":"IF(OR(I2440=\"\",J2440=\"\"),\"\",PRODUCT(I2440,J2440))","v":""}]
[null,null,null,null,null,null,null,null,null,"",""]
[null,null,null,null,null,null,null,null,null,"",""]
[null,null,null,null,null,null,null,null,null,"",""]
[null,null,null,null,null,null,null,null,null,"",""]
[null,null,null,null,null,null,null,null,null,"",""]
[null,null,null,null,null,null,null,null,null,"",""]
[null,null,null,null,null,null,null,null,null,"",""]
[null,null,null,null,null,null,null,null,null,"",""]
[null,null,null,null,null,null,null,null,null,"",""]
[null,null,null,null,null,null,null,null,null,"",""]
[null,null,null,null,null,null,null,null,null,"",""]
[null,null,null,null,null,null,null,null,null,"",""]
[null,null,null,null,null,null,null,null,null,"",""]
[null,null,null,null,null,null,null,null,null,"",""]
[null,null,null,null,null,null,null,null,null,"",""]
[null,null,null,null,null,null,null,null,null,"",""]
[null,null,null,null,null,null,null,null,null,"",""]
[null,null,null,null,null,null,null,null,null,"",""]
[null,null,null,null,null,null,null,null,null,"",""]
[null,null,null,null,null,null,null,null,null,"",""]
[null,null,null,null,null,null,null,null,null,{"$f":"IFERROR(IF(H2461<>\"\",7.05,\"\"),\"\")","v":""},""]
[null,null,null,null,null,null,null,null,null,"",""]
[null,null,null,null,null,null,null,null,null,"",""]
[null,null,null,null,null,null,null,null,null,"",""]
[null,null,null,null,null,null,null,null,null,"",""]
[null,null,null,null,null,null,null,null,null,"",""]
[null,null,null,null,null,null,null,null,null,"",""]
[null,null,null,null,null,null,null,null,null,"",""]
[null,null,null,null,null,null,null,null,null,"",""]
[null,null,null,null,null,null,null,null,null,"",""]
[null,null,null,null,null,null,null,null,null,"",""]
[null,null,null,null,null,null,null,null,null,"",""]
[null,null,null,null,null,null,null,null,null,"",""]
[null,null,null,null,null,null,null,null,null,"",""]
[null,null,null,null,null,null,null,null,null,"",""]
[null,null,null,null,null,null,null,null,null,"",""]
[null,null,null,null,null,null,null,null,null,"",""]
[null,null,null,null,null,null,null,null,null,"",""]
[null,null,null,null,null,null,null,null,null,"",""]
[null,null,null,null,null,null,null,null,null,"",""]
[null,null,null,null,null,null,null,null,null,"",""]
[null,null,null,null,null,null,null,null,null,"",""]
[null,null,null,null,null,null,null,null,null,"",""]
[null,null,null,null,null,null,null,null,null,"",""]
[null,null,null,null,null,null,null,null,null,"",""]
[null,null,null,null,null,null,null,null,null,"",""]
[null,null,null,null,null,null,null,null,null,"",""]
[null,null,null,null,null,null,null,null,null,"",""]
[null,null,null,null,null,null,null,null,null,"",""]
[null,null,null,null,null,null,null,null,null,"",""]
[null,null,null,null,null,null,null,null,null,"",""]
[null,null,null,null,null,null,null,null,null,"",""]
[null,null,null,null,null,null,null,null,null,"",""]
[null,null,null,null,null,null,null,null,null,"",""]
[null,null,null,null,null,null,null,null,null,"",""]
[null,null,null,null,null,null,null,null,null,"",""]
[null,null,null,null,null,null,null,null,null,"",""]
[null,null,null,null,null,null,null,null,null,"",""]
[null,null,null,null,null,null,null,null,null,"",""]
[null,null,null,null,null,null,null,null,null,"",""]
[null,null,null,null,null,null,null,null,null,"",""]
[null,null,null,null,null,null,null,null,null,"",""]
[null,null,null,null,null,null,null,null,null,"",""]
[null,null,null,null,null,null,null,null,null,"",{"$f":"IF(OR(I2504=\"\",J2504=\"\"),\"\",PRODUCT(I2504,J2504))","v":""}]
[null,null,null,null,null,null,null,null,null,"",""]
[null,null,null,null,null,null,null,null,null,"",""]
[null,null,null,null,null,null,null,null,null,"",""]
[null,null,null,null,null,null,null,null,null,"",""]
[null,null,null,null,null,null,null,null,null,"",""]
[null,null,null,null,null,null,null,null,null,"",""]
[null,null,null,null,null,null,null,null,null,"",""]
[null,null,null,null,null,null,null,null,null,"",""]
[null,null,null,null,null,null,null,null,null,"",""]
[null,null,null,null,null,null,null,null,null,"",""]
[null,null,null,null,null,null,null,null,null,"",""]
[null,null,null,null,null,null,null,null,null,"",""]
[null,null,null,null,null,null,null,null,null,"",""]
[null,null,null,null,null,null,null,null,null,"",""]
[null,null,null,null,null,null,null,null,null,"",""]
[null,null,null,null,null,null,null,null,null,"",""]
[null,null,null,null,null,null,null,null,null,"",""]
[null,null,null,null,null,null,null,null,null,"",""]
[null,null,null,null,null,null,null,null,null,"",""]
[null,null,null,null,null,null,null,null,null,"",""]
[null,null,null,null,null,null,null,null,null,{"$f":"IFERROR(IF(H2525<>\"\",7.05,\"\"),\"\")","v":""},""]
[null,null,null,null,null,null,null,null,null,"",""]
[null,null,null,null,null,null,null,null,null,"",""]
[null,null,null,null,null,null,null,null,null,"",""]
[null,null,null,null,null,null,null,null,null,"",""]
[null,null,null,null,null,null,null,null,null,"",""]
[null,null,null,null,null,null,null,null,null,"",""]
[null,null,null,null,null,null,null,null,null,"",""]
[null,null,null,null,null,null,null,null,null,"",""]
[null,null,null,null,null,null,null,null,null,"",""]
[null,null,null,null,null,null,null,null,null,"",""]
[null,null,null,null,null,null,null,null,null,"",""]
[null,null,null,null,null,null,null,null,null,"",""]
[null,null,null,null,null,null,null,null,null,"",""]
[null,null,null,null,null,null,null,null,null,"",""]
[null,null,null,null,null,null,null,null,null,"",""]
[null,null,null,null,null,null,null,null,null,"",""]
[null,null,null,null,null,null,null,null,null,"",""]
[null,null,null,null,null,null,null,null,null,"",""]
[null,null,null,null,null,null,null,null,null,"",""]
[null,null,null,null,null,null,null,null,null,"",""]
[null,null,null,null,null,null,null,null,null,"",""]
[null,null,null,null,null,null,null,null,null,"",""]
[null,null,null,null,null,null,null,null,null,"",""]
[null,null,null,null,null,null,null,null,null,"",""]
[null,null,null,null,null,null,null,null,null,"",""]
[null,null,null,null,null,null,null,null,null,"",""]
[null,null,null,null,null,null,null,null,null,"",""]
[null,null,null,null,null,null,null,null,null,"",""]
[null,null,null,null,null,null,null,null,null,"",""]
[null,null,null,null,null,null,null,null,null,"",""]
[null,null,null,null,null,null,null,null,null,"",""]
[null,null,null,null,null,null,null,null,null,"",""]
[null,null,null,null,null,null,null,null,null,"",""]
[null,null,null,null,null,null,null,null,null,"",""]
[null,null,null,null,null,null,null,null,null,"",""]
[null,null,null,null,null,null,null,null,null,"",""]
[null,null,null,null,null,null,null,null,null,"",""]
[null,null,null,null,null,null,null,null,null,"",""]
[null,null,null,null,null,null,null,null,null,"",""]
[null,null,null,null,null,null,null,null,null,"",""]
[null,null,null,null,null,null,null,null,null,"",""]
[null,null,null,null,null,null,null,null,null,"",""]
[null,null,null,null,null,null,null,null,null,"",{"$f":"IF(OR(I2568=\"\",J2568=\"\"),\"\",PRODUCT(I2568,J2568))","v":""}]
[null,null,null,null,null,null,null,null,null,"",""]
[null,null,null,null,null,null,null,null,null,"",""]
[null,null,null,null,null,null,null,null,null,"",""]
[null,null,null,null,null,null,null,null,null,"",""]
[null,null,null,null,null,null,null,null,null,"",""]
[null,null,null,null,null,null,null,null,null,"",""]
[null,null,null,null,null,null,null,null,null,"",""]
[null,null,null,null,null,null,null,null,null,"",""]
[null,null,null,null,null,null,null,null,null,"",""]
[null,null,null,null,null,null,null,null,null,"",""]
[null,null,null,null,null,null,null,null,null,"",""]
[null,null,null,null,null,null,null,null,null,"",""]
[null,null,null,null,null,null,null,null,null,"",""]
[null,null,null,null,null,null,null,null,null,"",""]
[null,null,null,null,null,null,null,null,null,"",""]
[null,null,null,null,null,null,null,null,null,"",""]
[null,null,null,null,null,null,null,null,null,"",""]
[null,null,null,null,null,null,null,null,null,"",""]
[null,null,null,null,null,null,null,null,null,"",""]
[null,null,null,null,null,null,null,null,null,"",""]
[null,null,null,null,null,null,null,null,null,{"$f":"IFERROR(IF(H2589<>\"\",7.05,\"\"),\"\")","v":""},""]
[null,null,null,null,null,null,null,null,null,"",""]
[null,null,null,null,null,null,null,null,null,"",""]
[null,null,null,null,null,null,null,null,null,"",""]
[null,null,null,null,null,null,null,null,null,"",""]
[null,null,null,null,null,null,null,null,null,"",""]
[null,null,null,null,null,null,null,null,null,"",""]
[null,null,null,null,null,null,null,null,null,"",""]
[null,null,null,null,null,null,null,null,null,"",""]
[null,null,null,null,null,null,null,null,null,"",""]
[null,null,null,null,null,null,null,null,null,"",""]
[null,null,null,null,null,null,null,null,null,"",""]
[null,null,null,null,null,null,null,null,null,"",""]
[null,null,null,null,null,null,null,null,null,"",""]
[null,null,null,null,null,null,null,null,null,"",""]
[null,null,null,null,null,null,null,null,null,"",""]
[null,null,null,null,null,null,null,null,null,"",""]
[null,null,null,null,null,null,null,null,null,"",""]
[null,null,null,null,null,null,null,null,null,"",""]
[null,null,null,null,null,null,null,null,null,"",""]
[null,null,null,null,null,null,null,null,null,"",""]
[null,null,null,null,null,null,null,null,null,"",""]
[null,null,null,null,null,null,null,null,null,"",""]
[null,null,null,null,null,null,null,null,null,"",""]
[null,null,null,null,null,null,null,null,null,"",""]
[null,null,null,null,null,null,null,null,null,"",""]
[null,null,null,null,null,null,null,null,null,"",""]
[null,null,null,null,null,null,null,null,null,"",""]
[null,null,null,null,null,null,null,null,null,"",""]
[null,null,null,null,null,null,null,null,null,"",""]
[null,null,null,null,null,null,null,null,null,"",""]
[null,null,null,null,null,null,null,null,null,"",""]
[null,null,null,null,null,null,null,null,null,"",""]
[null,null,null,null,null,null,null,null,null,"",""]
[null,null,null,null,null,null,null,null,null,"",""]
[null,null,null,null,null,null,null,null,null,"",""]
[null,null,null,null,null,null,null,null,null,"",""]
[null,null,null,null,null,null,null,null,null,"",""]
[null,null,null,null,null,null,null,null,null,"",""]
[null,null,null,null,null,null,null,null,null,"",""]
[null,null,null,null,null,null,null,null,null,"",""]
[null,null,null,null,null,null,null,null,null,"",""]
[null,null,null,null,null,null,null,null,null,"",""]
[null,null,null,null,null,null,null,null,null,"",{"$f":"IF(OR(I2632=\"\",J2632=\"\"),\"\",PRODUCT(I2632,J2632))","v":""}]
[null,null,null,null,null,null,null,null,null,"",""]
[null,null,null,null,null,null,null,null,null,"",""]
[null,null,null,null,null,null,null,null,null,"",""]
[null,null,null,null,null,null,null,null,null,"",""]
[null,null,null,null,null,null,null,null,null,"",""]
[null,null,null,null,null,null,null,null,null,"",""]
[null,null,null,null,null,null,null,null,null,"",""]
[null,null,null,null,null,null,null,null,null,"",""]
[null,null,null,null,null,null,null,null,null,"",""]
[null,null,null,null,null,null,null,null,null,"",""]
[null,null,null,null,null,null,null,null,null,"",""]
[null,null,null,null,null,null,null,null,null,"",""]
[null,null,null,null,null,null,null,null,null,"",""]
[null,null,null,null,null,null,null,null,null,"",""]
[null,null,null,null,null,null,null,null,null,"",""]
[null,null,null,null,null,null,null,null,null,"",""]
[null,null,null,null,null,null,null,null,null,"",""]
[null,null,null,null,null,null,null,null,null,"",""]
[null,null,null,null,null,null,null,null,null,"",""]
[null,null,null,null,null,null,null,null,null,"",""]
[null,null,null,null,null,null,null,null,null,{"$f":"IFERROR(IF(H2653<>\"\",7.05,\"\"),\"\")","v":""},""]
[null,null,null,null,null,null,null,null,null,"",""]
[null,null,null,null,null,null,null,null,null,"",""]
[null,null,null,null,null,null,null,null,null,"",""]
[null,null,null,null,null,null,null,null,null,"",""]
[null,null,null,null,null,null,null,null,null,"",""]
[null,null,null,null,null,null,null,null,null,"",""]
[null,null,null,null,null,null,null,null,null,"",""]
[null,null,null,null,null,null,null,null,null,"",""]
[null,null,null,null,null,null,null,null,null,"",""]
[null,null,null,null,null,null,null,null,null,"",""]
[null,null,null,null,null,null,null,null,null,"",""]
[null,null,null,null,null,null,null,null,null,"",""]
[null,null,null,null,null,null,null,null,null,"",""]
[null,null,null,null,null,null,null,null,null,"",""]
[null,null,null,null,null,null,null,null,null,"",""]
[null,null,null,null,null,null,null,null,null,"",""]
[null,null,null,null,null,null,null,null,null,"",""]
[null,null,null,null,null,null,null,null,null,"",""]
[null,null,null,null,null,null,null,null,null,"",""]
[null,null,null,null,null,null,null,null,null,"",""]
[null,null,null,null,null,null,null,null,null,"",""]
[null,null,null,null,null,null,null,null,null,"",""]
[null,null,null,null,null,null,null,null,null,"",""]
[null,null,null,null,null,null,null,null,null,"",""]
[null,null,null,null,null,null,null,null,null,"",""]
[null,null,null,null,null,null,null,null,null,"",""]
[null,null,null,null,null,null,null,null,null,"",""]
[null,null,null,null,null,null,null,null,null,"",""]
[null,null,null,null,null,null,null,null,null,"",""]
[null,null,null,null,null,null,null,null,null,"",""]
[null,null,null,null,null,null,null,null,null,"",""]
[null,null,null,null,null,null,null,null,null,"",""]
[null,null,null,null,null,null,null,null,null,"",""]
[null,null,null,null,null,null,null,null,null,"",""]
[null,null,null,null,null,null,null,null,null,"",""]
[null,null,null,null,null,null,null,null,null,"",""]
[null,null,null,null,null,null,null,null,null,"",""]
[null,null,null,null,null,null,null,null,null,"",""]
[null,null,null,null,null,null,null,null,null,"",""]
[null,null,null,null,null,null,null,null,null,"",""]
[null,null,null,null,null,null,null,null,null,"",""]
[null,null,null,null,null,null,null,null,null,"",""]
[null,null,null,null,null,null,null,null,null,"",{"$f":"IF(OR(I2696=\"\",J2696=\"\"),\"\",PRODUCT(I2696,J2696))","v":""}]
[null,null,null,null,null,null,null,null,null,"",""]
[null,null,null,null,null,null,null,null,null,"",""]
[null,null,null,null,null,null,null,null,null,"",""]
[null,null,null,null,null,null,null,null,null,"",""]
[null,null,null,null,null,null,null,null,null,"",""]
[null,null,null,null,null,null,null,null,null,"",""]
[null,null,null,null,null,null,null,null,null,"",""]
[null,null,null,null,null,null,null,null,null,"",""]
[null,null,null,null,null,null,null,null,null,"",""]
[null,null,null,null,null,null,null,null,null,"",""]
[null,null,null,null,null,null,null,null,null,"",""]
[null,null,null,null,null,null,null,null,null,"",""]
[null,null,null,null,null,null,null,null,null,"",""]
[null,null,null,null,null,null,null,null,null,"",""]
[null,null,null,null,null,null,null,null,null,"",""]
[null,null,null,null,null,null,null,null,null,"",""]
[null,null,null,null,null,null,null,null,null,"",""]
[null,null,null,null,null,null,null,null,null,"",""]
[null,null,null,null,null,null,null,null,null,"",""]
[null,null,null,null,null,null,null,null,null,"",""]
[null,null,null,null,null,null,null,null,null,{"$f":"IFERROR(IF(H2717<>\"\",7.05,\"\"),\"\")","v":""},""]
[null,null,null,null,null,null,null,null,null,"",""]
[null,null,null,null,null,null,null,null,null,"",""]
[null,null,null,null,null,null,null,null,null,"",""]
[null,null,null,null,null,null,null,null,null,"",""]
[null,null,null,null,null,null,null,null,null,"",""]
[null,null,null,null,null,null,null,null,null,"",""]
[null,null,null,null,null,null,null,null,null,"",""]
[null,null,null,null,null,null,null,null,null,"",""]
[null,null,null,null,null,null,null,null,null,"",""]
[null,null,null,null,null,null,null,null,null,"",""]
[null,null,null,null,null,null,null,null,null,"",""]
[null,null,null,null,null,null,null,null,null,"",""]
[null,null,null,null,null,null,null,null,null,"",""]
[null,null,null,null,null,null,null,null,null,"",""]
[null,null,null,null,null,null,null,null,null,"",""]
[null,null,null,null,null,null,null,null,null,"",""]
[null,null,null,null,null,null,null,null,null,"",""]
[null,null,null,null,null,null,null,null,null,"",""]
[null,null,null,null,null,null,null,null,null,"",""]
[null,null,null,null,null,null,null,null,null,"",""]
[null,null,null,null,null,null,null,null,null,"",""]
[null,null,null,null,null,null,null,null,null,"",""]
[null,null,null,null,null,null,null,null,null,"",""]
[null,null,null,null,null,null,null,null,null,"",""]
[null,null,null,null,null,null,null,null,null,"",""]
[null,null,null,null,null,null,null,null,null,"",""]
[null,null,null,null,null,null,null,null,null,"",""]
[null,null,null,null,null,null,null,null,null,"",""]
[null,null,null,null,null,null,null,null,null,"",""]
[null,null,null,null,null,null,null,null,null,"",""]
[null,null,null,null,null,null,null,null,null,"",""]
[null,null,null,null,null,null,null,null,null,"",""]
[null,null,null,null,null,null,null,null,null,"",""]
[null,null,null,null,null,null,null,null,null,"",""]
[null,null,null,null,null,null,null,null,null,"",""]
[null,null,null,null,null,null,null,null,null,"",""]
[null,null,null,null,null,null,null,null,null,"",""]
[null,null,null,null,null,null,null,null,null,"",""]
[null,null,null,null,null,null,null,null,null,"",""]
[null,null,null,null,null,null,null,null,null,"",""]
[null,null,null,null,null,null,null,null,null,"",""]
[null,null,null,null,null,null,null,null,null,"",""]
[null,null,null,null,null,null,null,null,null,"",{"$f":"IF(OR(I2760=\"\",J2760=\"\"),\"\",PRODUCT(I2760,J2760))","v":""}]
[null,null,null,null,null,null,null,null,null,"",""]
[null,null,null,null,null,null,null,null,null,"",""]
[null,null,null,null,null,null,null,null,null,"",""]
[null,null,null,null,null,null,null,null,null,"",""]
[null,null,null,null,null,null,null,null,null,"",""]
[null,null,null,null,null,null,null,null,null,"",""]
[null,null,null,null,null,null,null,null,null,"",""]
[null,null,null,null,null,null,null,null,null,"",""]
[null,null,null,null,null,null,null,null,null,"",""]
[null,null,null,null,null,null,null,null,null,"",""]
[null,null,null,null,null,null,null,null,null,"",""]
[null,null,null,null,null,null,null,null,null,"",""]
[null,null,null,null,null,null,null,null,null,"",""]
[null,null,null,null,null,null,null,null,null,"",""]
[null,null,null,null,null,null,null,null,null,"",""]
[null,null,null,null,null,null,null,null,null,"",""]
[null,null,null,null,null,null,null,null,null,"",""]
[null,null,null,null,null,null,null,null,null,"",""]
[null,null,null,null,null,null,null,null,null,"",""]
[null,null,null,null,null,null,null,null,null,"",""]
[null,null,null,null,null,null,null,null,null,{"$f":"IFERROR(IF(H2781<>\"\",7.05,\"\"),\"\")","v":""},""]
[null,null,null,null,null,null,null,null,null,"",""]
[null,null,null,null,null,null,null,null,null,"",""]
[null,null,null,null,null,null,null,null,null,"",""]
[null,null,null,null,null,null,null,null,null,"",""]
[null,null,null,null,null,null,null,null,null,"",""]
[null,null,null,null,null,null,null,null,null,"",""]
[null,null,null,null,null,null,null,null,null,"",""]
[null,null,null,null,null,null,null,null,null,"",""]
[null,null,null,null,null,null,null,null,null,"",""]
[null,null,null,null,null,null,null,null,null,"",""]
[null,null,null,null,null,null,null,null,null,"",""]
[null,null,null,null,null,null,null,null,null,"",""]
[null,null,null,null,null,null,null,null,null,"",""]
[null,null,null,null,null,null,null,null,null,"",""]
[null,null,null,null,null,null,null,null,null,"",""]
[null,null,null,null,null,null,null,null,null,"",""]
[null,null,null,null,null,null,null,null,null,"",""]
[null,null,null,null,null,null,null,null,null,"",""]
[null,null,null,null,null,null,null,null,null,"",""]
[null,null,null,null,null,null,null,null,null,"",""]
[null,null,null,null,null,null,null,null,null,"",""]
[null,null,null,null,null,null,null,null,null,"",""]
[null,null,null,null,null,null,null,null,null,"",""]
[null,null,null,null,null,null,null,null,null,"",""]
[null,null,null,null,null,null,null,null,null,"",""]
[null,null,null,null,null,null,null,null,null,"",""]
[null,null,null,null,null,null,null,null,null,"",""]
[null,null,null,null,null,null,null,null,null,"",""]
[null,null,null,null,null,null,null,null,null,"",""]
[null,null,null,null,null,null,null,null,null,"",""]
[null,null,null,null,null,null,null,null,null,"",""]
[null,null,null,null,null,null,null,null,null,"",""]
[null,null,null,null,null,null,null,null,null,"",""]
[null,null,null,null,null,null,null,null,null,"",""]
[null,null,null,null,null,null,null,null,null,"",""]
[null,null,null,null,null,null,null,null,null,"",""]
[null,null,null,null,null,null,null,null,null,"",""]
[null,null,null,null,null,null,null,null,null,"",""]
[null,null,null,null,null,null,null,null,null,"",""]
[null,null,null,null,null,null,null,null,null,"",""]
[null,null,null,null,null,null,null,null,null,"",""]
[null,null,null,null,null,null,null,null,null,"",""]
[null,null,null,null,null,null,null,null,null,"",{"$f":"IF(OR(I2824=\"\",J2824=\"\"),\"\",PRODUCT(I2824,J2824))","v":""}]
[null,null,null,null,null,null,null,null,null,"",""]
[null,null,null,null,null,null,null,null,null,"",""]
[null,null,null,null,null,null,null,null,null,"",""]
[null,null,null,null,null,null,null,null,null,"",""]
[null,null,null,null,null,null,null,null,null,"",""]
[null,null,null,null,null,null,null,null,null,"",""]
[null,null,null,null,null,null,null,null,null,"",""]
[null,null,null,null,null,null,null,null,null,"",""]
[null,null,null,null,null,null,null,null,null,"",""]
[null,null,null,null,null,null,null,null,null,"",""]
[null,null,null,null,null,null,null,null,null,"",""]
[null,null,null,null,null,null,null,null,null,"",""]
[null,null,null,null,null,null,null,null,null,"",""]
[null,null,null,null,null,null,null,null,null,"",""]
[null,null,null,null,null,null,null,null,null,"",""]
[null,null,null,null,null,null,null,null,null,"",""]
[null,null,null,null,null,null,null,null,null,"",""]
[null,null,null,null,null,null,null,null,null,"",""]
[null,null,null,null,null,null,null,null,null,"",""]
[null,null,null,null,null,null,null,null,null,"",""]
[null,null,null,null,null,null,null,null,null,{"$f":"IFERROR(IF(H2845<>\"\",7.05,\"\"),\"\")","v":""},""]
[null,null,null,null,null,null,null,null,null,"",""]
[null,null,null,null,null,null,null,null,null,"",""]
[null,null,null,null,null,null,null,null,null,"",""]
[null,null,null,null,null,null,null,null,null,"",""]
[null,null,null,null,null,null,null,null,null,"",""]
[null,null,null,null,null,null,null,null,null,"",""]
[null,null,null,null,null,null,null,null,null,"",""]
[null,null,null,null,null,null,null,null,null,"",""]
[null,null,null,null,null,null,null,null,null,"",""]
[null,null,null,null,null,null,null,null,null,"",""]
[null,null,null,null,null,null,null,null,null,"",""]
[null,null,null,null,null,null,null,null,null,"",""]
[null,null,null,null,null,null,null,null,null,"",""]
[null,null,null,null,null,null,null,null,null,"",""]
[null,null,null,null,null,null,null,null,null,"",""]
[null,null,null,null,null,null,null,null,null,"",""]
[null,null,null,null,null,null,null,null,null,"",""]
[null,null,null,null,null,null,null,null,null,"",""]
[null,null,null,null,null,null,null,null,null,"",""]
[null,null,null,null,null,null,null,null,null,"",""]
[null,null,null,null,null,null,null,null,null,"",""]
[null,null,null,null,null,null,null,null,null,"",""]
[null,null,null,null,null,null,null,null,null,"",""]
[null,null,null,null,null,null,null,null,null,"",""]
[null,null,null,null,null,null,null,null,null,"",""]
[null,null,null,null,null,null,null,null,null,"",""]
[null,null,null,null,null,null,null,null,null,"",""]
[null,null,null,null,null,null,null,null,null,"",""]
[null,null,null,null,null,null,null,null,null,"",""]
[null,null,null,null,null,null,null,null,null,"",""]
[null,null,null,null,null,null,null,null,null,"",""]
[null,null,null,null,null,null,null,null,null,"",""]
[null,null,null,null,null,null,null,null,null,"",""]
[null,null,null,null,null,null,null,null,null,"",""]
[null,null,null,null,null,null,null,null,null,"",""]
[null,null,null,null,null,null,null,null,null,"",""]
[null,null,null,null,null,null,null,null,null,"",""]
[null,null,null,null,null,null,null,null,null,"",""]
[null,null,null,null,null,null,null,null,null,"",""]
[null,null,null,null,null,null,null,null,null,"",""]
[null,null,null,null,null,null,null,null,null,"",""]
[null,null,null,null,null,null,null,null,null,"",""]
[null,null,null,null,null,null,null,null,null,"",{"$f":"IF(OR(I2888=\"\",J2888=\"\"),\"\",PRODUCT(I2888,J2888))","v":""}]
[null,null,null,null,null,null,null,null,null,"",""]
[null,null,null,null,null,null,null,null,null,"",""]
[null,null,null,null,null,null,null,null,null,"",""]
[null,null,null,null,null,null,null,null,null,"",""]
[null,null,null,null,null,null,null,null,null,"",""]
[null,null,null,null,null,null,null,null,null,"",""]
[null,null,null,null,null,null,null,null,null,"",""]
[null,null,null,null,null,null,null,null,null,"",""]
[null,null,null,null,null,null,null,null,null,"",""]
[null,null,null,null,null,null,null,null,null,"",""]
[null,null,null,null,null,null,null,null,null,"",""]
[null,null,null,null,null,null,null,null,null,"",""]
[null,null,null,null,null,null,null,null,null,"",""]
[null,null,null,null,null,null,null,null,null,"",""]
[null,null,null,null,null,null,null,null,null,"",""]
[null,null,null,null,null,null,null,null,null,"",""]
[null,null,null,null,null,null,null,null,null,"",""]
[null,null,null,null,null,null,null,null,null,"",""]
[null,null,null,null,null,null,null,null,null,"",""]
[null,null,null,null,null,null,null,null,null,"",""]
[null,null,null,null,null,null,null,null,null,{"$f":"IFERROR(IF(H2909<>\"\",7.05,\"\"),\"\")","v":""},""]
[null,null,null,null,null,null,null,null,null,"",""]
[null,null,null,null,null,null,null,null,null,"",""]
[null,null,null,null,null,null,null,null,null,"",""]
[null,null,null,null,null,null,null,null,null,"",""]
[null,null,null,null,null,null,null,null,null,"",""]
[null,null,null,null,null,null,null,null,null,"",""]
[null,null,null,null,null,null,null,null,null,"",""]
[null,null,null,null,null,null,null,null,null,"",""]
[null,null,null,null,null,null,null,null,null,"",""]
[null,null,null,null,null,null,null,null,null,"",""]
[null,null,null,null,null,null,null,null,null,"",""]
[null,null,null,null,null,null,null,null,null,"",""]
[null,null,null,null,null,null,null,null,null,"",""]
[null,null,null,null,null,null,null,null,null,"",""]
[null,null,null,null,null,null,null,null,null,"",""]
[null,null,null,null,null,null,null,null,null,"",""]
[null,null,null,null,null,null,null,null,null,"",""]
[null,null,null,null,null,null,null,null,null,"",""]
[null,null,null,null,null,null,null,null,null,"",""]
[null,null,null,null,null,null,null,null,null,"",""]
[null,null,null,null,null,null,null,null,null,"",""]
[null,null,null,null,null,null,null,null,null,"",""]
[null,null,null,null,null,null,null,null,null,"",""]
[null,null,null,null,null,null,null,null,null,"",""]
[null,null,null,null,null,null,null,null,null,"",""]
[null,null,null,null,null,null,null,null,null,"",""]
[null,null,null,null,null,null,null,null,null,"",""]
[null,null,null,null,null,null,null,null,null,"",""]
[null,null,null,null,null,null,null,null,null,"",""]
[null,null,null,null,null,null,null,null,null,"",""]
[null,null,null,null,null,null,null,null,null,"",""]
[null,null,null,null,null,null,null,null,null,"",""]
[null,null,null,null,null,null,null,null,null,"",""]
[null,null,null,null,null,null,null,null,null,"",""]
[null,null,null,null,null,null,null,null,null,"",""]
[null,null,null,null,null,null,null,null,null,"",""]
[null,null,null,null,null,null,null,null,null,"",""]
[null,null,null,null,null,null,null,null,null,"",""]
[null,null,null,null,null,null,null,null,null,"",""]
[null,null,null,null,null,null,null,null,null,"",""]
[null,null,null,null,null,null,null,null,null,"",""]
[null,null,null,null,null,null,null,null,null,"",""]
[null,null,null,null,null,null,null,null,null,"",{"$f":"IF(OR(I2952=\"\",J2952=\"\"),\"\",PRODUCT(I2952,J2952))","v":""}]
[null,null,null,null,null,null,null,null,null,"",""]
[null,null,null,null,null,null,null,null,null,"",""]
[null,null,null,null,null,null,null,null,null,"",""]
[null,null,null,null,null,null,null,null,null,"",""]
[null,null,null,null,null,null,null,null,null,"",""]
[null,null,null,null,null,null,null,null,null,"",""]
[null,null,null,null,null,null,null,null,null,"",""]
[null,null,null,null,null,null,null,null,null,"",""]
[null,null,null,null,null,null,null,null,null,"",""]
[null,null,null,null,null,null,null,null,null,"",""]
[null,null,null,null,null,null,null,null,null,"",""]
[null,null,null,null,null,null,null,null,null,"",""]
[null,null,null,null,null,null,null,null,null,"",""]
[null,null,null,null,null,null,null,null,null,"",""]
[null,null,null,null,null,null,null,null,null,"",""]
[null,null,null,null,null,null,null,null,null,"",""]
[null,null,null,null,null,null,null,null,null,"",""]
[null,null,null,null,null,null,null,null,null,"",""]
[null,null,null,null,null,null,null,null,null,"",""]
[null,null,null,null,null,null,null,null,null,"",""]
[null,null,null,null,null,null,null,null,null,{"$f":"IFERROR(IF(H2973<>\"\",7.05,\"\"),\"\")","v":""},""]
[null,null,null,null,null,null,null,null,null,"",""]
[null,null,null,null,null,null,null,null,null,"",""]
[null,null,null,null,null,null,null,null,null,"",""]
[null,null,null,null,null,null,null,null,null,"",""]
[null,null,null,null,null,null,null,null,null,"",""]
[null,null,null,null,null,null,null,null,null,"",""]
[null,null,null,null,null,null,null,null,null,"",""]
[null,null,null,null,null,null,null,null,null,"",""]
[null,null,null,null,null,null,null,null,null,"",""]
[null,null,null,null,null,null,null,null,null,"",""]
[null,null,null,null,null,null,null,null,null,"",""]
[null,null,null,null,null,null,null,null,null,"",""]
[null,null,null,null,null,null,null,null,null,"",""]
[null,null,null,null,null,null,null,null,null,"",""]
[null,null,null,null,null,null,null,null,null,"",""]
[null,null,null,null,null,null,null,null,null,"",""]
[null,null,null,null,null,null,null,null,null,"",""]
[null,null,null,null,null,null,null,null,null,"",""]
[null,null,null,null,null,null,null,null,null,"",""]
[null,null,null,null,null,null,null,null,null,"",""]
[null,null,null,null,null,null,null,null,null,"",""]
[null,null,null,null,null,null,null,null,null,"",""]
[null,null,null,null,null,null,null,null,null,"",""]
[null,null,null,null,null,null,null,null,null,"",""]
[null,null,null,null,null,null,null,null,null,"",""]
[null,null,null,null,null,null,null,null,null,"",""]
[null,null,null,null,null,null,null,null,null,"",""]
[null,null,null,null,null,null,null,null,null,"",""]
[null,null,null,null,null,null,null,null,null,"",""]
[null,null,null,null,null,null,null,null,null,"",""]
[null,null,null,null,null,null,null,null,null,"",""]
[null,null,null,null,null,null,null,null,null,"",""]
[null,null,null,null,null,null,null,null,null,"",""]
[null,null,null,null,null,null,null,null,null,"",""]
[null,null,null,null,null,null,null,null,null,"",""]
[null,null,null,null,null,null,null,null,null,"",""]
[null,null,null,null,null,null,null,null,null,"",""]
[null,null,null,null,null,null,null,null,null,"",""]
[null,null,null,null,null,null,null,null,null,"",""]
[null,null,null,null,null,null,null,null,null,"",""]
[null,null,null,null,null,null,null,null,null,"",""]
[null,null,null,null,null,null,null,null,null,"",""]
[null,null,null,null,null,null,null,null,null,"",{"$f":"IF(OR(I3016=\"\",J3016=\"\"),\"\",PRODUCT(I3016,J3016))","v":""}]
[null,null,null,null,null,null,null,null,null,"",""]
[null,null,null,null,null,null,null,null,null,"",""]
[null,null,null,null,null,null,null,null,null,"",""]
[null,null,null,null,null,null,null,null,null,"",""]
[null,null,null,null,null,null,null,null,null,"",""]
[null,null,null,null,null,null,null,null,null,"",""]
[null,null,null,null,null,null,null,null,null,"",""]
[null,null,null,null,null,null,null,null,null,"",""]
[null,null,null,null,null,null,null,null,null,"",""]
[null,null,null,null,null,null,null,null,null,"",""]
[null,null,null,null,null,null,null,null,null,"",""]
[null,null,null,null,null,null,null,null,null,"",""]
[null,null,null,null,null,null,null,null,null,"",""]
[null,null,null,null,null,null,null,null,null,"",""]
[null,null,null,null,null,null,null,null,null,"",""]
[null,null,null,null,null,null,null,null,null,"",""]
[null,null,null,null,null,null,null,null,null,"",""]
[null,null,null,null,null,null,null,null,null,"",""]
[null,null,null,null,null,null,null,null,null,"",""]
[null,null,null,null,null,null,null,null,null,"",""]
[null,null,null,null,null,null,null,null,null,{"$f":"IFERROR(IF(H3037<>\"\",7.05,\"\"),\"\")","v":""},""]
[null,null,null,null,null,null,null,null,null,"",""]
[null,null,null,null,null,null,null,null,null,"",""]
[null,null,null,null,null,null,null,null,null,"",""]
[null,null,null,null,null,null,null,null,null,"",""]
[null,null,null,null,null,null,null,null,null,"",""]
[null,null,null,null,null,null,null,null,null,"",""]
[null,null,null,null,null,null,null,null,null,"",""]
[null,null,null,null,null,null,null,null,null,"",""]
[null,null,null,null,null,null,null,null,null,"",""]
[null,null,null,null,null,null,null,null,null,"",""]
[null,null,null,null,null,null,null,null,null,"",""]
[null,null,null,null,null,null,null,null,null,"",""]
[null,null,null,null,null,null,null,null,null,"",""]
[null,null,null,null,null,null,null,null,null,"",""]
[null,null,null,null,null,null,null,null,null,"",""]
[null,null,null,null,null,null,null,null,null,"",""]
[null,null,null,null,null,null,null,null,null,"",""]
[null,null,null,null,null,null,null,null,null,"",""]
[null,null,null,null,null,null,null,null,null,"",""]
[null,null,null,null,null,null,null,null,null,"",""]
[null,null,null,null,null,null,null,null,null,"",""]
[null,null,null,null,null,null,null,null,null,"",""]
[null,null,null,null,null,null,null,null,null,"",""]
[null,null,null,null,null,null,null,null,null,"",""]
[null,null,null,null,null,null,null,null,null,"",""]
[null,null,null,null,null,null,null,null,null,"",""]
[null,null,null,null,null,null,null,null,null,"",""]
[null,null,null,null,null,null,null,null,null,"",""]
[null,null,null,null,null,null,null,null,null,"",""]
[null,null,null,null,null,null,null,null,null,"",""]
[null,null,null,null,null,null,null,null,null,"",""]
[null,null,null,null,null,null,null,null,null,"",""]
[null,null,null,null,null,null,null,null,null,"",""]
[null,null,null,null,null,null,null,null,null,"",""]
[null,null,null,null,null,null,null,null,null,"",""]
[null,null,null,null,null,null,null,null,null,"",""]
[null,null,null,null,null,null,null,null,null,"",""]
[null,null,null,null,null,null,null,null,null,"",""]
[null,null,null,null,null,null,null,null,null,"",""]
[null,null,null,null,null,null,null,null,null,"",""]
[null,null,null,null,null,null,null,null,null,"",""]
[null,null,null,null,null,null,null,null,null,"",""]
[null,null,null,null,null,null,null,null,null,"",{"$f":"IF(OR(I3080=\"\",J3080=\"\"),\"\",PRODUCT(I3080,J3080))","v":""}]
[null,null,null,null,null,null,null,null,null,"",""]
[null,null,null,null,null,null,null,null,null,"",""]
[null,null,null,null,null,null,null,null,null,"",""]
[null,null,null,null,null,null,null,null,null,"",""]
[null,null,null,null,null,null,null,null,null,"",""]
[null,null,null,null,null,null,null,null,null,"",""]
[null,null,null,null,null,null,null,null,null,"",""]
[null,null,null,null,null,null,null,null,null,"",""]
[null,null,null,null,null,null,null,null,null,"",""]
[null,null,null,null,null,null,null,null,null,"",""]
[null,null,null,null,null,null,null,null,null,"",""]
[null,null,null,null,null,null,null,null,null,"",""]
[null,null,null,null,null,null,null,null,null,"",""]
[null,null,null,null,null,null,null,null,null,"",""]
[null,null,null,null,null,null,null,null,null,"",""]
[null,null,null,null,null,null,null,null,null,"",""]
[null,null,null,null,null,null,null,null,null,"",""]
[null,null,null,null,null,null,null,null,null,"",""]
[null,null,null,null,null,null,null,null,null,"",""]
[null,null,null,null,null,null,null,null,null,"",""]
[null,null,null,null,null,null,null,null,null,{"$f":"IFERROR(IF(H3101<>\"\",7.05,\"\"),\"\")","v":""},""]
[null,null,null,null,null,null,null,null,null,"",""]
[null,null,null,null,null,null,null,null,null,"",""]
[null,null,null,null,null,null,null,null,null,"",""]
[null,null,null,null,null,null,null,null,null,"",""]
[null,null,null,null,null,null,null,null,null,"",""]
[null,null,null,null,null,null,null,null,null,"",""]
[null,null,null,null,null,null,null,null,null,"",""]
[null,null,null,null,null,null,null,null,null,"",""]
[null,null,null,null,null,null,null,null,null,"",""]
[null,null,null,null,null,null,null,null,null,"",""]
[null,null,null,null,null,null,null,null,null,"",""]
[null,null,null,null,null,null,null,null,null,"",""]
[null,null,null,null,null,null,null,null,null,"",""]
[null,null,null,null,null,null,null,null,null,"",""]
[null,null,null,null,null,null,null,null,null,"",""]
[null,null,null,null,null,null,null,null,null,"",""]
[null,null,null,null,null,null,null,null,null,"",""]
[null,null,null,null,null,null,null,null,null,"",""]
[null,null,null,null,null,null,null,null,null,"",""]
[null,null,null,null,null,null,null,null,null,"",""]
[null,null,null,null,null,null,null,null,null,"",""]
[null,null,null,null,null,null,null,null,null,"",""]
[null,null,null,null,null,null,null,null,null,"",""]
[null,null,null,null,null,null,null,null,null,"",""]
[null,null,null,null,null,null,null,null,null,"",""]
[null,null,null,null,null,null,null,null,null,"",""]
[null,null,null,null,null,null,null,null,null,"",""]
[null,null,null,null,null,null,null,null,null,"",""]
[null,null,null,null,null,null,null,null,null,"",""]
[null,null,null,null,null,null,null,null,null,"",""]
[null,null,null,null,null,null,null,null,null,"",""]
[null,null,null,null,null,null,null,null,null,"",""]
[null,null,null,null,null,null,null,null,null,"",""]
[null,null,null,null,null,null,null,null,null,"",""]
[null,null,null,null,null,null,null,null,null,"",""]
[null,null,null,null,null,null,null,null,null,"",""]
[null,null,null,null,null,null,null,null,null,"",""]
[null,null,null,null,null,null,null,null,null,"",""]
[null,null,null,null,null,null,null,null,null,"",""]
[null,null,null,null,null,null,null,null,null,"",""]
[null,null,null,null,null,null,null,null,null,"",""]
[null,null,null,null,null,null,null,null,null,"",""]
[null,null,null,null,null,null,null,null,null,"",{"$f":"IF(OR(I3144=\"\",J3144=\"\"),\"\",PRODUCT(I3144,J3144))","v":""}]
[null,null,null,null,null,null,null,null,null,"",""]
[null,null,null,null,null,null,null,null,null,"",""]
[null,null,null,null,null,null,null,null,null,"",""]
[null,null,null,null,null,null,null,null,null,"",""]
[null,null,null,null,null,null,null,null,null,"",""]
[null,null,null,null,null,null,null,null,null,"",""]
[null,null,null,null,null,null,null,null,null,"",""]
[null,null,null,null,null,null,null,null,null,"",""]
[null,null,null,null,null,null,null,null,null,"",""]
[null,null,null,null,null,null,null,null,null,"",""]
[null,null,null,null,null,null,null,null,null,"",""]
[null,null,null,null,null,null,null,null,null,"",""]
[null,null,null,null,null,null,null,null,null,"",""]
[null,null,null,null,null,null,null,null,null,"",""]
[null,null,null,null,null,null,null,null,null,"",""]
[null,null,null,null,null,null,null,null,null,"",""]
[null,null,null,null,null,null,null,null,null,"",""]
[null,null,null,null,null,null,null,null,null,"",""]
[null,null,null,null,null,null,null,null,null,"",""]
[null,null,null,null,null,null,null,null,null,"",""]
[null,null,null,null,null,null,null,null,null,{"$f":"IFERROR(IF(H3165<>\"\",7.05,\"\"),\"\")","v":""},""]
[null,null,null,null,null,null,null,null,null,"",""]
[null,null,null,null,null,null,null,null,null,"",""]
[null,null,null,null,null,null,null,null,null,"",""]
[null,null,null,null,null,null,null,null,null,"",""]
[null,null,null,null,null,null,null,null,null,"",""]
[null,null,null,null,null,null,null,null,null,"",""]
[null,null,null,null,null,null,null,null,null,"",""]
[null,null,null,null,null,null,null,null,null,"",""]
[null,null,null,null,null,null,null,null,null,"",""]
[null,null,null,null,null,null,null,null,null,"",""]
[null,null,null,null,null,null,null,null,null,"",""]
[null,null,null,null,null,null,null,null,null,"",""]
[null,null,null,null,null,null,null,null,null,"",""]
[null,null,null,null,null,null,null,null,null,"",""]
[null,null,null,null,null,null,null,null,null,"",""]
[null,null,null,null,null,null,null,null,null,"",""]
[null,null,null,null,null,null,null,null,null,"",""]
[null,null,null,null,null,null,null,null,null,"",""]
[null,null,null,null,null,null,null,null,null,"",""]
[null,null,null,null,null,null,null,null,null,"",""]
[null,null,null,null,null,null,null,null,null,"",""]
[null,null,null,null,null,null,null,null,null,"",""]
[null,null,null,null,null,null,null,null,null,"",""]
[null,null,null,null,null,null,null,null,null,"",""]
[null,null,null,null,null,null,null,null,null,"",""]
[null,null,null,null,null,null,null,null,null,"",""]
[null,null,null,null,null,null,null,null,null,"",""]
[null,null,null,null,null,null,null,null,null,"",""]
[null,null,null,null,null,null,null,null,null,"",""]
[null,null,null,null,null,null,null,null,null,"",""]
[null,null,null,null,null,null,null,null,null,"",""]
[null,null,null,null,null,null,null,null,null,"",""]
[null,null,null,null,null,null,null,null,null,"",""]
[null,null,null,null,null,null,null,null,null,"",""]
[null,null,null,null,null,null,null,null,null,"",""]
[null,null,null,null,null,null,null,null,null,"",""]
[null,null,null,null,null,null,null,null,null,"",""]
[null,null,null,null,null,null,null,null,null,"",""]
[null,null,null,null,null,null,null,null,null,"",""]
[null,null,null,null,null,null,null,null,null,"",""]
[null,null,null,null,null,null,null,null,null,"",""]
[null,null,null,null,null,null,null,null,null,"",""]
[null,null,null,null,null,null,null,null,null,"",{"$f":"IF(OR(I3208=\"\",J3208=\"\"),\"\",PRODUCT(I3208,J3208))","v":""}]
[null,null,null,null,null,null,null,null,null,"",""]
[null,null,null,null,null,null,null,null,null,"",""]
[null,null,null,null,null,null,null,null,null,"",""]
[null,null,null,null,null,null,null,null,null,"",""]
[null,null,null,null,null,null,null,null,null,"",""]
[null,null,null,null,null,null,null,null,null,"",""]
[null,null,null,null,null,null,null,null,null,"",""]
[null,null,null,null,null,null,null,null,null,"",""]
[null,null,null,null,null,null,null,null,null,"",""]
[null,null,null,null,null,null,null,null,null,"",""]
[null,null,null,null,null,null,null,null,null,"",""]
[null,null,null,null,null,null,null,null,null,"",""]
[null,null,null,null,null,null,null,null,null,"",""]
[null,null,null,null,null,null,null,null,null,"",""]
[null,null,null,null,null,null,null,null,null,"",""]
[null,null,null,null,null,null,null,null,null,"",""]
[null,null,null,null,null,null,null,null,null,"",""]
[null,null,null,null,null,null,null,null,null,"",""]
[null,null,null,null,null,null,null,null,null,"",""]
[null,null,null,null,null,null,null,null,null,"",""]
[null,null,null,null,null,null,null,null,null,{"$f":"IFERROR(IF(H3229<>\"\",7.05,\"\"),\"\")","v":""},""]
[null,null,null,null,null,null,null,null,null,"",""]
[null,null,null,null,null,null,null,null,null,"",""]
[null,null,null,null,null,null,null,null,null,"",""]
[null,null,null,null,null,null,null,null,null,"",""]
[null,null,null,null,null,null,null,null,null,"",""]
[null,null,null,null,null,null,null,null,null,"",""]
[null,null,null,null,null,null,null,null,null,"",""]
[null,null,null,null,null,null,null,null,null,"",""]
[null,null,null,null,null,null,null,null,null,"",""]
[null,null,null,null,null,null,null,null,null,"",""]
[null,null,null,null,null,null,null,null,null,"",""]
[null,null,null,null,null,null,null,null,null,"",""]
[null,null,null,null,null,null,null,null,null,"",""]
[null,null,null,null,null,null,null,null,null,"",""]
[null,null,null,null,null,null,null,null,null,"",""]
[null,null,null,null,null,null,null,null,null,"",""]
[null,null,null,null,null,null,null,null,null,"",""]
[null,null,null,null,null,null,null,null,null,"",""]
[null,null,null,null,null,null,null,null,null,"",""]
[null,null,null,null,null,null,null,null,null,"",""]
[null,null,null,null,null,null,null,null,null,"",""]
[null,null,null,null,null,null,null,null,null,"",""]
[null,null,null,null,null,null,null,null,null,"",""]
[null,null,null,null,null,null,null,null,null,"",""]
[null,null,null,null,null,null,null,null,null,"",""]
[null,null,null,null,null,null,null,null,null,"",""]
[null,null,null,null,null,null,null,null,null,"",""]
[null,null,null,null,null,null,null,null,null,"",""]
[null,null,null,null,null,null,null,null,null,"",""]
[null,null,null,null,null,null,null,null,null,"",""]
[null,null,null,null,null,null,null,null,null,"",""]
[null,null,null,null,null,null,null,null,null,"",""]
[null,null,null,null,null,null,null,null,null,"",""]
[null,null,null,null,null,null,null,null,null,"",""]
[null,null,null,null,null,null,null,null,null,"",""]
[null,null,null,null,null,null,null,null,null,"",""]
[null,null,null,null,null,null,null,null,null,"",""]
[null,null,null,null,null,null,null,null,null,"",""]
[null,null,null,null,null,null,null,null,null,"",""]
[null,null,null,null,null,null,null,null,null,"",""]
[null,null,null,null,null,null,null,null,null,"",""]
[null,null,null,null,null,null,null,null,null,"",""]
[null,null,null,null,null,null,null,null,null,"",{"$f":"IF(OR(I3272=\"\",J3272=\"\"),\"\",PRODUCT(I3272,J3272))","v":""}]
[null,null,null,null,null,null,null,null,null,"",""]
[null,null,null,null,null,null,null,null,null,"",""]
[null,null,null,null,null,null,null,null,null,"",""]
[null,null,null,null,null,null,null,null,null,"",""]
[null,null,null,null,null,null,null,null,null,"",""]
[null,null,null,null,null,null,null,null,null,"",""]
[null,null,null,null,null,null,null,null,null,"",""]
[null,null,null,null,null,null,null,null,null,"",""]
[null,null,null,null,null,null,null,null,null,"",""]
[null,null,null,null,null,null,null,null,null,"",""]
[null,null,null,null,null,null,null,null,null,"",""]
[null,null,null,null,null,null,null,null,null,"",""]
[null,null,null,null,null,null,null,null,null,"",""]
[null,null,null,null,null,null,null,null,null,"",""]
[null,null,null,null,null,null,null,null,null,"",""]
[null,null,null,null,null,null,null,null,null,"",""]
[null,null,null,null,null,null,null,null,null,"",""]
[null,null,null,null,null,null,null,null,null,"",""]
[null,null,null,null,null,null,null,null,null,"",""]
[null,null,null,null,null,null,null,null,null,"",""]
[null,null,null,null,null,null,null,null,null,{"$f":"IFERROR(IF(H3293<>\"\",7.05,\"\"),\"\")","v":""},""]
[null,null,null,null,null,null,null,null,null,"",""]
[null,null,null,null,null,null,null,null,null,"",""]
[null,null,null,null,null,null,null,null,null,"",""]
[null,null,null,null,null,null,null,null,null,"",""]
[null,null,null,null,null,null,null,null,null,"",""]
[null,null,null,null,null,null,null,null,null,"",""]
[null,null,null,null,null,null,null,null,null,"",""]
[null,null,null,null,null,null,null,null,null,"",""]
[null,null,null,null,null,null,null,null,null,"",""]
[null,null,null,null,null,null,null,null,null,"",""]
[null,null,null,null,null,null,null,null,null,"",""]
[null,null,null,null,null,null,null,null,null,"",""]
[null,null,null,null,null,null,null,null,null,"",""]
[null,null,null,null,null,null,null,null,null,"",""]
[null,null,null,null,null,null,null,null,null,"",""]
[null,null,null,null,null,null,null,null,null,"",""]
[null,null,null,null,null,null,null,null,null,"",""]
[null,null,null,null,null,null,null,null,null,"",""]
[null,null,null,null,null,null,null,null,null,"",""]
[null,null,null,null,null,null,null,null,null,"",""]
[null,null,null,null,null,null,null,null,null,"",""]
[null,null,null,null,null,null,null,null,null,"",""]
[null,null,null,null,null,null,null,null,null,"",""]
[null,null,null,null,null,null,null,null,null,"",""]
[null,null,null,null,null,null,null,null,null,"",""]
[null,null,null,null,null,null,null,null,null,"",""]
[null,null,null,null,null,null,null,null,null,"",""]
[null,null,null,null,null,null,null,null,null,"",""]
[null,null,null,null,null,null,null,null,null,"",""]
[null,null,null,null,null,null,null,null,null,"",""]
[null,null,null,null,null,null,null,null,null,"",""]
[null,null,null,null,null,null,null,null,null,"",""]
[null,null,null,null,null,null,null,null,null,"",""]
[null,null,null,null,null,null,null,null,null,"",""]
[null,null,null,null,null,null,null,null,null,"",""]
[null,null,null,null,null,null,null,null,null,"",""]
[null,null,null,null,null,null,null,null,null,"",""]
[null,null,null,null,null,null,null,null,null,"",""]
[null,null,null,null,null,null,null,null,null,"",""]
[null,null,null,null,null,null,null,null,null,"",""]
[null,null,null,null,null,null,null,null,null,"",""]
[null,null,null,null,null,null,null,null,null,"",""]
[null,null,null,null,null,null,null,null,null,"",{"$f":"IF(OR(I3336=\"\",J3336=\"\"),\"\",PRODUCT(I3336,J3336))","v":""}]
[null,null,null,null,null,null,null,null,null,"",""]
[null,null,null,null,null,null,null,null,null,"",""]
[null,null,null,null,null,null,null,null,null,"",""]
[null,null,null,null,null,null,null,null,null,"",""]
[null,null,null,null,null,null,null,null,null,"",""]
[null,null,null,null,null,null,null,null,null,"",""]
[null,null,null,null,null,null,null,null,null,"",""]
[null,null,null,null,null,null,null,null,null,"",""]
[null,null,null,null,null,null,null,null,null,"",""]
[null,null,null,null,null,null,null,null,null,"",""]
[null,null,null,null,null,null,null,null,null,"",""]
[null,null,null,null,null,null,null,null,null,"",""]
[null,null,null,null,null,null,null,null,null,"",""]
[null,null,null,null,null,null,null,null,null,"",""]
[null,null,null,null,null,null,null,null,null,"",""]
[null,null,null,null,null,null,null,null,null,"",""]
[null,null,null,null,null,null,null,null,null,"",""]
[null,null,null,null,null,null,null,null,null,"",""]
[null,null,null,null,null,null,null,null,null,"",""]
[null,null,null,null,null,null,null,null,null,"",""]
[null,null,null,null,null,null,null,null,null,{"$f":"IFERROR(IF(H3357<>\"\",7.05,\"\"),\"\")","v":""},""]
[null,null,null,null,null,null,null,null,null,"",""]
[null,null,null,null,null,null,null,null,null,"",""]
[null,null,null,null,null,null,null,null,null,"",""]
[null,null,null,null,null,null,null,null,null,"",""]
[null,null,null,null,null,null,null,null,null,"",""]
[null,null,null,null,null,null,null,null,null,"",""]
[null,null,null,null,null,null,null,null,null,"",""]
[null,null,null,null,null,null,null,null,null,"",""]
[null,null,null,null,null,null,null,null,null,"",""]
[null,null,null,null,null,null,null,null,null,"",""]
[null,null,null,null,null,null,null,null,null,"",""]
[null,null,null,null,null,null,null,null,null,"",""]
[null,null,null,null,null,null,null,null,null,"",""]
[null,null,null,null,null,null,null,null,null,"",""]
[null,null,null,null,null,null,null,null,null,"",""]
[null,null,null,null,null,null,null,null,null,"",""]
[null,null,null,null,null,null,null,null,null,"",""]
[null,null,null,null,null,null,null,null,null,"",""]
[null,null,null,null,null,null,null,null,null,"",""]
[null,null,null,null,null,null,null,null,null,"",""]
[null,null,null,null,null,null,null,null,null,"",""]
[null,null,null,null,null,null,null,null,null,"",""]
[null,null,null,null,null,null,null,null,null,"",""]
[null,null,null,null,null,null,null,null,null,"",""]
[null,null,null,null,null,null,null,null,null,"",""]
[null,null,null,null,null,null,null,null,null,"",""]
[null,null,null,null,null,null,null,null,null,"",""]
[null,null,null,null,null,null,null,null,null,"",""]
[null,null,null,null,null,null,null,null,null,"",""]
[null,null,null,null,null,null,null,null,null,"",""]
[null,null,null,null,null,null,null,null,null,"",""]
[null,null,null,null,null,null,null,null,null,"",""]
[null,null,null,null,null,null,null,null,null,"",""]
[null,null,null,null,null,null,null,null,null,"",""]
[null,null,null,null,null,null,null,null,null,"",""]
[null,null,null,null,null,null,null,null,null,"",""]
[null,null,null,null,null,null,null,null,null,"",""]
[null,null,null,null,null,null,null,null,null,"",""]
[null,null,null,null,null,null,null,null,null,"",""]
[null,null,null,null,null,null,null,null,null,"",""]
[null,null,null,null,null,null,null,null,null,"",""]
[null,null,null,null,null,null,null,null,null,"",""]
[null,null,null,null,null,null,null,null,null,"",{"$f":"IF(OR(I3400=\"\",J3400=\"\"),\"\",PRODUCT(I3400,J3400))","v":""}]
[null,null,null,null,null,null,null,null,null,"",""]
[null,null,null,null,null,null,null,null,null,"",""]
[null,null,null,null,null,null,null,null,null,"",""]
[null,null,null,null,null,null,null,null,null,"",""]
[null,null,null,null,null,null,null,null,null,"",""]
[null,null,null,null,null,null,null,null,null,"",""]
[null,null,null,null,null,null,null,null,null,"",""]
[null,null,null,null,null,null,null,null,null,"",""]
[null,null,null,null,null,null,null,null,null,"",""]
[null,null,null,null,null,null,null,null,null,"",""]
[null,null,null,null,null,null,null,null,null,"",""]
[null,null,null,null,null,null,null,null,null,"",""]
[null,null,null,null,null,null,null,null,null,"",""]
[null,null,null,null,null,null,null,null,null,"",""]
[null,null,null,null,null,null,null,null,null,"",""]
[null,null,null,null,null,null,null,null,null,"",""]
[null,null,null,null,null,null,null,null,null,"",""]
[null,null,null,null,null,null,null,null,null,"",""]
[null,null,null,null,null,null,null,null,null,"",""]
[null,null,null,null,null,null,null,null,null,"",""]
[null,null,null,null,null,null,null,null,null,{"$f":"IFERROR(IF(H3421<>\"\",7.05,\"\"),\"\")","v":""},""]
[null,null,null,null,null,null,null,null,null,"",""]
[null,null,null,null,null,null,null,null,null,"",""]
[null,null,null,null,null,null,null,null,null,"",""]
[null,null,null,null,null,null,null,null,null,"",""]
[null,null,null,null,null,null,null,null,null,"",""]
[null,null,null,null,null,null,null,null,null,"",""]
[null,null,null,null,null,null,null,null,null,"",""]
[null,null,null,null,null,null,null,null,null,"",""]
[null,null,null,null,null,null,null,null,null,"",""]
[null,null,null,null,null,null,null,null,null,"",""]
[null,null,null,null,null,null,null,null,null,"",""]
[null,null,null,null,null,null,null,null,null,"",""]
[null,null,null,null,null,null,null,null,null,"",""]
[null,null,null,null,null,null,null,null,null,"",""]
[null,null,null,null,null,null,null,null,null,"",""]
[null,null,null,null,null,null,null,null,null,"",""]
[null,null,null,null,null,null,null,null,null,"",""]
[null,null,null,null,null,null,null,null,null,"",""]
[null,null,null,null,null,null,null,null,null,"",""]
[null,null,null,null,null,null,null,null,null,"",""]
[null,null,null,null,null,null,null,null,null,"",""]
[null,null,null,null,null,null,null,null,null,"",""]
[null,null,null,null,null,null,null,null,null,"",""]
[null,null,null,null,null,null,null,null,null,"",""]
[null,null,null,null,null,null,null,null,null,"",""]
[null,null,null,null,null,null,null,null,null,"",""]
[null,null,null,null,null,null,null,null,null,"",""]
[null,null,null,null,null,null,null,null,null,"",""]
[null,null,null,null,null,null,null,null,null,"",""]
[null,null,null,null,null,null,null,null,null,"",""]
[null,null,null,null,null,null,null,null,null,"",""]
[null,null,null,null,null,null,null,null,null,"",""]
[null,null,null,null,null,null,null,null,null,"",""]
[null,null,null,null,null,null,null,null,null,"",""]
[null,null,null,null,null,null,null,null,null,"",""]
[null,null,null,null,null,null,null,null,null,"",""]
[null,null,null,null,null,null,null,null,null,"",""]
[null,null,null,null,null,null,null,null,null,"",""]
[null,null,null,null,null,null,null,null,null,"",""]
[null,null,null,null,null,null,null,null,null,"",""]
[null,null,null,null,null,null,null,null,null,"",""]
[null,null,null,null,null,null,null,null,null,"",""]
[null,null,null,null,null,null,null,null,null,"",{"$f":"IF(OR(I3464=\"\",J3464=\"\"),\"\",PRODUCT(I3464,J3464))","v":""}]
[null,null,null,null,null,null,null,null,null,"",""]
[null,null,null,null,null,null,null,null,null,"",""]
[null,null,null,null,null,null,null,null,null,"",""]
[null,null,null,null,null,null,null,null,null,"",""]
[null,null,null,null,null,null,null,null,null,"",""]
[null,null,null,null,null,null,null,null,null,"",""]
[null,null,null,null,null,null,null,null,null,"",""]
[null,null,null,null,null,null,null,null,null,"",""]
[null,null,null,null,null,null,null,null,null,"",""]
[null,null,null,null,null,null,null,null,null,"",""]
[null,null,null,null,null,null,null,null,null,"",""]
[null,null,null,null,null,null,null,null,null,"",""]
[null,null,null,null,null,null,null,null,null,"",""]
[null,null,null,null,null,null,null,null,null,"",""]
[null,null,null,null,null,null,null,null,null,"",""]
[null,null,null,null,null,null,null,null,null,"",""]
[null,null,null,null,null,null,null,null,null,"",""]
[null,null,null,null,null,null,null,null,null,"",""]
[null,null,null,null,null,null,null,null,null,"",""]
[null,null,null,null,null,null,null,null,null,"",""]
[null,null,null,null,null,null,null,null,null,{"$f":"IFERROR(IF(H3485<>\"\",7.05,\"\"),\"\")","v":""},""]
[null,null,null,null,null,null,null,null,null,"",""]
[null,null,null,null,null,null,null,null,null,"",""]
[null,null,null,null,null,null,null,null,null,"",""]
[null,null,null,null,null,null,null,null,null,"",""]
[null,null,null,null,null,null,null,null,null,"",""]
[null,null,null,null,null,null,null,null,null,"",""]
[null,null,null,null,null,null,null,null,null,"",""]
[null,null,null,null,null,null,null,null,null,"",""]
[null,null,null,null,null,null,null,null,null,"",""]
[null,null,null,null,null,null,null,null,null,"",""]
[null,null,null,null,null,null,null,null,null,"",""]
[null,null,null,null,null,null,null,null,null,"",""]
[null,null,null,null,null,null,null,null,null,"",""]
[null,null,null,null,null,null,null,null,null,"",""]
[null,null,null,null,null,null,null,null,null,"",""]
[null,null,null,null,null,null,null,null,null,"",""]
[null,null,null,null,null,null,null,null,null,"",""]
[null,null,null,null,null,null,null,null,null,"",""]
[null,null,null,null,null,null,null,null,null,"",""]
[null,null,null,null,null,null,null,null,null,"",""]
[null,null,null,null,null,null,null,null,null,"",""]
[null,null,null,null,null,null,null,null,null,"",""]
[null,null,null,null,null,null,null,null,null,"",""]
[null,null,null,null,null,null,null,null,null,"",""]
[null,null,null,null,null,null,null,null,null,"",""]
[null,null,null,null,null,null,null,null,null,"",""]
[null,null,null,null,null,null,null,null,null,"",""]
[null,null,null,null,null,null,null,null,null,"",""]
[null,null,null,null,null,null,null,null,null,"",""]
[null,null,null,null,null,null,null,null,null,"",""]
[null,null,null,null,null,null,null,null,null,"",""]
[null,null,null,null,null,null,null,null,null,"",""]
[null,null,null,null,null,null,null,null,null,"",""]
[null,null,null,null,null,null,null,null,null,"",""]
[null,null,null,null,null,null,null,null,null,"",""]
[null,null,null,null,null,null,null,null,null,"",""]
[null,null,null,null,null,null,null,null,null,"",""]
[null,null,null,null,null,null,null,null,null,"",""]
[null,null,null,null,null,null,null,null,null,"",""]
[null,null,null,null,null,null,null,null,null,"",""]
[null,null,null,null,null,null,null,null,null,"",""]
[null,null,null,null,null,null,null,null,null,"",""]
[null,null,null,null,null,null,null,null,null,"",{"$f":"IF(OR(I3528=\"\",J3528=\"\"),\"\",PRODUCT(I3528,J3528))","v":""}]
[null,null,null,null,null,null,null,null,null,"",""]
[null,null,null,null,null,null,null,null,null,"",""]
[null,null,null,null,null,null,null,null,null,"",""]
[null,null,null,null,null,null,null,null,null,"",""]
[null,null,null,null,null,null,null,null,null,"",""]
[null,null,null,null,null,null,null,null,null,"",""]
[null,null,null,null,null,null,null,null,null,"",""]
[null,null,null,null,null,null,null,null,null,"",""]
[null,null,null,null,null,null,null,null,null,"",""]
[null,null,null,null,null,null,null,null,null,"",""]
[null,null,null,null,null,null,null,null,null,"",""]
[null,null,null,null,null,null,null,null,null,"",""]
[null,null,null,null,null,null,null,null,null,"",""]
[null,null,null,null,null,null,null,null,null,"",""]
[null,null,null,null,null,null,null,null,null,"",""]
[null,null,null,null,null,null,null,null,null,"",""]
[null,null,null,null,null,null,null,null,null,"",""]
[null,null,null,null,null,null,null,null,null,"",""]
[null,null,null,null,null,null,null,null,null,"",""]
[null,null,null,null,null,null,null,null,null,"",""]
[null,null,null,null,null,null,null,null,null,{"$f":"IFERROR(IF(H3549<>\"\",7.05,\"\"),\"\")","v":""},""]
[null,null,null,null,null,null,null,null,null,"",""]
[null,null,null,null,null,null,null,null,null,"",""]
[null,null,null,null,null,null,null,null,null,"",""]
[null,null,null,null,null,null,null,null,null,"",""]
[null,null,null,null,null,null,null,null,null,"",""]
[null,null,null,null,null,null,null,null,null,"",""]
[null,null,null,null,null,null,null,null,null,"",""]
[null,null,null,null,null,null,null,null,null,"",""]
[null,null,null,null,null,null,null,null,null,"",""]
[null,null,null,null,null,null,null,null,null,"",""]
[null,null,null,null,null,null,null,null,null,"",""]
[null,null,null,null,null,null,null,null,null,"",""]
[null,null,null,null,null,null,null,null,null,"",""]
[null,null,null,null,null,null,null,null,null,"",""]
[null,null,null,null,null,null,null,null,null,"",""]
[null,null,null,null,null,null,null,null,null,"",""]
[null,null,null,null,null,null,null,null,null,"",""]
[null,null,null,null,null,null,null,null,null,"",""]
[null,null,null,null,null,null,null,null,null,"",""]
[null,null,null,null,null,null,null,null,null,"",""]
[null,null,null,null,null,null,null,null,null,"",""]
[null,null,null,null,null,null,null,null,null,"",""]
[null,null,null,null,null,null,null,null,null,"",""]
[null,null,null,null,null,null,null,null,null,"",""]
[null,null,null,null,null,null,null,null,null,"",""]
[null,null,null,null,null,null,null,null,null,"",""]
[null,null,null,null,null,null,null,null,null,"",""]
[null,null,null,null,null,null,null,null,null,"",""]
[null,null,null,null,null,null,null,null,null,"",""]
[null,null,null,null,null,null,null,null,null,"",""]
[null,null,null,null,null,null,null,null,null,"",""]
[null,null,null,null,null,null,null,null,null,"",""]
[null,null,null,null,null,null,null,null,null,"",""]
[null,null,null,null,null,null,null,null,null,"",""]
[null,null,null,null,null,null,null,null,null,"",""]
[null,null,null,null,null,null,null,null,null,"",""]
[null,null,null,null,null,null,null,null,null,"",""]
[null,null,null,null,null,null,null,null,null,"",""]
[null,null,null,null,null,null,null,null,null,"",""]
[null,null,null,null,null,null,null,null,null,"",""]
[null,null,null,null,null,null,null,null,null,"",""]
[null,null,null,null,null,null,null,null,null,"",""]
[null,null,null,null,null,null,null,null,null,"",{"$f":"IF(OR(I3592=\"\",J3592=\"\"),\"\",PRODUCT(I3592,J3592))","v":""}]
[null,null,null,null,null,null,null,null,null,"",""]
[null,null,null,null,null,null,null,null,null,"",""]
[null,null,null,null,null,null,null,null,null,"",""]
[null,null,null,null,null,null,null,null,null,"",""]
[null,null,null,null,null,null,null,null,null,"",""]
[null,null,null,null,null,null,null,null,null,"",""]
[null,null,null,null,null,null,null,null,null,"",""]
[null,null,null,null,null,null,null,null,null,"",""]
[null,null,null,null,null,null,null,null,null,"",""]
[null,null,null,null,null,null,null,null,null,"",""]
[null,null,null,null,null,null,null,null,null,"",""]
[null,null,null,null,null,null,null,null,null,"",""]
[null,null,null,null,null,null,null,null,null,"",""]
[null,null,null,null,null,null,null,null,null,"",""]
[null,null,null,null,null,null,null,null,null,"",""]
[null,null,null,null,null,null,null,null,null,"",""]
[null,null,null,null,null,null,null,null,null,"",""]
[null,null,null,null,null,null,null,null,null,"",""]
[null,null,null,null,null,null,null,null,null,"",""]
[null,null,null,null,null,null,null,null,null,"",""]
[null,null,null,null,null,null,null,null,null,{"$f":"IFERROR(IF(H3613<>\"\",7.05,\"\"),\"\")","v":""},""]
[null,null,null,null,null,null,null,null,null,"",""]
[null,null,null,null,null,null,null,null,null,"",""]
[null,null,null,null,null,null,null,null,null,"",""]
[null,null,null,null,null,null,null,null,null,"",""]
[null,null,null,null,null,null,null,null,null,"",""]
[null,null,null,null,null,null,null,null,null,"",""]
[null,null,null,null,null,null,null,null,null,"",""]
[null,null,null,null,null,null,null,null,null,"",""]
[null,null,null,null,null,null,null,null,null,"",""]
[null,null,null,null,null,null,null,null,null,"",""]
[null,null,null,null,null,null,null,null,null,"",""]
[null,null,null,null,null,null,null,null,null,"",""]
[null,null,null,null,null,null,null,null,null,"",""]
[null,null,null,null,null,null,null,null,null,"",""]
[null,null,null,null,null,null,null,null,null,"",""]
[null,null,null,null,null,null,null,null,null,"",""]
[null,null,null,null,null,null,null,null,null,"",""]
[null,null,null,null,null,null,null,null,null,"",""]
[null,null,null,null,null,null,null,null,null,"",""]
[null,null,null,null,null,null,null,null,null,"",""]
[null,null,null,null,null,null,null,null,null,"",""]
[null,null,null,null,null,null,null,null,null,"",""]
[null,null,null,null,null,null,null,null,null,"",""]
[null,null,null,null,null,null,null,null,null,"",""]
[null,null,null,null,null,null,null,null,null,"",""]
[null,null,null,null,null,null,null,null,null,"",""]
[null,null,null,null,null,null,null,null,null,"",""]
[null,null,null,null,null,null,null,null,null,"",""]
[null,null,null,null,null,null,null,null,null,"",""]
[null,null,null,null,null,null,null,null,null,"",""]
[null,null,null,null,null,null,null,null,null,"",""]
[null,null,null,null,null,null,null,null,null,"",""]
[null,null,null,null,null,null,null,null,null,"",""]
[null,null,null,null,null,null,null,null,null,"",""]
[null,null,null,null,null,null,null,null,null,"",""]
[null,null,null,null,null,null,null,null,null,"",""]
[null,null,null,null,null,null,null,null,null,"",""]
[null,null,null,null,null,null,null,null,null,"",""]
[null,null,null,null,null,null,null,null,null,"",""]
[null,null,null,null,null,null,null,null,null,null,""]
[null,null,null,null,null,null,null,null,null,null,""]
[null,null,null,null,null,null,null,null,null,null,""]
[null,null,null,null,null,null,null,null,null,null,{"$f":"IF(OR(I3656=\"\",J3656=\"\"),\"\",PRODUCT(I3656,J3656))","v":""}]
[null,null,null,null,null,null,null,null,null,null,""]
[null,null,null,null,null,null,null,null,null,null,""]
[null,null,null,null,null,null,null,null,null,null,""]
[null,null,null,null,null,null,null,null,null,null,""]
[null,null,null,null,null,null,null,null,null,null,""]
[null,null,null,null,null,null,null,null,null,null,""]
[null,null,null,null,null,null,null,null,null,null,""]
[null,null,null,null,null,null,null,null,null,null,""]
[null,null,null,null,null,null,null,null,null,null,""]
[null,null,null,null,null,null,null,null,null,null,""]
[null,null,null,null,null,null,null,null,null,null,""]
[null,null,null,null,null,null,null,null,null,null,""]
[null,null,null,null,null,null,null,null,null,null,""]
[null,null,null,null,null,null,null,null,null,null,""]
[null,null,null,null,null,null,null,null,null,null,""]
[null,null,null,null,null,null,null,null,null,null,""]
[null,null,null,null,null,null,null,null,null,null,""]
[null,null,null,null,null,null,null,null,null,null,""]
[null,null,null,null,null,null,null,null,null,null,""]
[null,null,null,null,null,null,null,null,null,null,""]
[null,null,null,null,null,null,null,null,null,null,""]
[null,null,null,null,null,null,null,null,null,null,""]
[null,null,null,null,null,null,null,null,null,null,""]
[null,null,null,null,null,null,null,null,null,null,""]
[null,null,null,null,null,null,null,null,null,null,""]
[null,null,null,null,null,null,null,null,null,null,""]
[null,null,null,null,null,null,null,null,null,null,""]
[null,null,null,null,null,null,null,null,null,null,""]
[null,null,null,null,null,null,null,null,null,null,""]
[null,null,null,null,null,null,null,null,null,null,""]
[null,null,null,null,null,null,null,null,null,null,""]
[null,null,null,null,null,null,null,null,null,null,""]
[null,null,null,null,null,null,null,null,null,null,""]
[null,null,null,null,null,null,null,null,null,null,""]
[null,null,null,null,null,null,null,null,null,null,""]
[null,null,null,null,null,null,null,null,null,null,""]
[null,null,null,null,null,null,null,null,null,null,""]
[null,null,null,null,null,null,null,null,null,null,""]
[null,null,null,null,null,null,null,null,null,null,""]
[null,null,null,null,null,null,null,null,null,null,""]
[null,null,null,null,null,null,null,null,null,null,""]
[null,null,null,null,null,null,null,null,null,null,""]
[null,null,null,null,null,null,null,null,null,null,""]
[null,null,null,null,null,null,null,null,null,null,""]
[null,null,null,null,null,null,null,null,null,null,""]
[null,null,null,null,null,null,null,null,null,null,""]
[null,null,null,null,null,null,null,null,null,null,""]
[null,null,null,null,null,null,null,null,null,null,""]
[null,null,null,null,null,null,null,null,null,null,""]
[null,null,null,null,null,null,null,null,null,null,""]
[null,null,null,null,null,null,null,null,null,null,""]
[null,null,null,null,null,null,null,null,null,null,""]
[null,null,null,null,null,null,null,null,null,null,""]
[null,null,null,null,null,null,null,null,null,null,""]
[null,null,null,null,null,null,null,null,null,null,""]
[null,null,null,null,null,null,null,null,null,null,""]
[null,null,null,null,null,null,null,null,null,null,""]
[null,null,null,null,null,null,null,null,null,null,""]
[null,null,null,null,null,null,null,null,null,null,""]
[null,null,null,null,null,null,null,null,null,null,""]
[null,null,null,null,null,null,null,null,null,null,""]
[null,null,null,null,null,null,null,null,null,null,""]
[null,null,null,null,null,null,null,null,null,null,""]
[null,null,null,null,null,null,null,null,null,null,{"$f":"IF(OR(I3720=\"\",J3720=\"\"),\"\",PRODUCT(I3720,J3720))","v":""}]
[null,null,null,null,null,null,null,null,null,null,""]
[null,null,null,null,null,null,null,null,null,null,""]
[null,null,null,null,null,null,null,null,null,null,""]
[null,null,null,null,null,null,null,null,null,null,""]
[null,null,null,null,null,null,null,null,null,null,""]
[null,null,null,null,null,null,null,null,null,null,""]
[null,null,null,null,null,null,null,null,null,null,""]
[null,null,null,null,null,null,null,null,null,null,""]
[null,null,null,null,null,null,null,null,null,null,""]
[null,null,null,null,null,null,null,null,null,null,""]
[null,null,null,null,null,null,null,null,null,null,""]
[null,null,null,null,null,null,null,null,null,null,""]
[null,null,null,null,null,null,null,null,null,null,""]
[null,null,null,null,null,null,null,null,null,null,""]
[null,null,null,null,null,null,null,null,null,null,""]
[null,null,null,null,null,null,null,null,null,null,""]
[null,null,null,null,null,null,null,null,null,null,""]
[null,null,null,null,null,null,null,null,null,null,""]
[null,null,null,null,null,null,null,null,null,null,""]
[null,null,null,null,null,null,null,null,null,null,""]
[null,null,null,null,null,null,null,null,null,null,""]
[null,null,null,null,null,null,null,null,null,null,""]
[null,null,null,null,null,null,null,null,null,null,""]
[null,null,null,null,null,null,null,null,null,null,""]
[null,null,null,null,null,null,null,null,null,null,""]
[null,null,null,null,null,null,null,null,null,null,""]
[null,null,null,null,null,null,null,null,null,null,""]
[null,null,null,null,null,null,null,null,null,null,""]
[null,null,null,null,null,null,null,null,null,null,""]
[null,null,null,null,null,null,null,null,null,null,""]
[null,null,null,null,null,null,null,null,null,null,""]
[null,null,null,null,null,null,null,null,null,null,""]
[null,null,null,null,null,null,null,null,null,null,""]
[null,null,null,null,null,null,null,null,null,null,""]
[null,null,null,null,null,null,null,null,null,null,""]
[null,null,null,null,null,null,null,null,null,null,""]
[null,null,null,null,null,null,null,null,null,null,""]
[null,null,null,null,null,null,null,null,null,null,""]
[null,null,null,null,null,null,null,null,null,null,""]
[null,null,null,null,null,null,null,null,null,null,""]
[null,null,null,null,null,null,null,null,null,null,""]
[null,null,null,null,null,null,null,null,null,null,""]
[null,null,null,null,null,null,null,null,null,null,""]
[null,null,null,null,null,null,null,null,null,null,""]
[null,null,null,null,null,null,null,null,null,null,""]
[null,null,null,null,null,null,null,null,null,null,""]
[null,null,null,null,null,null,null,null,null,null,""]
[null,null,null,null,null,null,null,null,null,null,""]
[null,null,null,null,null,null,null,null,null,null,""]
[null,null,null,null,null,null,null,null,null,null,""]
[null,null,null,null,null,null,null,null,null,null,""]
[null,null,null,null,null,null,null,null,null,null,""]
[null,null,null,null,null,null,null,null,null,null,""]
[null,null,null,null,null,null,null,null,null,null,""]
[null,null,null,null,null,null,null,null,null,null,""]
[null,null,null,null,null,null,null,null,null,null,""]
[null,null,null,null,null,null,null,null,null,null,""]
[null,null,null,null,null,null,null,null,null,null,""]
[null,null,null,null,null,null,null,null,null,null,""]
[null,null,null,null,null,null,null,null,null,null,""]
[null,null,null,null,null,null,null,null,null,null,""]
[null,null,null,null,null,null,null,null,null,null,""]
[null,null,null,null,null,null,null,null,null,null,""]
[null,null,null,null,null,null,null,null,null,null,{"$f":"IF(OR(I3784=\"\",J3784=\"\"),\"\",PRODUCT(I3784,J3784))","v":""}]
[null,null,null,null,null,null,null,null,null,null,""]
[null,null,null,null,null,null,null,null,null,null,""]
[null,null,null,null,null,null,null,null,null,null,""]
[null,null,null,null,null,null,null,null,null,null,""]
[null,null,null,null,null,null,null,null,null,null,""]
[null,null,null,null,null,null,null,null,null,null,""]
[null,null,null,null,null,null,null,null,null,null,""]
[null,null,null,null,null,null,null,null,null,null,""]
[null,null,null,null,null,null,null,null,null,null,""]
[null,null,null,null,null,null,null,null,null,null,""]
[null,null,null,null,null,null,null,null,null,null,""]
[null,null,null,null,null,null,null,null,null,null,""]
[null,null,null,null,null,null,null,null,null,null,""]
[null,null,null,null,null,null,null,null,null,null,""]
[null,null,null,null,null,null,null,null,null,null,""]
[null,null,null,null,null,null,null,null,null,null,""]
[null,null,null,null,null,null,null,null,null,null,""]
[null,null,null,null,null,null,null,null,null,null,""]
[null,null,null,null,null,null,null,null,null,null,""]
[null,null,null,null,null,null,null,null,null,null,""]
[null,null,null,null,null,null,null,null,null,null,""]
[null,null,null,null,null,null,null,null,null,null,""]
[null,null,null,null,null,null,null,null,null,null,""]
[null,null,null,null,null,null,null,null,null,null,""]
[null,null,null,null,null,null,null,null,null,null,""]
[null,null,null,null,null,null,null,null,null,null,""]
[null,null,null,null,null,null,null,null,null,null,""]
[null,null,null,null,null,null,null,null,null,null,""]
[null,null,null,null,null,null,null,null,null,null,""]
[null,null,null,null,null,null,null,null,null,null,""]
[null,null,null,null,null,null,null,null,null,null,""]
[null,null,null,null,null,null,null,null,null,null,""]
[null,null,null,null,null,null,null,null,null,null,""]
[null,null,null,null,null,null,null,null,null,null,""]
[null,null,null,null,null,null,null,null,null,null,""]
[null,null,null,null,null,null,null,null,null,null,""]
[null,null,null,null,null,null,null,null,null,null,""]
[null,null,null,null,null,null,null,null,null,null,""]
[null,null,null,null,null,null,null,null,null,null,""]
[null,null,null,null,null,null,null,null,null,null,""]
[null,null,null,null,null,null,null,null,null,null,""]
[null,null,null,null,null,null,null,null,null,null,""]
[null,null,null,null,null,null,null,null,null,null,""]
[null,null,null,null,null,null,null,null,null,null,""]
[null,null,null,null,null,null,null,null,null,null,""]
[null,null,null,null,null,null,null,null,null,null,""]
[null,null,null,null,null,null,null,null,null,null,""]
[null,null,null,null,null,null,null,null,null,null,""]
[null,null,null,null,null,null,null,null,null,null,""]
[null,null,null,null,null,null,null,null,null,null,""]
[null,null,null,null,null,null,null,null,null,null,""]
[null,null,null,null,null,null,null,null,null,null,""]
[null,null,null,null,null,null,null,null,null,null,""]
[null,null,null,null,null,null,null,null,null,null,""]
[null,null,null,null,null,null,null,null,null,null,""]
[null,null,null,null,null,null,null,null,null,null,""]
[null,null,null,null,null,null,null,null,null,null,""]
[null,null,null,null,null,null,null,null,null,null,""]
[null,null,null,null,null,null,null,null,null,null,""]
[null,null,null,null,null,null,null,null,null,null,""]
[null,null,null,null,null,null,null,null,null,null,""]
[null,null,null,null,null,null,null,null,null,null,""]
[null,null,null,null,null,null,null,null,null,null,""]
[null,null,null,null,null,null,null,null,null,null,{"$f":"IF(OR(I3848=\"\",J3848=\"\"),\"\",PRODUCT(I3848,J3848))","v":""}]
[null,null,null,null,null,null,null,null,null,null,""]
[null,null,null,null,null,null,null,null,null,null,""]
[null,null,null,null,null,null,null,null,null,null,""]
[null,null,null,null,null,null,null,null,null,null,""]
[null,null,null,null,null,null,null,null,null,null,""]
[null,null,null,null,null,null,null,null,null,null,""]
[null,null,null,null,null,null,null,null,null,null,""]
[null,null,null,null,null,null,null,null,null,null,""]
[null,null,null,null,null,null,null,null,null,null,""]
[null,null,null,null,null,null,null,null,null,null,""]
[null,null,null,null,null,null,null,null,null,null,""]
[null,null,null,null,null,null,null,null,null,null,""]
[null,null,null,null,null,null,null,null,null,null,""]
[null,null,null,null,null,null,null,null,null,null,""]
[null,null,null,null,null,null,null,null,null,null,""]
[null,null,null,null,null,null,null,null,null,null,""]
[null,null,null,null,null,null,null,null,null,null,""]
[null,null,null,null,null,null,null,null,null,null,""]
[null,null,null,null,null,null,null,null,null,null,""]
[null,null,null,null,null,null,null,null,null,null,""]
[null,null,null,null,null,null,null,null,null,null,""]
[null,null,null,null,null,null,null,null,null,null,""]
[null,null,null,null,null,null,null,null,null,null,""]
[null,null,null,null,null,null,null,null,null,null,""]
[null,null,null,null,null,null,null,null,null,null,""]
[null,null,null,null,null,null,null,null,null,null,""]
[null,null,null,null,null,null,null,null,null,null,""]
[null,null,null,null,null,null,null,null,null,null,""]
[null,null,null,null,null,null,null,null,null,null,""]
[null,null,null,null,null,null,null,null,null,null,""]
[null,null,null,null,null,null,null,null,null,null,""]
[null,null,null,null,null,null,null,null,null,null,""]
[null,null,null,null,null,null,null,null,null,null,""]
[null,null,null,null,null,null,null,null,null,null,""]
[null,null,null,null,null,null,null,null,null,null,""]
[null,null,null,null,null,null,null,null,null,null,""]
[null,null,null,null,null,null,null,null,null,null,""]
[null,null,null,null,null,null,null,null,null,null,""]
[null,null,null,null,null,null,null,null,null,null,""]
[null,null,null,null,null,null,null,null,null,null,""]
[null,null,null,null,null,null,null,null,null,null,""]
[null,null,null,null,null,null,null,null,null,null,""]
[null,null,null,null,null,null,null,null,null,null,""]
[null,null,null,null,null,null,null,null,null,null,""]
[null,null,null,null,null,null,null,null,null,null,""]
[null,null,null,null,null,null,null,null,null,null,""]
[null,null,null,null,null,null,null,null,null,null,""]
[null,null,null,null,null,null,null,null,null,null,""]
[null,null,null,null,null,null,null,null,null,null,""]
[null,null,null,null,null,null,null,null,null,null,""]
[null,null,null,null,null,null,null,null,null,null,""]
[null,null,null,null,null,null,null,null,null,null,""]
[null,null,null,null,null,null,null,null,null,null,""]
[null,null,null,null,null,null,null,null,null,null,""]
[null,null,null,null,null,null,null,null,null,null,""]
[null,null,null,null,null,null,null,null,null,null,""]
[null,null,null,null,null,null,null,null,null,null,""]
[null,null,null,null,null,null,null,null,null,null,""]
[null,null,null,null,null,null,null,null,null,null,""]
[null,null,null,null,null,null,null,null,null,null,""]
[null,null,null,null,null,null,null,null,null,null,""]
[null,null,null,null,null,null,null,null,null,null,""]
[null,null,null,null,null,null,null,null,null,null,""]
[null,null,null,null,null,null,null,null,null,null,{"$f":"IF(OR(I3912=\"\",J3912=\"\"),\"\",PRODUCT(I3912,J3912))","v":""}]
[null,null,null,null,null,null,null,null,null,null,""]
[null,null,null,null,null,null,null,null,null,null,""]
[null,null,null,null,null,null,null,null,null,null,""]
[null,null,null,null,null,null,null,null,null,null,""]
[null,null,null,null,null,null,null,null,null,null,""]
[null,null,null,null,null,null,null,null,null,null,""]
[null,null,null,null,null,null,null,null,null,null,""]
[null,null,null,null,null,null,null,null,null,null,""]
[null,null,null,null,null,null,null,null,null,null,""]
[null,null,null,null,null,null,null,null,null,null,""]
[null,null,null,null,null,null,null,null,null,null,""]
[null,null,null,null,null,null,null,null,null,null,""]
[null,null,null,null,null,null,null,null,null,null,""]
[null,null,null,null,null,null,null,null,null,null,""]
[null,null,null,null,null,null,null,null,null,null,""]
[null,null,null,null,null,null,null,null,null,null,""]
[null,null,null,null,null,null,null,null,null,null,""]
[null,null,null,null,null,null,null,null,null,null,""]
[null,null,null,null,null,null,null,null,null,null,""]
[null,null,null,null,null,null,null,null,null,null,""]
[null,null,null,null,null,null,null,null,null,null,""]
[null,null,null,null,null,null,null,null,null,null,""]
[null,null,null,null,null,null,null,null,null,null,""]
[null,null,null,null,null,null,null,null,null,null,""]
[null,null,null,null,null,null,null,null,null,null,""]
[null,null,null,null,null,null,null,null,null,null,""]
[null,null,null,null,null,null,null,null,null,null,""]
[null,null,null,null,null,null,null,null,null,null,""]
[null,null,null,null,null,null,null,null,null,null,""]
[null,null,null,null,null,null,null,null,null,null,""]
[null,null,null,null,null,null,null,null,null,null,""]
[null,null,null,null,null,null,null,null,null,null,""]
[null,null,null,null,null,null,null,null,null,null,""]
[null,null,null,null,null,null,null,null,null,null,""]
[null,null,null,null,null,null,null,null,null,null,""]
[null,null,null,null,null,null,null,null,null,null,""]
[null,null,null,null,null,null,null,null,null,null,""]
[null,null,null,null,null,null,null,null,null,null,""]
[null,null,null,null,null,null,null,null,null,null,""]
[null,null,null,null,null,null,null,null,null,null,""]
[null,null,null,null,null,null,null,null,null,null,""]
[null,null,null,null,null,null,null,null,null,null,""]
[null,null,null,null,null,null,null,null,null,null,""]
[null,null,null,null,null,null,null,null,null,null,""]
[null,null,null,null,null,null,null,null,null,null,""]
[null,null,null,null,null,null,null,null,null,null,""]
[null,null,null,null,null,null,null,null,null,null,""]
[null,null,null,null,null,null,null,null,null,null,""]
[null,null,null,null,null,null,null,null,null,null,""]
[null,null,null,null,null,null,null,null,null,null,""]
[null,null,null,null,null,null,null,null,null,null,""]
[null,null,null,null,null,null,null,null,null,null,""]
[null,null,null,null,null,null,null,null,null,null,""]
[null,null,null,null,null,null,null,null,null,null,""]
[null,null,null,null,null,null,null,null,null,null,""]
[null,null,null,null,null,null,null,null,null,null,""]
[null,null,null,null,null,null,null,null,null,null,""]
[null,null,null,null,null,null,null,null,null,null,""]
[null,null,null,null,null,null,null,null,null,null,""]
[null,null,null,null,null,null,null,null,null,null,""]
[null,null,null,null,null,null,null,null,null,null,""]
[null,null,null,null,null,null,null,null,null,null,""]
[null,null,null,null,null,null,null,null,null,null,""]
[null,null,null,null,null,null,null,null,null,null,{"$f":"IF(OR(I3976=\"\",J3976=\"\"),\"\",PRODUCT(I3976,J3976))","v":""}]
[null,null,null,null,null,null,null,null,null,null,""]
[null,null,null,null,null,null,null,null,null,null,""]
[null,null,null,null,null,null,null,null,null,null,""]
[null,null,null,null,null,null,null,null,null,null,""]
[null,null,null,null,null,null,null,null,null,null,""]
[null,null,null,null,null,null,null,null,null,null,""]
[null,null,null,null,null,null,null,null,null,null,""]
[null,null,null,null,null,null,null,null,null,null,""]
[null,null,null,null,null,null,null,null,null,null,""]
[null,null,null,null,null,null,null,null,null,null,""]
[null,null,null,null,null,null,null,null,null,null,""]
[null,null,null,null,null,null,null,null,null,null,""]
[null,null,null,null,null,null,null,null,null,null,""]
[null,null,null,null,null,null,null,null,null,null,""]
[null,null,null,null,null,null,null,null,null,null,""]
[null,null,null,null,null,null,null,null,null,null,""]
[null,null,null,null,null,null,null,null,null,null,""]
[null,null,null,null,null,null,null,null,null,null,""]
[null,null,null,null,null,null,null,null,null,null,""]
[null,null,null,null,null,null,null,null,null,null,""]
[null,null,null,null,null,null,null,null,null,null,""]
[null,null,null,null,null,null,null,null,null,null,""]
[null,null,null,null,null,null,null,null,null,null,""]
[null,null,null,null,null,null,null,null,null,null,""]
[null,null,null,null,null,null,null,null,null,null,""]
[null,null,null,null,null,null,null,null,null,null,""]
[null,null,null,null,null,null,null,null,null,null,""]
[null,null,null,null,null,null,null,null,null,null,""]
[null,null,null,null,null,null,null,null,null,null,""]
[null,null,null,null,null,null,null,null,null,null,""]
[null,null,null,null,null,null,null,null,null,null,""]
[null,null,null,null,null,null,null,null,null,null,""]
[null,null,null,null,null,null,null,null,null,null,""]
[null,null,null,null,null,null,null,null,null,null,""]
[null,null,null,null,null,null,null,null,null,null,""]
[null,null,null,null,null,null,null,null,null,null,""]
[null,null,null,null,null,null,null,null,null,null,""]
[null,null,null,null,null,null,null,null,null,null,""]
[null,null,null,null,null,null,null,null,null,null,""]
[null,null,null,null,null,null,null,null,null,null,""]
[null,null,null,null,null,null,null,null,null,null,""]
[null,null,null,null,null,null,null,null,null,null,""]
[null,null,null,null,null,null,null,null,null,null,""]
[null,null,null,null,null,null,null,null,null,null,""]
[null,null,null,null,null,null,null,null,null,null,""]
[null,null,null,null,null,null,null,null,null,null,""]
[null,null,null,null,null,null,null,null,null,null,""]
[null,null,null,null,null,null,null,null,null,null,""]
[null,null,null,null,null,null,null,null,null,null,""]
[null,null,null,null,null,null,null,null,null,null,""]
[null,null,null,null,null,null,null,null,null,null,""]
[null,null,null,null,null,null,null,null,null,null,""]
[null,null,null,null,null,null,null,null,null,null,""]
[null,null,null,null,null,null,null,null,null,null,""]
[null,null,null,null,null,null,null,null,null,null,""]
[null,null,null,null,null,null,null,null,null,null,""]
[null,null,null,null,null,null,null,null,null,null,""]
[null,null,null,null,null,null,null,null,null,null,""]
[null,null,null,null,null,null,null,null,null,null,""]
[null,null,null,null,null,null,null,null,null,null,""]
[null,null,null,null,null,null,null,null,null,null,""]
[null,null,null,null,null,null,null,null,null,null,""]
[null,null,null,null,null,null,null,null,null,null,""]
[null,null,null,null,null,null,null,null,null,null,{"$f":"IF(OR(I4040=\"\",J4040=\"\"),\"\",PRODUCT(I4040,J4040))","v":""}]
[null,null,null,null,null,null,null,null,null,null,""]
[null,null,null,null,null,null,null,null,null,null,""]
[null,null,null,null,null,null,null,null,null,null,""]
[null,null,null,null,null,null,null,null,null,null,""]
[null,null,null,null,null,null,null,null,null,null,""]
[null,null,null,null,null,null,null,null,null,null,""]
[null,null,null,null,null,null,null,null,null,null,""]
[null,null,null,null,null,null,null,null,null,null,""]
[null,null,null,null,null,null,null,null,null,null,""]
[null,null,null,null,null,null,null,null,null,null,""]
[null,null,null,null,null,null,null,null,null,null,""]
[null,null,null,null,null,null,null,null,null,null,""]
[null,null,null,null,null,null,null,null,null,null,""]
[null,null,null,null,null,null,null,null,null,null,""]
[null,null,null,null,null,null,null,null,null,null,""]
[null,null,null,null,null,null,null,null,null,null,""]
[null,null,null,null,null,null,null,null,null,null,""]
[null,null,null,null,null,null,null,null,null,null,""]
[null,null,null,null,null,null,null,null,null,null,""]
[null,null,null,null,null,null,null,null,null,null,""]
[null,null,null,null,null,null,null,null,null,null,""]
[null,null,null,null,null,null,null,null,null,null,""]
[null,null,null,null,null,null,null,null,null,null,""]
[null,null,null,null,null,null,null,null,null,null,""]
[null,null,null,null,null,null,null,null,null,null,""]
[null,null,null,null,null,null,null,null,null,null,""]
[null,null,null,null,null,null,null,null,null,null,""]
[null,null,null,null,null,null,null,null,null,null,""]
[null,null,null,null,null,null,null,null,null,null,""]
[null,null,null,null,null,null,null,null,null,null,""]
[null,null,null,null,null,null,null,null,null,null,""]
[null,null,null,null,null,null,null,null,null,null,""]
[null,null,null,null,null,null,null,null,null,null,""]
[null,null,null,null,null,null,null,null,null,null,""]
[null,null,null,null,null,null,null,null,null,null,""]
[null,null,null,null,null,null,null,null,null,null,""]
[null,null,null,null,null,null,null,null,null,null,""]
[null,null,null,null,null,null,null,null,null,null,""]
[null,null,null,null,null,null,null,null,null,null,""]
[null,null,null,null,null,null,null,null,null,null,""]
[null,null,null,null,null,null,null,null,null,null,""]
[null,null,null,null,null,null,null,null,null,null,""]
[null,null,null,null,null,null,null,null,null,null,""]
[null,null,null,null,null,null,null,null,null,null,""]
[null,null,null,null,null,null,null,null,null,null,""]
[null,null,null,null,null,null,null,null,null,null,""]
[null,null,null,null,null,null,null,null,null,null,""]
[null,null,null,null,null,null,null,null,null,null,""]
[null,null,null,null,null,null,null,null,null,null,""]
[null,null,null,null,null,null,null,null,null,null,""]
[null,null,null,null,null,null,null,null,null,null,""]
[null,null,null,null,null,null,null,null,null,null,""]
[null,null,null,null,null,null,null,null,null,null,""]
[null,null,null,null,null,null,null,null,null,null,""]
[null,null,null,null,null,null,null,null,null,null,""]
[null,null,null,null,null,null,null,null,null,null,""]
[null,null,null,null,null,null,null,null,null,null,""]
[null,null,null,null,null,null,null,null,null,null,""]
[null,null,null,null,null,null,null,null,null,null,""]
[null,null,null,null,null,null,null,null,null,null,""]
[null,null,null,null,null,null,null,null,null,null,""]
[null,null,null,null,null,null,null,null,null,null,""]
[null,null,null,null,null,null,null,null,null,null,""]
[null,null,null,null,null,null,null,null,null,null,{"$f":"IF(OR(I4104=\"\",J4104=\"\"),\"\",PRODUCT(I4104,J4104))","v":""}]
[null,null,null,null,null,null,null,null,null,null,""]
[null,null,null,null,null,null,null,null,null,null,""]
[null,null,null,null,null,null,null,null,null,null,""]
[null,null,null,null,null,null,null,null,null,null,""]
[null,null,null,null,null,null,null,null,null,null,""]
[null,null,null,null,null,null,null,null,null,null,""]
[null,null,null,null,null,null,null,null,null,null,""]
[null,null,null,null,null,null,null,null,null,null,""]
[null,null,null,null,null,null,null,null,null,null,""]
[null,null,null,null,null,null,null,null,null,null,""]
[null,null,null,null,null,null,null,null,null,null,""]
[null,null,null,null,null,null,null,null,null,null,""]
[null,null,null,null,null,null,null,null,null,null,""]
[null,null,null,null,null,null,null,null,null,null,""]
[null,null,null,null,null,null,null,null,null,null,""]
[null,null,null,null,null,null,null,null,null,null,""]
[null,null,null,null,null,null,null,null,null,null,""]
[null,null,null,null,null,null,null,null,null,null,""]
[null,null,null,null,null,null,null,null,null,null,""]
[null,null,null,null,null,null,null,null,null,null,""]
[null,null,null,null,null,null,null,null,null,null,""]
[null,null,null,null,null,null,null,null,null,null,""]
[null,null,null,null,null,null,null,null,null,null,""]
[null,null,null,null,null,null,null,null,null,null,""]
[null,null,null,null,null,null,null,null,null,null,""]
[null,null,null,null,null,null,null,null,null,null,""]
[null,null,null,null,null,null,null,null,null,null,""]
[null,null,null,null,null,null,null,null,null,null,""]
[null,null,null,null,null,null,null,null,null,null,""]
[null,null,null,null,null,null,null,null,null,null,""]
[null,null,null,null,null,null,null,null,null,null,""]
[null,null,null,null,null,null,null,null,null,null,""]
[null,null,null,null,null,null,null,null,null,null,""]
[null,null,null,null,null,null,null,null,null,null,""]
[null,null,null,null,null,null,null,null,null,null,""]
[null,null,null,null,null,null,null,null,null,null,""]
[null,null,null,null,null,null,null,null,null,null,""]
[null,null,null,null,null,null,null,null,null,null,""]
[null,null,null,null,null,null,null,null,null,null,""]
[null,null,null,null,null,null,null,null,null,null,""]
[null,null,null,null,null,null,null,null,null,null,""]
[null,null,null,null,null,null,null,null,null,null,""]
[null,null,null,null,null,null,null,null,null,null,""]
[null,null,null,null,null,null,null,null,null,null,""]
[null,null,null,null,null,null,null,null,null,null,""]
[null,null,null,null,null,null,null,null,null,null,""]
[null,null,null,null,null,null,null,null,null,null,""]
[null,null,null,null,null,null,null,null,null,null,""]
[null,null,null,null,null,null,null,null,null,null,""]
[null,null,null,null,null,null,null,null,null,null,""]
[null,null,null,null,null,null,null,null,null,null,""]
[null,null,null,null,null,null,null,null,null,null,""]
[null,null,null,null,null,null,null,null,null,null,""]
[null,null,null,null,null,null,null,null,null,null,""]
[null,null,null,null,null,null,null,null,null,null,""]
[null,null,null,null,null,null,null,null,null,null,""]
[null,null,null,null,null,null,null,null,null,null,""]
[null,null,null,null,null,null,null,null,null,null,""]
[null,null,null,null,null,null,null,null,null,null,""]
[null,null,null,null,null,null,null,null,null,null,""]
[null,null,null,null,null,null,null,null,null,null,""]
[null,null,null,null,null,null,null,null,null,null,""]
[null,null,null,null,null,null,null,null,null,null,""]
[null,null,null,null,null,null,null,null,null,null,{"$f":"IF(OR(I4168=\"\",J4168=\"\"),\"\",PRODUCT(I4168,J4168))","v":""}]
[null,null,null,null,null,null,null,null,null,null,""]
[null,null,null,null,null,null,null,null,null,null,""]
[null,null,null,null,null,null,null,null,null,null,""]
[null,null,null,null,null,null,null,null,null,null,""]
[null,null,null,null,null,null,null,null,null,null,""]
[null,null,null,null,null,null,null,null,null,null,""]
[null,null,null,null,null,null,null,null,null,null,""]
[null,null,null,null,null,null,null,null,null,null,""]
[null,null,null,null,null,null,null,null,null,null,""]
[null,null,null,null,null,null,null,null,null,null,""]
[null,null,null,null,null,null,null,null,null,null,""]
[null,null,null,null,null,null,null,null,null,null,""]
[null,null,null,null,null,null,null,null,null,null,""]
[null,null,null,null,null,null,null,null,null,null,""]
[null,null,null,null,null,null,null,null,null,null,""]
[null,null,null,null,null,null,null,null,null,null,""]
[null,null,null,null,null,null,null,null,null,null,""]
[null,null,null,null,null,null,null,null,null,null,""]
[null,null,null,null,null,null,null,null,null,null,""]
[null,null,null,null,null,null,null,null,null,null,""]
[null,null,null,null,null,null,null,null,null,null,""]
[null,null,null,null,null,null,null,null,null,null,""]
[null,null,null,null,null,null,null,null,null,null,""]
[null,null,null,null,null,null,null,null,null,null,""]
[null,null,null,null,null,null,null,null,null,null,""]
[null,null,null,null,null,null,null,null,null,null,""]
[null,null,null,null,null,null,null,null,null,null,""]
[null,null,null,null,null,null,null,null,null,null,""]
[null,null,null,null,null,null,null,null,null,null,""]
[null,null,null,null,null,null,null,null,null,null,""]
[null,null,null,null,null,null,null,null,null,null,""]
[null,null,null,null,null,null,null,null,null,null,""]
[null,null,null,null,null,null,null,null,null,null,""]
[null,null,null,null,null,null,null,null,null,null,""]
[null,null,null,null,null,null,null,null,null,null,""]
[null,null,null,null,null,null,null,null,null,null,""]
[null,null,null,null,null,null,null,null,null,null,""]
[null,null,null,null,null,null,null,null,null,null,""]
[null,null,null,null,null,null,null,null,null,null,""]
[null,null,null,null,null,null,null,null,null,null,""]
[null,null,null,null,null,null,null,null,null,null,""]
[null,null,null,null,null,null,null,null,null,null,""]
[null,null,null,null,null,null,null,null,null,null,""]
[null,null,null,null,null,null,null,null,null,null,""]
[null,null,null,null,null,null,null,null,null,null,""]
[null,null,null,null,null,null,null,null,null,null,""]
[null,null,null,null,null,null,null,null,null,null,""]
[null,null,null,null,null,null,null,null,null,null,""]
[null,null,null,null,null,null,null,null,null,null,""]
[null,null,null,null,null,null,null,null,null,null,""]
[null,null,null,null,null,null,null,null,null,null,""]
[null,null,null,null,null,null,null,null,null,null,""]
[null,null,null,null,null,null,null,null,null,null,""]
[null,null,null,null,null,null,null,null,null,null,""]
[null,null,null,null,null,null,null,null,null,null,""]
[null,null,null,null,null,null,null,null,null,null,""]
[null,null,null,null,null,null,null,null,null,null,""]
[null,null,null,null,null,null,null,null,null,null,""]
[null,null,null,null,null,null,null,null,null,null,""]
[null,null,null,null,null,null,null,null,null,null,""]
[null,null,null,null,null,null,null,null,null,null,""]
[null,null,null,null,null,null,null,null,null,null,""]
[null,null,null,null,null,null,null,null,null,null,""]
[null,null,null,null,null,null,null,null,null,null,{"$f":"IF(OR(I4232=\"\",J4232=\"\"),\"\",PRODUCT(I4232,J4232))","v":""}]
[null,null,null,null,null,null,null,null,null,null,""]
[null,null,null,null,null,null,null,null,null,null,""]
[null,null,null,null,null,null,null,null,null,null,""]
[null,null,null,null,null,null,null,null,null,null,""]
[null,null,null,null,null,null,null,null,null,null,""]
[null,null,null,null,null,null,null,null,null,null,""]
[null,null,null,null,null,null,null,null,null,null,""]
[null,null,null,null,null,null,null,null,null,null,""]
[null,null,null,null,null,null,null,null,null,null,""]
[null,null,null,null,null,null,null,null,null,null,""]
[null,null,null,null,null,null,null,null,null,null,""]
[null,null,null,null,null,null,null,null,null,null,""]
[null,null,null,null,null,null,null,null,null,null,""]
[null,null,null,null,null,null,null,null,null,null,""]
[null,null,null,null,null,null,null,null,null,null,""]
[null,null,null,null,null,null,null,null,null,null,""]
[null,null,null,null,null,null,null,null,null,null,""]
[null,null,null,null,null,null,null,null,null,null,""]
[null,null,null,null,null,null,null,null,null,null,""]
[null,null,null,null,null,null,null,null,null,null,""]
[null,null,null,null,null,null,null,null,null,null,""]
[null,null,null,null,null,null,null,null,null,null,""]
[null,null,null,null,null,null,null,null,null,null,""]
[null,null,null,null,null,null,null,null,null,null,""]
[null,null,null,null,null,null,null,null,null,null,""]
[null,null,null,null,null,null,null,null,null,null,""]
[null,null,null,null,null,null,null,null,null,null,""]
[null,null,null,null,null,null,null,null,null,null,""]
[null,null,null,null,null,null,null,null,null,null,""]
[null,null,null,null,null,null,null,null,null,null,""]
[null,null,null,null,null,null,null,null,null,null,""]
[null,null,null,null,null,null,null,null,null,null,""]
[null,null,null,null,null,null,null,null,null,null,""]
[null,null,null,null,null,null,null,null,null,null,""]
[null,null,null,null,null,null,null,null,null,null,""]
[null,null,null,null,null,null,null,null,null,null,""]
[null,null,null,null,null,null,null,null,null,null,""]
[null,null,null,null,null,null,null,null,null,null,""]
[null,null,null,null,null,null,null,null,null,null,""]
[null,null,null,null,null,null,null,null,null,null,""]
[null,null,null,null,null,null,null,null,null,null,""]
[null,null,null,null,null,null,null,null,null,null,""]
[null,null,null,null,null,null,null,null,null,null,""]
[null,null,null,null,null,null,null,null,null,null,""]
[null,null,null,null,null,null,null,null,null,null,""]
[null,null,null,null,null,null,null,null,null,null,""]
[null,null,null,null,null,null,null,null,null,null,""]
[null,null,null,null,null,null,null,null,null,null,""]
[null,null,null,null,null,null,null,null,null,null,""]
[null,null,null,null,null,null,null,null,null,null,""]
[null,null,null,null,null,null,null,null,null,null,""]
[null,null,null,null,null,null,null,null,null,null,""]
[null,null,null,null,null,null,null,null,null,null,""]
[null,null,null,null,null,null,null,null,null,null,""]
[null,null,null,null,null,null,null,null,null,null,""]
[null,null,null,null,null,null,null,null,null,null,""]
[null,null,null,null,null,null,null,null,null,null,""]
[null,null,null,null,null,null,null,null,null,null,""]
[null,null,null,null,null,null,null,null,null,null,""]
[null,null,null,null,null,null,null,null,null,null,""]
[null,null,null,null,null,null,null,null,null,null,""]
[null,null,null,null,null,null,null,null,null,null,""]
[null,null,null,null,null,null,null,null,null,null,""]
[null,null,null,null,null,null,null,null,null,null,{"$f":"IF(OR(I4296=\"\",J4296=\"\"),\"\",PRODUCT(I4296,J4296))","v":""}]
[null,null,null,null,null,null,null,null,null,null,""]
[null,null,null,null,null,null,null,null,null,null,""]
[null,null,null,null,null,null,null,null,null,null,""]
[null,null,null,null,null,null,null,null,null,null,""]
[null,null,null,null,null,null,null,null,null,null,""]
[null,null,null,null,null,null,null,null,null,null,""]
[null,null,null,null,null,null,null,null,null,null,""]
[null,null,null,null,null,null,null,null,null,null,""]
[null,null,null,null,null,null,null,null,null,null,""]
[null,null,null,null,null,null,null,null,null,null,""]
[null,null,null,null,null,null,null,null,null,null,""]
[null,null,null,null,null,null,null,null,null,null,""]
[null,null,null,null,null,null,null,null,null,null,""]
[null,null,null,null,null,null,null,null,null,null,""]
[null,null,null,null,null,null,null,null,null,null,""]
[null,null,null,null,null,null,null,null,null,null,""]
[null,null,null,null,null,null,null,null,null,null,""]
[null,null,null,null,null,null,null,null,null,null,""]
[null,null,null,null,null,null,null,null,null,null,""]
[null,null,null,null,null,null,null,null,null,null,""]
[null,null,null,null,null,null,null,null,null,null,""]
[null,null,null,null,null,null,null,null,null,null,""]
[null,null,null,null,null,null,null,null,null,null,""]
[null,null,null,null,null,null,null,null,null,null,""]
[null,null,null,null,null,null,null,null,null,null,""]
[null,null,null,null,null,null,null,null,null,null,""]
[null,null,null,null,null,null,null,null,null,null,""]
[null,null,null,null,null,null,null,null,null,null,""]
[null,null,null,null,null,null,null,null,null,null,""]
[null,null,null,null,null,null,null,null,null,null,""]
[null,null,null,null,null,null,null,null,null,null,""]
[null,null,null,null,null,null,null,null,null,null,""]
[null,null,null,null,null,null,null,null,null,null,""]
[null,null,null,null,null,null,null,null,null,null,""]
[null,null,null,null,null,null,null,null,null,null,""]
[null,null,null,null,null,null,null,null,null,null,""]
[null,null,null,null,null,null,null,null,null,null,""]
[null,null,null,null,null,null,null,null,null,null,""]
[null,null,null,null,null,null,null,null,null,null,""]
[null,null,null,null,null,null,null,null,null,null,""]
[null,null,null,null,null,null,null,null,null,null,""]
[null,null,null,null,null,null,null,null,null,null,""]
[null,null,null,null,null,null,null,null,null,null,""]
[null,null,null,null,null,null,null,null,null,null,""]
[null,null,null,null,null,null,null,null,null,null,""]
[null,null,null,null,null,null,null,null,null,null,""]
[null,null,null,null,null,null,null,null,null,null,""]
[null,null,null,null,null,null,null,null,null,null,""]
[null,null,null,null,null,null,null,null,null,null,""]
[null,null,null,null,null,null,null,null,null,null,""]
[null,null,null,null,null,null,null,null,null,null,""]
[null,null,null,null,null,null,null,null,null,null,""]
[null,null,null,null,null,null,null,null,null,null,""]
[null,null,null,null,null,null,null,null,null,null,""]
[null,null,null,null,null,null,null,null,null,null,""]
[null,null,null,null,null,null,null,null,null,null,""]
[null,null,null,null,null,null,null,null,null,null,""]
[null,null,null,null,null,null,null,null,null,null,""]
[null,null,null,null,null,null,null,null,null,null,""]
[null,null,null,null,null,null,null,null,null,null,""]
[null,null,null,null,null,null,null,null,null,null,""]
[null,null,null,null,null,null,null,null,null,null,""]
[null,null,null,null,null,null,null,null,null,null,""]
[null,null,null,null,null,null,null,null,null,null,{"$f":"IF(OR(I4360=\"\",J4360=\"\"),\"\",PRODUCT(I4360,J4360))","v":""}]
[null,null,null,null,null,null,null,null,null,null,""]
[null,null,null,null,null,null,null,null,null,null,""]
[null,null,null,null,null,null,null,null,null,null,""]
[null,null,null,null,null,null,null,null,null,null,""]
[null,null,null,null,null,null,null,null,null,null,""]
[null,null,null,null,null,null,null,null,null,null,""]
[null,null,null,null,null,null,null,null,null,null,""]
[null,null,null,null,null,null,null,null,null,null,""]
[null,null,null,null,null,null,null,null,null,null,""]
[null,null,null,null,null,null,null,null,null,null,""]
[null,null,null,null,null,null,null,null,null,null,""]
[null,null,null,null,null,null,null,null,null,null,""]
[null,null,null,null,null,null,null,null,null,null,""]
[null,null,null,null,null,null,null,null,null,null,""]
[null,null,null,null,null,null,null,null,null,null,""]
[null,null,null,null,null,null,null,null,null,null,""]
[null,null,null,null,null,null,null,null,null,null,""]
[null,null,null,null,null,null,null,null,null,null,""]
[null,null,null,null,null,null,null,null,null,null,""]
[null,null,null,null,null,null,null,null,null,null,""]
[null,null,null,null,null,null,null,null,null,null,""]
[null,null,null,null,null,null,null,null,null,null,""]
[null,null,null,null,null,null,null,null,null,null,""]
[null,null,null,null,null,null,null,null,null,null,""]
[null,null,null,null,null,null,null,null,null,null,""]
[null,null,null,null,null,null,null,null,null,null,""]
[null,null,null,null,null,null,null,null,null,null,""]
[null,null,null,null,null,null,null,null,null,null,""]
[null,null,null,null,null,null,null,null,null,null,""]
[null,null,null,null,null,null,null,null,null,null,""]
[null,null,null,null,null,null,null,null,null,null,""]
[null,null,null,null,null,null,null,null,null,null,""]
[null,null,null,null,null,null,null,null,null,null,""]
[null,null,null,null,null,null,null,null,null,null,""]
[null,null,null,null,null,null,null,null,null,null,""]
[null,null,null,null,null,null,null,null,null,null,""]
[null,null,null,null,null,null,null,null,null,null,""]
[null,null,null,null,null,null,null,null,null,null,""]
[null,null,null,null,null,null,null,null,null,null,""]
[null,null,null,null,null,null,null,null,null,null,""]
[null,null,null,null,null,null,null,null,null,null,""]
[null,null,null,null,null,null,null,null,null,null,""]
[null,null,null,null,null,null,null,null,null,null,""]
[null,null,null,null,null,null,null,null,null,null,""]
[null,null,null,null,null,null,null,null,null,null,""]
[null,null,null,null,null,null,null,null,null,null,""]
[null,null,null,null,null,null,null,null,null,null,""]
[null,null,null,null,null,null,null,null,null,null,""]
[null,null,null,null,null,null,null,null,null,null,""]
[null,null,null,null,null,null,null,null,null,null,""]
[null,null,null,null,null,null,null,null,null,null,""]
[null,null,null,null,null,null,null,null,null,null,""]
[null,null,null,null,null,null,null,null,null,null,""]
[null,null,null,null,null,null,null,null,null,null,""]
[null,null,null,null,null,null,null,null,null,null,""]
[null,null,null,null,null,null,null,null,null,null,""]
[null,null,null,null,null,null,null,null,null,null,""]
[null,null,null,null,null,null,null,null,null,null,""]
[null,null,null,null,null,null,null,null,null,null,""]
[null,null,null,null,null,null,null,null,null,null,""]
[null,null,null,null,null,null,null,null,null,null,""]
[null,null,null,null,null,null,null,null,null,null,""]
[null,null,null,null,null,null,null,null,null,null,""]
[null,null,null,null,null,null,null,null,null,null,{"$f":"IF(OR(I4424=\"\",J4424=\"\"),\"\",PRODUCT(I4424,J4424))","v":""}]
[null,null,null,null,null,null,null,null,null,null,""]
[null,null,null,null,null,null,null,null,null,null,""]
[null,null,null,null,null,null,null,null,null,null,""]
[null,null,null,null,null,null,null,null,null,null,""]
[null,null,null,null,null,null,null,null,null,null,""]
[null,null,null,null,null,null,null,null,null,null,""]
[null,null,null,null,null,null,null,null,null,null,""]
[null,null,null,null,null,null,null,null,null,null,""]
[null,null,null,null,null,null,null,null,null,null,""]
[null,null,null,null,null,null,null,null,null,null,""]
[null,null,null,null,null,null,null,null,null,null,""]
[null,null,null,null,null,null,null,null,null,null,""]
[null,null,null,null,null,null,null,null,null,null,""]
[null,null,null,null,null,null,null,null,null,null,""]
[null,null,null,null,null,null,null,null,null,null,""]
[null,null,null,null,null,null,null,null,null,null,""]
[null,null,null,null,null,null,null,null,null,null,""]
[null,null,null,null,null,null,null,null,null,null,""]
[null,null,null,null,null,null,null,null,null,null,""]
[null,null,null,null,null,null,null,null,null,null,""]
[null,null,null,null,null,null,null,null,null,null,""]
[null,null,null,null,null,null,null,null,null,null,""]
[null,null,null,null,null,null,null,null,null,null,""]
[null,null,null,null,null,null,null,null,null,null,""]
[null,null,null,null,null,null,null,null,null,null,""]
[null,null,null,null,null,null,null,null,null,null,""]
[null,null,null,null,null,null,null,null,null,null,""]
[null,null,null,null,null,null,null,null,null,null,""]
[null,null,null,null,null,null,null,null,null,null,""]
[null,null,null,null,null,null,null,null,null,null,""]
[null,null,null,null,null,null,null,null,null,null,""]
[null,null,null,null,null,null,null,null,null,null,""]
[null,null,null,null,null,null,null,null,null,null,""]
[null,null,null,null,null,null,null,null,null,null,""]
[null,null,null,null,null,null,null,null,null,null,""]
[null,null,null,null,null,null,null,null,null,null,""]
[null,null,null,null,null,null,null,null,null,null,""]
[null,null,null,null,null,null,null,null,null,null,""]
[null,null,null,null,null,null,null,null,null,null,""]
[null,null,null,null,null,null,null,null,null,null,""]
[null,null,null,null,null,null,null,null,null,null,""]
[null,null,null,null,null,null,null,null,null,null,""]
[null,null,null,null,null,null,null,null,null,null,""]
[null,null,null,null,null,null,null,null,null,null,""]
[null,null,null,null,null,null,null,null,null,null,""]
[null,null,null,null,null,null,null,null,null,null,""]
[null,null,null,null,null,null,null,null,null,null,""]
[null,null,null,null,null,null,null,null,null,null,""]
[null,null,null,null,null,null,null,null,null,null,""]
[null,null,null,null,null,null,null,null,null,null,""]
[null,null,null,null,null,null,null,null,null,null,""]
[null,null,null,null,null,null,null,null,null,null,""]
[null,null,null,null,null,null,null,null,null,null,""]
[null,null,null,null,null,null,null,null,null,null,""]
[null,null,null,null,null,null,null,null,null,null,""]
[null,null,null,null,null,null,null,null,null,null,""]
[null,null,null,null,null,null,null,null,null,null,""]
[null,null,null,null,null,null,null,null,null,null,""]
[null,null,null,null,null,null,null,null,null,null,""]
[null,null,null,null,null,null,null,null,null,null,""]
[null,null,null,null,null,null,null,null,null,null,""]
[null,null,null,null,null,null,null,null,null,null,""]
[null,null,null,null,null,null,null,null,null,null,""]
[null,null,null,null,null,null,null,null,null,null,{"$f":"IF(OR(I4488=\"\",J4488=\"\"),\"\",PRODUCT(I4488,J4488))","v":""}]
[null,null,null,null,null,null,null,null,null,null,""]
[null,null,null,null,null,null,null,null,null,null,""]
[null,null,null,null,null,null,null,null,null,null,""]
[null,null,null,null,null,null,null,null,null,null,""]
[null,null,null,null,null,null,null,null,null,null,""]
[null,null,null,null,null,null,null,null,null,null,""]
[null,null,null,null,null,null,null,null,null,null,""]
[null,null,null,null,null,null,null,null,null,null,""]
[null,null,null,null,null,null,null,null,null,null,""]
[null,null,null,null,null,null,null,null,null,null,""]
[null,null,null,null,null,null,null,null,null,null,""]
[null,null,null,null,null,null,null,null,null,null,""]
[null,null,null,null,null,null,null,null,null,null,""]
[null,null,null,null,null,null,null,null,null,null,""]
[null,null,null,null,null,null,null,null,null,null,""]
[null,null,null,null,null,null,null,null,null,null,""]
[null,null,null,null,null,null,null,null,null,null,""]
[null,null,null,null,null,null,null,null,null,null,""]
[null,null,null,null,null,null,null,null,null,null,""]
[null,null,null,null,null,null,null,null,null,null,""]
[null,null,null,null,null,null,null,null,null,null,""]
[null,null,null,null,null,null,null,null,null,null,""]
[null,null,null,null,null,null,null,null,null,null,""]
[null,null,null,null,null,null,null,null,null,null,""]
[null,null,null,null,null,null,null,null,null,null,""]
[null,null,null,null,null,null,null,null,null,null,""]
[null,null,null,null,null,null,null,null,null,null,""]
[null,null,null,null,null,null,null,null,null,null,""]
[null,null,null,null,null,null,null,null,null,null,""]
[null,null,null,null,null,null,null,null,null,null,""]
[null,null,null,null,null,null,null,null,null,null,""]
[null,null,null,null,null,null,null,null,null,null,""]
[null,null,null,null,null,null,null,null,null,null,""]
[null,null,null,null,null,null,null,null,null,null,""]
[null,null,null,null,null,null,null,null,null,null,""]
[null,null,null,null,null,null,null,null,null,null,""]
[null,null,null,null,null,null,null,null,null,null,""]
[null,null,null,null,null,null,null,null,null,null,""]
[null,null,null,null,null,null,null,null,null,null,""]
[null,null,null,null,null,null,null,null,null,null,""]
[null,null,null,null,null,null,null,null,null,null,""]
[null,null,null,null,null,null,null,null,null,null,""]
[null,null,null,null,null,null,null,null,null,null,""]
[null,null,null,null,null,null,null,null,null,null,""]
[null,null,null,null,null,null,null,null,null,null,""]
[null,null,null,null,null,null,null,null,null,null,""]
[null,null,null,null,null,null,null,null,null,null,""]
[null,null,null,null,null,null,null,null,null,null,""]
[null,null,null,null,null,null,null,null,null,null,""]
[null,null,null,null,null,null,null,null,null,null,""]
[null,null,null,null,null,null,null,null,null,null,""]
[null,null,null,null,null,null,null,null,null,null,""]
[null,null,null,null,null,null,null,null,null,null,""]
[null,null,null,null,null,null,null,null,null,null,""]
[null,null,null,null,null,null,null,null,null,null,""]
[null,null,null,null,null,null,null,null,null,null,""]
[null,null,null,null,null,null,null,null,null,null,""]
[null,null,null,null,null,null,null,null,null,null,""]
[null,null,null,null,null,null,null,null,null,null,""]
[null,null,null,null,null,null,null,null,null,null,""]
[null,null,null,null,null,null,null,null,null,null,""]
[null,null,null,null,null,null,null,null,null,null,""]
[null,null,null,null,null,null,null,null,null,null,""]
[null,null,null,null,null,null,null,null,null,null,{"$f":"IF(OR(I4552=\"\",J4552=\"\"),\"\",PRODUCT(I4552,J4552))","v":""}]
[null,null,null,null,null,null,null,null,null,null,""]
[null,null,null,null,null,null,null,null,null,null,""]
[null,null,null,null,null,null,null,null,null,null,""]
[null,null,null,null,null,null,null,null,null,null,""]
[null,null,null,null,null,null,null,null,null,null,""]
[null,null,null,null,null,null,null,null,null,null,""]
[null,null,null,null,null,null,null,null,null,null,""]
[null,null,null,null,null,null,null,null,null,null,""]
[null,null,null,null,null,null,null,null,null,null,""]
[null,null,null,null,null,null,null,null,null,null,""]
[null,null,null,null,null,null,null,null,null,null,""]
[null,null,null,null,null,null,null,null,null,null,""]
[null,null,null,null,null,null,null,null,null,null,""]
[null,null,null,null,null,null,null,null,null,null,""]
[null,null,null,null,null,null,null,null,null,null,""]
[null,null,null,null,null,null,null,null,null,null,""]
[null,null,null,null,null,null,null,null,null,null,""]
[null,null,null,null,null,null,null,null,null,null,""]
[null,null,null,null,null,null,null,null,null,null,""]
[null,null,null,null,null,null,null,null,null,null,""]
[null,null,null,null,null,null,null,null,null,null,""]
[null,null,null,null,null,null,null,null,null,null,""]
[null,null,null,null,null,null,null,null,null,null,""]
[null,null,null,null,null,null,null,null,null,null,""]
[null,null,null,null,null,null,null,null,null,null,""]
[null,null,null,null,null,null,null,null,null,null,""]
[null,null,null,null,null,null,null,null,null,null,""]
[null,null,null,null,null,null,null,null,null,null,""]
[null,null,null,null,null,null,null,null,null,null,""]
[null,null,null,null,null,null,null,null,null,null,""]
[null,null,null,null,null,null,null,null,null,null,""]
[null,null,null,null,null,null,null,null,null,null,""]
[null,null,null,null,null,null,null,null,null,null,""]
[null,null,null,null,null,null,null,null,null,null,""]
[null,null,null,null,null,null,null,null,null,null,""]
[null,null,null,null,null,null,null,null,null,null,""]
[null,null,null,null,null,null,null,null,null,null,""]
[null,null,null,null,null,null,null,null,null,null,""]
[null,null,null,null,null,null,null,null,null,null,""]
[null,null,null,null,null,null,null,null,null,null,""]
[null,null,null,null,null,null,null,null,null,null,""]
[null,null,null,null,null,null,null,null,null,null,""]
[null,null,null,null,null,null,null,null,null,null,""]
[null,null,null,null,null,null,null,null,null,null,""]
[null,null,null,null,null,null,null,null,null,null,""]
[null,null,null,null,null,null,null,null,null,null,""]
[null,null,null,null,null,null,null,null,null,null,""]
[null,null,null,null,null,null,null,null,null,null,""]
[null,null,null,null,null,null,null,null,null,null,""]
[null,null,null,null,null,null,null,null,null,null,""]
[null,null,null,null,null,null,null,null,null,null,""]
[null,null,null,null,null,null,null,null,null,null,""]
[null,null,null,null,null,null,null,null,null,null,""]
[null,null,null,null,null,null,null,null,null,null,""]
[null,null,null,null,null,null,null,null,null,null,""]
[null,null,null,null,null,null,null,null,null,null,""]
[null,null,null,null,null,null,null,null,null,null,""]
[null,null,null,null,null,null,null,null,null,null,""]
[null,null,null,null,null,null,null,null,null,null,""]
[null,null,null,null,null,null,null,null,null,null,""]
[null,null,null,null,null,null,null,null,null,null,""]
[null,null,null,null,null,null,null,null,null,null,""]
[null,null,null,null,null,null,null,null,null,null,""]
[null,null,null,null,null,null,null,null,null,null,{"$f":"IF(OR(I4616=\"\",J4616=\"\"),\"\",PRODUCT(I4616,J4616))","v":""}]
[null,null,null,null,null,null,null,null,null,null,""]
[null,null,null,null,null,null,null,null,null,null,""]
[null,null,null,null,null,null,null,null,null,null,""]
[null,null,null,null,null,null,null,null,null,null,""]
[null,null,null,null,null,null,null,null,null,null,""]
[null,null,null,null,null,null,null,null,null,null,""]
[null,null,null,null,null,null,null,null,null,null,""]
[null,null,null,null,null,null,null,null,null,null,""]
[null,null,null,null,null,null,null,null,null,null,""]
[null,null,null,null,null,null,null,null,null,null,""]
[null,null,null,null,null,null,null,null,null,null,""]
[null,null,null,null,null,null,null,null,null,null,""]
[null,null,null,null,null,null,null,null,null,null,""]
[null,null,null,null,null,null,null,null,null,null,""]
[null,null,null,null,null,null,null,null,null,null,""]
[null,null,null,null,null,null,null,null,null,null,""]
[null,null,null,null,null,null,null,null,null,null,""]
[null,null,null,null,null,null,null,null,null,null,""]
[null,null,null,null,null,null,null,null,null,null,""]
[null,null,null,null,null,null,null,null,null,null,""]
[null,null,null,null,null,null,null,null,null,null,""]
[null,null,null,null,null,null,null,null,null,null,""]
[null,null,null,null,null,null,null,null,null,null,""]
[null,null,null,null,null,null,null,null,null,null,""]
[null,null,null,null,null,null,null,null,null,null,""]
[null,null,null,null,null,null,null,null,null,null,""]
[null,null,null,null,null,null,null,null,null,null,""]
[null,null,null,null,null,null,null,null,null,null,""]
[null,null,null,null,null,null,null,null,null,null,""]
[null,null,null,null,null,null,null,null,null,null,""]
[null,null,null,null,null,null,null,null,null,null,""]
[null,null,null,null,null,null,null,null,null,null,""]
[null,null,null,null,null,null,null,null,null,null,""]
[null,null,null,null,null,null,null,null,null,null,""]
[null,null,null,null,null,null,null,null,null,null,""]
[null,null,null,null,null,null,null,null,null,null,""]
[null,null,null,null,null,null,null,null,null,null,""]
[null,null,null,null,null,null,null,null,null,null,""]
[null,null,null,null,null,null,null,null,null,null,""]
[null,null,null,null,null,null,null,null,null,null,""]
[null,null,null,null,null,null,null,null,null,null,""]
[null,null,null,null,null,null,null,null,null,null,""]
[null,null,null,null,null,null,null,null,null,null,""]
[null,null,null,null,null,null,null,null,null,null,""]
[null,null,null,null,null,null,null,null,null,null,""]
[null,null,null,null,null,null,null,null,null,null,""]
[null,null,null,null,null,null,null,null,null,null,""]
[null,null,null,null,null,null,null,null,null,null,""]
[null,null,null,null,null,null,null,null,null,null,""]
[null,null,null,null,null,null,null,null,null,null,""]
[null,null,null,null,null,null,null,null,null,null,""]
[null,null,null,null,null,null,null,null,null,null,""]
[null,null,null,null,null,null,null,null,null,null,""]
[null,null,null,null,null,null,null,null,null,null,""]
[null,null,null,null,null,null,null,null,null,null,""]
[null,null,null,null,null,null,null,null,null,null,""]
[null,null,null,null,null,null,null,null,null,null,""]
[null,null,null,null,null,null,null,null,null,null,""]
[null,null,null,null,null,null,null,null,null,null,""]
[null,null,null,null,null,null,null,null,null,null,""]
[null,null,null,null,null,null,null,null,null,null,""]
[null,null,null,null,null,null,null,null,null,null,""]
[null,null,null,null,null,null,null,null,null,null,""]
[null,null,null,null,null,null,null,null,null,null,{"$f":"IF(OR(I4680=\"\",J4680=\"\"),\"\",PRODUCT(I4680,J4680))","v":""}]
[null,null,null,null,null,null,null,null,null,null,""]
[null,null,null,null,null,null,null,null,null,null,""]
[null,null,null,null,null,null,null,null,null,null,""]
[null,null,null,null,null,null,null,null,null,null,""]
[null,null,null,null,null,null,null,null,null,null,""]
[null,null,null,null,null,null,null,null,null,null,""]
[null,null,null,null,null,null,null,null,null,null,""]
[null,null,null,null,null,null,null,null,null,null,""]
[null,null,null,null,null,null,null,null,null,null,""]
[null,null,null,null,null,null,null,null,null,null,""]
[null,null,null,null,null,null,null,null,null,null,""]
[null,null,null,null,null,null,null,null,null,null,""]
[null,null,null,null,null,null,null,null,null,null,""]
[null,null,null,null,null,null,null,null,null,null,""]
[null,null,null,null,null,null,null,null,null,null,""]
[null,null,null,null,null,null,null,null,null,null,""]
[null,null,null,null,null,null,null,null,null,null,""]
[null,null,null,null,null,null,null,null,null,null,""]
[null,null,null,null,null,null,null,null,null,null,""]
[null,null,null,null,null,null,null,null,null,null,""]
[null,null,null,null,null,null,null,null,null,null,""]
[null,null,null,null,null,null,null,null,null,null,""]
[null,null,null,null,null,null,null,null,null,null,""]
[null,null,null,null,null,null,null,null,null,null,""]
[null,null,null,null,null,null,null,null,null,null,""]
[null,null,null,null,null,null,null,null,null,null,""]
[null,null,null,null,null,null,null,null,null,null,""]
[null,null,null,null,null,null,null,null,null,null,""]
[null,null,null,null,null,null,null,null,null,null,""]
[null,null,null,null,null,null,null,null,null,null,""]
[null,null,null,null,null,null,null,null,null,null,""]
[null,null,null,null,null,null,null,null,null,null,""]
[null,null,null,null,null,null,null,null,null,null,""]
[null,null,null,null,null,null,null,null,null,null,""]
[null,null,null,null,null,null,null,null,null,null,""]
[null,null,null,null,null,null,null,null,null,null,""]
[null,null,null,null,null,null,null,null,null,null,""]
[null,null,null,null,null,null,null,null,null,null,""]
[null,null,null,null,null,null,null,null,null,null,""]
[null,null,null,null,null,null,null,null,null,null,""]
[null,null,null,null,null,null,null,null,null,null,""]
[null,null,null,null,null,null,null,null,null,null,""]
[null,null,null,null,null,null,null,null,null,null,""]
[null,null,null,null,null,null,null,null,null,null,""]
[null,null,null,null,null,null,null,null,null,null,""]
[null,null,null,null,null,null,null,null,null,null,""]
[null,null,null,null,null,null,null,null,null,null,""]
[null,null,null,null,null,null,null,null,null,null,""]
[null,null,null,null,null,null,null,null,null,null,""]
[null,null,null,null,null,null,null,null,null,null,""]
[null,null,null,null,null,null,null,null,null,null,""]
[null,null,null,null,null,null,null,null,null,null,""]
[null,null,null,null,null,null,null,null,null,null,""]
[null,null,null,null,null,null,null,null,null,null,""]
[null,null,null,null,null,null,null,null,null,null,""]
[null,null,null,null,null,null,null,null,null,null,""]
[null,null,null,null,null,null,null,null,null,null,""]
[null,null,null,null,null,null,null,null,null,null,""]
[null,null,null,null,null,null,null,null,null,null,""]
[null,null,null,null,null,null,null,null,null,null,""]
[null,null,null,null,null,null,null,null,null,null,""]
[null,null,null,null,null,null,null,null,null,null,""]
[null,null,null,null,null,null,null,null,null,null,""]
[null,null,null,null,null,null,null,null,null,null,{"$f":"IF(OR(I4744=\"\",J4744=\"\"),\"\",PRODUCT(I4744,J4744))","v":""}]
[null,null,null,null,null,null,null,null,null,null,""]
[null,null,null,null,null,null,null,null,null,null,""]
[null,null,null,null,null,null,null,null,null,null,""]
[null,null,null,null,null,null,null,null,null,null,""]
[null,null,null,null,null,null,null,null,null,null,""]
[null,null,null,null,null,null,null,null,null,null,""]
[null,null,null,null,null,null,null,null,null,null,""]
[null,null,null,null,null,null,null,null,null,null,""]
[null,null,null,null,null,null,null,null,null,null,""]
[null,null,null,null,null,null,null,null,null,null,""]
[null,null,null,null,null,null,null,null,null,null,""]
[null,null,null,null,null,null,null,null,null,null,""]
[null,null,null,null,null,null,null,null,null,null,""]
[null,null,null,null,null,null,null,null,null,null,""]
[null,null,null,null,null,null,null,null,null,null,""]
[null,null,null,null,null,null,null,null,null,null,""]
[null,null,null,null,null,null,null,null,null,null,""]
[null,null,null,null,null,null,null,null,null,null,""]
[null,null,null,null,null,null,null,null,null,null,""]
[null,null,null,null,null,null,null,null,null,null,""]
[null,null,null,null,null,null,null,null,null,null,""]
[null,null,null,null,null,null,null,null,null,null,""]
[null,null,null,null,null,null,null,null,null,null,""]
[null,null,null,null,null,null,null,null,null,null,""]
[null,null,null,null,null,null,null,null,null,null,""]
[null,null,null,null,null,null,null,null,null,null,""]
[null,null,null,null,null,null,null,null,null,null,""]
[null,null,null,null,null,null,null,null,null,null,""]
[null,null,null,null,null,null,null,null,null,null,""]
[null,null,null,null,null,null,null,null,null,null,""]
[null,null,null,null,null,null,null,null,null,null,""]
[null,null,null,null,null,null,null,null,null,null,""]
[null,null,null,null,null,null,null,null,null,null,""]
[null,null,null,null,null,null,null,null,null,null,""]
[null,null,null,null,null,null,null,null,null,null,""]
[null,null,null,null,null,null,null,null,null,null,""]
[null,null,null,null,null,null,null,null,null,null,""]
[null,null,null,null,null,null,null,null,null,null,""]
[null,null,null,null,null,null,null,null,null,null,""]
[null,null,null,null,null,null,null,null,null,null,""]
[null,null,null,null,null,null,null,null,null,null,""]
[null,null,null,null,null,null,null,null,null,null,""]
[null,null,null,null,null,null,null,null,null,null,""]
[null,null,null,null,null,null,null,null,null,null,""]
[null,null,null,null,null,null,null,null,null,null,""]
[null,null,null,null,null,null,null,null,null,null,""]
[null,null,null,null,null,null,null,null,null,null,""]
[null,null,null,null,null,null,null,null,null,null,""]
[null,null,null,null,null,null,null,null,null,null,""]
[null,null,null,null,null,null,null,null,null,null,""]
[null,null,null,null,null,null,null,null,null,null,""]
[null,null,null,null,null,null,null,null,null,null,""]
[null,null,null,null,null,null,null,null,null,null,""]
[null,null,null,null,null,null,null,null,null,null,""]
[null,null,null,null,null,null,null,null,null,null,""]
[null,null,null,null,null,null,null,null,null,null,""]
[null,null,null,null,null,null,null,null,null,null,""]
[null,null,null,null,null,null,null,null,null,null,""]
[null,null,null,null,null,null,null,null,null,null,""]
[null,null,null,null,null,null,null,null,null,null,""]
[null,null,null,null,null,null,null,null,null,null,""]
[null,null,null,null,null,null,null,null,null,null,""]
[null,null,null,null,null,null,null,null,null,null,""]
[null,null,null,null,null,null,null,null,null,null,{"$f":"IF(OR(I4808=\"\",J4808=\"\"),\"\",PRODUCT(I4808,J4808))","v":""}]
[null,null,null,null,null,null,null,null,null,null,""]
[null,null,null,null,null,null,null,null,null,null,""]
[null,null,null,null,null,null,null,null,null,null,""]
[null,null,null,null,null,null,null,null,null,null,""]
[null,null,null,null,null,null,null,null,null,null,""]
[null,null,null,null,null,null,null,null,null,null,""]
[null,null,null,null,null,null,null,null,null,null,""]
[null,null,null,null,null,null,null,null,null,null,""]
[null,null,null,null,null,null,null,null,null,null,""]
[null,null,null,null,null,null,null,null,null,null,""]
[null,null,null,null,null,null,null,null,null,null,""]
[null,null,null,null,null,null,null,null,null,null,""]
[null,null,null,null,null,null,null,null,null,null,""]
[null,null,null,null,null,null,null,null,null,null,""]
[null,null,null,null,null,null,null,null,null,null,""]
[null,null,null,null,null,null,null,null,null,null,""]
[null,null,null,null,null,null,null,null,null,null,""]
[null,null,null,null,null,null,null,null,null,null,""]
[null,null,null,null,null,null,null,null,null,null,""]
[null,null,null,null,null,null,null,null,null,null,""]
[null,null,null,null,null,null,null,null,null,null,""]
[null,null,null,null,null,null,null,null,null,null,""]
[null,null,null,null,null,null,null,null,null,null,""]
[null,null,null,null,null,null,null,null,null,null,""]
[null,null,null,null,null,null,null,null,null,null,""]
[null,null,null,null,null,null,null,null,null,null,""]
[null,null,null,null,null,null,null,null,null,null,""]
[null,null,null,null,null,null,null,null,null,null,""]
[null,null,null,null,null,null,null,null,null,null,""]
[null,null,null,null,null,null,null,null,null,null,""]
[null,null,null,null,null,null,null,null,null,null,""]
[null,null,null,null,null,null,null,null,null,null,""]
[null,null,null,null,null,null,null,null,null,null,""]
[null,null,null,null,null,null,null,null,null,null,""]
[null,null,null,null,null,null,null,null,null,null,""]
[null,null,null,null,null,null,null,null,null,null,""]
[null,null,null,null,null,null,null,null,null,null,""]
[null,null,null,null,null,null,null,null,null,null,""]
[null,null,null,null,null,null,null,null,null,null,""]
[null,null,null,null,null,null,null,null,null,null,""]
[null,null,null,null,null,null,null,null,null,null,""]
[null,null,null,null,null,null,null,null,null,null,""]
[null,null,null,null,null,null,null,null,null,null,""]
[null,null,null,null,null,null,null,null,null,null,""]
[null,null,null,null,null,null,null,null,null,null,""]
[null,null,null,null,null,null,null,null,null,null,""]
[null,null,null,null,null,null,null,null,null,null,""]
[null,null,null,null,null,null,null,null,null,null,""]
[null,null,null,null,null,null,null,null,null,null,""]
[null,null,null,null,null,null,null,null,null,null,""]
[null,null,null,null,null,null,null,null,null,null,""]
[null,null,null,null,null,null,null,null,null,null,""]
[null,null,null,null,null,null,null,null,null,null,""]
[null,null,null,null,null,null,null,null,null,null,""]
[null,null,null,null,null,null,null,null,null,null,""]
[null,null,null,null,null,null,null,null,null,null,""]
[null,null,null,null,null,null,null,null,null,null,""]
[null,null,null,null,null,null,null,null,null,null,""]
[null,null,null,null,null,null,null,null,null,null,""]
[null,null,null,null,null,null,null,null,null,null,""]
[null,null,null,null,null,null,null,null,null,null,""]
[null,null,null,null,null,null,null,null,null,null,""]
[null,null,null,null,null,null,null,null,null,null,""]
[null,null,null,null,null,null,null,null,null,null,{"$f":"IF(OR(I4872=\"\",J4872=\"\"),\"\",PRODUCT(I4872,J4872))","v":""}]
[null,null,null,null,null,null,null,null,null,null,""]
[null,null,null,null,null,null,null,null,null,null,""]
[null,null,null,null,null,null,null,null,null,null,""]
[null,null,null,null,null,null,null,null,null,null,""]
[null,null,null,null,null,null,null,null,null,null,""]
[null,null,null,null,null,null,null,null,null,null,""]
[null,null,null,null,null,null,null,null,null,null,""]
[null,null,null,null,null,null,null,null,null,null,""]
[null,null,null,null,null,null,null,null,null,null,""]
[null,null,null,null,null,null,null,null,null,null,""]
[null,null,null,null,null,null,null,null,null,null,""]
[null,null,null,null,null,null,null,null,null,null,""]
[null,null,null,null,null,null,null,null,null,null,""]
[null,null,null,null,null,null,null,null,null,null,""]
[null,null,null,null,null,null,null,null,null,null,""]
[null,null,null,null,null,null,null,null,null,null,""]
[null,null,null,null,null,null,null,null,null,null,""]
[null,null,null,null,null,null,null,null,null,null,""]
[null,null,null,null,null,null,null,null,null,null,""]
[null,null,null,null,null,null,null,null,null,null,""]
[null,null,null,null,null,null,null,null,null,null,""]
[null,null,null,null,null,null,null,null,null,null,""]
[null,null,null,null,null,null,null,null,null,null,""]
[null,null,null,null,null,null,null,null,null,null,""]
[null,null,null,null,null,null,null,null,null,null,""]
[null,null,null,null,null,null,null,null,null,null,""]
[null,null,null,null,null,null,null,null,null,null,""]
[null,null,null,null,null,null,null,null,null,null,""]
[null,null,null,null,null,null,null,null,null,null,""]
[null,null,null,null,null,null,null,null,null,null,""]
[null,null,null,null,null,null,null,null,null,null,""]
[null,null,null,null,null,null,null,null,null,null,""]
[null,null,null,null,null,null,null,null,null,null,""]
[null,null,null,null,null,null,null,null,null,null,""]
[null,null,null,null,null,null,null,null,null,null,""]
[null,null,null,null,null,null,null,null,null,null,""]
[null,null,null,null,null,null,null,null,null,null,""]
[null,null,null,null,null,null,null,null,null,null,""]
[null,null,null,null,null,null,null,null,null,null,""]
[null,null,null,null,null,null,null,null,null,null,""]
[null,null,null,null,null,null,null,null,null,null,""]
[null,null,null,null,null,null,null,null,null,null,""]
[null,null,null,null,null,null,null,null,null,null,""]
[null,null,null,null,null,null,null,null,null,null,""]
[null,null,null,null,null,null,null,null,null,null,""]
[null,null,null,null,null,null,null,null,null,null,""]
[null,null,null,null,null,null,null,null,null,null,""]
[null,null,null,null,null,null,null,null,null,null,""]
[null,null,null,null,null,null,null,null,null,null,""]
[null,null,null,null,null,null,null,null,null,null,""]
[null,null,null,null,null,null,null,null,null,null,""]
[null,null,null,null,null,null,null,null,null,null,""]
[null,null,null,null,null,null,null,null,null,null,""]
[null,null,null,null,null,null,null,null,null,null,""]
[null,null,null,null,null,null,null,null,null,null,""]
[null,null,null,null,null,null,null,null,null,null,""]
[null,null,null,null,null,null,null,null,null,null,""]
[null,null,null,null,null,null,null,null,null,null,""]
[null,null,null,null,null,null,null,null,null,null,""]
[null,null,null,null,null,null,null,null,null,null,""]
[null,null,null,null,null,null,null,null,null,null,""]
[null,null,null,null,null,null,null,null,null,null,""]
[null,null,null,null,null,null,null,null,null,null,""]
[null,null,null,null,null,null,null,null,null,null,{"$f":"IF(OR(I4936=\"\",J4936=\"\"),\"\",PRODUCT(I4936,J4936))","v":""}]
[null,null,null,null,null,null,null,null,null,null,""]
[null,null,null,null,null,null,null,null,null,null,""]
[null,null,null,null,null,null,null,null,null,null,""]
[null,null,null,null,null,null,null,null,null,null,""]
[null,null,null,null,null,null,null,null,null,null,""]
[null,null,null,null,null,null,null,null,null,null,""]
[null,null,null,null,null,null,null,null,null,null,""]
[null,null,null,null,null,null,null,null,null,null,""]
[null,null,null,null,null,null,null,null,null,null,""]
[null,null,null,null,null,null,null,null,null,null,""]
[null,null,null,null,null,null,null,null,null,null,""]
[null,null,null,null,null,null,null,null,null,null,""]
[null,null,null,null,null,null,null,null,null,null,""]
[null,null,null,null,null,null,null,null,null,null,""]
[null,null,null,null,null,null,null,null,null,null,""]
[null,null,null,null,null,null,null,null,null,null,""]
[null,null,null,null,null,null,null,null,null,null,""]
[null,null,null,null,null,null,null,null,null,null,""]
[null,null,null,null,null,null,null,null,null,null,""]
[null,null,null,null,null,null,null,null,null,null,""]
[null,null,null,null,null,null,null,null,null,null,""]
[null,null,null,null,null,null,null,null,null,null,""]
[null,null,null,null,null,null,null,null,null,null,""]
[null,null,null,null,null,null,null,null,null,null,""]
[null,null,null,null,null,null,null,null,null,null,""]
[null,null,null,null,null,null,null,null,null,null,""]
[null,null,null,null,null,null,null,null,null,null,""]
[null,null,null,null,null,null,null,null,null,null,""]
[null,null,null,null,null,null,null,null,null,null,""]
[null,null,null,null,null,null,null,null,null,null,""]
[null,null,null,null,null,null,null,null,null,null,""]
[null,null,null,null,null,null,null,null,null,null,""]
[null,null,null,null,null,null,null,null,null,null,""]
[null,null,null,null,null,null,null,null,null,null,""]
[null,null,null,null,null,null,null,null,null,null,""]
[null,null,null,null,null,null,null,null,null,null,""]
[null,null,null,null,null,null,null,null,null,null,""]
[null,null,null,null,null,null,null,null,null,null,""]
[null,null,null,null,null,null,null,null,null,null,""]
[null,null,null,null,null,null,null,null,null,null,""]
[null,null,null,null,null,null,null,null,null,null,""]
[null,null,null,null,null,null,null,null,null,null,""]
[null,null,null,null,null,null,null,null,null,null,""]
[null,null,null,null,null,null,null,null,null,null,""]
[null,null,null,null,null,null,null,null,null,null,""]
[null,null,null,null,null,null,null,null,null,null,""]
[null,null,null,null,null,null,null,null,null,null,""]
[null,null,null,null,null,null,null,null,null,null,""]
[null,null,null,null,null,null,null,null,null,null,""]
[null,null,null,null,null,null,null,null,null,null,""]
[null,null,null,null,null,null,null,null,null,null,""]
[null,null,null,null,null,null,null,null,null,null,""]
[null,null,null,null,null,null,null,null,null,null,""]
[null,null,null,null,null,null,null,null,null,null,""]
[null,null,null,null,null,null,null,null,null,null,""]
[null,null,null,null,null,null,null,null,null,null,""]
[null,null,null,null,null,null,null,null,null,null,""]
[null,null,null,null,null,null,null,null,null,null,""]
[null,null,null,null,null,null,null,null,null,null,""]
[null,null,null,null,null,null,null,null,null,null,""]
[null,null,null,null,null,null,null,null,null,null,""]
[null,null,null,null,null,null,null,null,null,null,""]
[null,null,null,null,null,null,null,null,null,null,""]
[null,null,null,null,null,null,null,null,null,null,{"$f":"IF(OR(I5000=\"\",J5000=\"\"),\"\",PRODUCT(I5000,J5000))","v":""}]
[null,null,null,null,null,null,null,null,null,null,""]
[null,null,null,null,null,null,null,null,null,null,""]
[null,null,null,null,null,null,null,null,null,null,""]
[null,null,null,null,null,null,null,null,null,null,""]
[null,null,null,null,null,null,null,null,null,null,""]
[null,null,null,null,null,null,null,null,null,null,""]
[null,null,null,null,null,null,null,null,null,null,""]
[null,null,null,null,null,null,null,null,null,null,""]
[null,null,null,null,null,null,null,null,null,null,""]
[null,null,null,null,null,null,null,null,null,null,""]
[null,null,null,null,null,null,null,null,null,null,""]
[null,null,null,null,null,null,null,null,null,null,""]
[null,null,null,null,null,null,null,null,null,null,""]
[null,null,null,null,null,null,null,null,null,null,""]
[null,null,null,null,null,null,null,null,null,null,""]
[null,null,null,null,null,null,null,null,null,null,""]
[null,null,null,null,null,null,null,null,null,null,""]
[null,null,null,null,null,null,null,null,null,null,""]
[null,null,null,null,null,null,null,null,null,null,""]
[null,null,null,null,null,null,null,null,null,null,""]
[null,null,null,null,null,null,null,null,null,null,""]
[null,null,null,null,null,null,null,null,null,null,""]
[null,null,null,null,null,null,null,null,null,null,""]
[null,null,null,null,null,null,null,null,null,null,""]
[null,null,null,null,null,null,null,null,null,null,""]
[null,null,null,null,null,null,null,null,null,null,""]
[null,null,null,null,null,null,null,null,null,null,""]
[null,null,null,null,null,null,null,null,null,null,""]
[null,null,null,null,null,null,null,null,null,null,""]
[null,null,null,null,null,null,null,null,null,null,""]
[null,null,null,null,null,null,null,null,null,null,""]
[null,null,null,null,null,null,null,null,null,null,""]
[null,null,null,null,null,null,null,null,null,null,""]
[null,null,null,null,null,null,null,null,null,null,""]
[null,null,null,null,null,null,null,null,null,null,""]
[null,null,null,null,null,null,null,null,null,null,""]
[null,null,null,null,null,null,null,null,null,null,""]
[null,null,null,null,null,null,null,null,null,null,""]
[null,null,null,null,null,null,null,null,null,null,""]
[null,null,null,null,null,null,null,null,null,null,""]
[null,null,null,null,null,null,null,null,null,null,""]
[null,null,null,null,null,null,null,null,null,null,""]
[null,null,null,null,null,null,null,null,null,null,""]
[null,null,null,null,null,null,null,null,null,null,""]
[null,null,null,null,null,null,null,null,null,null,""]
[null,null,null,null,null,null,null,null,null,null,""]
[null,null,null,null,null,null,null,null,null,null,""]
[null,null,null,null,null,null,null,null,null,null,""]
[null,null,null,null,null,null,null,null,null,null,""]
[null,null,null,null,null,null,null,null,null,null,""]
[null,null,null,null,null,null,null,null,null,null,""]
[null,null,null,null,null,null,null,null,null,null,""]
[null,null,null,null,null,null,null,null,null,null,""]
[null,null,null,null,null,null,null,null,null,null,""]
[null,null,null,null,null,null,null,null,null,null,""]
[null,null,null,null,null,null,null,null,null,null,""]
[null,null,null,null,null,null,null,null,null,null,""]
[null,null,null,null,null,null,null,null,null,null,""]
[null,null,null,null,null,null,null,null,null,null,""]
[null,null,null,null,null,null,null,null,null,null,""]
[null,null,null,null,null,null,null,null,null,null,""]
[null,null,null,null,null,null,null,null,null,null,""]
[null,null,null,null,null,null,null,null,null,null,""]
[null,null,null,null,null,null,null,null,null,null,{"$f":"IF(OR(I5064=\"\",J5064=\"\"),\"\",PRODUCT(I5064,J5064))","v":""}]
[null,null,null,null,null,null,null,null,null,null,""]
[null,null,null,null,null,null,null,null,null,null,""]
[null,null,null,null,null,null,null,null,null,null,""]
[null,null,null,null,null,null,null,null,null,null,""]
[null,null,null,null,null,null,null,null,null,null,""]
[null,null,null,null,null,null,null,null,null,null,""]
[null,null,null,null,null,null,null,null,null,null,""]
[null,null,null,null,null,null,null,null,null,null,""]
[null,null,null,null,null,null,null,null,null,null,""]
[null,null,null,null,null,null,null,null,null,null,""]
[null,null,null,null,null,null,null,null,null,null,""]
[null,null,null,null,null,null,null,null,null,null,""]
[null,null,null,null,null,null,null,null,null,null,""]
[null,null,null,null,null,null,null,null,null,null,""]
[null,null,null,null,null,null,null,null,null,null,""]
[null,null,null,null,null,null,null,null,null,null,""]
[null,null,null,null,null,null,null,null,null,null,""]
[null,null,null,null,null,null,null,null,null,null,""]
[null,null,null,null,null,null,null,null,null,null,""]
[null,null,null,null,null,null,null,null,null,null,""]
[null,null,null,null,null,null,null,null,null,null,""]
[null,null,null,null,null,null,null,null,null,null,""]

{"sheet":"الشيخ رجب","index":9,"n_rows":5,"n_cols":8,"rows_kept":5,"cut":false,"hidden":false,"merged":[]}
[]
[]
[null,"اليوم","التاريخ","رقم الاذن","اسم المقاول","الكمية","السعر","القيمة"]
[1,"2020-08-06","2020-08-06",577,"الشيخ رجب",400,7.05,2820]
[2,"2020-07-25","2020-07-25",602,"الشيخ رجب",400,7.05,2820]

{"sheet":"رجب","index":10,"n_rows":32,"n_cols":8,"rows_kept":32,"cut":false,"hidden":false,"merged":[]}
[]
[]
[null,"اليوم","التاريخ","رقم الاذن","اسم المقاول","الكمية","السعر","القيمة"]
[1,"2020-03-30","2020-03-30",578,"رجب",700,7.05,4935]
[2,"2020-02-01","2020-02-01",599,"رجب",600,7.05,4230]
[3,"2020-02-14","2020-02-14",615,"رجب",800,7.05,5640]
[4,"2020-06-23","2020-06-23",628,"رجب",400,7.05,2820]
[5,"2020-06-13","2020-06-13",641,"رجب",600,7.05,4230]
[6,"2020-04-16","2020-04-16",658,"رجب",750,7.05,5287.5]
[7,"2020-02-12","2020-02-12",679,"رجب",650,7.05,4582.5]
[8,"2020-07-12","2020-07-12",703,"رجب",650,7.05,4582.5]
[9,"2020-03-02","2020-03-02",716,"رجب",841,7.05,5929.05]
[10,"2020-02-18","2020-02-18",738,"رجب",500,7.05,3525]
[11,"2020-01-24","2020-01-24",752,"رجب",800,7.05,5640]
[12,"2020-04-04","2020-04-04",774,"رجب",525,7.05,3701.25]
[13,"2020-02-13","2020-02-13",792,"رجب",1400,7.05,9870]
[14,"2020-05-06","2020-05-06",811,"رجب",460,7.05,3243]
[15,"2020-02-05","2020-02-05",831,"رجب",400,7.05,2820]
[16,"2020-06-28","2020-06-28",846,"رجب",500,7.05,3525]
[17,"2020-06-26","2020-06-26",879,"رجب",452,7.05,3186.6]
[18,"2020-04-06","2020-04-06",894,"رجب",250,7.05,1762.5]
[19,"2020-06-06","2020-06-06",918,"رجب",150,7.05,1057.5]
[20,"2020-05-17","2020-05-17",929,"رجب",150,7.05,1057.5]
[21,"2020-02-24","2020-02-24",949,"رجب",50,7.05,352.5]
[22,"2020-04-05","2020-04-05",960,"رجب",200,7.05,1410]
[23,"2020-02-28","2020-02-28",975,"رجب",143,7.05,1008.15]
[24,"2020-02-12","2020-02-12",1013,"رجب",260,7.05,1833]
[25,"2020-03-22","2020-03-22",1026,"رجب",100,7.05,705]
[26,"2020-04-13","2020-04-13",1032,"رجب",100,7.05,705]
[27,"2020-07-24","2020-07-24",1048,"رجب",50,7.05,352.5]
[28,"2020-08-03","2020-08-03",1112,"رجب",200,7.05,1410]
[29,"2020-06-17","2020-06-17",1175,"رجب",200,7.05,1410]

{"sheet":"السيد","index":11,"n_rows":21,"n_cols":8,"rows_kept":21,"cut":false,"hidden":false,"merged":[]}
[]
[]
[null,"اليوم","التاريخ","رقم الاذن","اسم المقاول","الكمية","السعر","القيمة"]
[1,"2020-02-12","2020-02-12",579,"السيد",650,7.05,4582.5]
[2,"2020-07-28","2020-07-28",607,"السيد",910,7.05,6415.5]
[3,"2020-07-15","2020-07-15",620,"السيد",650,7.05,4582.5]
[4,"2020-04-12","2020-04-12",630,"السيد",900,7.05,6345]
[5,"2020-04-02","2020-04-02",631,"السيد",12,7.05,84.6]
[6,"2020-04-04","2020-04-04",643,"السيد",750,7.05,5287.5]
[7,"2020-02-18","2020-02-18",664,"السيد",1200,7.05,8460]
[8,"2020-07-20","2020-07-20",690,"السيد",1100,7.05,7755]
[9,"2020-07-02","2020-07-02",698,"السيد",900,7.05,6345]
[10,"2020-03-24","2020-03-24",719,"السيد",700,7.05,4935]
[11,"2020-02-24","2020-02-24",730,"السيد",800,7.05,5640]
[12,"2020-07-29","2020-07-29",754,"السيد",1000,7.05,7050]
[13,"2020-04-20","2020-04-20",775,"السيد",700,7.05,4935]
[14,"2020-06-06","2020-06-06",796,"السيد",460,7.05,3243]
[15,"2020-05-16","2020-05-16",814,"السيد",550,7.05,3877.5]
[16,"2020-03-09","2020-03-09",850,"السيد",120,7.05,846]
[17,"2020-08-04","2020-08-04",933,"السيد",174,7.05,1226.7]
[18,"2020-07-19","2020-07-19",967,"السيد",250,7.05,1762.5]

{"sheet":"جمال","index":12,"n_rows":20,"n_cols":8,"rows_kept":20,"cut":false,"hidden":false,"merged":[]}
[]
[]
[null,"اليوم","التاريخ","رقم الاذن","اسم المقاول","الكمية","السعر","القيمة"]
[1,"2020-02-29","2020-02-29",580,"جمال",400,7.05,2820]
[2,"2020-06-20","2020-06-20",603,"جمال",350,7.05,2467.5]
[3,"2020-05-18","2020-05-18",619,"جمال",400,7.05,2820]
[4,"2020-03-14","2020-03-14",634,"جمال",560,7.05,3948]
[5,"2020-04-03","2020-04-03",647,"جمال",260,7.05,1833]
[6,"2020-02-16","2020-02-16",666,"جمال",350,7.05,2467.5]
[7,"2020-03-29","2020-03-29",691,"جمال",300,7.05,2115]
[8,"2020-04-05","2020-04-05",707,"جمال",300,7.05,2115]
[9,"2020-04-20","2020-04-20",727,"جمال",350,7.05,2467.5]
[10,"2020-07-23","2020-07-23",742,"جمال",230,7.05,1621.5]
[11,"2020-07-20","2020-07-20",756,"جمال",350,7.05,2467.5]
[12,"2020-03-05","2020-03-05",777,"جمال",350,7.05,2467.5]
[13,"2020-05-18","2020-05-18",795,"جمال",266,7.05,1875.3]
[14,"2020-05-30","2020-05-30",844,"جمال",329,7.05,2319.4499999999998]
[15,"2020-07-21","2020-07-21",867,"جمال",100,7.05,705]
[16,"2020-06-26","2020-06-26",901,"جمال",100,7.05,705]
[17,"2020-06-03","2020-06-03",928,"جمال",100,7.05,705]

{"sheet":"أشرف","index":13,"n_rows":47,"n_cols":8,"rows_kept":47,"cut":false,"hidden":false,"merged":[]}
[]
[]
[null,"اليوم","التاريخ","رقم الاذن","اسم المقاول","الكمية","السعر","القيمة"]
[1,"2020-06-14","2020-06-14",581,"أشرف",250,7.05,1762.5]
[2,"2020-05-06","2020-05-06",604,"أشرف",300,7.05,2115]
[3,"2020-04-22","2020-04-22",618,"أشرف",300,7.05,2115]
[4,"2020-06-17","2020-06-17",648,"أشرف",240,7.05,1692]
[5,"2020-08-01","2020-08-01",662,"أشرف",300,7.05,2115]
[6,"2020-03-13","2020-03-13",692,"أشرف",350,7.05,2467.5]
[7,"2020-07-25","2020-07-25",711,"أشرف",230,7.05,1621.5]
[8,"2020-04-23","2020-04-23",724,"أشرف",300,7.05,2115]
[9,"2020-01-24","2020-01-24",744,"أشرف",462,7.05,3257.1]
[10,"2020-02-19","2020-02-19",751,"أشرف",480,7.05,3384]
[11,"2020-04-24","2020-04-24",779,"أشرف",530,7.05,3736.5]
[12,"2020-05-29","2020-05-29",794,"أشرف",470,7.05,3313.5]
[13,"2020-06-02","2020-06-02",813,"أشرف",403,7.05,2841.15]
[14,"2020-02-22","2020-02-22",825,"أشرف",250,7.05,1762.5]
[15,"2020-05-12","2020-05-12",842,"أشرف",230,7.05,1621.5]
[16,"2020-04-30","2020-04-30",851,"أشرف",293,7.05,2065.65]
[17,"2020-05-05","2020-05-05",868,"أشرف",500,7.05,3525]
[18,"2020-04-04","2020-04-04",881,"أشرف",100,7.05,705]
[19,"2020-06-30","2020-06-30",893,"أشرف",490,7.05,3454.5]
[20,"2020-07-03","2020-07-03",927,"أشرف",450,7.05,3172.5]
[21,"2020-06-18","2020-06-18",950,"أشرف",600,7.05,4230]
[22,"2020-02-28","2020-02-28",972,"أشرف",600,7.05,4230]
[23,"2020-04-15","2020-04-15",993,"أشرف",600,7.05,4230]
[24,"2020-03-22","2020-03-22",1009,"أشرف",550,7.05,3877.5]
[25,"2020-06-30","2020-06-30",1030,"أشرف",350,7.05,2467.5]
[26,"2020-05-20","2020-05-20",1045,"أشرف",250,7.05,1762.5]
[27,"2020-05-17","2020-05-17",1067,"أشرف",250,7.05,1762.5]
[28,"2020-03-16","2020-03-16",1124,"أشرف",250,7.05,1762.5]
[29,"2020-07-29","2020-07-29",1141,"أشرف",450,7.05,3172.5]
[30,"2020-08-03","2020-08-03",1165,"أشرف",350,7.05,2467.5]
[31,"2020-06-11","2020-06-11",1181,"أشرف",400,7.05,2820]
[32,"2020-05-31","2020-05-31",1211,"أشرف",300,7.05,2115]
[33,"2020-06-15","2020-06-15",1216,"أشرف",350,7.05,2467.5]
[34,"2020-07-23","2020-07-23",1243,"أشرف",200,7.05,1410]
[35,"2020-05-28","2020-05-28",13,"أشرف",250,7.05,1762.5]
[36,"2020-06-22","2020-06-22",29,"أشرف",200,7.05,1410]
[37,"2020-05-21","2020-05-21",40,"أشرف",170,7.05,1198.5]
[38,"2020-05-17","2020-05-17",1400,"أشرف",200,7.05,1410]
[39,"2020-03-01","2020-03-01",1314,"أشرف",200,7.05,1410]
[40,"2020-04-03","2020-04-03",1340,"أشرف",400,7.05,2820]
[41,"2020-02-25","2020-02-25",1369,"أشرف",555,7.05,3912.75]
[42,"2020-03-05","2020-03-05",1385,"أشرف",230,7.05,1621.5]
[43,"2020-02-23","2020-02-23",1422,"أشرف",300,7.05,2115]
[44,"2020-05-07","2020-05-07",1441,"أشرف",250,7.05,1762.5]

{"sheet":"علوان","index":14,"n_rows":58,"n_cols":8,"rows_kept":58,"cut":false,"hidden":false,"merged":[]}
[]
[]
[null,"اليوم","التاريخ","رقم الاذن","اسم المقاول","الكمية","السعر","القيمة"]
[1,"2020-01-30","2020-01-30",582,"علوان",600,7.05,4230]
[2,"2020-05-29","2020-05-29",596,"علوان",900,7.05,6345]
[3,"2020-05-02","2020-05-02",616,"علوان",700,7.05,4935]
[4,"2020-07-27","2020-07-27",627,"علوان",700,7.05,4935]
[5,"2020-04-10","2020-04-10",640,"علوان",800,7.05,5640]
[6,"2020-02-17","2020-02-17",661,"علوان",400,7.05,2820]
[7,"2020-02-06","2020-02-06",669,"علوان",150,7.05,1057.5]
[8,"2020-02-01","2020-02-01",684,"علوان",400,7.05,2820]
[9,"2020-05-05","2020-05-05",700,"علوان",500,7.05,3525]
[10,"2020-04-22","2020-04-22",715,"علوان",600,7.05,4230]
[11,"2020-07-14","2020-07-14",741,"علوان",400,7.05,2820]
[12,"2020-05-16","2020-05-16",789,"علوان",400,7.05,2820]
[13,"2020-05-26","2020-05-26",791,"علوان",106,7.05,747.3]
[14,"2020-07-06","2020-07-06",819,"علوان",254,7.05,1790.7]
[15,"2020-07-21","2020-07-21",832,"علوان",500,7.05,3525]
[16,"2020-05-20","2020-05-20",869,"علوان",500,7.05,3525]
[17,"2020-05-04","2020-05-04",896,"علوان",400,7.05,2820]
[18,"2020-05-30","2020-05-30",921,"علوان",400,7.05,2820]
[19,"2020-02-02","2020-02-02",944,"علوان",450,7.05,3172.5]
[20,"2020-05-12","2020-05-12",957,"علوان",450,7.05,3172.5]
[21,"2020-07-15","2020-07-15",987,"علوان",200,7.05,1410]
[22,"2020-01-19","2020-01-19",1006,"علوان",450,7.05,3172.5]
[23,"2020-07-03","2020-07-03",1020,"علوان",200,7.05,1410]
[24,"2020-01-23","2020-01-23",1040,"علوان",250,7.05,1762.5]
[25,"2020-02-27","2020-02-27",1062,"علوان",450,7.05,3172.5]
[26,"2020-01-31","2020-01-31",1078,"علوان",400,7.05,2820]
[27,"2020-05-23","2020-05-23",1104,"علوان",450,7.05,3172.5]
[28,"2020-05-20","2020-05-20",1122,"علوان",200,7.05,1410]
[29,"2020-07-04","2020-07-04",1142,"علوان",600,7.05,4230]
[30,"2020-02-13","2020-02-13",1163,"علوان",600,7.05,4230]
[31,"2020-03-02","2020-03-02",1172,"علوان",300,7.05,2115]
[32,"2020-03-01","2020-03-01",1186,"علوان",200,7.05,1410]
[33,"2020-03-01","2020-03-01",1201,"علوان",400,7.05,2820]
[34,"2020-04-13","2020-04-13",1223,"علوان",450,7.05,3172.5]
[35,"2020-07-28","2020-07-28",1234,"علوان",400,7.05,2820]
[36,"2020-02-16","2020-02-16",1,"علوان",400,7.05,2820]
[37,"2020-02-21","2020-02-21",18,"علوان",400,7.05,2820]
[38,"2020-07-05","2020-07-05",32,"علوان",450,7.05,3172.5]
[39,"2020-01-21","2020-01-21",1390,"علوان",400,7.05,2820]
[40,"2020-03-03","2020-03-03",1301,"علوان",400,7.05,2820]
[41,"2020-05-24","2020-05-24",1334,"علوان",600,7.05,4230]
[42,"2020-03-04","2020-03-04",1358,"علوان",600,7.05,4230]
[43,"2020-04-17","2020-04-17",1382,"علوان",500,7.05,3525]
[44,"2020-06-14","2020-06-14",1417,"علوان",150,7.05,1057.5]
[45,"2020-05-17","2020-05-17",1438,"علوان",450,7.05,3172.5]
[46,"2020-04-09","2020-04-09",1451,"علوان",600,7.05,4230]
[47,"2020-07-05","2020-07-05",1460,"علوان",300,7.05,2115]
[48,"2020-07-18","2020-07-18",1484,"علوان",400,7.05,2820]
[49,"2020-03-14","2020-03-14",1500,"علوان",79,7.05,556.94999999999993]
[50,"2020-03-26","2020-03-26",1510,"علوان",400,7.05,2820]
[51,"2020-04-27","2020-04-27",1527,"علوان",800,7.05,5640]
[52,"2020-07-14","2020-07-14",1543,"علوان",600,7.05,4230]
[53,"2020-06-04","2020-06-04",1562,"علوان",700,7.05,4935]
[54,"2020-03-13","2020-03-13",1578,"علوان",800,7.05,5640]
[55,"2020-04-13","2020-04-13",1593,"علوان",800,7.05,5640]

{"sheet":"حلمى","index":15,"n_rows":39,"n_cols":8,"rows_kept":39,"cut":false,"hidden":false,"merged":[]}
[]
[]
[null,"اليوم","التاريخ","رقم الاذن","اسم المقاول","الكمية","السعر","القيمة"]
[1,"2020-04-18","2020-04-18",583,"حلمى",800,7.05,5640]
[2,"2020-07-04","2020-07-04",600,"حلمى",700,7.05,4935]
[3,"2020-05-09","2020-05-09",623,"حلمى",1150,7.05,8107.5]
[4,"2020-05-18","2020-05-18",633,"حلمى",1230,7.05,8671.5]
[5,"2020-02-02","2020-02-02",646,"حلمى",902,7.05,6359.0999999999995]
[6,"2020-07-05","2020-07-05",686,"حلمى",50,7.05,352.5]
[7,"2020-05-15","2020-05-15",709,"حلمى",20,7.05,141]
[8,"2020-06-17","2020-06-17",721,"حلمى",450,7.05,3172.5]
[9,"2020-06-17","2020-06-17",737,"حلمى",300,7.05,2115]
[10,"2020-03-29","2020-03-29",810,"حلمى",1110,7.05,7825.5]
[11,"2020-03-04","2020-03-04",827,"حلمى",650,7.05,4582.5]
[12,"2020-07-02","2020-07-02",853,"حلمى",400,7.05,2820]
[13,"2020-07-02","2020-07-02",874,"حلمى",600,7.05,4230]
[14,"2020-03-27","2020-03-27",902,"حلمى",504,7.05,3553.2]
[15,"2020-06-29","2020-06-29",920,"حلمى",650,7.05,4582.5]
[16,"2020-02-23","2020-02-23",940,"حلمى",650,7.05,4582.5]
[17,"2020-06-22","2020-06-22",961,"حلمى",350,7.05,2467.5]
[18,"2020-02-14","2020-02-14",979,"حلمى",23,7.05,162.15]
[19,"2020-07-23","2020-07-23",989,"حلمى",350,7.05,2467.5]
[20,"2020-08-01","2020-08-01",1014,"حلمى",150,7.05,1057.5]
[21,"2020-07-05","2020-07-05",1031,"حلمى",200,7.05,1410]
[22,"2020-06-22","2020-06-22",1046,"حلمى",150,7.05,1057.5]
[23,"2020-07-09","2020-07-09",1069,"حلمى",150,7.05,1057.5]
[24,"2020-08-02","2020-08-02",1103,"حلمى",300,7.05,2115]
[25,"2020-01-31","2020-01-31",1117,"حلمى",100,7.05,705]
[26,"2020-03-16","2020-03-16",1136,"حلمى",152,7.05,1071.5999999999999]
[27,"2020-06-18","2020-06-18",1159,"حلمى",500,7.05,3525]
[28,"2020-03-20","2020-03-20",1179,"حلمى",40,7.05,282]
[29,"2020-04-14","2020-04-14",1218,"حلمى",350,7.05,2467.5]
[30,"2020-03-21","2020-03-21",1238,"حلمى",300,7.05,2115]
[31,"2020-05-10","2020-05-10",14,"حلمى",400,7.05,2820]
[32,"2020-07-18","2020-07-18",42,"حلمى",170,7.05,1198.5]
[33,"2020-01-26","2020-01-26",1395,"حلمى",200,7.05,1410]
[34,"2020-01-25","2020-01-25",1483,"حلمى",40,7.05,282]
[35,"2020-04-14","2020-04-14",1486,"حلمى",150,7.05,1057.5]
[36,"2020-05-11","2020-05-11",1508,"حلمى",50,7.05,352.5]

{"sheet":"أنور","index":16,"n_rows":50,"n_cols":8,"rows_kept":50,"cut":false,"hidden":false,"merged":[]}
[]
[]
[null,"اليوم","التاريخ","رقم الاذن","اسم المقاول","الكمية","السعر","القيمة"]
[1,"2020-04-07","2020-04-07",584,"أنور",400,7.05,2820]
[2,"2020-05-30","2020-05-30",597,"أنور",400,7.05,2820]
[3,"2020-03-31","2020-03-31",614,"أنور",400,7.05,2820]
[4,"2020-05-24","2020-05-24",625,"أنور",350,7.05,2467.5]
[5,"2020-05-18","2020-05-18",639,"أنور",350,7.05,2467.5]
[6,"2020-04-17","2020-04-17",657,"أنور",400,7.05,2820]
[7,"2020-04-29","2020-04-29",683,"أنور",400,7.05,2820]
[8,"2020-04-06","2020-04-06",704,"أنور",300,7.05,2115]
[9,"2020-05-24","2020-05-24",717,"أنور",300,7.05,2115]
[10,"2020-06-01","2020-06-01",732,"أنور",300,7.05,2115]
[11,"2020-03-11","2020-03-11",757,"أنور",350,7.05,2467.5]
[12,"2020-08-04","2020-08-04",772,"أنور",300,7.05,2115]
[13,"2020-05-14","2020-05-14",788,"أنور",350,7.05,2467.5]
[14,"2020-03-20","2020-03-20",812,"أنور",350,7.05,2467.5]
[15,"2020-04-13","2020-04-13",824,"أنور",350,7.05,2467.5]
[16,"2020-06-08","2020-06-08",843,"أنور",350,7.05,2467.5]
[17,"2020-07-11","2020-07-11",852,"أنور",300,7.05,2115]
[18,"2020-02-16","2020-02-16",870,"أنور",300,7.05,2115]
[19,"2020-05-20","2020-05-20",919,"أنور",350,7.05,2467.5]
[20,"2020-05-21","2020-05-21",941,"أنور",350,7.05,2467.5]
[21,"2020-03-07","2020-03-07",978,"أنور",323,7.05,2277.15]
[22,"2020-03-05","2020-03-05",1007,"أنور",350,7.05,2467.5]
[23,"2020-02-21","2020-02-21",1027,"أنور",350,7.05,2467.5]
[24,"2020-05-17","2020-05-17",1041,"أنور",350,7.05,2467.5]
[25,"2020-06-20","2020-06-20",1042,"أنور",50,7.05,352.5]
[26,"2020-05-24","2020-05-24",1063,"أنور",400,7.05,2820]
[27,"2020-01-30","2020-01-30",1079,"أنور",250,7.05,1762.5]
[28,"2020-02-17","2020-02-17",1105,"أنور",400,7.05,2820]
[29,"2020-03-11","2020-03-11",1126,"أنور",400,7.05,2820]
[30,"2020-03-10","2020-03-10",1134,"أنور",350,7.05,2467.5]
[31,"2020-03-18","2020-03-18",1160,"أنور",350,7.05,2467.5]
[32,"2020-04-28","2020-04-28",1171,"أنور",450,7.05,3172.5]
[33,"2020-06-03","2020-06-03",1202,"أنور",350,7.05,2467.5]
[34,"2020-04-23","2020-04-23",1219,"أنور",350,7.05,2467.5]
[35,"2020-05-03","2020-05-03",1235,"أنور",400,7.05,2820]
[36,"2020-02-29","2020-02-29",2,"أنور",350,7.05,2467.5]
[37,"2020-03-01","2020-03-01",21,"أنور",500,7.05,3525]
[38,"2020-04-23","2020-04-23",34,"أنور",350,7.05,2467.5]
[39,"2020-03-06","2020-03-06",1397,"أنور",400,7.05,2820]
[40,"2020-06-13","2020-06-13",1303,"أنور",500,7.05,3525]
[41,"2020-06-27","2020-06-27",1317,"أنور",100,7.05,705]
[42,"2020-04-27","2020-04-27",1333,"أنور",500,7.05,3525]
[43,"2020-03-08","2020-03-08",1360,"أنور",500,7.05,3525]
[44,"2020-07-21","2020-07-21",1374,"أنور",500,7.05,3525]
[45,"2020-03-24","2020-03-24",1375,"أنور",200,7.05,1410]
[46,"2020-03-31","2020-03-31",1424,"أنور",200,7.05,1410]
[47,"2020-02-28","2020-02-28",1452,"أنور",260,7.05,1833]

{"sheet":"جابر","index":17,"n_rows":52,"n_cols":8,"rows_kept":52,"cut":false,"hidden":false,"merged":[]}
[]
[]
[null,"اليوم","التاريخ","رقم الاذن","اسم المقاول","الكمية","السعر","القيمة"]
[1,"2020-04-01","2020-04-01",585,"جابر",1975,7.05,13923.75]
[2,"2020-04-29","2020-04-29",606,"جابر",1300,7.05,9165]
[3,"2020-08-05","2020-08-05",617,"جابر",1300,7.05,9165]
[4,"2020-01-21","2020-01-21",629,"جابر",1600,7.05,11280]
[5,"2020-07-07","2020-07-07",635,"جابر",384,7.05,2707.2]
[6,"2020-06-05","2020-06-05",645,"جابر",1300,7.05,9165]
[7,"2020-08-05","2020-08-05",668,"جابر",1560,7.05,10998]
[8,"2020-05-19","2020-05-19",693,"جابر",1420,7.05,10011]
[9,"2020-02-05","2020-02-05",712,"جابر",1174,7.05,8276.6999999999989]
[10,"2020-06-13","2020-06-13",725,"جابر",1225,7.05,8636.25]
[11,"2020-07-22","2020-07-22",745,"جابر",1290,7.05,9094.5]
[12,"2020-07-27","2020-07-27",753,"جابر",1500,7.05,10575]
[13,"2020-04-30","2020-04-30",773,"جابر",1906,7.05,13437.3]
[14,"2020-05-22","2020-05-22",790,"جابر",1857,7.05,13091.85]
[15,"2020-02-19","2020-02-19",809,"جابر",1400,7.05,9870]
[16,"2020-06-14","2020-06-14",833,"جابر",2000,7.05,14100]
[17,"2020-02-19","2020-02-19",854,"جابر",1792,7.05,12633.6]
[18,"2020-03-20","2020-03-20",871,"جابر",1300,7.05,9165]
[19,"2020-05-17","2020-05-17",891,"جابر",1400,7.05,9870]
[20,"2020-04-26","2020-04-26",925,"جابر",1270,7.05,8953.5]
[21,"2020-07-17","2020-07-17",947,"جابر",1630,7.05,11491.5]
[22,"2020-05-25","2020-05-25",965,"جابر",1100,7.05,7755]
[23,"2020-05-25","2020-05-25",974,"جابر",100,7.05,705]
[24,"2020-05-27","2020-05-27",994,"جابر",2050,7.05,14452.5]
[25,"2020-05-12","2020-05-12",1008,"جابر",1650,7.05,11632.5]
[26,"2020-08-03","2020-08-03",1025,"جابر",1716,7.05,12097.8]
[27,"2020-07-17","2020-07-17",1047,"جابر",1375,7.05,9693.75]
[28,"2020-04-06","2020-04-06",1064,"جابر",1300,7.05,9165]
[29,"2020-03-28","2020-03-28",1074,"جابر",1300,7.05,9165]
[30,"2020-04-26","2020-04-26",1110,"جابر",1150,7.05,8107.5]
[31,"2020-02-02","2020-02-02",1127,"جابر",1000,7.05,7050]
[32,"2020-05-23","2020-05-23",1147,"جابر",976,7.05,6880.8]
[33,"2020-03-15","2020-03-15",1162,"جابر",1500,7.05,10575]
[34,"2020-07-23","2020-07-23",1173,"جابر",1250,7.05,8812.5]
[35,"2020-03-01","2020-03-01",1206,"جابر",1505,7.05,10610.25]
[36,"2020-02-07","2020-02-07",1225,"جابر",1063,7.05,7494.15]
[37,"2020-07-13","2020-07-13",1244,"جابر",950,7.05,6697.5]
[38,"2020-04-22","2020-04-22",8,"جابر",680,7.05,4794]
[39,"2020-04-12","2020-04-12",22,"جابر",800,7.05,5640]
[40,"2020-06-08","2020-06-08",36,"جابر",700,7.05,4935]
[41,"2020-05-19","2020-05-19",47,"جابر",649,7.05,4575.45]
[42,"2020-04-17","2020-04-17",1308,"جابر",500,7.05,3525]
[43,"2020-02-04","2020-02-04",1343,"جابر",750,7.05,5287.5]
[44,"2020-05-11","2020-05-11",1361,"جابر",230,7.05,1621.5]
[45,"2020-05-07","2020-05-07",1436,"جابر",200,7.05,1410]
[46,"2020-06-16","2020-06-16",1457,"جابر",408,7.05,2876.4]
[47,"2020-04-23","2020-04-23",1488,"جابر",200,7.05,1410]
[48,"2020-05-24","2020-05-24",1515,"جابر",620,7.05,4371]
[49,"2020-05-31","2020-05-31",1536,"جابر",150,7.05,1057.5]

{"sheet":"رمضان عربية ش","index":18,"n_rows":28,"n_cols":8,"rows_kept":28,"cut":false,"hidden":false,"merged":[]}
[]
[]
[null,"اليوم","التاريخ","رقم الاذن","اسم المقاول","الكمية","السعر","القيمة"]
[1,"2020-02-28","2020-02-28",586,"رمضان عربية ش",67,7.05,472.34999999999997]
[2,"2020-07-06","2020-07-06",649,"رمضان عربية ش",50,7.05,352.5]
[3,"2020-03-10","2020-03-10",667,"رمضان عربية ش",70,7.05,493.5]
[4,"2020-07-20","2020-07-20",739,"رمضان عربية ش",78,7.05,549.9]
[5,"2020-03-03","2020-03-03",760,"رمضان عربية ش",75,7.05,528.75]
[6,"2020-02-04","2020-02-04",822,"رمضان عربية ش",83,7.05,585.15]
[7,"2020-06-21","2020-06-21",845,"رمضان عربية ش",70,7.05,493.5]
[8,"2020-03-22","2020-03-22",903,"رمضان عربية ش",66,7.05,465.3]
[9,"2020-08-03","2020-08-03",1034,"رمضان عربية ش",74,7.05,521.69999999999993]
[10,"2020-06-03","2020-06-03",1075,"رمضان عربية ش",84,7.05,592.19999999999993]
[11,"2020-06-25","2020-06-25",1114,"رمضان عربية ش",50,7.05,352.5]
[12,"2020-05-31","2020-05-31",1140,"رمضان عربية ش",38,7.05,267.89999999999998]
[13,"2020-07-06","2020-07-06",1182,"رمضان عربية ش",50,7.05,352.5]
[14,"2020-03-05","2020-03-05",1205,"رمضان عربية ش",75,7.05,528.75]
[15,"2020-04-14","2020-04-14",17,"رمضان عربية ش",50,7.05,352.5]
[16,"2020-05-25","2020-05-25",30,"رمضان عربية ش",35,7.05,246.75]
[17,"2020-05-09","2020-05-09",46,"رمضان عربية ش",65,7.05,458.25]
[18,"2020-05-23","2020-05-23",1321,"رمضان عربية ش",23,7.05,162.15]
[19,"2020-04-12","2020-04-12",1364,"رمضان عربية ش",60,7.05,423]
[20,"2020-06-26","2020-06-26",1428,"رمضان عربية ش",45,7.05,317.25]
[21,"2020-05-19","2020-05-19",1495,"رمضان عربية ش",68,7.05,479.4]
[22,"2020-06-27","2020-06-27",1529,"رمضان عربية ش",45,7.05,317.25]
[23,"2020-05-19","2020-05-19",1546,"رمضان عربية ش",71,7.05,500.55]
[24,"2020-04-30","2020-04-30",1576,"رمضان عربية ش",54,7.05,380.7]
[25,"2020-02-25","2020-02-25",1596,"رمضان عربية ش",831,7.05,5858.55]

{"sheet":"محمد عيسى","index":19,"n_rows":21,"n_cols":8,"rows_kept":21,"cut":false,"hidden":false,"merged":[]}
[]
[]
[null,"اليوم","التاريخ","رقم الاذن","اسم المقاول","الكمية","السعر","القيمة"]
[1,"2020-04-08","2020-04-08",587,"محمد عيسى",255,7.05,1797.75]
[2,"2020-03-26","2020-03-26",605,"محمد عيسى",400,7.05,2820]
[3,"2020-05-29","2020-05-29",621,"محمد عيسى",400,7.05,2820]
[4,"2020-04-06","2020-04-06",642,"محمد عيسى",400,7.05,2820]
[5,"2020-06-22","2020-06-22",669,"محمد عيسى",400,7.05,2820]
[6,"2020-06-10","2020-06-10",682,"محمد عيسى",400,7.05,2820]
[7,"2020-06-19","2020-06-19",723,"محمد عيسى",300,7.05,2115]
[8,"2020-02-05","2020-02-05",734,"محمد عيسى",300,7.05,2115]
[9,"2020-03-11","2020-03-11",758,"محمد عيسى",400,7.05,2820]
[10,"2020-07-14","2020-07-14",778,"محمد عيسى",400,7.05,2820]
[11,"2020-01-30","2020-01-30",797,"محمد عيسى",466,7.05,3285.2999999999997]
[12,"2020-04-30","2020-04-30",817,"محمد عيسى",250,7.05,1762.5]
[13,"2020-02-19","2020-02-19",841,"محمد عيسى",400,7.05,2820]
[14,"2020-05-01","2020-05-01",872,"محمد عيسى",300,7.05,2115]
[15,"2020-05-12","2020-05-12",892,"محمد عيسى",300,7.05,2115]
[16,"2020-06-26","2020-06-26",930,"محمد عيسى",250,7.05,1762.5]
[17,"2020-06-27","2020-06-27",952,"محمد عيسى",205,7.05,1445.25]
[18,"2020-04-05","2020-04-05",1592,"محمد عيسى",69,7.05,486.45]

{"sheet":"عمر","index":20,"n_rows":32,"n_cols":8,"rows_kept":32,"cut":false,"hidden":false,"merged":[]}
[]
[]
[null,"اليوم","التاريخ","رقم الاذن","اسم المقاول","الكمية","السعر","القيمة"]
[1,"2020-03-10","2020-03-10",598,"عمر",40,7.05,282]
[2,"2020-07-03","2020-07-03",660,"عمر",120,7.05,846]
[3,"2020-07-27","2020-07-27",681,"عمر",175,7.05,1233.75]
[4,"2020-05-30","2020-05-30",708,"عمر",125,7.05,881.25]
[5,"2020-06-17","2020-06-17",718,"عمر",345,7.05,2432.25]
[6,"2020-01-30","2020-01-30",740,"عمر",200,7.05,1410]
[7,"2020-06-13","2020-06-13",793,"عمر",102,7.05,719.1]
[8,"2020-02-11","2020-02-11",826,"عمر",130,7.05,916.5]
[9,"2020-05-08","2020-05-08",880,"عمر",100,7.05,705]
[10,"2020-06-06","2020-06-06",899,"عمر",600,7.05,4230]
[11,"2020-06-25","2020-06-25",917,"عمر",400,7.05,2820]
[12,"2020-05-05","2020-05-05",948,"عمر",350,7.05,2467.5]
[13,"2020-06-25","2020-06-25",953,"عمر",100,7.05,705]
[14,"2020-03-17","2020-03-17",970,"عمر",300,7.05,2115]
[15,"2020-04-01","2020-04-01",992,"عمر",300,7.05,2115]
[16,"2020-03-29","2020-03-29",1004,"عمر",200,7.05,1410]
[17,"2020-05-06","2020-05-06",1033,"عمر",200,7.05,1410]
[18,"2020-05-18","2020-05-18",1050,"عمر",320,7.05,2256]
[19,"2020-02-07","2020-02-07",1065,"عمر",500,7.05,3525]
[20,"2020-02-02","2020-02-02",1082,"عمر",350,7.05,2467.5]
[21,"2020-04-19","2020-04-19",1113,"عمر",50,7.05,352.5]
[22,"2020-04-14","2020-04-14",1123,"عمر",500,7.05,3525]
[23,"2020-02-22","2020-02-22",1143,"عمر",200,7.05,1410]
[24,"2020-07-13","2020-07-13",1220,"عمر",200,7.05,1410]
[25,"2020-03-02","2020-03-02",1242,"عمر",150,7.05,1057.5]
[26,"2020-03-24","2020-03-24",3,"عمر",100,7.05,705]
[27,"2020-01-29","2020-01-29",1392,"عمر",200,7.05,1410]
[28,"2020-04-11","2020-04-11",1310,"عمر",100,7.05,705]
[29,"2020-07-01","2020-07-01",1316,"عمر",100,7.05,705]

{"sheet":"حلمى25","index":21,"n_rows":18,"n_cols":8,"rows_kept":18,"cut":false,"hidden":false,"merged":[]}
[]
[]
[null,"اليوم","التاريخ","رقم الاذن","اسم المقاول","الكمية","السعر","القيمة"]
[1,"2020-01-19","2020-01-19",601,"حلمى25",200,7.05,1410]
[2,"2020-04-07","2020-04-07",687,"حلمى25",350,7.05,2467.5]
[3,"2020-01-19","2020-01-19",701,"حلمى25",990,7.05,6979.5]
[4,"2020-02-22","2020-02-22",722,"حلمى25",200,7.05,1410]
[5,"2020-02-08","2020-02-08",736,"حلمى25",300,7.05,2115]
[6,"2020-08-06","2020-08-06",780,"حلمى25",900,7.05,6345]
[7,"2020-04-29","2020-04-29",962,"حلمى25",350,7.05,2467.5]
[8,"2020-02-28","2020-02-28",1485,"حلمى25",800,7.05,5640]
[9,"2020-08-02","2020-08-02",1497,"حلمى25",375,7.05,2643.75]
[10,"2020-07-08","2020-07-08",1511,"حلمى25",800,7.05,5640]
[11,"2020-03-07","2020-03-07",1531,"حلمى25",980,7.05,6909]
[12,"2020-06-15","2020-06-15",1548,"حلمى25",829,7.05,5844.45]
[13,"2020-01-30","2020-01-30",1566,"حلمى25",700,7.05,4935]
[14,"2020-05-18","2020-05-18",1575,"حلمى25",700,7.05,4935]
[15,"2020-05-23","2020-05-23",1581,"حلمى25",54,7.05,380.7]

{"sheet":"ضيف","index":22,"n_rows":54,"n_cols":8,"rows_kept":54,"cut":false,"hidden":false,"merged":[]}
[]
[]
[null,"اليوم","التاريخ","رقم الاذن","اسم المقاول","الكمية","السعر","القيمة"]
[1,"2020-01-31","2020-01-31",622,"ضيف",400,7.05,2820]
[2,"2020-06-18","2020-06-18",632,"ضيف",315,7.05,2220.75]
[3,"2020-02-11","2020-02-11",650,"ضيف",400,7.05,2820]
[4,"2020-04-15","2020-04-15",663,"ضيف",300,7.05,2115]
[5,"2020-06-05","2020-06-05",685,"ضيف",300,7.05,2115]
[6,"2020-03-07","2020-03-07",702,"ضيف",300,7.05,2115]
[7,"2020-04-05","2020-04-05",726,"ضيف",300,7.05,2115]
[8,"2020-04-18","2020-04-18",733,"ضيف",200,7.05,1410]
[9,"2020-05-25","2020-05-25",759,"ضيف",400,7.05,2820]
[10,"2020-05-12","2020-05-12",781,"ضيف",125,7.05,881.25]
[11,"2020-03-01","2020-03-01",787,"ضيف",393,7.05,2770.65]
[12,"2020-05-09","2020-05-09",818,"ضيف",450,7.05,3172.5]
[13,"2020-07-10","2020-07-10",820,"ضيف",50,7.05,352.5]
[14,"2020-01-20","2020-01-20",830,"ضيف",490,7.05,3454.5]
[15,"2020-07-20","2020-07-20",847,"ضيف",600,7.05,4230]
[16,"2020-06-04","2020-06-04",876,"ضيف",400,7.05,2820]
[17,"2020-06-16","2020-06-16",900,"ضيف",400,7.05,2820]
[18,"2020-04-04","2020-04-04",922,"ضيف",400,7.05,2820]
[19,"2020-06-30","2020-06-30",943,"ضيف",300,7.05,2115]
[20,"2020-06-07","2020-06-07",964,"ضيف",300,7.05,2115]
[21,"2020-04-30","2020-04-30",986,"ضيف",400,7.05,2820]
[22,"2020-06-19","2020-06-19",1011,"ضيف",510,7.05,3595.5]
[23,"2020-03-19","2020-03-19",1024,"ضيف",200,7.05,1410]
[24,"2020-07-31","2020-07-31",1038,"ضيف",400,7.05,2820]
[25,"2020-04-16","2020-04-16",1049,"ضيف",40,7.05,282]
[26,"2020-02-15","2020-02-15",1066,"ضيف",500,7.05,3525]
[27,"2020-02-20","2020-02-20",1073,"ضيف",340,7.05,2397]
[28,"2020-07-14","2020-07-14",1120,"ضيف",440,7.05,3102]
[29,"2020-01-21","2020-01-21",1146,"ضيف",300,7.05,2115]
[30,"2020-03-11","2020-03-11",1164,"ضيف",515,7.05,3630.75]
[31,"2020-04-24","2020-04-24",1185,"ضيف",350,7.05,2467.5]
[32,"2020-05-18","2020-05-18",1212,"ضيف",400,7.05,2820]
[33,"2020-03-03","2020-03-03",1241,"ضيف",500,7.05,3525]
[34,"2020-03-11","2020-03-11",10,"ضيف",400,7.05,2820]
[35,"2020-03-20","2020-03-20",24,"ضيف",400,7.05,2820]
[36,"2020-04-25","2020-04-25",27,"ضيف",42,7.05,296.09999999999997]
[37,"2020-04-13","2020-04-13",44,"ضيف",400,7.05,2820]
[38,"2020-02-10","2020-02-10",1399,"ضيف",400,7.05,2820]
[39,"2020-01-29","2020-01-29",1313,"ضيف",340,7.05,2397]
[40,"2020-06-21","2020-06-21",1344,"ضيف",430,7.05,3031.5]
[41,"2020-06-30","2020-06-30",1367,"ضيف",251,7.05,1769.55]
[42,"2020-03-25","2020-03-25",1386,"ضيف",200,7.05,1410]
[43,"2020-02-26","2020-02-26",1427,"ضيف",630,7.05,4441.5]
[44,"2020-06-23","2020-06-23",1440,"ضيف",500,7.05,3525]
[45,"2020-03-18","2020-03-18",1453,"ضيف",800,7.05,5640]
[46,"2020-01-31","2020-01-31",1494,"ضيف",430,7.05,3031.5]
[47,"2020-08-04","2020-08-04",1509,"ضيف",480,7.05,3384]
[48,"2020-06-07","2020-06-07",1550,"ضيف",500,7.05,3525]
[49,"2020-05-26","2020-05-26",1564,"ضيف",430,7.05,3031.5]
[50,"2020-05-04","2020-05-04",1574,"ضيف",600,7.05,4230]
[51,"2020-03-30","2020-03-30",1590,"ضيف",800,7.05,5640]

{"sheet":"خالد 54","index":23,"n_rows":28,"n_cols":8,"rows_kept":28,"cut":false,"hidden":false,"merged":[]}
[]
[]
[null,"اليوم","التاريخ","رقم الاذن","اسم المقاول","الكمية","السعر","القيمة"]
[1,"2020-06-30","2020-06-30",644,"خالد 54",400,7.05,2820]
[2,"2020-02-02","2020-02-02",665,"خالد 54",400,7.05,2820]
[3,"2020-04-13","2020-04-13",689,"خالد 54",500,7.05,3525]
[4,"2020-07-18","2020-07-18",699,"خالد 54",750,7.05,5287.5]
[5,"2020-04-04","2020-04-04",720,"خالد 54",700,7.05,4935]
[6,"2020-03-10","2020-03-10",731,"خالد 54",1000,7.05,7050]
[7,"2020-03-01","2020-03-01",755,"خالد 54",1000,7.05,7050]
[8,"2020-04-14","2020-04-14",776,"خالد 54",600,7.05,4230]
[9,"2020-07-06","2020-07-06",815,"خالد 54",600,7.05,4230]
[10,"2020-02-20","2020-02-20",829,"خالد 54",900,7.05,6345]
[11,"2020-03-01","2020-03-01",835,"خالد 54",200,7.05,1410]
[12,"2020-06-03","2020-06-03",849,"خالد 54",380,7.05,2679]
[13,"2020-03-31","2020-03-31",873,"خالد 54",700,7.05,4935]
[14,"2020-06-16","2020-06-16",890,"خالد 54",700,7.05,4935]
[15,"2020-05-22","2020-05-22",931,"خالد 54",500,7.05,3525]
[16,"2020-03-28","2020-03-28",951,"خالد 54",380,7.05,2679]
[17,"2020-04-27","2020-04-27",968,"خالد 54",350,7.05,2467.5]
[18,"2020-04-26","2020-04-26",997,"خالد 54",900,7.05,6345]
[19,"2020-06-04","2020-06-04",1010,"خالد 54",584,7.05,4117.2]
[20,"2020-02-01","2020-02-01",1023,"خالد 54",400,7.05,2820]
[21,"2020-08-05","2020-08-05",1052,"خالد 54",65,7.05,458.25]
[22,"2020-02-29","2020-02-29",1068,"خالد 54",100,7.05,705]
[23,"2020-07-17","2020-07-17",1077,"خالد 54",145,7.05,1022.25]
[24,"2020-08-02","2020-08-02",1107,"خالد 54",150,7.05,1057.5]
[25,"2020-07-03","2020-07-03",1118,"خالد 54",150,7.05,1057.5]

{"sheet":"محسن مياه","index":24,"n_rows":70,"n_cols":8,"rows_kept":70,"cut":false,"hidden":false,"merged":[]}
[]
[]
[null,"اليوم","التاريخ","رقم الاذن","اسم المقاول","الكمية","السعر","القيمة"]
[1,"2020-07-13","2020-07-13",659,"محسن مياه",100,7.05,705]
[2,"2020-02-26","2020-02-26",680,"محسن مياه",50,7.05,352.5]
[3,"2020-06-06","2020-06-06",688,"محسن مياه",50,7.05,352.5]
[4,"2020-07-16","2020-07-16",705,"محسن مياه",20,7.05,141]
[5,"2020-05-19","2020-05-19",706,"محسن مياه",20,7.05,141]
[6,"2020-05-28","2020-05-28",729,"محسن مياه",50,7.05,352.5]
[7,"2020-02-08","2020-02-08",735,"محسن مياه",50,7.05,352.5]
[8,"2020-04-06","2020-04-06",743,"محسن مياه",40,7.05,282]
[9,"2020-02-10","2020-02-10",766,"محسن مياه",111,7.05,782.55]
[10,"2020-02-29","2020-02-29",782,"محسن مياه",164,7.05,1156.2]
[11,"2020-04-29","2020-04-29",798,"محسن مياه",102,7.05,719.1]
[12,"2020-06-10","2020-06-10",799,"محسن مياه",128,7.05,902.4]
[13,"2020-03-23","2020-03-23",808,"محسن مياه",40,7.05,282]
[14,"2020-07-10","2020-07-10",821,"محسن مياه",100,7.05,705]
[15,"2020-08-03","2020-08-03",837,"محسن مياه",130,7.05,916.5]
[16,"2020-05-09","2020-05-09",878,"محسن مياه",25,7.05,176.25]
[17,"2020-03-19","2020-03-19",883,"محسن مياه",25,7.05,176.25]
[18,"2020-08-01","2020-08-01",897,"محسن مياه",140,7.05,987]
[19,"2020-07-07","2020-07-07",898,"محسن مياه",50,7.05,352.5]
[20,"2020-05-30","2020-05-30",924,"محسن مياه",50,7.05,352.5]
[21,"2020-06-27","2020-06-27",955,"محسن مياه",150,7.05,1057.5]
[22,"2020-04-13","2020-04-13",956,"محسن مياه",50,7.05,352.5]
[23,"2020-05-02","2020-05-02",995,"محسن مياه",220,7.05,1551]
[24,"2020-01-28","2020-01-28",996,"محسن مياه",50,7.05,352.5]
[25,"2020-02-09","2020-02-09",998,"محسن مياه",80,7.05,564]
[26,"2020-07-15","2020-07-15",1012,"محسن مياه",200,7.05,1410]
[27,"2020-07-07","2020-07-07",1051,"محسن مياه",300,7.05,2115]
[28,"2020-04-22","2020-04-22",1081,"محسن مياه",50,7.05,352.5]
[29,"2020-05-08","2020-05-08",1083,"محسن مياه",100,7.05,705]
[30,"2020-05-19","2020-05-19",1085,"محسن مياه",50,7.05,352.5]
[31,"2020-03-21","2020-03-21",1144,"محسن مياه",60,7.05,423]
[32,"2020-07-14","2020-07-14",1145,"محسن مياه",100,7.05,705]
[33,"2020-05-24","2020-05-24",1174,"محسن مياه",70,7.05,493.5]
[34,"2020-03-02","2020-03-02",1183,"محسن مياه",50,7.05,352.5]
[35,"2020-06-01","2020-06-01",1184,"محسن مياه",50,7.05,352.5]
[36,"2020-07-26","2020-07-26",1210,"محسن مياه",100,7.05,705]
[37,"2020-05-24","2020-05-24",1221,"محسن مياه",60,7.05,423]
[38,"2020-07-08","2020-07-08",9,"محسن مياه",80,7.05,564]
[39,"2020-01-29","2020-01-29",12,"محسن مياه",50,7.05,352.5]
[40,"2020-05-18","2020-05-18",16,"محسن مياه",40,7.05,282]
[41,"2020-02-19","2020-02-19",41,"محسن مياه",100,7.05,705]
[42,"2020-03-18","2020-03-18",43,"محسن مياه",100,7.05,705]
[43,"2020-02-20","2020-02-20",1398,"محسن مياه",100,7.05,705]
[44,"2020-01-30","2020-01-30",1302,"محسن مياه",100,7.05,705]
[45,"2020-05-17","2020-05-17",1306,"محسن مياه",50,7.05,352.5]
[46,"2020-07-20","2020-07-20",1336,"محسن مياه",50,7.05,352.5]
[47,"2020-02-12","2020-02-12",1341,"محسن مياه",50,7.05,352.5]
[48,"2020-04-03","2020-04-03",1345,"محسن مياه",70,7.05,493.5]
[49,"2020-01-27","2020-01-27",1377,"محسن مياه",152,7.05,1071.5999999999999]
[50,"2020-04-29","2020-04-29",1378,"محسن مياه",48,7.05,338.4]
[51,"2020-06-25","2020-06-25",1420,"محسن مياه",75,7.05,528.75]
[52,"2020-03-26","2020-03-26",1421,"محسن مياه",50,7.05,352.5]
[53,"2020-02-13","2020-02-13",1426,"محسن مياه",30,7.05,211.5]
[54,"2020-07-07","2020-07-07",1442,"محسن مياه",50,7.05,352.5]
[55,"2020-03-17","2020-03-17",1443,"محسن مياه",30,7.05,211.5]
[56,"2020-05-12","2020-05-12",1455,"محسن مياه",100,7.05,705]
[57,"2020-06-30","2020-06-30",1459,"محسن مياه",100,7.05,705]
[58,"2020-05-15","2020-05-15",1490,"محسن مياه",50,7.05,352.5]
[59,"2020-04-26","2020-04-26",1491,"محسن مياه",25,7.05,176.25]
[60,"2020-03-12","2020-03-12",1492,"محسن مياه",50,7.05,352.5]
[61,"2020-04-05","2020-04-05",1493,"محسن مياه",75,7.05,528.75]
[62,"2020-06-11","2020-06-11",1507,"محسن مياه",75,7.05,528.75]
[63,"2020-03-03","2020-03-03",1513,"محسن مياه",50,7.05,352.5]
[64,"2020-03-26","2020-03-26",1528,"محسن مياه",30,7.05,211.5]
[65,"2020-07-23","2020-07-23",1532,"محسن مياه",30,7.05,211.5]
[66,"2020-02-04","2020-02-04",1535,"محسن مياه",30,7.05,211.5]
[67,"2020-05-28","2020-05-28",1544,"محسن مياه",75,7.05,528.75]

{"sheet":"خالد 31","index":25,"n_rows":33,"n_cols":8,"rows_kept":33,"cut":false,"hidden":false,"merged":[]}
[]
[]
[null,"اليوم","التاريخ","رقم الاذن","اسم المقاول","الكمية","السعر","القيمة"]
[1,"2020-06-16","2020-06-16",816,"خالد 31",400,7.05,2820]
[2,"2020-07-28","2020-07-28",828,"خالد 31",500,7.05,3525]
[3,"2020-04-13","2020-04-13",848,"خالد 31",675,7.05,4758.75]
[4,"2020-02-04","2020-02-04",884,"خالد 31",350,7.05,2467.5]
[5,"2020-07-16","2020-07-16",895,"خالد 31",350,7.05,2467.5]
[6,"2020-03-15","2020-03-15",932,"خالد 31",200,7.05,1410]
[7,"2020-03-08","2020-03-08",945,"خالد 31",200,7.05,1410]
[8,"2020-07-03","2020-07-03",1022,"خالد 31",750,7.05,5287.5]
[9,"2020-06-30","2020-06-30",1044,"خالد 31",1300,7.05,9165]
[10,"2020-06-13","2020-06-13",1060,"خالد 31",1100,7.05,7755]
[11,"2020-04-09","2020-04-09",1076,"خالد 31",1359,7.05,9580.9499999999989]
[12,"2020-06-20","2020-06-20",1108,"خالد 31",1429,7.05,10074.449999999999]
[13,"2020-05-26","2020-05-26",1119,"خالد 31",1300,7.05,9165]
[14,"2020-07-17","2020-07-17",1135,"خالد 31",1200,7.05,8460]
[15,"2020-03-25","2020-03-25",1158,"خالد 31",900,7.05,6345]
[16,"2020-05-21","2020-05-21",1177,"خالد 31",1250,7.05,8812.5]
[17,"2020-05-22","2020-05-22",1209,"خالد 31",1000,7.05,7050]
[18,"2020-04-17","2020-04-17",1215,"خالد 31",700,7.05,4935]
[19,"2020-05-07","2020-05-07",1237,"خالد 31",1300,7.05,9165]
[20,"2020-04-17","2020-04-17",5,"خالد 31",1150,7.05,8107.5]
[21,"2020-06-17","2020-06-17",25,"خالد 31",1200,7.05,8460]
[22,"2020-01-24","2020-01-24",39,"خالد 31",485,7.05,3419.25]
[23,"2020-03-28","2020-03-28",1394,"خالد 31",1150,7.05,8107.5]
[24,"2020-02-11","2020-02-11",1311,"خالد 31",1200,7.05,8460]
[25,"2020-06-09","2020-06-09",1338,"خالد 31",750,7.05,5287.5]
[26,"2020-06-24","2020-06-24",1366,"خالد 31",850,7.05,5992.5]
[27,"2020-06-29","2020-06-29",1381,"خالد 31",850,7.05,5992.5]
[28,"2020-03-01","2020-03-01",1419,"خالد 31",470,7.05,3313.5]
[29,"2020-03-17","2020-03-17",1439,"خالد 31",150,7.05,1057.5]
[30,"2020-05-04","2020-05-04",1456,"خالد 31",318,7.05,2241.9]

{"sheet":"عربية الجيش","index":26,"n_rows":6,"n_cols":8,"rows_kept":6,"cut":false,"hidden":false,"merged":[]}
[]
[]
[null,"اليوم","التاريخ","رقم الاذن","اسم المقاول","الكمية","السعر","القيمة"]
[1,"2020-01-28","2020-01-28",856,"عربية الجيش",36,7.05,253.79999999999998]
[2,"2020-06-13","2020-06-13",963,"عربية الجيش",80,7.05,564]
[3,"2020-01-21","2020-01-21",1086,"عربية الجيش",20,7.05,141]

{"sheet":"السيد156","index":27,"n_rows":35,"n_cols":8,"rows_kept":35,"cut":false,"hidden":false,"merged":[]}
[]
[]
[null,"اليوم","التاريخ","رقم الاذن","اسم المقاول","الكمية","السعر","القيمة"]
[1,"2020-02-24","2020-02-24",875,"السيد156",700,7.05,4935]
[2,"2020-03-14","2020-03-14",889,"السيد156",700,7.05,4935]
[3,"2020-06-08","2020-06-08",923,"السيد156",800,7.05,5640]
[4,"2020-01-27","2020-01-27",946,"السيد156",800,7.05,5640]
[5,"2020-05-28","2020-05-28",969,"السيد156",900,7.05,6345]
[6,"2020-02-27","2020-02-27",990,"السيد156",700,7.05,4935]
[7,"2020-01-24","2020-01-24",991,"السيد156",50,7.05,352.5]
[8,"2020-04-18","2020-04-18",1005,"السيد156",900,7.05,6345]
[9,"2020-05-12","2020-05-12",1029,"السيد156",850,7.05,5992.5]
[10,"2020-02-25","2020-02-25",1043,"السيد156",700,7.05,4935]
[11,"2020-06-17","2020-06-17",1059,"السيد156",550,7.05,3877.5]
[12,"2020-02-22","2020-02-22",1080,"السيد156",550,7.05,3877.5]
[13,"2020-02-25","2020-02-25",1106,"السيد156",750,7.05,5287.5]
[14,"2020-02-26","2020-02-26",1125,"السيد156",700,7.05,4935]
[15,"2020-06-12","2020-06-12",1139,"السيد156",700,7.05,4935]
[16,"2020-06-07","2020-06-07",1161,"السيد156",700,7.05,4935]
[17,"2020-06-26","2020-06-26",1180,"السيد156",700,7.05,4935]
[18,"2020-07-13","2020-07-13",1208,"السيد156",750,7.05,5287.5]
[19,"2020-06-19","2020-06-19",1214,"السيد156",850,7.05,5992.5]
[20,"2020-03-12","2020-03-12",1226,"السيد156",431,7.05,3038.5499999999997]
[21,"2020-05-01","2020-05-01",1239,"السيد156",700,7.05,4935]
[22,"2020-04-19","2020-04-19",11,"السيد156",650,7.05,4582.5]
[23,"2020-05-16","2020-05-16",26,"السيد156",800,7.05,5640]
[24,"2020-05-13","2020-05-13",37,"السيد156",800,7.05,5640]
[25,"2020-05-28","2020-05-28",1393,"السيد156",800,7.05,5640]
[26,"2020-04-01","2020-04-01",1305,"السيد156",800,7.05,5640]
[27,"2020-03-09","2020-03-09",1339,"السيد156",600,7.05,4230]
[28,"2020-04-14","2020-04-14",1368,"السيد156",600,7.05,4230]
[29,"2020-04-01","2020-04-01",1379,"السيد156",600,7.05,4230]
[30,"2020-06-30","2020-06-30",1415,"السيد156",50,7.05,352.5]
[31,"2020-06-15","2020-06-15",1434,"السيد156",300,7.05,2115]
[32,"2020-03-26","2020-03-26",1462,"السيد156",250,7.05,1762.5]

{"sheet":"عنتر","index":28,"n_rows":43,"n_cols":8,"rows_kept":43,"cut":false,"hidden":false,"merged":[]}
[]
[]
[null,"اليوم","التاريخ","رقم الاذن","اسم المقاول","الكمية","السعر","القيمة"]
[1,"2020-03-20","2020-03-20",926,"عنتر",100,7.05,705]
[2,"2020-08-04","2020-08-04",942,"عنتر",353,7.05,2488.65]
[3,"2020-02-03","2020-02-03",958,"عنتر",200,7.05,1410]
[4,"2020-07-27","2020-07-27",959,"عنتر",350,7.05,2467.5]
[5,"2020-06-19","2020-06-19",988,"عنتر",600,7.05,4230]
[6,"2020-07-26","2020-07-26",1003,"عنتر",600,7.05,4230]
[7,"2020-03-29","2020-03-29",1021,"عنتر",400,7.05,2820]
[8,"2020-01-21","2020-01-21",1028,"عنتر",300,7.05,2115]
[9,"2020-06-11","2020-06-11",1039,"عنتر",900,7.05,6345]
[10,"2020-08-01","2020-08-01",1061,"عنتر",1200,7.05,8460]
[11,"2020-04-30","2020-04-30",1072,"عنتر",1300,7.05,9165]
[12,"2020-02-20","2020-02-20",1084,"عنتر",180,7.05,1269]
[13,"2020-04-05","2020-04-05",1109,"عنتر",750,7.05,5287.5]
[14,"2020-04-20","2020-04-20",1111,"عنتر",750,7.05,5287.5]
[15,"2020-06-03","2020-06-03",1121,"عنتر",1320,7.05,9306]
[16,"2020-07-17","2020-07-17",1137,"عنتر",900,7.05,6345]
[17,"2020-06-05","2020-06-05",1156,"عنتر",700,7.05,4935]
[18,"2020-01-20","2020-01-20",1178,"عنتر",840,7.05,5922]
[19,"2020-03-29","2020-03-29",1204,"عنتر",818,7.05,5766.9]
[20,"2020-03-01","2020-03-01",1217,"عنتر",1096,7.05,7726.8]
[21,"2020-07-13","2020-07-13",1240,"عنتر",800,7.05,5640]
[22,"2020-07-14","2020-07-14",6,"عنتر",900,7.05,6345]
[23,"2020-01-29","2020-01-29",28,"عنتر",450,7.05,3172.5]
[24,"2020-07-01","2020-07-01",38,"عنتر",450,7.05,3172.5]
[25,"2020-07-31","2020-07-31",1396,"عنتر",750,7.05,5287.5]
[26,"2020-03-03","2020-03-03",1312,"عنتر",440,7.05,3102]
[27,"2020-04-21","2020-04-21",1337,"عنتر",850,7.05,5992.5]
[28,"2020-03-18","2020-03-18",1365,"عنتر",850,7.05,5992.5]
[29,"2020-04-02","2020-04-02",1380,"عنتر",900,7.05,6345]
[30,"2020-04-15","2020-04-15",1418,"عنتر",950,7.05,6697.5]
[31,"2020-06-22","2020-06-22",1435,"عنتر",1170,7.05,8248.5]
[32,"2020-01-29","2020-01-29",1461,"عنتر",443,7.05,3123.15]
[33,"2020-03-27","2020-03-27",1496,"عنتر",567,7.05,3997.35]
[34,"2020-04-18","2020-04-18",1514,"عنتر",931,7.05,6563.55]
[35,"2020-04-29","2020-04-29",1533,"عنتر",400,7.05,2820]
[36,"2020-05-28","2020-05-28",1549,"عنتر",600,7.05,4230]
[37,"2020-02-23","2020-02-23",1565,"عنتر",300,7.05,2115]
[38,"2020-01-22","2020-01-22",1579,"عنتر",500,7.05,3525]
[39,"2020-04-02","2020-04-02",1580,"عنتر",2000,7.05,14100]
[40,"2020-06-02","2020-06-02",1594,"عنتر",700,7.05,4935]

{"sheet":"رجب طرق","index":29,"n_rows":33,"n_cols":8,"rows_kept":33,"cut":false,"hidden":false,"merged":[]}
[]
[]
[null,"اليوم","التاريخ","رقم الاذن","اسم المقاول","الكمية","السعر","القيمة"]
[1,"2020-03-28","2020-03-28",1138,"رجب طرق",400,7.05,2820]
[2,"2020-05-06","2020-05-06",1157,"رجب طرق",331,7.05,2333.5499999999997]
[3,"2020-02-21","2020-02-21",1176,"رجب طرق",200,7.05,1410]
[4,"2020-06-26","2020-06-26",1203,"رجب طرق",400,7.05,2820]
[5,"2020-06-22","2020-06-22",1222,"رجب طرق",200,7.05,1410]
[6,"2020-06-03","2020-06-03",1236,"رجب طرق",400,7.05,2820]
[7,"2020-01-28","2020-01-28",4,"رجب طرق",200,7.05,1410]
[8,"2020-04-26","2020-04-26",15,"رجب طرق",200,7.05,1410]
[9,"2020-03-26","2020-03-26",19,"رجب طرق",450,7.05,3172.5]
[10,"2020-07-03","2020-07-03",20,"رجب طرق",200,7.05,1410]
[11,"2020-03-14","2020-03-14",33,"رجب طرق",750,7.05,5287.5]
[12,"2020-05-27","2020-05-27",1391,"رجب طرق",600,7.05,4230]
[13,"2020-06-13","2020-06-13",1401,"رجب طرق",100,7.05,705]
[14,"2020-03-10","2020-03-10",1304,"رجب طرق",600,7.05,4230]
[15,"2020-07-24","2020-07-24",1315,"رجب طرق",200,7.05,1410]
[16,"2020-03-20","2020-03-20",1335,"رجب طرق",700,7.05,4935]
[17,"2020-06-30","2020-06-30",1359,"رجب طرق",700,7.05,4935]
[18,"2020-05-14","2020-05-14",1383,"رجب طرق",820,7.05,5781]
[19,"2020-07-26","2020-07-26",1416,"رجب طرق",1000,7.05,7050]
[20,"2020-01-27","2020-01-27",1423,"رجب طرق",200,7.05,1410]
[21,"2020-03-22","2020-03-22",1433,"رجب طرق",1200,7.05,8460]
[22,"2020-05-29","2020-05-29",1454,"رجب طرق",1550,7.05,10927.5]
[23,"2020-03-09","2020-03-09",1464,"رجب طرق",200,7.05,1410]
[24,"2020-01-23","2020-01-23",1487,"رجب طرق",1300,7.05,9165]
[25,"2020-05-22","2020-05-22",1512,"رجب طرق",1394,7.05,9827.6999999999989]
[26,"2020-01-21","2020-01-21",1530,"رجب طرق",1750,7.05,12337.5]
[27,"2020-07-20","2020-07-20",1547,"رجب طرق",1650,7.05,11632.5]
[28,"2020-07-24","2020-07-24",1563,"رجب طرق",1850,7.05,13042.5]
[29,"2020-08-04","2020-08-04",1577,"رجب طرق",1792,7.05,12633.6]
[30,"2020-07-22","2020-07-22",1591,"رجب طرق",2300,7.05,16215]

{"sheet":"جابر 59","index":30,"n_rows":25,"n_cols":8,"rows_kept":25,"cut":false,"hidden":false,"merged":[]}
[]
[]
[null,"اليوم","التاريخ","رقم الاذن","اسم المقاول","الكمية","السعر","القيمة"]
[1,"2020-07-18","2020-07-18",1207,"جابر 59",402,7.05,2834.1]
[2,"2020-01-30","2020-01-30",1224,"جابر 59",400,7.05,2820]
[3,"2020-06-23","2020-06-23",1245,"جابر 59",387,7.05,2728.35]
[4,"2020-07-12","2020-07-12",7,"جابر 59",600,7.05,4230]
[5,"2020-02-29","2020-02-29",23,"جابر 59",700,7.05,4935]
[6,"2020-03-06","2020-03-06",31,"جابر 59",323,7.05,2277.15]
[7,"2020-07-07","2020-07-07",35,"جابر 59",700,7.05,4935]
[8,"2020-01-30","2020-01-30",1389,"جابر 59",1200,7.05,8460]
[9,"2020-04-08","2020-04-08",1307,"جابر 59",700,7.05,4935]
[10,"2020-05-27","2020-05-27",1342,"جابر 59",750,7.05,5287.5]
[11,"2020-02-09","2020-02-09",1362,"جابر 59",1270,7.05,8953.5]
[12,"2020-06-12","2020-06-12",1373,"جابر 59",34,7.05,239.7]
[13,"2020-07-11","2020-07-11",1384,"جابر 59",1500,7.05,10575]
[14,"2020-05-26","2020-05-26",1425,"جابر 59",2261,7.05,15940.05]
[15,"2020-06-25","2020-06-25",1437,"جابر 59",2200,7.05,15510]
[16,"2020-02-12","2020-02-12",1458,"جابر 59",1000,7.05,7050]
[17,"2020-06-28","2020-06-28",1489,"جابر 59",1720,7.05,12126]
[18,"2020-04-03","2020-04-03",1516,"جابر 59",1600,7.05,11280]
[19,"2020-07-23","2020-07-23",1537,"جابر 59",2250,7.05,15862.5]
[20,"2020-04-30","2020-04-30",1551,"جابر 59",2110,7.05,14875.5]
[21,"2020-01-25","2020-01-25",1568,"جابر 59",2495,7.05,17589.75]
[22,"2020-05-06","2020-05-06",1595,"جابر 59",1000,7.05,7050]

{"sheet":"الشركة","index":31,"n_rows":7,"n_cols":8,"rows_kept":7,"cut":false,"hidden":false,"merged":[]}
[]
[]
[null,"اليوم","التاريخ","رقم الاذن","اسم المقاول","الكمية","السعر","القيمة"]
[1,"2020-06-29","2020-06-29",45,"الشركة",161,7.05,1135.05]
[2,"2020-05-26","2020-05-26",1309,"الشركة",147,7.05,1036.3499999999999]
[3,"2020-08-02","2020-08-02",1429,"الشركة",50,7.05,352.5]
[4,"2020-03-06","2020-03-06",1463,"الشركة",40,7.05,282]

{"sheet":"الشركة 23","index":32,"n_rows":8,"n_cols":8,"rows_kept":8,"cut":false,"hidden":false,"merged":[]}
[]
[]
[null,"اليوم","التاريخ","رقم الاذن","اسم المقاول","الكمية","السعر","القيمة"]
[1,"2020-05-11","2020-05-11",1499,"الشركة 23",171,7.05,1205.55]
[2,"2020-06-26","2020-06-26",1517,"الشركة 23",100,7.05,705]
[3,"2020-06-26","2020-06-26",1534,"الشركة 23",35,7.05,246.75]
[4,"2020-02-22","2020-02-22",1545,"الشركة 23",65,7.05,458.25]
[5,"2020-01-29","2020-01-29",1567,"الشركة 23",25,7.05,176.25]